{"text_format":"1","workbook":"xlsx","n_sheets":21,"sheets":["Data","Instr","CNMP-No Land","Dry-Stack Calc","CNMP-With Land","Soils Info","Part A Tables","Part B Tables","R","LS","C","P","Distance","Lab","Index","Dry-Stack Calc WL","Dry-Stack CF","PSI-DE","Nt Mgt Plan","Con_Prac","Sheet1"],"not_rendered":{"charts":0,"images":0,"macros":1,"external_links":2,"defined_names":134,"comments":8,"pivot_tables":0},"unopened":[],"bounds":{"document_bytes":16777216,"sheet_cells":100000,"rows_first":2000,"rows_last":500,"rows_between":2000,"halvings":0,"cell_chars":16384,"cell_head_chars":4096},"cells_cut":0,"cells_raw":0,"read":"whole","date_system":"1900"}

{"sheet":"Data","index":0,"n_rows":104,"n_cols":13,"rows_kept":104,"cut":false,"hidden":true,"merged":[[54,0,54,3],[1,0,1,1],[4,0,4,1],[3,0,3,1],[2,0,2,1],[21,0,21,1],[0,0,0,4],[6,0,6,2],[27,11,27,12],[5,7,5,12],[6,7,6,8],[6,9,6,10],[6,11,6,12]]}
["Input Data Sheet"]
["Address"]
["New Castle County Agricultural Center\n2430 Old County Road\nNewark, DE 19702\n(302) 832-3100 ext. 3"]
["Kent County Agricultural Center\n800 Bay Road,  Suite 2\nDover, DE 19901\n(302) 741-2600 ext. 3"]
["Sussex County Agricultural Center\n21315 Berlin Road, Unit 3\nGeorgetown, DE 19947\n(302) 856-3990 ext. 3"]
[null,null,null,null,null,null,null,"Nutrient Management Certification Names and ID Numbers"]
["DE Certified Consultant Numbers",null,null,"Active County (No/Land)","Active County (W/Land)",null,null,"New Castle",null,"Kent",null,"Sussex"]
["New Castle","Kent","Sussex",null,{"$f":"IF('CNMP-With Land'!$A$1=\"Dover Field Office\",Data!B8,IF('CNMP-With Land'!$A$1=\"Newark Field office\",Data!A8,IF('CNMP-With Land'!$A$1=\"Georgetown Field Office\",Data!C8,\" \")))","v":" "},null,null,"No.","Name","No.","Name","No.","Name"]
[null,null,null,null,null,null,null,61,"Hardesty",59,"Wiltbank",62,"Savage"]
[61,59,62,{"$f":"IF('CNMP-No Land'!$A$1=\"Dover Field Office\",Data!B10,IF('CNMP-No Land'!$A$1=\"Newark Field office\",Data!A10,IF('CNMP-No Land'!$A$1=\"Georgetown Field Office\",Data!C10,\" \")))","v":" "},{"$f":"IF('CNMP-With Land'!$A$1=\"Dover Field Office\",Data!B10,IF('CNMP-With Land'!$A$1=\"Newark Field office\",Data!A10,IF('CNMP-With Land'!$A$1=\"Georgetown Field Office\",Data!C10,\" \")))","v":" "},null,null,1254,"Gandy",1443,"Breeding",66,"Foskey"]
[1254,1443,66,{"$f":"IF('CNMP-No Land'!$A$1=\"Dover Field Office\",Data!B11,IF('CNMP-No Land'!$A$1=\"Newark Field office\",Data!A11,IF('CNMP-No Land'!$A$1=\"Georgetown Field Office\",Data!C11,\" \")))","v":" "},{"$f":"IF('CNMP-With Land'!$A$1=\"Dover Field Office\",Data!B11,IF('CNMP-With Land'!$A$1=\"Newark Field office\",Data!A11,IF('CNMP-With Land'!$A$1=\"Georgetown Field Office\",Data!C11,\" \")))","v":" "},null,null,null,null,1460,"Timmons",69,"Ryan"]
[null,1460,69,{"$f":"IF('CNMP-No Land'!$A$1=\"Dover Field Office\",Data!B12,IF('CNMP-No Land'!$A$1=\"Newark Field office\",Data!A12,IF('CNMP-No Land'!$A$1=\"Georgetown Field Office\",Data!C12,\" \")))","v":" "},{"$f":"IF('CNMP-With Land'!$A$1=\"Dover Field Office\",Data!B12,IF('CNMP-With Land'!$A$1=\"Newark Field office\",Data!A12,IF('CNMP-With Land'!$A$1=\"Georgetown Field Office\",Data!C12,\" \")))","v":" "},null,null,null,null,1954,"Bushey",1460,"Timmons"]
[null,1954,1460,{"$f":"IF('CNMP-No Land'!$A$1=\"Dover Field Office\",Data!B13,IF('CNMP-No Land'!$A$1=\"Newark Field office\",Data!A13,IF('CNMP-No Land'!$A$1=\"Georgetown Field Office\",Data!C13,\" \")))","v":" "},{"$f":"IF('CNMP-With Land'!$A$1=\"Dover Field Office\",Data!B13,IF('CNMP-With Land'!$A$1=\"Newark Field office\",Data!A13,IF('CNMP-With Land'!$A$1=\"Georgetown Field Office\",Data!C13,\" \")))","v":" "},null,null,null,null,2226,"Kohout",2411,"Hearn"]
[null,2226,2411,{"$f":"IF('CNMP-No Land'!$A$1=\"Dover Field Office\",Data!B14,IF('CNMP-No Land'!$A$1=\"Newark Field office\",Data!A14,IF('CNMP-No Land'!$A$1=\"Georgetown Field Office\",Data!C14,\" \")))","v":" "},{"$f":"IF('CNMP-With Land'!$A$1=\"Dover Field Office\",Data!B14,IF('CNMP-With Land'!$A$1=\"Newark Field office\",Data!A14,IF('CNMP-With Land'!$A$1=\"Georgetown Field Office\",Data!C14,\" \")))","v":" "},null,null,null,null,2499,"Steen",2457,"Gorski"]
[null,2499,2457,{"$f":"IF('CNMP-No Land'!$A$1=\"Dover Field Office\",Data!B15,IF('CNMP-No Land'!$A$1=\"Newark Field office\",Data!A15,IF('CNMP-No Land'!$A$1=\"Georgetown Field Office\",Data!C15,\" \")))","v":" "},{"$f":"IF('CNMP-With Land'!$A$1=\"Dover Field Office\",Data!B15,IF('CNMP-With Land'!$A$1=\"Newark Field office\",Data!A15,IF('CNMP-With Land'!$A$1=\"Georgetown Field Office\",Data!C15,\" \")))","v":" "},null,null,null,null,2585,"Walsh",2587,"Hughes"]
[null,2585,2587,{"$f":"IF('CNMP-No Land'!$A$1=\"Dover Field Office\",Data!B16,IF('CNMP-No Land'!$A$1=\"Newark Field office\",Data!A16,IF('CNMP-No Land'!$A$1=\"Georgetown Field Office\",Data!C16,\" \")))","v":" "},{"$f":"IF('CNMP-With Land'!$A$1=\"Dover Field Office\",Data!B16,IF('CNMP-With Land'!$A$1=\"Newark Field office\",Data!A16,IF('CNMP-With Land'!$A$1=\"Georgetown Field Office\",Data!C16,\" \")))","v":" "},null,null,null,null,null,null,2692,"Holston"]
[null,null,2692,{"$f":"IF('CNMP-No Land'!$A$1=\"Dover Field Office\",Data!B17,IF('CNMP-No Land'!$A$1=\"Newark Field office\",Data!A17,IF('CNMP-No Land'!$A$1=\"Georgetown Field Office\",Data!C17,\" \")))","v":" "},{"$f":"IF('CNMP-With Land'!$A$1=\"Dover Field Office\",Data!B17,IF('CNMP-With Land'!$A$1=\"Newark Field office\",Data!A17,IF('CNMP-With Land'!$A$1=\"Georgetown Field Office\",Data!C17,\" \")))","v":" "}]
[null,null,null,{"$f":"IF('CNMP-No Land'!$A$1=\"Dover Field Office\",Data!B18,IF('CNMP-No Land'!$A$1=\"Newark Field office\",Data!A18,IF('CNMP-No Land'!$A$1=\"Georgetown Field Office\",Data!C18,\" \")))","v":" "},{"$f":"IF('CNMP-With Land'!$A$1=\"Dover Field Office\",Data!B18,IF('CNMP-With Land'!$A$1=\"Newark Field office\",Data!A18,IF('CNMP-With Land'!$A$1=\"Georgetown Field Office\",Data!C18,\" \")))","v":" "}]
[null,null,null,{"$f":"IF('CNMP-No Land'!$A$1=\"Dover Field Office\",Data!B19,IF('CNMP-No Land'!$A$1=\"Newark Field office\",Data!A19,IF('CNMP-No Land'!$A$1=\"Georgetown Field Office\",Data!C19,\" \")))","v":" "},{"$f":"IF('CNMP-With Land'!$A$1=\"Dover Field Office\",Data!B19,IF('CNMP-With Land'!$A$1=\"Newark Field office\",Data!A19,IF('CNMP-With Land'!$A$1=\"Georgetown Field Office\",Data!C19,\" \")))","v":" "}]
[null,null,null,{"$f":"IF('CNMP-No Land'!$A$1=\"Dover Field Office\",Data!B20,IF('CNMP-No Land'!$A$1=\"Newark Field office\",Data!A20,IF('CNMP-No Land'!$A$1=\"Georgetown Field Office\",Data!C20,\" \")))","v":" "},{"$f":"IF('CNMP-With Land'!$A$1=\"Dover Field Office\",Data!B20,IF('CNMP-With Land'!$A$1=\"Newark Field office\",Data!A20,IF('CNMP-With Land'!$A$1=\"Georgetown Field Office\",Data!C20,\" \")))","v":" "}]
[]
["Description of Operation",null,null,"Field Office"]
["Poultry Type","Poultry Integrator"]
[null,null,null,"Dover Field Office"]
["Broiler","Allen Family Foods, Inc.",null,"Newark Field Office"]
["Roaster","Amick Farms, LLC",null,"Georgetown Field Office"]
["Cornish","Mountaire Farms, Inc."]
["Pullet-6Wk","Perdue Farms, Inc.",null,null,null,null,null,null,null,null,null,"Production Area Entrance"]
["Pullet-6Wk","Tyson Foods, inc.",null,null,null,null,null,null,null,null,null,"Latitude°","Longitude°"]
["Breeder",null,null,null,null,null,null,null,null,null,null,3.1525694444444445,1.6456365740740742]
["Layer"]
["Turkey"]
[]
[null,null,null,null,"Previous DNMC's"]
["DNMC-authorized","Method of Routine On-farm","Method for Routine Animal",null,"DNMC-authorized"]
["Alternative  Use","Manure Storage"," Mortality Disposal",null,"Alt  Use + Transporters"]
[]
["Not Applicable","Not Applicable","Not Applicable",null,"Not Applicable"]
["Coastal Supply Company, Inc.","Roofed Manure Structure","Composting",null,"Allen's Hurlock"]
["Eastern Shore Forest Products, Inc.","Bunker Structure","Incineration",null,"Blessing Composting"]
["Perdue AgriRecycle, LLC","Immediately Hauled Away","In-house Unit",null,"Bowles Farms"]
["Pennsylvania Mushroom Farms/Composters","In-Field (Covered)","Contract Hauler",null,"Coastal Supply"]
["Quality Mulch Products, LLC","In-Field (Uncovered)","Rendering",null,"DPI Clearing House"]
[null,"In-field (On Pad)","Other",null,"Ellis Farms Inc."]
[null,"In-field (On Pad/Covered)","None",null,"Environmental Technologies of DE"]
[null,"In Poultry House",null,null,"Granados Farms"]
[null,"Other",null,null,"Lawrence Jester"]
[null,null,null,null,"Litter Management"]
[null,null,null,null,"New Earth Services"]
[null,null,null,null,"Perdue Agricycle"]
[]
[]
[]
[]
["Watersheds",null,null,null,"Active County (No/Land)","Active County (W/Land)"]
["Delaware","New Castle","Kent","Sussex",{"$f":"IF('CNMP-No Land'!$A$1=\"Dover Field Office\",Data!C56,IF('CNMP-No Land'!$A$1=\"Newark Field office\",Data!B56,IF('CNMP-No Land'!$A$1=\"Georgetown Field Office\",Data!D56,\" \")))","v":" "},{"$f":"IF('CNMP-With Land'!$A$1=\"Dover Field Office\",Data!C56,IF('CNMP-With Land'!$A$1=\"Newark Field office\",Data!B56,IF('CNMP-With Land'!$A$1=\"Georgetown Field Office\",Data!D56,\" \")))","v":" "}]
[]
[" Not Applicable"]
[" 1  Naamans Creek"," 1  Naamans Creek","15  Smyrna River","20  Mispillion River",{"$f":"IF('CNMP-No Land'!$A$1=\"Dover Field Office\",Data!C59,IF('CNMP-No Land'!$A$1=\"Newark Field office\",Data!B59,IF('CNMP-No Land'!$A$1=\"Georgetown Field Office\",Data!D59,\" \")))","v":" "},{"$f":"IF('CNMP-With Land'!$A$1=\"Dover Field Office\",Data!C59,IF('CNMP-With Land'!$A$1=\"Newark Field office\",Data!B59,IF('CNMP-With Land'!$A$1=\"Georgetown Field Office\",Data!D59,\" \")))","v":" "}]
[" 2  Shellpot Creek"," 2  Shellpot Creek","16  Leipsic River","21  Cedar Creek",{"$f":"IF('CNMP-No Land'!$A$1=\"Dover Field Office\",Data!C60,IF('CNMP-No Land'!$A$1=\"Newark Field office\",Data!B60,IF('CNMP-No Land'!$A$1=\"Georgetown Field Office\",Data!D60,\" \")))","v":" "},{"$f":"IF('CNMP-With Land'!$A$1=\"Dover Field Office\",Data!C60,IF('CNMP-With Land'!$A$1=\"Newark Field office\",Data!B60,IF('CNMP-With Land'!$A$1=\"Georgetown Field Office\",Data!D60,\" \")))","v":" "}]
[" 3  Brandywine Creek"," 3  Brandywine Creek","17  Little Creek","22  Broadkill River",{"$f":"IF('CNMP-No Land'!$A$1=\"Dover Field Office\",Data!C61,IF('CNMP-No Land'!$A$1=\"Newark Field office\",Data!B61,IF('CNMP-No Land'!$A$1=\"Georgetown Field Office\",Data!D61,\" \")))","v":" "},{"$f":"IF('CNMP-With Land'!$A$1=\"Dover Field Office\",Data!C61,IF('CNMP-With Land'!$A$1=\"Newark Field office\",Data!B61,IF('CNMP-With Land'!$A$1=\"Georgetown Field Office\",Data!D61,\" \")))","v":" "}]
[" 4  Red Clay Creek"," 4  Red Clay Creek","18  St. Jones River","30  Marshyhope Creek",{"$f":"IF('CNMP-No Land'!$A$1=\"Dover Field Office\",Data!C62,IF('CNMP-No Land'!$A$1=\"Newark Field office\",Data!B62,IF('CNMP-No Land'!$A$1=\"Georgetown Field Office\",Data!D62,\" \")))","v":" "},{"$f":"IF('CNMP-With Land'!$A$1=\"Dover Field Office\",Data!C62,IF('CNMP-With Land'!$A$1=\"Newark Field office\",Data!B62,IF('CNMP-With Land'!$A$1=\"Georgetown Field Office\",Data!D62,\" \")))","v":" "}]
[" 5  White Clay Creek"," 5  White Clay Creek","19  Murderkill River","31  Nanticoke River",{"$f":"IF('CNMP-No Land'!$A$1=\"Dover Field Office\",Data!C63,IF('CNMP-No Land'!$A$1=\"Newark Field office\",Data!B63,IF('CNMP-No Land'!$A$1=\"Georgetown Field Office\",Data!D63,\" \")))","v":" "},{"$f":"IF('CNMP-With Land'!$A$1=\"Dover Field Office\",Data!C63,IF('CNMP-With Land'!$A$1=\"Newark Field office\",Data!B63,IF('CNMP-With Land'!$A$1=\"Georgetown Field Office\",Data!D63,\" \")))","v":" "}]
[" 6  Christina River"," 6  Christina River","20  Mispillion River","32  Gum Branch",{"$f":"IF('CNMP-No Land'!$A$1=\"Dover Field Office\",Data!C64,IF('CNMP-No Land'!$A$1=\"Newark Field office\",Data!B64,IF('CNMP-No Land'!$A$1=\"Georgetown Field Office\",Data!D64,\" \")))","v":" "},{"$f":"IF('CNMP-With Land'!$A$1=\"Dover Field Office\",Data!C64,IF('CNMP-With Land'!$A$1=\"Newark Field office\",Data!B64,IF('CNMP-With Land'!$A$1=\"Georgetown Field Office\",Data!D64,\" \")))","v":" "}]
[" 7  Delaware River"," 7  Delaware River","28  Chester River","33  Gravelly Branch",{"$f":"IF('CNMP-No Land'!$A$1=\"Dover Field Office\",Data!C65,IF('CNMP-No Land'!$A$1=\"Newark Field office\",Data!B65,IF('CNMP-No Land'!$A$1=\"Georgetown Field Office\",Data!D65,\" \")))","v":" "},{"$f":"IF('CNMP-With Land'!$A$1=\"Dover Field Office\",Data!C65,IF('CNMP-With Land'!$A$1=\"Newark Field office\",Data!B65,IF('CNMP-With Land'!$A$1=\"Georgetown Field Office\",Data!D65,\" \")))","v":" "}]
[" 8  Army Creek"," 8  Army Creek","29  Choptank River","34  Deep Creek",{"$f":"IF('CNMP-No Land'!$A$1=\"Dover Field Office\",Data!C66,IF('CNMP-No Land'!$A$1=\"Newark Field office\",Data!B66,IF('CNMP-No Land'!$A$1=\"Georgetown Field Office\",Data!D66,\" \")))","v":" "},{"$f":"IF('CNMP-With Land'!$A$1=\"Dover Field Office\",Data!C66,IF('CNMP-With Land'!$A$1=\"Newark Field office\",Data!B66,IF('CNMP-With Land'!$A$1=\"Georgetown Field Office\",Data!D66,\" \")))","v":" "}]
[" 9  Red Lion Creek"," 9  Red Lion Creek","30  Marshyhope Creek","35  Broad Creek",{"$f":"IF('CNMP-No Land'!$A$1=\"Dover Field Office\",Data!C67,IF('CNMP-No Land'!$A$1=\"Newark Field office\",Data!B67,IF('CNMP-No Land'!$A$1=\"Georgetown Field Office\",Data!D67,\" \")))","v":" "},{"$f":"IF('CNMP-With Land'!$A$1=\"Dover Field Office\",Data!C67,IF('CNMP-With Land'!$A$1=\"Newark Field office\",Data!B67,IF('CNMP-With Land'!$A$1=\"Georgetown Field Office\",Data!D67,\" \")))","v":" "}]
["10  Dragon Run Creek","10  Dragon Run Creek","31  Nanticoke River","36  Wicomico",{"$f":"IF('CNMP-No Land'!$A$1=\"Dover Field Office\",Data!C68,IF('CNMP-No Land'!$A$1=\"Newark Field office\",Data!B68,IF('CNMP-No Land'!$A$1=\"Georgetown Field Office\",Data!D68,\" \")))","v":" "},{"$f":"IF('CNMP-With Land'!$A$1=\"Dover Field Office\",Data!C68,IF('CNMP-With Land'!$A$1=\"Newark Field office\",Data!B68,IF('CNMP-With Land'!$A$1=\"Georgetown Field Office\",Data!D68,\" \")))","v":" "}]
["11  C&D Canal East","11  C&D Canal East",null,"37  Pocomoke River",{"$f":"IF('CNMP-No Land'!$A$1=\"Dover Field Office\",Data!C69,IF('CNMP-No Land'!$A$1=\"Newark Field office\",Data!B69,IF('CNMP-No Land'!$A$1=\"Georgetown Field Office\",Data!D69,\" \")))","v":" "},{"$f":"IF('CNMP-With Land'!$A$1=\"Dover Field Office\",Data!C69,IF('CNMP-With Land'!$A$1=\"Newark Field office\",Data!B69,IF('CNMP-With Land'!$A$1=\"Georgetown Field Office\",Data!D69,\" \")))","v":" "}]
["12  Appoquinimink River","12  Appoquinimink River",null,"38  Lewes-Rehoboth Canal",{"$f":"IF('CNMP-No Land'!$A$1=\"Dover Field Office\",Data!C70,IF('CNMP-No Land'!$A$1=\"Newark Field office\",Data!B70,IF('CNMP-No Land'!$A$1=\"Georgetown Field Office\",Data!D70,\" \")))","v":" "},{"$f":"IF('CNMP-With Land'!$A$1=\"Dover Field Office\",Data!C70,IF('CNMP-With Land'!$A$1=\"Newark Field office\",Data!B70,IF('CNMP-With Land'!$A$1=\"Georgetown Field Office\",Data!D70,\" \")))","v":" "}]
["13  Blackbird Creek","13  Blackbird Creek",null,"39  Rehoboth Bay",{"$f":"IF('CNMP-No Land'!$A$1=\"Dover Field Office\",Data!C71,IF('CNMP-No Land'!$A$1=\"Newark Field office\",Data!B71,IF('CNMP-No Land'!$A$1=\"Georgetown Field Office\",Data!D71,\" \")))","v":" "},{"$f":"IF('CNMP-With Land'!$A$1=\"Dover Field Office\",Data!C71,IF('CNMP-With Land'!$A$1=\"Newark Field office\",Data!B71,IF('CNMP-With Land'!$A$1=\"Georgetown Field Office\",Data!D71,\" \")))","v":" "}]
["14  Delaware Bay","14  Delaware Bay",null,"40  Indian River",{"$f":"IF('CNMP-No Land'!$A$1=\"Dover Field Office\",Data!C72,IF('CNMP-No Land'!$A$1=\"Newark Field office\",Data!B72,IF('CNMP-No Land'!$A$1=\"Georgetown Field Office\",Data!D72,\" \")))","v":" "},{"$f":"IF('CNMP-With Land'!$A$1=\"Dover Field Office\",Data!C72,IF('CNMP-With Land'!$A$1=\"Newark Field office\",Data!B72,IF('CNMP-With Land'!$A$1=\"Georgetown Field Office\",Data!D72,\" \")))","v":" "}]
["15  Smyrna River","15  Smyrna River",null,"41  Iron Branch",{"$f":"IF('CNMP-No Land'!$A$1=\"Dover Field Office\",Data!C73,IF('CNMP-No Land'!$A$1=\"Newark Field office\",Data!B73,IF('CNMP-No Land'!$A$1=\"Georgetown Field Office\",Data!D73,\" \")))","v":" "},{"$f":"IF('CNMP-With Land'!$A$1=\"Dover Field Office\",Data!C73,IF('CNMP-With Land'!$A$1=\"Newark Field office\",Data!B73,IF('CNMP-With Land'!$A$1=\"Georgetown Field Office\",Data!D73,\" \")))","v":" "}]
["16  Leipsic River","23  Elk Creek",null,"42  Indian River Bay",{"$f":"IF('CNMP-No Land'!$A$1=\"Dover Field Office\",Data!C74,IF('CNMP-No Land'!$A$1=\"Newark Field office\",Data!B74,IF('CNMP-No Land'!$A$1=\"Georgetown Field Office\",Data!D74,\" \")))","v":" "},{"$f":"IF('CNMP-With Land'!$A$1=\"Dover Field Office\",Data!C74,IF('CNMP-With Land'!$A$1=\"Newark Field office\",Data!B74,IF('CNMP-With Land'!$A$1=\"Georgetown Field Office\",Data!D74,\" \")))","v":" "}]
["17  Little Creek","24  Perch Creek",null,"43  Buntings Branch",{"$f":"IF('CNMP-No Land'!$A$1=\"Dover Field Office\",Data!C75,IF('CNMP-No Land'!$A$1=\"Newark Field office\",Data!B75,IF('CNMP-No Land'!$A$1=\"Georgetown Field Office\",Data!D75,\" \")))","v":" "},{"$f":"IF('CNMP-With Land'!$A$1=\"Dover Field Office\",Data!C75,IF('CNMP-With Land'!$A$1=\"Newark Field office\",Data!B75,IF('CNMP-With Land'!$A$1=\"Georgetown Field Office\",Data!D75,\" \")))","v":" "}]
["18  St. Jones River","25  C&D Canal West",null,"44  Assawoman",{"$f":"IF('CNMP-No Land'!$A$1=\"Dover Field Office\",Data!C76,IF('CNMP-No Land'!$A$1=\"Newark Field office\",Data!B76,IF('CNMP-No Land'!$A$1=\"Georgetown Field Office\",Data!D76,\" \")))","v":" "},{"$f":"IF('CNMP-With Land'!$A$1=\"Dover Field Office\",Data!C76,IF('CNMP-With Land'!$A$1=\"Newark Field office\",Data!B76,IF('CNMP-With Land'!$A$1=\"Georgetown Field Office\",Data!D76,\" \")))","v":" "}]
["19  Murderkill River","26  Bohemia Creek",null,"45  Little Assawoman",{"$f":"IF('CNMP-No Land'!$A$1=\"Dover Field Office\",Data!C77,IF('CNMP-No Land'!$A$1=\"Newark Field office\",Data!B77,IF('CNMP-No Land'!$A$1=\"Georgetown Field Office\",Data!D77,\" \")))","v":" "},{"$f":"IF('CNMP-With Land'!$A$1=\"Dover Field Office\",Data!C77,IF('CNMP-With Land'!$A$1=\"Newark Field office\",Data!B77,IF('CNMP-With Land'!$A$1=\"Georgetown Field Office\",Data!D77,\" \")))","v":" "}]
["20  Mispillion River","27  Sassafras River",null,null,{"$f":"IF('CNMP-No Land'!$A$1=\"Dover Field Office\",Data!C78,IF('CNMP-No Land'!$A$1=\"Newark Field office\",Data!B78,IF('CNMP-No Land'!$A$1=\"Georgetown Field Office\",Data!D78,\" \")))","v":" "},{"$f":"IF('CNMP-With Land'!$A$1=\"Dover Field Office\",Data!C78,IF('CNMP-With Land'!$A$1=\"Newark Field office\",Data!B78,IF('CNMP-With Land'!$A$1=\"Georgetown Field Office\",Data!D78,\" \")))","v":" "}]
["21  Cedar Creek","28  Chester River",null,null,{"$f":"IF('CNMP-No Land'!$A$1=\"Dover Field Office\",Data!C79,IF('CNMP-No Land'!$A$1=\"Newark Field office\",Data!B79,IF('CNMP-No Land'!$A$1=\"Georgetown Field Office\",Data!D79,\" \")))","v":" "},{"$f":"IF('CNMP-With Land'!$A$1=\"Dover Field Office\",Data!C79,IF('CNMP-With Land'!$A$1=\"Newark Field office\",Data!B79,IF('CNMP-With Land'!$A$1=\"Georgetown Field Office\",Data!D79,\" \")))","v":" "}]
["22  Broadkill River",null,null,null,{"$f":"IF('CNMP-No Land'!$A$1=\"Dover Field Office\",Data!C80,IF('CNMP-No Land'!$A$1=\"Newark Field office\",Data!B80,IF('CNMP-No Land'!$A$1=\"Georgetown Field Office\",Data!D80,\" \")))","v":" "},{"$f":"IF('CNMP-With Land'!$A$1=\"Dover Field Office\",Data!C80,IF('CNMP-With Land'!$A$1=\"Newark Field office\",Data!B80,IF('CNMP-With Land'!$A$1=\"Georgetown Field Office\",Data!D80,\" \")))","v":" "}]
["23  Elk Creek",null,null,null,{"$f":"IF('CNMP-No Land'!$A$1=\"Dover Field Office\",Data!C81,IF('CNMP-No Land'!$A$1=\"Newark Field office\",Data!B81,IF('CNMP-No Land'!$A$1=\"Georgetown Field Office\",Data!D81,\" \")))","v":" "},{"$f":"IF('CNMP-With Land'!$A$1=\"Dover Field Office\",Data!C81,IF('CNMP-With Land'!$A$1=\"Newark Field office\",Data!B81,IF('CNMP-With Land'!$A$1=\"Georgetown Field Office\",Data!D81,\" \")))","v":" "}]
["24  Perch Creek",null,null,null,{"$f":"IF('CNMP-No Land'!$A$1=\"Dover Field Office\",Data!C82,IF('CNMP-No Land'!$A$1=\"Newark Field office\",Data!B82,IF('CNMP-No Land'!$A$1=\"Georgetown Field Office\",Data!D82,\" \")))","v":" "},{"$f":"IF('CNMP-With Land'!$A$1=\"Dover Field Office\",Data!C82,IF('CNMP-With Land'!$A$1=\"Newark Field office\",Data!B82,IF('CNMP-With Land'!$A$1=\"Georgetown Field Office\",Data!D82,\" \")))","v":" "}]
["25  C&D Canal West",null,null,null,{"$f":"IF('CNMP-No Land'!$A$1=\"Dover Field Office\",Data!C83,IF('CNMP-No Land'!$A$1=\"Newark Field office\",Data!B83,IF('CNMP-No Land'!$A$1=\"Georgetown Field Office\",Data!D83,\" \")))","v":" "},{"$f":"IF('CNMP-With Land'!$A$1=\"Dover Field Office\",Data!C83,IF('CNMP-With Land'!$A$1=\"Newark Field office\",Data!B83,IF('CNMP-With Land'!$A$1=\"Georgetown Field Office\",Data!D83,\" \")))","v":" "}]
["26  Bohemia Creek",null,null,null,{"$f":"IF('CNMP-No Land'!$A$1=\"Dover Field Office\",Data!C84,IF('CNMP-No Land'!$A$1=\"Newark Field office\",Data!B84,IF('CNMP-No Land'!$A$1=\"Georgetown Field Office\",Data!D84,\" \")))","v":" "},{"$f":"IF('CNMP-With Land'!$A$1=\"Dover Field Office\",Data!C84,IF('CNMP-With Land'!$A$1=\"Newark Field office\",Data!B84,IF('CNMP-With Land'!$A$1=\"Georgetown Field Office\",Data!D84,\" \")))","v":" "}]
["27  Sassafras River",null,null,null,{"$f":"IF('CNMP-No Land'!$A$1=\"Dover Field Office\",Data!C85,IF('CNMP-No Land'!$A$1=\"Newark Field office\",Data!B85,IF('CNMP-No Land'!$A$1=\"Georgetown Field Office\",Data!D85,\" \")))","v":" "},{"$f":"IF('CNMP-With Land'!$A$1=\"Dover Field Office\",Data!C85,IF('CNMP-With Land'!$A$1=\"Newark Field office\",Data!B85,IF('CNMP-With Land'!$A$1=\"Georgetown Field Office\",Data!D85,\" \")))","v":" "}]
["28  Chester River",null,null,null,{"$f":"IF('CNMP-No Land'!$A$1=\"Dover Field Office\",Data!C86,IF('CNMP-No Land'!$A$1=\"Newark Field office\",Data!B86,IF('CNMP-No Land'!$A$1=\"Georgetown Field Office\",Data!D86,\" \")))","v":" "},{"$f":"IF('CNMP-With Land'!$A$1=\"Dover Field Office\",Data!C86,IF('CNMP-With Land'!$A$1=\"Newark Field office\",Data!B86,IF('CNMP-With Land'!$A$1=\"Georgetown Field Office\",Data!D86,\" \")))","v":" "}]
["29  Choptank River",null,null,null,{"$f":"IF('CNMP-No Land'!$A$1=\"Dover Field Office\",Data!C87,IF('CNMP-No Land'!$A$1=\"Newark Field office\",Data!B87,IF('CNMP-No Land'!$A$1=\"Georgetown Field Office\",Data!D87,\" \")))","v":" "},{"$f":"IF('CNMP-With Land'!$A$1=\"Dover Field Office\",Data!C87,IF('CNMP-With Land'!$A$1=\"Newark Field office\",Data!B87,IF('CNMP-With Land'!$A$1=\"Georgetown Field Office\",Data!D87,\" \")))","v":" "}]
["30  Marshyhope Creek",null,null,null,{"$f":"IF('CNMP-No Land'!$A$1=\"Dover Field Office\",Data!C88,IF('CNMP-No Land'!$A$1=\"Newark Field office\",Data!B88,IF('CNMP-No Land'!$A$1=\"Georgetown Field Office\",Data!D88,\" \")))","v":" "},{"$f":"IF('CNMP-With Land'!$A$1=\"Dover Field Office\",Data!C88,IF('CNMP-With Land'!$A$1=\"Newark Field office\",Data!B88,IF('CNMP-With Land'!$A$1=\"Georgetown Field Office\",Data!D88,\" \")))","v":" "}]
["31  Nanticoke River",null,null,null,{"$f":"IF('CNMP-No Land'!$A$1=\"Dover Field Office\",Data!C89,IF('CNMP-No Land'!$A$1=\"Newark Field office\",Data!B89,IF('CNMP-No Land'!$A$1=\"Georgetown Field Office\",Data!D89,\" \")))","v":" "},{"$f":"IF('CNMP-With Land'!$A$1=\"Dover Field Office\",Data!C89,IF('CNMP-With Land'!$A$1=\"Newark Field office\",Data!B89,IF('CNMP-With Land'!$A$1=\"Georgetown Field Office\",Data!D89,\" \")))","v":" "}]
["32  Gum Branch",null,null,null,{"$f":"IF('CNMP-No Land'!$A$1=\"Dover Field Office\",Data!C90,IF('CNMP-No Land'!$A$1=\"Newark Field office\",Data!B90,IF('CNMP-No Land'!$A$1=\"Georgetown Field Office\",Data!D90,\" \")))","v":" "},{"$f":"IF('CNMP-With Land'!$A$1=\"Dover Field Office\",Data!C90,IF('CNMP-With Land'!$A$1=\"Newark Field office\",Data!B90,IF('CNMP-With Land'!$A$1=\"Georgetown Field Office\",Data!D90,\" \")))","v":" "}]
["33  Gravelly Branch",null,null,null,{"$f":"IF('CNMP-No Land'!$A$1=\"Dover Field Office\",Data!C91,IF('CNMP-No Land'!$A$1=\"Newark Field office\",Data!B91,IF('CNMP-No Land'!$A$1=\"Georgetown Field Office\",Data!D91,\" \")))","v":" "},{"$f":"IF('CNMP-With Land'!$A$1=\"Dover Field Office\",Data!C91,IF('CNMP-With Land'!$A$1=\"Newark Field office\",Data!B91,IF('CNMP-With Land'!$A$1=\"Georgetown Field Office\",Data!D91,\" \")))","v":" "}]
["34  Deep Creek",null,null,null,{"$f":"IF('CNMP-No Land'!$A$1=\"Dover Field Office\",Data!C92,IF('CNMP-No Land'!$A$1=\"Newark Field office\",Data!B92,IF('CNMP-No Land'!$A$1=\"Georgetown Field Office\",Data!D92,\" \")))","v":" "},{"$f":"IF('CNMP-With Land'!$A$1=\"Dover Field Office\",Data!C92,IF('CNMP-With Land'!$A$1=\"Newark Field office\",Data!B92,IF('CNMP-With Land'!$A$1=\"Georgetown Field Office\",Data!D92,\" \")))","v":" "}]
["35  Broad Creek",null,null,null,{"$f":"IF('CNMP-No Land'!$A$1=\"Dover Field Office\",Data!C93,IF('CNMP-No Land'!$A$1=\"Newark Field office\",Data!B93,IF('CNMP-No Land'!$A$1=\"Georgetown Field Office\",Data!D93,\" \")))","v":" "},{"$f":"IF('CNMP-With Land'!$A$1=\"Dover Field Office\",Data!C93,IF('CNMP-With Land'!$A$1=\"Newark Field office\",Data!B93,IF('CNMP-With Land'!$A$1=\"Georgetown Field Office\",Data!D93,\" \")))","v":" "}]
["36  Wicomico",null,null,null,{"$f":"IF('CNMP-No Land'!$A$1=\"Dover Field Office\",Data!C94,IF('CNMP-No Land'!$A$1=\"Newark Field office\",Data!B94,IF('CNMP-No Land'!$A$1=\"Georgetown Field Office\",Data!D94,\" \")))","v":" "},{"$f":"IF('CNMP-With Land'!$A$1=\"Dover Field Office\",Data!C94,IF('CNMP-With Land'!$A$1=\"Newark Field office\",Data!B94,IF('CNMP-With Land'!$A$1=\"Georgetown Field Office\",Data!D94,\" \")))","v":" "}]
["37  Pocomoke River",null,null,null,{"$f":"IF('CNMP-No Land'!$A$1=\"Dover Field Office\",Data!C95,IF('CNMP-No Land'!$A$1=\"Newark Field office\",Data!B95,IF('CNMP-No Land'!$A$1=\"Georgetown Field Office\",Data!D95,\" \")))","v":" "},{"$f":"IF('CNMP-With Land'!$A$1=\"Dover Field Office\",Data!C95,IF('CNMP-With Land'!$A$1=\"Newark Field office\",Data!B95,IF('CNMP-With Land'!$A$1=\"Georgetown Field Office\",Data!D95,\" \")))","v":" "}]
["38  Lewes-Rehoboth Canal",null,null,null,{"$f":"IF('CNMP-No Land'!$A$1=\"Dover Field Office\",Data!C96,IF('CNMP-No Land'!$A$1=\"Newark Field office\",Data!B96,IF('CNMP-No Land'!$A$1=\"Georgetown Field Office\",Data!D96,\" \")))","v":" "},{"$f":"IF('CNMP-With Land'!$A$1=\"Dover Field Office\",Data!C96,IF('CNMP-With Land'!$A$1=\"Newark Field office\",Data!B96,IF('CNMP-With Land'!$A$1=\"Georgetown Field Office\",Data!D96,\" \")))","v":" "}]
["39  Rehoboth Bay",null,null,null,{"$f":"IF('CNMP-No Land'!$A$1=\"Dover Field Office\",Data!C97,IF('CNMP-No Land'!$A$1=\"Newark Field office\",Data!B97,IF('CNMP-No Land'!$A$1=\"Georgetown Field Office\",Data!D97,\" \")))","v":" "},{"$f":"IF('CNMP-With Land'!$A$1=\"Dover Field Office\",Data!C97,IF('CNMP-With Land'!$A$1=\"Newark Field office\",Data!B97,IF('CNMP-With Land'!$A$1=\"Georgetown Field Office\",Data!D97,\" \")))","v":" "}]
["40  Indian River",null,null,null,{"$f":"IF('CNMP-No Land'!$A$1=\"Dover Field Office\",Data!C98,IF('CNMP-No Land'!$A$1=\"Newark Field office\",Data!B98,IF('CNMP-No Land'!$A$1=\"Georgetown Field Office\",Data!D98,\" \")))","v":" "},{"$f":"IF('CNMP-With Land'!$A$1=\"Dover Field Office\",Data!C98,IF('CNMP-With Land'!$A$1=\"Newark Field office\",Data!B98,IF('CNMP-With Land'!$A$1=\"Georgetown Field Office\",Data!D98,\" \")))","v":" "}]
["41  Iron Branch",null,null,null,{"$f":"IF('CNMP-No Land'!$A$1=\"Dover Field Office\",Data!C99,IF('CNMP-No Land'!$A$1=\"Newark Field office\",Data!B99,IF('CNMP-No Land'!$A$1=\"Georgetown Field Office\",Data!D99,\" \")))","v":" "},{"$f":"IF('CNMP-With Land'!$A$1=\"Dover Field Office\",Data!C99,IF('CNMP-With Land'!$A$1=\"Newark Field office\",Data!B99,IF('CNMP-With Land'!$A$1=\"Georgetown Field Office\",Data!D99,\" \")))","v":" "}]
["42  Indian River Bay",null,null,null,{"$f":"IF('CNMP-No Land'!$A$1=\"Dover Field Office\",Data!C100,IF('CNMP-No Land'!$A$1=\"Newark Field office\",Data!B100,IF('CNMP-No Land'!$A$1=\"Georgetown Field Office\",Data!D100,\" \")))","v":" "},{"$f":"IF('CNMP-With Land'!$A$1=\"Dover Field Office\",Data!C100,IF('CNMP-With Land'!$A$1=\"Newark Field office\",Data!B100,IF('CNMP-With Land'!$A$1=\"Georgetown Field Office\",Data!D100,\" \")))","v":" "}]
["43  Buntings Branch",null,null,null,{"$f":"IF('CNMP-No Land'!$A$1=\"Dover Field Office\",Data!C101,IF('CNMP-No Land'!$A$1=\"Newark Field office\",Data!B101,IF('CNMP-No Land'!$A$1=\"Georgetown Field Office\",Data!D101,\" \")))","v":" "},{"$f":"IF('CNMP-With Land'!$A$1=\"Dover Field Office\",Data!C101,IF('CNMP-With Land'!$A$1=\"Newark Field office\",Data!B101,IF('CNMP-With Land'!$A$1=\"Georgetown Field Office\",Data!D101,\" \")))","v":" "}]
["44  Assawoman",null,null,null,{"$f":"IF('CNMP-No Land'!$A$1=\"Dover Field Office\",Data!C102,IF('CNMP-No Land'!$A$1=\"Newark Field office\",Data!B102,IF('CNMP-No Land'!$A$1=\"Georgetown Field Office\",Data!D102,\" \")))","v":" "},{"$f":"IF('CNMP-With Land'!$A$1=\"Dover Field Office\",Data!C102,IF('CNMP-With Land'!$A$1=\"Newark Field office\",Data!B102,IF('CNMP-With Land'!$A$1=\"Georgetown Field Office\",Data!D102,\" \")))","v":" "}]
["45  Little Assawoman",null,null,null,{"$f":"IF('CNMP-No Land'!$A$1=\"Dover Field Office\",Data!C103,IF('CNMP-No Land'!$A$1=\"Newark Field office\",Data!B103,IF('CNMP-No Land'!$A$1=\"Georgetown Field Office\",Data!D103,\" \")))","v":" "},{"$f":"IF('CNMP-With Land'!$A$1=\"Dover Field Office\",Data!C103,IF('CNMP-With Land'!$A$1=\"Newark Field office\",Data!B103,IF('CNMP-With Land'!$A$1=\"Georgetown Field Office\",Data!D103,\" \")))","v":" "}]
[null,null,null,null,{"$f":"IF('CNMP-No Land'!$A$1=\"Dover Field Office\",Data!C104,IF('CNMP-No Land'!$A$1=\"Newark Field office\",Data!B104,IF('CNMP-No Land'!$A$1=\"Georgetown Field Office\",Data!D104,\" \")))","v":" "},{"$f":"IF('CNMP-With Land'!$A$1=\"Dover Field Office\",Data!C104,IF('CNMP-With Land'!$A$1=\"Newark Field office\",Data!B104,IF('CNMP-With Land'!$A$1=\"Georgetown Field Office\",Data!D104,\" \")))","v":" "}]

{"sheet":"Instr","index":1,"n_rows":223,"n_cols":13,"rows_kept":223,"cut":false,"hidden":false,"merged":[[32,1,32,3],[2,0,2,9],[20,2,20,3],[12,1,12,3],[18,5,18,9],[16,5,16,9],[29,5,29,9],[26,8,26,9],[25,5,25,9],[27,5,27,9],[23,5,23,9],[22,8,22,9],[17,5,17,9],[20,5,20,9],[32,5,32,8],[17,2,17,3],[18,2,18,3],[13,1,15,3],[16,2,16,3],[1,0,1,9],[12,5,15,9],[4,1,4,6],[5,1,5,6],[8,6,8,8],[8,2,8,3],[7,1,7,9]]}
[]
["CNMP Dry Stack Instruction Sheet"]
[]
[]
["I.","Dover Field Office"]
[null,"Note: Choosing the Field Office populates several entries,\n           otherwise they will be blank."]
[]
["II.","Comprehensive Nutrient Management Plan"]
[null,null,null,null,null,null," Year Plan Developed For:"]
[]
[]
[]
["III.","Follow Instructions",null,null,null,"1. Choose a local NRCS Field Office.\n2. Go to the Dry-Stack Calc Worksheet and complete the Form.\n       Enter Animal Types, Average Weight, Confinement Information and\n       Bedding used.  Also enter existing manure storage data.\n3. Return to CNMP and complete form."]
[null,"You must choose a local office.\nFill in all yellow highlighted boxes.\nYou must use Dry-Stack Calc to\npopulate blue boxes."]
[]
[]
[null,null,"Drop Down Boxes",null,null,"Green Box indicates a drop down list is available."]
[null,null,"Fill in information",null,null,"Yellow box indicates an unlocked box you can fill in."]
[null,null,"Linked to Dry-Stack Calc or Automatic Calculation",null,null,"Blue Box indicates a locked box linked to the Dry-Stack Calc Worksheet or a formula that calculates automatically."]
[]
[null,"l"," Red Dot indicates comment.",null,null,"Red mark in the corner of a box indicates a helpful comment."]
[]
[]
[null,null,null,null,null,"Several Buttons with macros are available."]
["IV."]
[null,null,null,null,null,"After you complete the CNMP you can use the Clear Color Button to remove the color in the boxes before using the Print Button."]
[]
[null,null,null,null,null,"Use the Clear Form Button to clear all of your entries and\nthe Reset Colors button to highlight your entry boxes again."]
[]
[null,null,null,true,null,"The small check boxes toggle true or false answers to the related questions."]
[]
[]
["V.","Separate Worksheet Tabs are available to complete additional attachments as needed.",null,null,null,"• Dry-Stack CF (To size Manure Storage Areas)\n• Phosphorus Site Index (PSI)                                                                                                        • Nutrient Mgt Plan (NMP)                                                               • Conservation Practice List"]
[]
[]
[]
[]
[]
[]
[]
[]
[]
[]
[]
[]
[]
[]
[]
[]
[]
[]
[]
[]
[]
[]
[]
[]
[]
[]
[]
[]
[]
[]
[]
[]
[]
[]
[]
[]
[]
[]
[]
[]
[]
[]
[]
[]
[]
[]
[]
[]
[]
[]
[]
[]
[]
[]
[]
[]
[]
[]
[]
[]
[]
[]
[]
[]
[]
[]
[]
[]
[]
[]
[]
[]
[]
[]
[]
[]
[]
[]
[]
[]
[]
[]
[]
[]
[]
[]
[]
[]
[]
[]
[]
[]
[]
[]
[]
[]
[]
[]
[]
[]
[]
[]
[]
[]
[]
[]
[]
[]
[]
[]
[]
[]
[]
[]
[]
[]
[]
[]
[]
[]
[]
[]
[]
[]
[]
[]
[]
[]
[]
[]
[]
[]
[]
[]
[]
[]
[]
[]
[]
[]
[]
[]
[]
[]
[]
[]
[]
[]
[]
[]
[]
[]
[]
[]
[]
[]
[]
[]
[]
[]
[]
[]
[]
[]
[]
[]
[]
[]
[]
[]
[]
[]
[]
[]
[]
[]
[]
[]
[]
[]
[]
[]
[]
[]
[]
[]
[]
[]
[]
[null,null,null,null,null,null,null,null,null,null,null,false,false]

{"sheet":"CNMP-No Land","index":2,"n_rows":451,"n_cols":21,"rows_kept":451,"cut":false,"hidden":false,"merged":[[295,0,295,1],[293,0,293,2],[289,0,289,2],[232,0,232,2],[228,6,228,7],[232,6,232,7],[231,6,231,7],[230,6,230,7],[229,6,229,7],[274,0,274,2],[276,0,276,2],[275,0,275,2],[245,0,245,9],[249,0,249,9],[251,0,251,9],[253,0,253,9],[247,0,247,9],[246,0,246,9],[268,0,268,5],[228,0,228,2],[231,0,231,2],[230,0,230,2],[229,0,229,2],[234,0,234,4],[208,4,208,7],[220,0,220,2],[222,0,222,9],[224,0,224,9],[226,0,226,9],[220,4,220,7],[209,8,209,9],[211,8,211,9],[213,0,213,2],[219,4,219,7],[212,4,212,7],[213,4,213,7],[214,4,214,7],[215,8,215,9],[209,0,209,2],[209,4,209,7],[207,0,207,2],[189,0,189,2],[191,0,191,2],[191,4,191,7],[205,0,205,2],[206,0,206,2],[200,0,200,2],[204,0,204,2],[195,0,195,9],[200,4,200,7],[201,4,201,7],[199,8,199,9],[202,4,202,7],[203,4,203,7],[204,8,204,9],[205,8,205,9],[206,8,206,9],[183,4,183,7],[184,4,184,7],[185,4,185,7],[186,4,186,7],[190,4,190,7],[204,4,204,7],[205,4,205,7],[206,4,206,7],[207,4,207,7],[187,4,187,7],[451,0,451,9],[441,0,441,9],[442,0,442,9],[443,0,443,9],[444,0,444,9],[446,0,446,9],[447,0,447,9],[448,0,448,9],[449,0,449,9],[450,0,450,9],[445,0,445,9],[438,0,438,9],[440,0,440,9],[429,0,429,9],[430,0,430,9],[431,0,431,9],[432,0,432,9],[433,0,433,9],[434,0,434,9],[435,0,435,9],[436,0,436,9],[437,0,437,9],[420,0,420,9],[421,0,421,9],[422,0,422,9],[423,0,423,9],[424,0,424,9],[425,0,425,9],[426,0,426,9],[427,0,427,9],[428,0,428,9],[412,0,412,9],[413,0,413,9],[414,0,414,9],[415,0,415,9],[416,0,416,9],[417,0,417,9],[418,0,418,9],[419,0,419,9],[365,0,365,9],[367,0,367,9],[374,0,374,9],[377,0,377,9],[379,0,379,9],[381,0,381,9],[391,0,391,9],[392,0,392,9],[398,0,398,9],[397,0,397,9],[401,0,401,9],[385,0,385,9],[384,0,384,9],[386,0,386,9],[387,0,387,9],[389,0,389,9],[326,4,326,6],[326,7,326,9],[345,0,345,9],[347,3,348,9],[349,0,349,9],[351,3,351,9],[356,0,356,9],[358,0,358,9],[326,1,326,3],[342,0,342,9],[343,0,343,9],[344,0,344,9],[347,0,348,2],[351,0,351,2],[353,0,353,3],[331,1,331,7],[330,0,330,3],[330,4,330,7],[0,0,0,4],[0,5,0,9],[1,0,1,4],[1,5,1,9],[3,0,3,9],[16,1,16,5],[16,6,16,7],[16,8,16,9],[17,1,17,5],[17,6,17,7],[17,8,17,9],[11,1,11,2],[12,1,12,2],[14,1,14,2],[14,7,14,9],[2,0,2,9],[13,7,13,9],[3,14,3,15],[6,19,7,19],[6,20,7,20],[8,0,8,2],[10,1,10,2],[4,4,4,6],[4,14,6,15],[6,0,6,2],[6,3,6,7],[8,7,9,7],[8,8,8,9],[9,0,9,5],[25,17,26,17],[6,18,7,18],[25,18,26,18],[20,6,20,7],[20,8,20,9],[21,1,21,5],[21,6,21,7],[21,8,21,9],[18,1,18,5],[18,6,18,7],[18,8,18,9],[19,1,19,5],[19,6,19,7],[19,8,19,9],[20,1,20,5],[26,2,26,7],[8,3,8,5],[10,3,10,5],[11,3,11,5],[12,3,12,5],[28,0,28,1],[28,2,28,7],[29,2,29,7],[31,0,31,1],[31,2,31,7],[22,1,22,5],[22,6,22,7],[22,8,22,9],[24,0,24,1],[24,2,24,4],[24,8,24,9],[25,8,25,9],[44,0,44,1],[44,3,44,7],[50,0,50,9],[32,2,32,7],[33,2,33,7],[35,0,35,1],[35,2,35,7],[36,2,36,7],[38,0,38,9],[42,0,42,7],[40,0,40,2],[120,0,120,9],[122,0,122,9],[124,0,124,9],[104,0,104,9],[106,0,106,9],[108,0,108,9],[110,0,110,9],[112,0,112,9],[111,0,111,9],[50,17,50,19],[126,0,126,9],[128,0,128,9],[134,0,134,9],[136,0,136,9],[151,0,151,9],[152,0,152,9],[138,0,138,2],[142,0,142,3],[144,0,144,4],[146,0,146,9],[148,7,148,9],[150,0,150,9],[127,0,127,9],[129,0,129,9],[133,0,133,9],[132,0,132,9],[130,0,130,9],[131,0,131,9],[140,0,140,2],[148,0,149,3],[114,0,114,9],[116,0,116,9],[118,0,118,9],[162,0,162,9],[163,0,163,9],[164,0,164,9],[165,0,165,9],[166,0,166,9],[167,0,167,9],[153,0,153,9],[154,0,154,9],[157,0,157,9],[159,0,159,9],[160,0,160,9],[161,0,161,9],[186,0,186,2],[190,0,190,2],[174,0,174,2],[174,4,174,7],[174,8,174,9],[175,0,175,2],[175,4,175,7],[175,8,175,9],[170,0,170,2],[170,4,170,7],[170,8,170,9],[171,0,171,2],[171,4,171,7],[171,8,171,9],[172,4,172,7],[173,4,173,7],[172,8,172,9],[173,8,173,9],[172,0,172,2],[173,0,173,2],[187,0,187,2],[188,0,188,2],[176,0,176,2],[176,4,176,7],[176,8,176,9],[177,0,177,2],[177,4,177,7],[177,8,177,9],[179,4,179,7],[179,8,179,9],[179,0,179,2],[193,0,193,9],[213,8,213,9],[212,0,212,2],[197,0,197,9],[199,0,199,2],[199,4,199,7],[178,0,178,2],[178,4,178,7],[178,8,178,9],[180,0,180,2],[180,4,180,7],[180,8,180,9],[183,8,183,9],[184,8,184,9],[185,8,185,9],[186,8,186,9],[190,8,190,9],[228,8,228,9],[261,0,261,9],[218,0,218,2],[255,0,255,9],[257,0,257,9],[259,0,259,9],[281,6,281,7],[290,0,290,2],[291,0,291,2],[280,0,280,2],[279,0,279,2],[278,0,278,2],[277,0,277,2],[236,0,236,9],[243,0,243,9],[244,0,244,9],[271,0,271,9],[238,0,241,9],[181,0,181,2],[181,4,181,7],[181,8,181,9],[182,0,182,2],[182,4,182,7],[182,8,182,9],[201,8,201,9],[208,8,208,9],[208,0,208,2],[201,0,201,2],[202,8,202,9],[203,8,203,9],[202,0,202,2],[203,0,203,2],[183,0,183,2],[184,0,184,2],[185,0,185,2],[207,8,207,9],[187,8,187,9],[188,4,188,7],[188,8,188,9],[189,4,189,7],[189,8,189,9],[191,8,191,9],[369,0,369,9],[370,0,370,9],[371,0,371,9],[372,0,372,9],[263,0,263,9],[320,1,320,9],[321,1,321,3],[316,0,316,9],[318,0,318,9],[322,7,322,9],[265,0,265,9],[267,0,267,9],[321,4,321,6],[321,7,321,9],[322,4,322,6],[313,0,313,9],[314,0,314,9],[315,0,315,9],[312,0,312,9],[272,0,272,9],[306,0,306,9],[308,0,308,9],[310,0,310,9],[307,0,307,9],[168,0,168,9],[169,0,169,9],[216,8,216,9],[217,8,217,9],[218,8,218,9],[220,8,220,9],[215,0,215,2],[216,0,216,2],[210,0,210,2],[211,0,211,2],[215,4,215,7],[216,4,216,7],[217,4,217,7],[218,4,218,7],[211,4,211,7],[210,4,210,7],[217,0,217,2],[214,8,214,9],[219,8,219,9],[219,0,219,2],[214,0,214,2],[212,8,212,9],[210,8,210,9],[200,8,200,9],[261,14,261,23],[410,0,410,9],[411,0,411,9],[408,0,408,9],[409,0,409,9],[396,0,396,9],[388,0,388,9],[393,0,393,9],[394,0,394,9],[395,0,395,9],[399,0,399,9],[400,0,400,9],[407,0,407,9],[402,0,402,9],[403,0,403,9],[405,0,405,9],[406,0,406,9],[404,0,404,9],[390,0,390,9],[268,6,268,8],[294,0,294,2],[281,0,281,1],[286,0,286,2],[373,0,373,9],[364,0,364,9],[361,0,361,9],[363,0,363,4],[299,0,300,2],[301,0,301,2],[302,0,302,2],[303,0,303,2],[282,2,282,3],[282,0,282,1],[292,0,292,2],[288,0,288,2],[287,1,287,2],[282,6,282,7],[282,4,282,5],[323,4,323,6],[324,4,324,6],[325,4,325,6],[322,1,322,3],[323,1,323,3],[324,1,324,3],[325,1,325,3],[323,7,323,9],[324,7,324,9],[325,7,325,9]]}
[]
[{"$f":"IF('CNMP-No Land'!$A$1=\"Dover Field Office\",Data!A4,IF('CNMP-No Land'!$A$1=\"Newark Field office\",Data!A3,IF('CNMP-No Land'!$A$1=\"Georgetown Field Office\",Data!A5,\" \")))","v":" "}]
[]
["Comprehensive Nutrient Management Plan No Land\nDry Stack (Animal Waste Management Plan)",null,null,null,null,null,null,null,null,null,null,null,null,null,"Instructions"]
[null,null,null,3," Year Plan Developed For:",null,null,null,null,null,null,null,null,null,"You must choose a local office.\nFill in all yellow highlighted boxes.\nYou must use Dry-Stack Calc to\npopulate blue boxes."]
[]
["Plan Developed For:",null,null,null,null,null,null,null,null,null,null,null,null,null,null,null,null,null,"Consultant No.","Watersheds","Delaware Watersheds"]
[null,null,null,null,null,null,null,null,null,null,null,null,null,null,null,"Drop Down Boxes"]
["Owner/Operator Name:",null,null,null,null,null,null,"Tract Number","Production Area Entrance",null,null,null,null,null,null,"Fill in information",null,null,"Active County","Active County","Active Counties"]
[null,null,null,null,null,null,null,null,"Latitude°","Longitude°",null,null,null,null,null,"Automatic Calculation",null,null,{"$f":"Data!D8","v":0},{"$f":"Data!E56","v":" "},"Statewide"]
["Address:","Line 1",null,null,null,null,null,null,null,null,null,null,null,null,null,null,null,null,{"$f":"Data!D9","v":0}," "]
[null,"Line 2",null,null,null,null,null,null,null,null,null,null,null,null,null,"Red Dot indicates comment.",null,null,{"$f":"Data!D10","v":" "},{"$f":"Data!E59","v":" "},{"$f":"Data!A58","v":" Not Applicable"}]
[null,"City, State  ZIP",null,null,null,null,null,null,null,null,null,null,null,null,null,null,null,null,{"$f":"Data!D11","v":" "},{"$f":"Data!E60","v":" "},{"$f":"Data!A59","v":" 1  Naamans Creek"}]
[null,null,null,null,null,null,null,"* Show any additional Lat/Longs on Aerial Map.",null,null,null,null,null,null,null,null,null,"Years in Plan",{"$f":"Data!D12","v":" "},{"$f":"Data!E61","v":" "},{"$f":"Data!A60","v":" 2  Shellpot Creek"}]
["Phone:",null,null,null,"Fax:",null,"E-mail:",null,null,null,null,null,null,null,null,null,null,null,{"$f":"Data!D13","v":" "},{"$f":"Data!E62","v":" "},{"$f":"Data!A61","v":" 3  Brandywine Creek"}]
[null,null,null,null,null,null,null,null,null,null,null,null,null,null,null,null,null,3,{"$f":"Data!D14","v":" "},{"$f":"Data!E63","v":" "},{"$f":"Data!A62","v":" 4  Red Clay Creek"}]
["Farm No:","Tracts:",null,null,null,null,"Production / LT Area:",null,"Watershed:",null,null,null,null,null,null,null,null,5,{"$f":"Data!D15","v":" "},{"$f":"Data!E64","v":" "},{"$f":"Data!A63","v":" 5  White Clay Creek"}]
[null,null,null,null,null,null,null,null,null,null,null,null,null,null,null,null,null,null,{"$f":"Data!D16","v":" "},{"$f":"Data!E65","v":" "},{"$f":"Data!A64","v":" 6  Christina River"}]
[null,null,null,null,null,null,null,null,null,null,null,null,null,null,null,null,null,null,{"$f":"Data!D17","v":" "},{"$f":"Data!E66","v":" "},{"$f":"Data!A65","v":" 7  Delaware River"}]
[null,null,null,null,null,null,null,null,null,null,null,null,null,null,null,null,null,"Prod/LT Area",{"$f":"Data!D18","v":" "},{"$f":"Data!E67","v":" "},{"$f":"Data!A66","v":" 8  Army Creek"}]
[null,null,null,null,null,null,null,null,null,null,null,null,null,null,null,null,null,null,{"$f":"Data!D19","v":" "},{"$f":"Data!E68","v":" "},{"$f":"Data!A67","v":" 9  Red Lion Creek"}]
[null,null,null,null,null,null,null,null,null,null,null,null,null,null,null,null,null,"Production",{"$f":"Data!D20","v":" "},{"$f":"Data!E69","v":" "},{"$f":"Data!A68","v":"10  Dragon Run Creek"}]
[null,null,null,null,null,null,null,null,null,null,null,null,null,null,null,null,null,"Land Treatment",null,{"$f":"Data!E70","v":" "},{"$f":"Data!A69","v":"11  C&D Canal East"}]
[null,null,null,null,null,null,null,null,null,null,null,null,null,null,null,null,null,"Prod / Land Treatment",null,{"$f":"Data!E71","v":" "},{"$f":"Data!A70","v":"12  Appoquinimink River"}]
["Type of Operation:",null,null,null,null,"Capacity:",null,null,"Date of Farm Visit",null,null,null,null,null,null,null,null,null,null,{"$f":"Data!E72","v":" "},{"$f":"Data!A71","v":"13  Blackbird Creek"}]
[null,null,null,null,null,null,null,null,null,null,null,null,null,null,null,null,null,"Field Office","Field Office to Contact:",{"$f":"Data!E73","v":" "},{"$f":"Data!A72","v":"14  Delaware Bay"}]
[null,null,"I certify that I have reviewed this CNMP for technical adequacy:",null,null,null,null,null,null,null,null,null,null,null,null,null,null,null,null,{"$f":"Data!E74","v":" "},{"$f":"Data!A73","v":"15  Smyrna River"}]
[null,null,null,null,null,null,null,null,null,null,null,null,null,null,null,null,null,null,null,{"$f":"Data!E75","v":" "},{"$f":"Data!A74","v":"16  Leipsic River"}]
["Signature",null,null,null,null,null,null,null,"Date",null,null,null,null,null,null,null,null,{"$f":"Data!D24","v":"Dover Field Office"},"the NRCS Dover Field Office.",{"$f":"Data!E76","v":" "},{"$f":"Data!A75","v":"17  Little Creek"}]
[null,null,"Certified Conservation Planner",null,null,null,null,null,null,null,null,null,null,null,null,null,null,{"$f":"Data!D25","v":"Newark Field Office"},"the NRCS Newark Field Office.",{"$f":"Data!E77","v":" "},{"$f":"Data!A76","v":"18  St. Jones River"}]
[null,null,null,null,null,null,null,null,null,null,null,null,null,null,null,null,null,{"$f":"Data!D26","v":"Georgetown Field Office"},"the NRCS Georgetown Field Office.",{"$f":"Data!E78","v":" "},{"$f":"Data!A77","v":"19  Murderkill River"}]
["Signature",null,null,null,null,null,null,null,"Date",null,null,null,null,null,null,null,null,null,null,{"$f":"Data!E79","v":" "},{"$f":"Data!A78","v":"20  Mispillion River"}]
[null,null,"Certified Nutrient Management Specialist",null,null,null,null,null,null,null,null,null,null,null,null,null,null,null,null,{"$f":"Data!E80","v":" "},{"$f":"Data!A79","v":"21  Cedar Creek"}]
[null,null,"or Delaware Certified Consultant Number",null,null,null,null,null,null,null,null,null,null,null,null,null,null,null,null,{"$f":"Data!E81","v":" "},{"$f":"Data!A80","v":"22  Broadkill River"}]
[null,null,null,null,null,null,null,null,null,null,null,null,null,null,null,null,null,null,null,{"$f":"Data!E82","v":" "},{"$f":"Data!A81","v":"23  Elk Creek"}]
["Signature",null,null,null,null,null,null,null,"Date",null,null,null,null,null,null,null,null,null,null,{"$f":"Data!E83","v":" "},{"$f":"Data!A82","v":"24  Perch Creek"}]
[null,null,"Certified Manure and Wastewater Handling and Storage Specialist",null,null,null,null,null,null,null,null,null,null,null,null,null,null,null,null,{"$f":"Data!E84","v":" "},{"$f":"Data!A83","v":"25  C&D Canal West"}]
[null,null,null,null,null,null,null,null,null,null,null,null,null,null,null,null,null,null,null,{"$f":"Data!E85","v":" "},{"$f":"Data!A84","v":"26  Bohemia Creek"}]
["Owner/Operator: As the owner/operator and decision maker of this CNMP, I certify that I have been involved in the development of this plan.  I agree that I fully understand the content and requirements of this plan.  It is my intention to implement this plan as required by Section 2220, Title 3 of the Delaware Code, Chapter 22.  I agree to notify the Delaware Nutrient Management Commission and NRCS of any changes in the plan or of any circumstances beyond my control that prevent me from implementation and fulfilling its intent.  I am aware that I am responsible for operation, maintenance, and record keeping, and submitting an annual report to the Delaware Nutrient Management Commission.  ",null,null,null,null,null,null,null,null,null,null,null,null,null,null,null,null,null,null,{"$f":"Data!E86","v":" "},{"$f":"Data!A85","v":"27  Sassafras River"}]
[null,null,null,null,null,null,null,null,null,null,null,null,null,null,null,null,null,null,null,{"$f":"Data!E87","v":" "},{"$f":"Data!A86","v":"28  Chester River"}]
["Nutrient Generator Number:",null,null,null,null,null,null,null,null,null,null,null,null,null,null,null,null,null,null,{"$f":"Data!E88","v":" "},{"$f":"Data!A87","v":"29  Choptank River"}]
[null,null,null,null,null,null,null,null,null,null,null,null,null,null,null,null,null,null,null,{"$f":"Data!E89","v":" "},{"$f":"Data!A88","v":"30  Marshyhope Creek"}]
["Unless the farming operation referenced in this plan increases animal units by 25%, this plan is valid until",null,null,null,null,null,null,null,null,null,null,null,null,null,null,null,null,null,null,{"$f":"Data!E90","v":" "},{"$f":"Data!A89","v":"31  Nanticoke River"}]
[null,null,null,null,null,null,null,null,null,null,null,null,null,null,null,null,null,null,null,{"$f":"Data!E91","v":" "},{"$f":"Data!A90","v":"32  Gum Branch"}]
["Signature",null,null,null,null,null,null,null,"Date",null,null,null,null,null,null,null,null,null,null,{"$f":"Data!E92","v":" "},{"$f":"Data!A91","v":"33  Gravelly Branch"}]
[null,null,null,null,null,null,null,null,null,null,null,null,null,null,null,null,null,null,null,{"$f":"Data!E93","v":" "},{"$f":"Data!A92","v":"34  Deep Creek"}]
[null,null,null,null,null,null,null,null,null,null,null,null,null,null,null,null,null,null,null,null,{"$f":"Data!A93","v":"35  Broad Creek"}]
[null,null,null,null,null,null,null,null,null,null,null,null,null,null,null,null,null,null,null,null,{"$f":"Data!A94","v":"36  Wicomico"}]
[null,null,null,null,null,null,null,null,null,null,null,null,null,null,null,null,null,null,null,null,{"$f":"Data!A95","v":"37  Pocomoke River"}]
[null,null,null,null,null,null,null,null,null,null,null,null,null,null,null,null,null,null,null,null,{"$f":"Data!A96","v":"38  Lewes-Rehoboth Canal"}]
["Table of Contents",null,null,null,null,null,null,null,null,null,null,null,null,null,null,null,null,{"$f":"Data!A22","v":"Description of Operation"},null,null,{"$f":"Data!A97","v":"39  Rehoboth Bay"}]
[null,null,null,null,null,null,null,null,null,null,null,null,null,null,null,null,null,{"$f":"Data!A23","v":"Poultry Type"},{"$f":"Data!B23","v":"Poultry Integrator"},"Composter Type",{"$f":"Data!A98","v":"40  Indian River"}]
[null,null,null,null,null,null,null,null,null,null,null,null,null,null,null,null,null,{"$f":"Data!A24","v":0},{"$f":"Data!B24","v":0},null,{"$f":"Data!A99","v":"41  Iron Branch"}]
["Comprehensive Nutrient Management Plan ………………………...………………………………………..…...",null,null,null,null,null,null,null,null,1,null,null,null,null,null,null,null,{"$f":"Data!A25","v":"Broiler"},{"$f":"Data!B25","v":"Allen Family Foods, Inc."},"Bin",{"$f":"Data!A100","v":"42  Indian River Bay"}]
[null,null,null,null,null,null,null,null,null,null,null,null,null,null,null,null,null,{"$f":"Data!A26","v":"Roaster"},{"$f":"Data!B26","v":"Amick Farms, LLC"},"Channel",{"$f":"Data!A101","v":"43  Buntings Branch"}]
["Table of Contents…………………………………………..……………………...………………………...……..…..",null,null,null,null,null,null,null,null,2,null,null,null,null,null,null,null,{"$f":"Data!A27","v":"Cornish"},{"$f":"Data!B27","v":"Mountaire Farms, Inc."},null,{"$f":"Data!A102","v":"44  Assawoman"}]
[null,null,null,null,null,null,null,null,null,null,null,null,null,null,null,null,null,{"$f":"Data!A28","v":"Pullet-6Wk"},{"$f":"Data!B28","v":"Perdue Farms, Inc."},null,{"$f":"Data!A103","v":"45  Little Assawoman"}]
["SECTION 1: BACKGROUND AND SITE INFORMATION …………...……………………......…………..……....",null,null,null,null,null,null,null,null,3,null,null,null,null,null,null,null,{"$f":"Data!A29","v":"Pullet-6Wk"},{"$f":"Data!B29","v":"Tyson Foods, inc."},null,{"$f":"Data!A104","v":0}]
["Introduction to the Comprehensive Nutrient Management Plan (CNMP)",null,null,null,null,null,null,null,null,null,null,null,null,null,null,null,null,{"$f":"Data!A30","v":"Breeder"},{"$f":"Data!B30","v":0},null,{"$f":"Data!A105","v":0}]
["CNMP Purpose and Condition",null,null,null,null,null,null,null,null,null,null,null,null,null,null,null,null,{"$f":"Data!A31","v":"Layer"},{"$f":"Data!B31","v":0}]
["Nitrogen and Phosphorus Movement and Water Quality",null,null,null,null,null,null,null,null,null,null,null,null,null,null,null,null,{"$f":"Data!A32","v":"Turkey"},{"$f":"Data!B32","v":0}]
["Regulatory Conditions",null,null,null,null,null,null,null,null,null,null,null,null,null,null,null,null,{"$f":"Data!A33","v":0},{"$f":"Data!B33","v":0}]
["Overview of Operating System",null,null,null,null,null,null,null,null,null,null,null,null,null,null,null,null,null,null,null,{"$f":"Data!A104","v":0}]
["Natural Resource Concerns"]
[]
["SECTION 2: MANURE AND ANIMAL WASTE HANDLING AND STORAGE ………..………………..………....",null,null,null,null,null,null,null,null,5]
["Maps of Production Area",null,null,null,null,null,null,null,null,null,null,null,null,null,null,null,null,{"$f":"Data!A35","v":"DNMC-authorized"},{"$f":"Data!B35","v":"Method of Routine On-farm"},{"$f":"Data!C35","v":"Method for Routine Animal"}]
["Production Area Conservation Practices",null,null,null,null,null,null,null,null,null,null,null,null,null,null,null,null,{"$f":"Data!A36","v":"Alternative  Use"},{"$f":"Data!B36","v":"Manure Storage"},{"$f":"Data!C36","v":" Mortality Disposal"}]
["Additional Production Area Conservation Practices",null,null,null,null,null,null,null,null,null,null,null,null,null,null,null,null,{"$f":"Data!A37","v":0},{"$f":"Data!B37","v":0},{"$f":"Data!C37","v":0}]
["Manure Storage",null,null,null,null,null,null,null,null,null,null,null,null,null,null,null,null,{"$f":"Data!A38","v":"Not Applicable"},{"$f":"Data!B38","v":"Not Applicable"},{"$f":"Data!C38","v":"Not Applicable"}]
["Method of Routine On-Farm Storage",null,null,null,null,null,null,null,null,null,null,null,null,null,null,null,null,{"$f":"Data!A39","v":"Coastal Supply Company, Inc."},{"$f":"Data!B39","v":"Roofed Manure Structure"},{"$f":"Data!C39","v":"Composting"}]
["Animal Inventory and Confinement",null,null,null,null,null,null,null,null,null,null,null,null,null,null,null,null,{"$f":"Data!A40","v":"Eastern Shore Forest Products, Inc."},{"$f":"Data!B40","v":"Bunker Structure"},{"$f":"Data!C40","v":"Incineration"}]
["Manure Generated",null,null,null,null,null,null,null,null,null,null,null,null,null,null,null,null,{"$f":"Data!A41","v":"Perdue AgriRecycle, LLC"},{"$f":"Data!B41","v":"Immediately Hauled Away"},{"$f":"Data!C41","v":"In-house Unit"}]
["Manure Utilization"]
["Method For Routine Animal Mortality Disposal",null,null,null,null,null,null,null,null,null,null,null,null,null,null,null,null,{"$f":"Data!A42","v":"Pennsylvania Mushroom Farms/Composters"},{"$f":"Data!B42","v":"In-Field (Covered)"},{"$f":"Data!C42","v":"Contract Hauler"}]
["Utilization of Excess Manure",null,null,null,null,null,null,null,null,null,null,null,null,null,null,null,null,{"$f":"Data!A43","v":"Quality Mulch Products, LLC"},{"$f":"Data!B43","v":"In-Field (Uncovered)"},{"$f":"Data!C43","v":"Rendering"}]
[null,null,null,null,null,null,null,null,null,null,null,null,null,null,null,null,null,{"$f":"Data!A44","v":0},{"$f":"Data!B44","v":"In-field (On Pad)"},{"$f":"Data!C44","v":"Other"}]
["SECTION 3: FARMSTEAD SAFETY AND SECURITY………..………………….....…..….........................……",null,null,null,null,null,null,null,null,9,null,null,null,null,null,null,null,{"$f":"Data!A45","v":0},{"$f":"Data!B45","v":"In-field (On Pad/Covered)"},{"$f":"Data!C45","v":"None"}]
["CNMP Emergency Response",null,null,null,null,null,null,null,null,null,null,null,null,null,null,null,null,{"$f":"Data!A46","v":0},{"$f":"Data!B46","v":"In Poultry House"},{"$f":"Data!C46","v":0}]
["Fires in Manure Storage Structures",null,null,null,null,null,null,null,null,null,null,null,null,null,null,null,null,{"$f":"Data!A47","v":0},{"$f":"Data!B47","v":"Other"},{"$f":"Data!C47","v":0}]
["Spills and Discharges",null,null,null,null,null,null,null,null,null,null,null,null,null,null,null,null,{"$f":"Data!A48","v":0},{"$f":"Data!B48","v":0},{"$f":"Data!C48","v":0}]
["Safety",null,null,null,null,null,null,null,null,null,null,null,null,null,null,null,null,{"$f":"Data!A50","v":0},{"$f":"Data!B50","v":0},{"$f":"Data!C50","v":0}]
["Chemical Handling:",null,null,null,null,null,null,null,null,null,null,null,null,null,null,null,null,{"$f":"Data!A52","v":0},{"$f":"Data!B52","v":0},{"$f":"Data!C52","v":0}]
[null,null,null,null,null,null,null,null,null,null,null,null,null,null,null,null,null,{"$f":"Data!A53","v":0}]
["SECTION 4: LAND TREATMENT CONSERVATION PRACTICES………..………………..…………………...…",null,null,null,null,null,null,null,null,10]
[]
["SECTION 5: SOIL AND RISK ASSESSMENT ANALYSIS……………….....……………………………………..…",null,null,null,null,null,null,null,null,11]
["Soils and Soil Descriptions"]
["Phosphorus Site Index (PSI)"]
[]
["SECTION 6: NUTRIENT MANAGEMENT……………….....……………………………...………………………..…",null,null,null,null,null,null,null,null,11]
["Manure Analysis"]
[]
["SECTION 7: FEED MANAGEMENT……………….....……………………..……………...………………...........…",null,null,null,null,null,null,null,null,11]
[]
[]
["SECTION 8: OTHER UTILIZATION OPTIONS……………….....…………………………………………..........…",null,null,null,null,null,null,null,null,11]
[]
[]
["SECTION 9: RECORDING KEEPING……………….....……………………………...………………………..…..…",null,null,null,null,null,null,null,null,12]
[]
[]
[]
[]
["SECTION 1: BACKGROUND AND SITE INFORMATION"]
[]
["Introduction to the Comprehensive Nutrient Management Plan (CNMP)"]
[]
["CNMP Purpose and Conditions"]
[]
["The Comprehensive Nutrient Management Plan (CNMP) is a conservation system for your Animal Feeding Operation (AFO).  It is designed to address, at a minimum, the soil erosion and water quality concerns on your operation."]
["Animal waste, routine mortality, and catastrophic mortality shall be stored and disposed of in a manner that prevents contamination of Waters of the State or creation of a public health hazard."]
["Nutrient management and waste utilization manages the source, rate, form, timing, placement, and utilization of manure, rather than disposing of it as a waste. The goal is to effectively and efficiently use nutrient resources derived from animal manure to adequately supply to soils and plants, to produce food, forage, fiber, and cover while minimizing environmental impacts."]
[]
["Nitrogen and Phosphorus Movement and Water Quality"]
[]
["The two major nutrients of concern are phosphorus and nitrogen because they can impact water quality, human health, and animal health.  Nitrogen as nitrate is water-soluble and has the potential to leach out of the root zone where it can contaminate ground water or enter subsurface drains and be transported directly to surface waters.  Nitrate-N above 10 parts per million (ppm) in water is a health risk.  Concentrations above this level can cause fatality in infants and older adults and also cause cattle abortion.  Surface applied nitrogen that isn’t incorporated can be lost to the atmosphere as gaseous ammonia nitrogen and nitrous oxide, which can lead to a loss of valuable crop nutrients and contribute to the greenhouse effect and acid rain."]
[]
["The primary way phosphorus can get into water bodies is through runoff and erosion, because phosphorus is attached to eroded soil particles.  This is especially true if excess phosphorus is surface applied, as either manure or commercial fertilizer, or if heavy rains occur just after spreading.  Controlling erosion limits the amount of phosphorus lost to the environment, keeping it available for crop needs.  Phosphorus can also get into surface water by being carried in solution as soluble phosphorus.  This soluble form is highly bioavailable and can contribute significantly to eutrophication even at low levels.  Phosphorus also tends to accumulate in the soil.  This reserve increases every year that phosphorus is applied at rates in excess of the agronomic needs of the crops."]
[]
["Increased phosphorus content in surface waters leads to accelerated weed and algae growth, causing depressed oxygen levels that impair aquatic life, leads to eutrophication of water bodies, and can cause odors or bad taste. Excess algae growth has also been associated with toxic dynoflagellates, such as pfiesteria piscicida."]
[]
["This CNMP is designed to minimize the transport of nitrogen and phosphorus to surface waters, to maximize the efficient use of valuable nutrient resources, and to assure compliance with state and federal regulations."]
[]
["Regulatory Conditions"]
[]
["The following Delaware laws and regulations apply to this CNMP:"]
[]
["The Delaware Nutrient Management Program was established in June 1999 as a result of the Delaware Nutrient Management Law.  Refer to Section 2220, Title 3 of the Delaware Code, Chapter 22, Nutrient Management."]
[]
[]
[]
[]
[]
["Overview of Operating System"]
[]
[]
[]
["Existing Pad/s:",null,null,null,"Yes",null,"No","Number:",null,null,null,false,false]
[]
["Existing Manure Storage:",null,null,null,"Yes",null,"No","Number:",null,null,null,false,false]
[]
["Is this adequate for the existing operation?",null,null,null,"Yes",null,"No"]
[]
["If No, describe what additional structures are needed?",null,null,null,null,null,null,null,null,null,null,false,false]
[]
[]
[]
["Do you plan to expand your operation\nduring the life of the CNMP? ",null,null,null,"Yes",null,"No ","If Yes, explain future plans.",null,null,null,false,false]
[]
[]
[]
["Natural Resource Concerns"]
[]
[]
[]
[]
["SECTION 2: MANURE AND ANIMAL WASTE HANDLING AND STORAGE"]
[]
["This section addresses the components and activities associated with the production facility, including manure storage, the handling of dead animals, and any areas used to facilitate the transfer of manure.  In most situations, this will require a combination of conservation practices and management activates to meet the production needs of the AFO operation and the environmental concerns associated with the production facility.  Approved methods will prevent runoff from coming into contact with manure and assure animals do not come into direct contact with Waters of the State."]
[]
["Maps of Production Area"]
[]
["Aerial photographs pertaining to the production area of this plan show property boundaries, and the location of sites subject to pollution, such as ditches, ponds, streams, and wetlands.   The plan map also indicates barns, and all conservation practices, such as manure storage, pads, and composting areas.  See attached map(s)."]
[]
["Production Area Conservation Practices"]
[]
["The table below is your Conservation Practice and Facility Implementation Schedule.  The practices listed in this schedule must be implemented according to the dates indicated.  If these practices are not implemented according to schedule, please contact the CNMP Planner responsible for developing this plan."]
[]
[]
["Identified Resource Concerns",null,null,"Practice Code","Description of Practice",null,null,null,"Date to be\nImplemented"]
[null,null,null," ",{"$f":"IF(D172=\"\",\"\",(VLOOKUP(D172,Con_Prac!$A$3:$B$38,2,FALSE)))","v":" "}]
[null,null,null," ",{"$f":"IF(D173=\"\",\"\",(VLOOKUP(D173,Con_Prac!$A$3:$B$38,2,FALSE)))","v":" "}]
[null,null,null," ",{"$f":"IF(D174=\"\",\"\",(VLOOKUP(D174,Con_Prac!$A$3:$B$38,2,FALSE)))","v":" "}]
[null,null,null," ",{"$f":"IF(D175=\"\",\"\",(VLOOKUP(D175,Con_Prac!$A$3:$B$38,2,FALSE)))","v":" "}]
[null,null,null," ",{"$f":"IF(D176=\"\",\"\",(VLOOKUP(D176,Con_Prac!$A$3:$B$38,2,FALSE)))","v":" "}]
[null,null,null," ",{"$f":"IF(D177=\"\",\"\",(VLOOKUP(D177,Con_Prac!$A$3:$B$38,2,FALSE)))","v":" "}]
[null,null,null," ",{"$f":"IF(D178=\"\",\"\",(VLOOKUP(D178,Con_Prac!$A$3:$B$38,2,FALSE)))","v":" "}]
[null,null,null," ",{"$f":"IF(D179=\"\",\"\",(VLOOKUP(D179,Con_Prac!$A$3:$B$38,2,FALSE)))","v":" "}]
[null,null,null," ",{"$f":"IF(D180=\"\",\"\",(VLOOKUP(D180,Con_Prac!$A$3:$B$38,2,FALSE)))","v":" "}]
[null,null,null," ",{"$f":"IF(D181=\"\",\"\",(VLOOKUP(D181,Con_Prac!$A$3:$B$38,2,FALSE)))","v":" "}]
["Identified Resource Concerns",null,null,"Practice Code","Description of Practice",null,null,null,"Reason for Not Scheduling"]
[null,null,null," ",{"$f":"IF(D183=\"\",\"\",(VLOOKUP(D183,Con_Prac!$A$3:$B$38,2,FALSE)))","v":" "}]
[null,null,null," ",{"$f":"IF(D184=\"\",\"\",(VLOOKUP(D184,Con_Prac!$A$3:$B$38,2,FALSE)))","v":" "}]
[null,null,null," ",{"$f":"IF(D185=\"\",\"\",(VLOOKUP(D185,Con_Prac!$A$3:$B$38,2,FALSE)))","v":" "}]
[null,null,null," ",{"$f":"IF(D186=\"\",\"\",(VLOOKUP(D186,Con_Prac!$A$3:$B$38,2,FALSE)))","v":" "}]
[null,null,null," ",{"$f":"IF(D187=\"\",\"\",(VLOOKUP(D187,Con_Prac!$A$3:$B$38,2,FALSE)))","v":" "}]
[null,null,null," ",{"$f":"IF(D188=\"\",\"\",(VLOOKUP(D188,Con_Prac!$A$3:$B$38,2,FALSE)))","v":" "}]
[null,null,null," ",{"$f":"IF(D189=\"\",\"\",(VLOOKUP(D189,Con_Prac!$A$3:$B$38,2,FALSE)))","v":" "}]
[null,null,null," ",{"$f":"IF(D190=\"\",\"\",(VLOOKUP(D190,Con_Prac!$A$3:$B$38,2,FALSE)))","v":" "}]
[null,null,null," ",{"$f":"IF(D191=\"\",\"\",(VLOOKUP(D191,Con_Prac!$A$3:$B$38,2,FALSE)))","v":" "}]
[null,null,null," ",{"$f":"IF(D192=\"\",\"\",(VLOOKUP(D192,Con_Prac!$A$3:$B$38,2,FALSE)))","v":" "}]
[]
["Additional Production Area Conservation Practices"]
[]
["This section addresses additional practices not already addressed above, such as critical area planting, filter strips, and windbreaks. “Good Housekeeping” practices will be completed in the production area.  This includes such items as sweeping excess manure from pads following manure removal and maintaining a healthy, vigorous stand of grass for filtering storm water run-off."]
[]
["Identified Resource Concerns/Recommended Practice(s); The Producer is not required to implement these practices to meet CNMP requirements."]
[]
["Identified Resource Concern",null,null,"Practice Code","Description of Practice",null,null,null,"Date to be\nImplemented"]
[null,null,null," ",{"$f":"IF(D201=\"\",\"\",(VLOOKUP(D201,Con_Prac!$A$3:$B$38,2,FALSE)))","v":" "}]
[null,null,null," ",{"$f":"IF(D202=\"\",\"\",(VLOOKUP(D202,Con_Prac!$A$3:$B$38,2,FALSE)))","v":" "}]
[null,null,null," ",{"$f":"IF(D203=\"\",\"\",(VLOOKUP(D203,Con_Prac!$A$3:$B$38,2,FALSE)))","v":" "}]
[null,null,null," ",{"$f":"IF(D204=\"\",\"\",(VLOOKUP(D204,Con_Prac!$A$3:$B$38,2,FALSE)))","v":" "}]
[null,null,null," ",{"$f":"IF(D205=\"\",\"\",(VLOOKUP(D205,Con_Prac!$A$3:$B$38,2,FALSE)))","v":" "}]
[null,null,null," ",{"$f":"IF(D206=\"\",\"\",(VLOOKUP(D206,Con_Prac!$A$3:$B$38,2,FALSE)))","v":" "}]
[null,null,null," ",{"$f":"IF(D207=\"\",\"\",(VLOOKUP(D207,Con_Prac!$A$3:$B$38,2,FALSE)))","v":" "}]
[null,null,null," ",{"$f":"IF(D208=\"\",\"\",(VLOOKUP(D208,Con_Prac!$A$3:$B$38,2,FALSE)))","v":" "}]
[null,null,null," ",{"$f":"IF(D209=\"\",\"\",(VLOOKUP(D209,Con_Prac!$A$3:$B$38,2,FALSE)))","v":" "}]
[null,null,null," ",{"$f":"IF(D210=\"\",\"\",(VLOOKUP(D210,Con_Prac!$A$3:$B$38,2,FALSE)))","v":" "}]
["Identified Resource Concern",null,null,"Practice Code","Description of Practice",null,null,null,"Reason for Not Scheduling"]
[null,null,null," ",{"$f":"IF(D212=\"\",\"\",(VLOOKUP(D212,Con_Prac!$A$3:$B$38,2,FALSE)))","v":" "}]
[null,null,null," ",{"$f":"IF(D213=\"\",\"\",(VLOOKUP(D213,Con_Prac!$A$3:$B$38,2,FALSE)))","v":" "}]
[null,null,null," ",{"$f":"IF(D214=\"\",\"\",(VLOOKUP(D214,Con_Prac!$A$3:$B$38,2,FALSE)))","v":" "}]
[null,null,null," ",{"$f":"IF(D215=\"\",\"\",(VLOOKUP(D215,Con_Prac!$A$3:$B$38,2,FALSE)))","v":" "}]
[null,null,null," ",{"$f":"IF(D216=\"\",\"\",(VLOOKUP(D216,Con_Prac!$A$3:$B$38,2,FALSE)))","v":" "}]
[null,null,null," ",{"$f":"IF(D217=\"\",\"\",(VLOOKUP(D217,Con_Prac!$A$3:$B$38,2,FALSE)))","v":" "}]
[null,null,null," ",{"$f":"IF(D218=\"\",\"\",(VLOOKUP(D218,Con_Prac!$A$3:$B$38,2,FALSE)))","v":" "}]
[null,null,null," ",{"$f":"IF(D219=\"\",\"\",(VLOOKUP(D219,Con_Prac!$A$3:$B$38,2,FALSE)))","v":" "}]
[null,null,null," ",{"$f":"IF(D220=\"\",\"\",(VLOOKUP(D220,Con_Prac!$A$3:$B$38,2,FALSE)))","v":" "}]
[null,null,null," ",{"$f":"IF(D221=\"\",\"\",(VLOOKUP(D221,Con_Prac!$A$3:$B$38,2,FALSE)))","v":" "}]
[]
["Manure Storage"]
[]
["The manure storage facilities shall provide adequate collection, storage, and/or treatment of manure and organic by-products that allows for the application of manure during favorable weather conditions and is compatible with crop management, including the application of nutrients at agronomic rates.  Practices planned for the collection, storage, treatment, and/or transfer of manure shall meet the minimum criteria and documentation as addressed in the NRCS conservation practice standards.  Storing manure in a permanent roofed storage structure is the recommended option."]
[]
["Method of Routine On-Farm Storage"]
[]
["Existing Manure Storage",null,null,"Length","Width","Wall Height","Storage Capacity"]
["Manure Storage Area 1",null,null,{"$f":"IF('Dry-Stack Calc'!M30=\"\",\"\",'Dry-Stack Calc'!M30)","v":""},{"$f":"IF('Dry-Stack Calc'!N30=\"\",\"\",'Dry-Stack Calc'!N30)","v":""},{"$f":"IF('Dry-Stack Calc'!O30=\"\",\"\",'Dry-Stack Calc'!O30)","v":""},{"$f":"IF('Dry-Stack Calc'!P30=0,\"\",'Dry-Stack Calc'!P30)","v":""}]
["Manure Storage Area 2",null,null,{"$f":"IF('Dry-Stack Calc'!M31=\"\",\"\",'Dry-Stack Calc'!M31)","v":""},{"$f":"IF('Dry-Stack Calc'!N31=\"\",\"\",'Dry-Stack Calc'!N31)","v":""},{"$f":"IF('Dry-Stack Calc'!O31=\"\",\"\",'Dry-Stack Calc'!O31)","v":""},{"$f":"IF('Dry-Stack Calc'!P31=0,\"\",'Dry-Stack Calc'!P31)","v":""}]
["Manure Storage Area 3",null,null,{"$f":"IF('Dry-Stack Calc'!M32=\"\",\"\",'Dry-Stack Calc'!M32)","v":""},{"$f":"IF('Dry-Stack Calc'!N32=\"\",\"\",'Dry-Stack Calc'!N32)","v":""},{"$f":"IF('Dry-Stack Calc'!O32=\"\",\"\",'Dry-Stack Calc'!O32)","v":""},{"$f":"IF('Dry-Stack Calc'!P32=0,\"\",'Dry-Stack Calc'!P32)","v":""}]
["Total Storage (Cu Ft)",null,null,null,null,null,{"$f":"IF('Dry-Stack Calc'!P33=0,\"\",'Dry-Stack Calc'!P33)","v":""}]
[]
["Is this adequate for the existing operation?                 Yes",null,null,null,null,"No ","If No then:",null,null,null,null,false,false]
[]
["Describe the additional storage structure(s) needed including; animal waste type, dimensions, capacity (CF) and months of storage."]
[]
[]
[]
[]
[]
[]
["The manure will be scraped daily from the alleys, feed areas, and walkways in to the waste storage structure.  The solid manure also contains bedding material that is used in the stalls, if applicable."]
["The water that falls on to the roofs of the buildings will be collected with rain gutters and pipelines to prevent contact with manure."]
["On farm stockpiling in the production area is limited to 14 days without being covered or being stored in an approved structure in accordance with the Delaware NRCS conservation practice standard for Waste Storage Structure, Code 313.  The stockpile must be separated from any channeled runoff, standing water, and other drainage systems such as roof runoff and down spouts.  If stored outside less than 14 days, the stockpile must be at least 6 feet high and stored on a pad constructed in accordance with NRCS conservation practice standard, Heavy Use Area Protection, Code 561."]
[]
["When required, stock piled manure shall be shaped and covered with opaque plastic or polyethylene sheeting (minimum thickness of 6 mils) or other impermeable and equally strong material.  Sheeting shall have a minimum of 24 inches of overlap. The cover for the manure shall be free of tears or punctures and shall be placed over the pile with care to prevent tearing.  Weights, such as used tires, shall be placed over the sheeting to anchor it and prevent tearing during high winds.  A trench 12 inches deep shall be constructed around the waste and the edges of the sheeting buried in and through the trench.  In lieu of a trench, Jersey barriers or similar materials may be used to secure the cover. "]
[]
["If you received cost share funds for construction of the manure shed, the following policies must be followed during the 15 year practice life span to avoid refunding cost share funds."]
[]
["1.  No manure is to be stockpiled outside the manure shed unless the structure is filled to capacity."]
[]
["2.  No walls will be permitted inside the manure shed.  Exterior modifications require approval before work commences."]
[]
["3.  Manure must be stored in the manure shed at least one time during each 12 month period.  The amount of\n     manure must fill at least 50% of the structure."]
[]
["4.  No animals are to be confined in the manure shed. "]
[]
["5.  Carcasses can not be composted in the manure shed."]
[]
["6.  No doors are to be placed on the manure shed at any time for any reason."]
[]
["7.  This structure is designed and constructed for the storage of manure.  No other equipment or items are\n     permitted at any time."]
["      "]
["8.  Insurance will be required on manure structures in case of a catastrophic event where a shed is either\n     destroyed or impaired.  The owner will be required to replace or repair the manure structure to its original\n     condition or repay the financial assistance."]
["     "]
["9.  If any situation occurs which may prevent you from complying with these policies during the 15 year practice"]
["        life span and to avoid refunding the financial assistance, please contact:",null,null,null,null,null,{"$f":"IF(A1=\"\",\"\",VLOOKUP(A1,R28:S31,2,FALSE))","v":""}]
[]
[]
[]
["Animal Inventory and Confinement"]
[]
["Animal Type",null,null,"Number of Animals","Average\nWeight","Total Days","Unconfined\nDays","Confined Days","Confined\n(%)"]
[{"$f":"IF('Dry-Stack Calc'!$D$14=\"\",\"\",'Dry-Stack Calc'!$D$14)","v":""},null,null,{"$f":"IF('Dry-Stack Calc'!$D$16=\"\",\"\",'Dry-Stack Calc'!$D$16)","v":""},{"$f":"IF('Dry-Stack Calc'!$D$15=\"\",\"\",'Dry-Stack Calc'!$D$15)","v":""},{"$f":"IF(H276=\"\",\"\",G276+H276)","v":""},{"$f":"'Dry-Stack Calc'!$D$23","v":""},{"$f":"'Dry-Stack Calc'!$D$22","v":""},{"$f":"IF(H276=\"\",\"\",H276/F276)","v":""}]
[{"$f":"IF('Dry-Stack Calc'!$E$14=\"\",\"\",'Dry-Stack Calc'!$E$14)","v":""},null,null,{"$f":"IF('Dry-Stack Calc'!$E$16=\"\",\"\",'Dry-Stack Calc'!$E$16)","v":""},{"$f":"IF('Dry-Stack Calc'!$E$15=\"\",\"\",'Dry-Stack Calc'!$E$15)","v":""},{"$f":"IF(H277=\"\",\"\",G277+H277)","v":""},{"$f":"'Dry-Stack Calc'!$E$23","v":""},{"$f":"'Dry-Stack Calc'!$E$22","v":""},{"$f":"IF(H277=\"\",\"\",H277/F277)","v":""}]
[{"$f":"IF('Dry-Stack Calc'!$F$14=\"\",\"\",'Dry-Stack Calc'!$F$14)","v":""},null,null,{"$f":"IF('Dry-Stack Calc'!$F$16=\"\",\"\",'Dry-Stack Calc'!$F$16)","v":""},{"$f":"IF('Dry-Stack Calc'!$F$15=\"\",\"\",'Dry-Stack Calc'!$F$15)","v":""},"",{"$f":"'Dry-Stack Calc'!$F$23","v":""},{"$f":"'Dry-Stack Calc'!$F$22","v":""},""]
[{"$f":"IF('Dry-Stack Calc'!$G$14=\"\",\"\",'Dry-Stack Calc'!$G$14)","v":""},null,null,{"$f":"IF('Dry-Stack Calc'!$G$16=\"\",\"\",'Dry-Stack Calc'!$G$16)","v":""},{"$f":"IF('Dry-Stack Calc'!$G$15=\"\",\"\",'Dry-Stack Calc'!$G$15)","v":""},"",{"$f":"'Dry-Stack Calc'!$G$23","v":""},{"$f":"'Dry-Stack Calc'!$G$22","v":""},""]
[{"$f":"IF('Dry-Stack Calc'!$H$14=\"\",\"\",'Dry-Stack Calc'!$H$14)","v":""},null,null,{"$f":"IF('Dry-Stack Calc'!$H$16=\"\",\"\",'Dry-Stack Calc'!$H$16)","v":""},{"$f":"IF('Dry-Stack Calc'!$H$15=\"\",\"\",'Dry-Stack Calc'!$H$15)","v":""},"",{"$f":"'Dry-Stack Calc'!$H$23","v":""},{"$f":"'Dry-Stack Calc'!$H$22","v":""},""]
[{"$f":"IF('Dry-Stack Calc'!$I$14=\"\",\"\",'Dry-Stack Calc'!$I$14)","v":""},null,null,{"$f":"IF('Dry-Stack Calc'!$I$16=\"\",\"\",'Dry-Stack Calc'!$I$16)","v":""},{"$f":"IF('Dry-Stack Calc'!$I$15=\"\",\"\",'Dry-Stack Calc'!$I$15)","v":""},"",{"$f":"'Dry-Stack Calc'!$I$23","v":""},{"$f":"'Dry-Stack Calc'!$I$22","v":""},""]
[]
[]
[]
["Manure Generated"]
[]
["Animal Type",null,null,"Lbs/D/AU\nof Manure","Manure\nUnconfined\n(Pasture)","Manure\nConfined","Bedding\nGenerated","Manure\nConfined\nTotal","Manure\nAll\nTotal"]
[null,null,null,"(lbs)","(Tons)","(Tons)","(Tons)","(Tons)","(Tons)"]
[{"$f":"A276","v":""},null,null,{"$f":"'Dry-Stack Calc'!$D$24","v":""},{"$f":"'Dry-Stack Calc'!$D$35","v":""},{"$f":"'Dry-Stack Calc'!$D$39","v":""},{"$f":"IF(F289=\"\",\"\",H289-F289)","v":""},{"$f":"'Dry-Stack Calc'!$D$40","v":""},{"$f":"IF(E289=\"\",\"\",E289+H289)","v":""}]
["",null,null,{"$f":"'Dry-Stack Calc'!$E$24","v":""},{"$f":"'Dry-Stack Calc'!$E$35","v":""},{"$f":"'Dry-Stack Calc'!$E$39","v":""},{"$f":"IF(F290=\"\",\"\",H290-F290)","v":""},{"$f":"'Dry-Stack Calc'!$E$40","v":""},{"$f":"IF(E290=\"\",\"\",E290+H290)","v":""}]
["",null,null,{"$f":"'Dry-Stack Calc'!$F$24","v":""},{"$f":"'Dry-Stack Calc'!$F$35","v":""},{"$f":"'Dry-Stack Calc'!$F$39","v":""},"",{"$f":"'Dry-Stack Calc'!$F$40","v":""},""]
["",null,null,{"$f":"'Dry-Stack Calc'!$G$24","v":""},{"$f":"'Dry-Stack Calc'!$G$35","v":""},{"$f":"'Dry-Stack Calc'!$G$39","v":""},"",{"$f":"'Dry-Stack Calc'!$G$40","v":""},""]
["",null,null,{"$f":"'Dry-Stack Calc'!$H$24","v":""},{"$f":"'Dry-Stack Calc'!$H$35","v":""},{"$f":"'Dry-Stack Calc'!$H$39","v":""},"",{"$f":"'Dry-Stack Calc'!$H$40","v":""},""]
["",null,null,{"$f":"'Dry-Stack Calc'!$I$24","v":""},{"$f":"'Dry-Stack Calc'!$I$35","v":""},{"$f":"'Dry-Stack Calc'!$I$39","v":""},"",{"$f":"'Dry-Stack Calc'!$I$40","v":""},""]
["Total Manure Generated",null,null,null,{"$f":"IF(SUM(E289:E294)=0,\"\",SUM(E289:E294))","v":""},{"$f":"IF(SUM(F289:F294)=0,\"\",SUM(F289:F294))","v":""},{"$f":"IF(SUM(G289:G294)=0,\"\",SUM(G289:G294))","v":""},{"$f":"IF(SUM(H289:H294)=0,\"\",ROUND(SUM(H289:H294),0))","v":""},{"$f":"IF(SUM(I289:I294)=0,\"\",ROUND(SUM(I289:I294),0))","v":""}]
[]
[]
["Manure Utilization "]
[]
["Manure Management",null,null,"Plan Year:",{"$f":"IF(E301=\"\",\"\",'Dry-Stack Calc'!$C$9)","v":"00:00:00"},{"$f":"IF(F301=\"\",\"\",$E$300+366)","v":"1900-12-31"},{"$f":"IF(G301=\"\",\"\",$E$300+732)","v":"1902-01-01"},{"$f":"IF(H301=\"\",\"\",$E$300+1098)","v":""},{"$f":"IF(I301=\"\",\"\",$E$300+1464)","v":""}]
[null,null,null,"Units",{"$f":"IF($D$5>0,\"Year 1\",\"\")","v":"Year 1"},{"$f":"IF($D$5>0,\"Year 2\",\"\")","v":"Year 2"},{"$f":"IF($D$5>0,\"Year 3\",\"\")","v":"Year 3"},{"$f":"IF($D$5>3,\"Year 4\",\"\")","v":""},{"$f":"IF($D$5>3,\"Year 5\",\"\")","v":""}]
["Manure Generated",null,null,"(Tons)",{"$f":"IF(E301=\"\",\"\",$H$295)","v":""},{"$f":"IF(F301=\"\",\"\",$H$295)","v":""},{"$f":"IF(G301=\"\",\"\",$H$295)","v":""},"",""]
["Manure Exported",null,null,"(Tons)",200,200,200,200,200]
["Excess Manure",null,null,"(Tons)",{"$f":"IF(E302=\"\",\"\",E302-E303)","v":""},{"$f":"IF(F302=\"\",\"\",F302-F303)","v":""},{"$f":"IF(G302=\"\",\"\",G302-G303)","v":""},{"$f":"IF(H302=\"\",\"\",H302-H303)","v":""},{"$f":"IF(I302=\"\",\"\",I302-I303)","v":""}]
[]
[]
["Method For Routine Animal Mortality Disposal"]
[]
["Dead animals shall be disposed of in an environmentally safe manner, according to all federal, state, and local laws and regulations.  (Identify method of disposal and contact.)"]
[]
[]
[]
["Utilization of Excess Manure"]
[]
["Nutrient values of manure and organic amendments shall be collected and analyzed at least once annually.  Samples should be taken in accordance with recommendations of the University of Delaware.  See Delaware Nutrient Management Notes, Vol. I, No. 9, September 2000 – Soil and Litter Sampling for Nutrient Analyses, for Poultry.  This procedure can also be utilized for other dry stack manure."]
[]
["The manure generated by this farming operation will be properly stored until such time it can be sent to another farming operation or alternative use, as recognized by the Delaware Nutrient Management Program.  A copy of the most current manure analysis shall be given to the receiver on or before the date of transfer."]
[]
["Excess manure generated by this operation that cannot be properly stored for later application will be sent to:"]
[]
[null,"Receiving Farmers/Landowners Address and Watershed"]
[null,"Receiver 1",null,null,"Receiver 2",null,null,"Receiver 3"]
["Name:"]
["Line 1:"]
["Line 2:"]
["Line 3:"]
["W/S:"]
[]
[]
[]
[" DNMC-authorized Alternative Use:*"]
[null,"* No Receiving Watershed (W/S) is required for Authorized Alternative Use."]
[]
["It is recommended that the receiving operation has:"]
[]
["1.  A current approved nutrient management plan."]
["2.  An approved method or structure to properly store the manure until land application can be completed."]
["3.  A soil test phosphorus level of less than 100 FIV based on a soil test taken within the past three years."]
[]
[]
[]
[]
["SECTION 3: FARMSTEAD SAFETY AND SECURITY"]
[]
["CNMP Emergency Response"]
[]
[]
["911 Address  (or closest road intersection to operation):"]
[]
[]
[]
["Emergency Contacts:"]
[]
["Fire, Police, Medical Emergency:",null,null,null,"Call: 911"]
[]
[]
["Fires in Manure Storage Structures "]
[]
["The number one safety concern with manure storage sheds is fire.  If you have a fire in your manure shed, call 911."]
[]
[]
["Spills and Discharges"]
[]
["If you have a spill during transportation on public roadways:"]
["1.  Coordinate efforts with local law enforcement and emergency personnel; and"]
["2.  Remove spill with appropriate equipment such as a front-end loader or other method as directed by local or state\n     authorities."]
[]
["If for any reason there is a discharge from an operation, the operator shall verbally notify the Department of Agriculture within 24 hours of becoming aware of the discharge and document the incident in writing within five (5) days.  In general, discharges occur when manure is conveyed by means of surface flow from a confinement facility, holding area, or manure storage structure.  The information to be provided shall include:"]
[]
["1.  A description of the discharge and cause, including a description of the flow path to the receiving waters and an\n     estimate of the flow and volume discharged;"]
["2.  The period of discharge, including exact dates and times, and if not corrected, the anticipated time the discharge is\n     expected to continue and the steps being taken to reduce, eliminate, and prevent recurrence of the discharge;"]
["3.  If the discharge was caused by a precipitation event(s), the amount of rainfall, as measured with a rain gauge at the\n     site; and"]
["4.  Results of any sampling and analysis of the discharge, if available."]
[]
["For further questions or assistance, call the Delaware Department of Agriculture, Nutrient Management Program, at:\n1-800-282-8685, or the Department of Natural Resources and Environmental Control Emergency at 1-800-662-8802."]
[]
[]
["Safety"]
[]
["Workers should be protected from and avoid unnecessary contact with organic by-products.  Extra caution must be taken when dealing with organic wastes stored in unventilated enclosures, including the use of protective clothing and respirators."]
[]
["The disposal of material generated by the cleaning of nutrient application equipment should be accomplished properly.  Excess material should be collected and stored or field applied in an appropriate manner.  Excess material should not be applied on areas of high potential risk for runoff and leaching. The disposal or recycling of nutrient containers should be done according to state and local guidelines or regulations."]
[]
[]
["Chemical Handling"]
[]
["Chemicals and other contaminants handled on-site are not to be disposed of in any manure."]
[]
[]
["SECTION 4: LAND TREATMENT CONSERVATION PRACTICES"]
[]
["This section is not applicable for a No-Land CNMP."]
[]
["SECTION 5: SOIL AND RISK ASSESSMENT ANALYSIS"]
[]
["Soils and Soil Descriptions"]
[]
["Copies of soil maps, soil map unit names, as well as, a brief soil map unit description is attached.  The soil descriptions provide information such as, texture, drainage class, and soil capability class that is necessary in making resource assessments."]
[]
["Phosphorus Site Index (PSI)"]
[]
["The Phosphorous Site Index (PSI) is not applicable for a No-Land CNMP."]
[]
["SECTION 6: NUTRIENT MANAGEMENT"]
[]
["Manure Analysis is the only portion of Nutrient Management that is applicable for a No-Land CNMP."]
[]
[]
["Manure Analysis"]
[]
["Nutrient values of manure and organic amendments shall be collected and analyzed at least once annually.  Samples should be taken in accordance with recommendations of the University of Delaware.  See Delaware Nutrient Management Notes, Vol. I, No. 9, September 2000 – Soil and Litter Sampling for Nutrient Analyses, for Poultry.  This procedure can also be utilized for other dry stack manure."]
[]
[]
["SECTION 7: FEED MANAGEMENT"]
[]
["Animal diets and feed may be modified to reduce the amount of nutrients in manure.  Reduced inputs and greater utilization of phosphorus by the animal reduces the amount of phosphorus excreted and produces a manure with a nitrogen:phosphorus ratio closer to that required by crops."]
[]
[]
["SECTION 8: OTHER UTILIZATION OPTIONS"]
[]
["Safe alternatives to land application of manure including but not limited to:"]
["1. Composting to reduce transportation cost or to create a more valuable product."]
["2. Transporting to an alternative use approved by the Delaware Nutrient Management Program."]
[]
[]
["SECTION 9: RECORD KEEPING"]
[]
["Maintaining records to document plan implementation is the responsibility of the owner/client. Farms covered under a CAFO permit must maintain and provide all applicable records for a period of at least 6 years."]
[]
["The following records must be kept to document implementation of the plan requirements and permit conditions in the part of the farm where livestock are raised: "]
[]
["1. Records indicating mortality management to include number disposed and method of disposal. "]
["2. Records documenting the design of any manure storage structures, design storage, and approximate\n    number of days of storage. "]
[]
["In addition, records indicating the following routine visual inspections of the CAFO production area were conducted. At a minimum the following must be visually inspected:"]
[]
["1. Weekly inspections of all storm water diversion devices, runoff diversion structures, and devices channeling\n    contaminated storm water to the wastewater and manure storage containment structure. "]
["2. Daily inspection of water lines, including drinking water or cooling water lines. "]
["3. Weekly inspections of the manure storage structure."]
[]
[]
["If manure is sold or given to other persons for utilization, the following records shall be maintained at the CAFO generating the manure: "]
[]
["1. The date of manure removal. "]
["2. Name of receiver and contact information. "]
["3. Quantity of manure removed, in tons."]
["4. A copy of the most recent manure nutrient analysis shall be given to the receiver on\n    or before the date of transfer. "]
[]
["Report Requirements"]
[]
["The Nutrient Management Annual Report is required to be submitted to the Nutrient Management Commission by March 1 of each year.  Please contact the Delaware Department of Agriculture, Nutrient Management Program, for a copy of the report."]

{"sheet":"Dry-Stack Calc","index":3,"n_rows":45,"n_cols":19,"rows_kept":45,"cut":false,"hidden":false,"merged":[[11,16,11,17],[10,16,10,17],[8,16,9,17],[24,16,24,17],[23,16,23,17],[22,16,22,17],[21,16,21,17],[20,16,20,17],[12,16,12,17],[18,16,18,17],[17,16,17,17],[16,16,16,17],[15,16,15,17],[14,16,14,17],[13,16,13,17],[4,11,4,18],[2,11,2,18],[1,11,1,18],[0,0,0,8],[41,0,41,8],[19,16,19,17],[3,11,3,18],[40,0,40,2],[8,15,9,15],[8,14,9,14],[8,13,9,13],[8,12,9,12],[8,11,9,11],[3,0,3,8],[8,18,9,18],[25,16,25,17],[27,1,27,2],[28,1,28,2],[29,1,29,2],[30,1,30,2],[32,0,32,8],[1,0,1,8],[2,0,2,8],[11,0,11,8],[14,1,14,2],[13,1,13,2],[8,0,8,1],[4,2,4,3],[43,0,43,8],[44,0,44,8],[16,1,16,2],[17,1,17,2],[18,1,18,2],[22,1,22,2],[23,1,23,2],[38,1,38,2],[21,1,21,2],[19,1,19,2],[42,0,42,8],[20,1,20,2],[39,1,39,2],[25,0,25,8],[36,0,36,8],[34,1,34,2]]}
["Delaware NRCS Modified Manure Estimation Tool"]
["MANURE QUANTITY ESTIMATION",null,null,null,null,null,null,null,null,null,null,"Manure Quantity and Bedding Material Density Estimation Variables"]
["(For Solid Manure)",null,null,null,null,null,null,null,null,null,null,"(For Solid Dry Stack Manure)"]
["You can only edit Values highlighted in yellow, Dropdowns are in green Formula's are in blue",null,null,null,null,null,null,null,null,null,null,"Storage Estimates in Pounds and Cu Ft of Manure and Bedding Material "]
["Farm name:",null,{"$f":"IF('CNMP-No Land'!$D$7=\"\",\"\",'CNMP-No Land'!$D$7)","v":""},null,null,null,null,null,null,null,null,"for Production Period "]
[]
["Manure Production period:"]
[]
["Starting date:",null,null,null,"Ending date:",{"$f":"IF(C9=\"\",\"\",C9+F11-1)","v":""},null,null,null,null,null,"Livestock Group","lbs Manure\n/AU/day","Cu Ft Manure\n/AU/day","Lbs Manure/\nCu Ft",null,"Bedding Material",null,"Density\n(lbs/Cu ft)"]
[]
["A.","Total days in manure production period:",null,null,null,{"$f":"IF(ISBLANK(C9),\"\",365)","v":""}]
["Livestock Information",null,null,null,null,null,null,null,null,null,null,"Alpaca",40,0.64,{"$f":"M12/N12","v":62.5},null,"Baled-Hay",null,7]
[null,null,null,1,2,3,4,5,6,null,null,"Buffalo",60,0.95,63.15789473684211,null,"Baled-Straw",null,5]
["B.","Livestock group",null,null,null,null,null,null,null,null,null,"Calf (450-750 lbs)",58,0.93,62.365591397849457,null,"Baled-Wood Shavings",null,20]
["C.","Average weight (lbs.)",null,null,null,null,null,null,null,null,null,"Dairy: Dry Cow",82,1.3,63.076923076923073,null,"Chopped-Hay",null,6]
["D.","# of animals",null,null,null,null,null,null,null,null,null,"Dairy: Heifer",85,1.3,65.384615384615387,null,"Chopped-Straw",null,7]
["E.","Animal units (AU)                                                    [(C x D)/1000]",null,{"$f":"IF(D14=\"\",\"\",(D15*D16)/1000)","v":""},"","",{"$f":"IF(G14=\"\",\"\",(G15*G16)/1000)","v":""},{"$f":"IF(H14=\"\",\"\",(H15*H16)/1000)","v":""},"",null,null,"Emu",45,0.72,62.5,null,"Loose-Sawdust",null,12]
["F.","Full days confined during manure production period",null,null,null,null,null,null,null,null,null,"Feeder Yearling\n High Energy Diet",51,0.82,62.195121951219512,null,"Loose-Straw",null,2.5]
["G.","Days partially confined during manure production period",null,{"$f":"IF(D14=\"\",\"\",$F$11-D18)","v":""},"","",{"$f":"IF(G14=\"\",\"\",$F$11-G18)","v":""},{"$f":"IF(H14=\"\",\"\",$F$11-H18)","v":""},"",null,null,"Feeder Yearling\n High Forage Diet",59,0.95,62.10526315789474,null,"Loose-Wood Shavings",null,9]
["H.","Hours per day confined",null,null,null,null,null,null,null,null,null,"Goat",40,0.64,62.5]
["I.","Day equivalents partially confined (G * H)/24",null,{"$f":"IF(D14=\"\",\"\",ROUNDDOWN(D19*D20/24,0))","v":""},{"$f":"IF(E14=\"\",\"\",ROUNDDOWN(E19*E20/24,0))","v":""},"","","","",null,null,"Horse",50,0.8,62.5]
["J.","Total day equivalents confined                                                (F + I)",null,{"$f":"IF(D14=\"\",\"\",(D18+D21))","v":""},"","",{"$f":"IF(G14=\"\",\"\",(G18+G21))","v":""},{"$f":"IF(H14=\"\",\"\",(H18+H21))","v":""},"",null,null,"Llama",40,0.64,62.5]
["K.","Total day equivalents unconfined on pasture                                            (A - J)",null,{"$f":"IF(D14=\"\",\"\",$F$11-D22)","v":""},"","",{"$f":"IF(G14=\"\",\"\",$F$11-G22)","v":""},{"$f":"IF(H14=\"\",\"\",$F$11-H22)","v":""},"",null,null,"Rabbit",150,2.39,62.761506276150627]
["L.","Weight of manure/AU/day (lbs.)                                      (see Table 1.)",null,{"$f":"IF(D14=\"\",\"\",VLOOKUP(D$14,$L$11:$N$26,2,FALSE))","v":""},"","",{"$f":"IF(G14=\"\",\"\",VLOOKUP(G$14,$L$11:$N$26,2,FALSE))","v":""},{"$f":"IF(H14=\"\",\"\",VLOOKUP(H$14,$L$11:$N$26,2,FALSE))","v":""},"",null,null,"Sheep",40,0.63,63.492063492063494]
[null,null,null,null,null,null,null,null,null,null,null,"Beef Cow",82,1.3,{"$f":"M25/N25","v":63.076923076923073}]
["Bedding Estimation"]
[null,null,null,1,2,3,4,5,6,null,null,"Estimate based on Regression."]
["M.","Bedding type (straw, sawdust, etc.)"]
["N.","Volume of bedding this production period (cu.ft.).",null,null,null,null,null,null,null,null,null,"Existing Manure\nStorage","Length\n(Ft)","Width\n(Ft)","Wall Height\n(Ft)","Total Existing\nStorage (Cu Ft)",null,"Total Storage\nNeeded (Cu Ft)","Unmet Storage\nNeeds (Cu Ft)"]
["O.","Density of bedding (lbs. per cu.ft.)                       (see Table 2.)",null,{"$f":"IF(D28=\"\",\"\",VLOOKUP(D$28,$Q$11:$S$26,3,FALSE))","v":""},{"$f":"IF(E28=\"\",\"\",VLOOKUP(E$28,$Q$11:$S$26,3,FALSE))","v":""},{"$f":"IF(F28=\"\",\"\",VLOOKUP(F$28,$Q$11:$S$26,3,FALSE))","v":""},{"$f":"IF(G28=\"\",\"\",VLOOKUP(G$28,$Q$11:$S$26,3,FALSE))","v":""},{"$f":"IF(H28=\"\",\"\",VLOOKUP(H$28,$Q$11:$S$26,3,FALSE))","v":""},"",null,null,"Storage Area 1",null,null,null,{"$f":"IF(M30=\"\",\"\",M30*N30*O30)","v":""}]
["P.","Weight of bedding (tons)                                       [(N x O)/2000]",null,{"$f":"IF(D28=\"\",\"\",(D29*D30)/2000)","v":""},{"$f":"IF(E28=\"\",\"\",(E29*E30)/2000)","v":""},{"$f":"IF(F28=\"\",\"\",(F29*F30)/2000)","v":""},{"$f":"IF(G28=\"\",\"\",(G29*G30)/2000)","v":""},{"$f":"IF(H28=\"\",\"\",(H29*H30)/2000)","v":""},"",null,null,"Storage Area 2",null,null,null,{"$f":"IF(M31=\"\",\"\",M31*N31*O31)","v":""}]
[null,null,null,null,null,null,null,null,null,null,null,"Storage Area 3",null,null,null,""]
["Uncollected  Manure (Deposited on Pasture)",null,null,null,null,null,null,null,null,null,null,"All Existing\nStorage Areas",null,null,null,{"$f":"SUM(P30:P32)","v":0},null,{"$f":"S41","v":0},{"$f":"R33-P33","v":0}]
[null,null,null,1,2,3,4,5,6]
["Q.","Weight of manure on pasture (tons)                                               [(E x L x K)/2000]",null,{"$f":"IF(D14=\"\",\"\",(D17*D23*D24)/2000)","v":""},"","",{"$f":"IF(G14=\"\",\"\",(G17*G23*G24)/2000)","v":""},{"$f":"IF(H14=\"\",\"\",(H17*H23*H24)/2000)","v":""},"",null,null,"Collected Material",{"$f":"IF(D14=\"\",\"\",D14)","v":""},{"$f":"IF(E14=\"\",\"\",E14)","v":""},{"$f":"IF(F14=\"\",\"\",F14)","v":""},"","","","All Storage\nNeeded"]
[null,null,null,null,null,null,null,null,null,null,null,"Manure (Tons)",{"$f":"D39","v":""},"","","","","",{"$f":"SUM(M36:R36)","v":0}]
["Collected Solid Waste (Manure And Bedding)",null,null,null,null,null,null,null,null,null,null,"Bedding (Tons)",{"$f":"D31","v":""},"","","","","",0]
[null,null,null,1,2,3,4,5,6,null,null,"Total (Tons)",{"$f":"IF(M35=\"\",\"\",SUM(M36:M37))","v":""},{"$f":"IF(N35=\"\",\"\",SUM(N36:N37))","v":""},{"$f":"IF(O35=\"\",\"\",SUM(O36:O37))","v":""},"","","",0]
["R.","Weight of collected manure (tons)                                             [(E x L x J)/2000]",null,{"$f":"IF(D14=\"\",\"\",(D17*D22*D24)/2000)","v":""},"","",{"$f":"IF(G14=\"\",\"\",(G17*G22*G24)/2000)","v":""},{"$f":"IF(H14=\"\",\"\",(H17*H22*H24)/2000)","v":""},"",null,null,"Manure (Cu Ft)",{"$f":"IF(D14=\"\",\"\",(D39*2000)/(VLOOKUP(D14,$L$11:$O$26,4,FALSE)))","v":""},"","",{"$f":"IF(G14=\"\",\"\",(G39*2000)/(VLOOKUP(G14,$L$11:$O$26,4,FALSE)))","v":""},{"$f":"IF(H14=\"\",\"\",(H39*2000)/(VLOOKUP(H14,$L$11:$O$26,4,FALSE)))","v":""},"",{"$f":"SUM(M39:R39)","v":0}]
["S.","Weight  of collected manure & bedding (tons)                                       (P + R)",null,{"$f":"IF(D14=\"\",\"\",(D31+D39))","v":""},"","","","","",null,null,"Bedding (Cu Ft)*",{"$f":"IF(D28=\"\",\"\",0.5*(M37*2000)/D30)","v":""},"","","","","",{"$f":"SUM(M40:R40)","v":0}]
["DE Updated: 5-07-15",null,null,null,null,null,null,null,"MD Updated: 3-12-10",null,null,"Total (Cu Ft)",{"$f":"IF(M35=\"\",\"\",SUM(M39:M40))","v":""},{"$f":"IF(N35=\"\",\"\",SUM(N39:N40))","v":""},"","","","",0]
["AGRICULTURAL NUTRIENT MANAGEMENT PROGRAM",null,null,null,null,null,null,null,null,null,null,"*Bedding volume has been reduced by 50% to compensate for the void space in bedding materials."]
["(301) 405-1319 ¡ FAX (301) 314-7375",null,null,null,null,null,null,null,null,null,null,"Unconfined Manure",{"$f":"IF(D14=\"\",\"\",D14)","v":""},{"$f":"IF(E14=\"\",\"\",E14)","v":""},"","","","","Total (Pasture)"]
["0116 SYMONS HALL ¡ ENVIRONMENTAL SCIENCE AND TECHNOLOGY ¡ COLLEGE PARK, MARYLAND 20742",null,null,null,null,null,null,null,null,null,null,"on Pasture (Tons)",{"$f":"D35","v":""},{"$f":"E35","v":""},"","","","",{"$f":"SUM(M44:R44)","v":0}]
["LOCAL GOVERNMENTS ¡ U.S. DEPARTMENT OF AGRICULTURE COOPERATING EQUAL OPPORTUNITY PROGRAMS"]

{"sheet":"CNMP-With Land","index":4,"n_rows":543,"n_cols":21,"rows_kept":543,"cut":false,"hidden":false,"merged":[[289,0,289,9],[280,0,280,9],[282,0,282,9],[284,0,284,9],[285,0,285,9],[185,0,185,2],[186,0,186,2],[303,0,303,9],[278,0,278,9],[209,4,209,7],[209,8,209,9],[189,8,189,9],[189,4,189,7],[185,4,185,7],[207,8,207,9],[207,4,207,7],[188,8,188,9],[205,4,205,7],[213,8,213,9],[210,8,210,9],[214,4,214,7],[214,8,214,9],[215,4,215,7],[300,0,300,9],[8,7,9,7],[8,8,8,9],[13,7,13,9],[187,8,187,9],[246,0,246,9],[250,0,250,9],[252,0,252,9],[248,0,248,9],[225,0,225,9],[212,8,212,9],[217,8,217,9],[216,4,216,7],[216,8,216,9],[217,4,217,7],[208,4,208,7],[208,8,208,9],[244,0,244,9],[211,4,211,7],[188,0,188,2],[177,8,177,9],[178,8,178,9],[183,0,183,2],[241,0,241,9],[236,0,239,9],[11,3,11,5],[168,4,168,7],[146,0,146,9],[148,7,148,9],[140,0,140,2],[127,0,127,9],[119,0,119,9],[131,0,131,9],[153,0,153,9],[121,0,121,9],[117,0,117,9],[135,0,135,9],[136,0,136,9],[152,0,152,9],[162,0,162,9],[164,0,164,9],[110,0,110,9],[166,0,166,9],[165,0,165,9],[167,0,167,9],[161,0,161,9],[163,0,163,9],[125,0,125,9],[133,0,133,9],[219,8,219,9],[233,0,233,4],[215,8,215,9],[192,0,192,9],[184,0,184,2],[187,0,187,2],[187,4,187,7],[184,8,184,9],[182,8,182,9],[183,8,183,9],[206,0,206,2],[198,8,198,9],[199,4,199,7],[199,8,199,9],[200,4,200,7],[200,8,200,9],[194,0,194,9],[198,4,198,7],[188,4,188,7],[196,0,196,9],[200,0,200,2],[204,0,204,2],[205,0,205,2],[205,8,205,9],[10,3,10,5],[274,0,274,1],[218,0,218,2],[211,0,211,2],[212,0,212,2],[213,0,213,2],[264,0,264,9],[258,0,258,9],[265,0,265,5],[218,4,218,7],[218,8,218,9],[211,8,211,9],[265,6,265,8],[256,0,256,9],[262,0,262,9],[260,0,260,9],[254,0,254,9],[270,0,270,9],[186,4,186,7],[181,4,181,7],[189,0,189,2],[123,0,123,9],[154,0,154,9],[12,3,12,5],[25,18,26,18],[40,0,40,2],[365,0,365,3],[365,4,365,7],[198,0,198,2],[186,8,186,9],[201,0,201,2],[202,0,202,2],[203,0,203,2],[201,8,201,9],[202,8,202,9],[203,8,203,9],[201,4,201,7],[202,4,202,7],[203,4,203,7],[294,0,294,9],[174,0,174,2],[175,0,175,2],[176,0,176,2],[288,0,288,9],[182,0,182,2],[286,0,286,9],[287,0,287,9],[302,0,302,9],[290,0,290,9],[306,0,306,9],[476,0,476,9],[352,0,352,9],[354,0,354,9],[353,0,353,9],[298,0,298,2],[343,0,343,9],[291,0,291,9],[296,0,296,9],[295,0,295,9],[293,0,293,9],[292,0,292,9],[377,0,377,9],[465,0,465,9],[464,0,464,9],[459,0,459,9],[430,0,430,9],[429,0,429,9],[445,0,445,1],[471,0,471,9],[472,0,472,9],[410,0,410,9],[412,0,412,9],[470,0,470,9],[445,2,445,4],[445,5,445,9],[443,0,443,9],[440,0,440,9],[433,0,433,9],[434,0,434,9],[432,0,432,9],[452,0,452,9],[461,0,461,9],[453,0,453,1],[453,2,453,4],[453,5,453,9],[454,0,454,9],[451,0,451,9],[457,0,457,4],[457,5,457,8],[466,0,466,9],[462,0,462,9],[467,0,467,9],[469,0,469,9],[468,0,468,9],[450,0,450,9],[436,0,436,9],[400,0,400,9],[398,0,398,9],[427,0,427,9],[423,0,423,9],[424,0,424,9],[419,0,419,9],[428,0,428,9],[449,0,449,1],[449,2,449,4],[449,5,449,9],[438,0,438,9],[431,0,431,9],[402,0,402,9],[421,0,421,9],[435,0,435,9],[405,0,405,9],[414,0,414,9],[418,0,418,9],[420,0,420,9],[417,0,417,9],[425,0,425,9],[416,0,416,9],[422,0,422,9],[437,0,437,9],[448,0,448,9],[463,0,463,9],[439,0,439,9],[447,0,447,9],[442,0,442,9],[444,0,444,9],[446,0,446,9],[441,0,441,1],[441,2,441,4],[441,5,441,9],[455,0,455,9],[460,0,460,9],[541,0,541,9],[543,0,543,9],[530,0,530,9],[531,0,531,9],[533,0,533,9],[535,0,535,9],[536,0,536,9],[538,0,538,9],[540,0,540,9],[542,0,542,9],[532,0,532,9],[534,0,534,9],[539,0,539,9],[537,0,537,9],[486,0,486,9],[528,0,528,9],[529,0,529,9],[516,0,516,9],[493,0,493,9],[502,0,502,9],[507,0,507,9],[526,0,526,9],[515,0,515,9],[518,0,518,9],[520,0,520,9],[521,0,521,9],[519,0,519,9],[522,0,522,9],[523,0,523,9],[506,0,506,9],[525,0,525,9],[510,0,510,9],[509,0,509,9],[508,0,508,9],[517,0,517,9],[514,0,514,9],[512,0,512,9],[513,0,513,9],[527,0,527,9],[500,0,500,9],[503,0,503,9],[504,0,504,9],[505,0,505,9],[511,0,511,9],[501,0,501,9],[496,0,496,9],[488,0,488,9],[492,0,492,9],[490,0,490,9],[491,0,491,9],[495,0,495,6],[495,7,495,9],[489,0,489,9],[494,0,494,9],[499,0,499,9],[498,0,498,9],[497,0,497,9],[483,0,483,9],[485,0,485,9],[481,0,481,9],[479,0,479,9],[475,0,475,9],[482,0,482,9],[484,0,484,9],[473,0,473,9],[478,0,478,9],[480,0,480,9],[477,0,477,9],[474,0,474,9],[487,0,487,9],[3,14,3,15],[3,0,3,9],[14,1,14,2],[28,2,28,7],[32,2,32,7],[4,14,6,15],[38,0,38,9],[44,3,44,7],[26,2,26,7],[6,0,6,2],[6,3,6,7],[8,0,8,2],[28,0,28,1],[14,7,14,9],[24,0,24,1],[44,0,44,1],[29,2,29,7],[31,2,31,7],[4,4,4,6],[36,2,36,7],[12,1,12,2],[10,1,10,2],[18,1,18,5],[8,3,8,5],[0,0,0,4],[0,5,0,9],[1,5,1,9],[1,0,1,4],[115,0,115,9],[111,0,111,9],[109,0,109,9],[105,0,105,9],[107,0,107,9],[22,1,22,5],[21,1,21,5],[103,0,103,9],[2,0,2,9],[11,1,11,2],[42,0,42,7],[113,0,113,9],[20,1,20,5],[19,1,19,5],[33,2,33,7],[35,0,35,1],[9,0,9,6],[31,0,31,1],[25,8,25,9],[6,18,7,18],[6,19,7,19],[6,20,7,20],[46,0,46,9],[16,8,16,9],[22,8,22,9],[21,8,21,9],[20,8,20,9],[19,8,19,9],[18,8,18,9],[17,8,17,9],[22,6,22,7],[21,6,21,7],[20,6,20,7],[19,6,19,7],[18,6,18,7],[17,6,17,7],[16,6,16,7],[35,2,35,7],[24,2,24,4],[16,1,16,5],[17,1,17,5],[25,17,26,17],[24,8,24,9],[132,0,132,9],[175,8,175,9],[128,0,128,9],[129,0,129,9],[156,0,156,9],[158,0,158,9],[160,0,160,9],[138,0,138,2],[142,0,142,3],[144,0,144,4],[169,8,169,9],[170,0,170,2],[173,0,173,2],[170,4,170,7],[169,0,169,2],[175,4,175,7],[173,8,173,9],[174,8,174,9],[148,0,148,3],[150,0,150,9],[168,8,168,9],[168,0,168,2],[169,4,169,7],[170,8,170,9],[180,8,180,9],[177,4,177,7],[178,4,178,7],[179,4,179,7],[180,4,180,7],[181,8,181,9],[179,8,179,9],[185,8,185,9],[181,0,181,2],[177,0,177,2],[178,0,178,2],[179,0,179,2],[180,0,180,2],[171,0,171,2],[172,0,172,2],[171,4,171,7],[172,4,172,7],[176,4,176,7],[171,8,171,9],[172,8,172,9],[176,8,176,9],[173,4,173,7],[174,4,174,7],[206,8,206,9],[199,0,199,2],[204,4,204,7],[204,8,204,9],[206,4,206,7],[283,0,283,9],[221,0,221,9],[223,0,223,9],[272,0,272,9],[266,0,266,9],[276,0,276,9],[242,0,242,9],[230,0,230,2],[230,6,230,7],[231,0,231,2],[231,6,231,7],[208,0,208,2],[209,0,209,2],[212,4,212,7],[213,4,213,7],[227,0,227,2],[227,6,227,7],[228,0,228,2],[228,6,228,7],[407,0,407,9],[406,0,406,9],[370,0,370,9],[376,0,376,9],[373,0,373,9],[372,0,372,9],[332,0,332,1],[332,3,332,4],[384,0,384,2],[346,3,346,4],[342,0,342,9],[384,3,384,9],[382,0,382,9],[394,0,394,9],[386,0,386,3],[380,0,381,2],[345,0,345,9],[403,0,403,9],[404,0,404,9],[391,0,391,9],[380,3,381,9],[389,0,389,9],[396,0,396,4],[397,0,397,9],[333,14,333,17],[48,17,48,19],[355,1,355,9],[356,1,356,3],[356,4,356,6],[356,7,356,9],[357,1,357,3],[357,4,357,6],[357,7,357,9],[169,11,169,14],[234,0,234,9],[281,0,281,9],[145,0,145,9],[159,0,159,9],[332,14,332,17],[207,0,207,2],[217,0,217,2],[219,4,219,7],[182,4,182,7],[183,4,183,7],[184,4,184,7],[351,0,351,9],[347,0,347,9],[308,0,308,2],[229,0,229,2],[229,6,229,7],[210,0,210,2],[214,0,214,2],[210,4,210,7],[216,0,216,2],[215,0,215,2],[219,0,219,2],[378,0,378,9],[368,0,368,9],[369,0,369,9],[371,0,371,9],[360,7,360,9],[361,1,361,3],[361,4,361,6],[361,7,361,9],[366,1,366,7],[363,0,363,2],[363,3,363,5],[375,0,375,9],[360,1,360,3],[360,4,360,6],[323,0,323,2],[324,0,324,2],[325,0,325,2],[326,0,326,2],[327,0,327,2],[328,0,328,2],[340,0,340,2],[344,0,344,9],[359,7,359,9],[339,0,339,2],[338,0,338,2],[337,0,337,2],[336,0,336,2],[329,0,329,8],[334,0,335,2],[358,1,358,3],[358,4,358,6],[358,7,358,9],[349,0,349,9],[359,1,359,3],[359,4,359,6],[341,0,341,8],[309,0,309,2],[310,0,310,2],[311,0,311,2],[312,0,312,2],[313,0,313,2],[314,0,314,2],[320,0,320,2],[321,1,321,2],[322,0,322,2]]}
[]
[{"$f":"IF('CNMP-With Land'!$A$1=\"Dover Field Office\",Data!A4,IF('CNMP-With Land'!$A$1=\"Newark Field office\",Data!A3,IF('CNMP-With Land'!$A$1=\"Georgetown Field Office\",Data!A5,\" \")))","v":" "}]
[]
["Comprehensive Nutrient Management Plan With Land\nMulti-Animal (Nutrient Management Plan)",null,null,null,null,null,null,null,null,null,null,null,null,null,"Instructions"]
[null,null,null,3," Year Plan Developed For:",null,null,null,null,null,null,null,null,null,"You must choose a local office.\nFill in all yellow highlighted boxes.\nYou must use Dry-Stack Calc WL to\npopulate blue boxes."]
[]
["Plan Developed For:",null,null,null,null,null,null,null,null,null,null,null,null,null,null,null,null,null,"Consultant No.","Watersheds","Delaware Watersheds"]
[null,null,null,null,null,null,null,null,null,null,null,null,null,null,null,"Drop Down Boxes"]
["Owner/Operator Name:",null,null,null,null,null,null,"Tract Number","Production Area Entrance",null,null,null,null,null,null,"Fill in information",null,null,"Active County","Active County","Active Counties"]
[null,null,null,null,null,null,null,null,"Latitude°","Longitude°",null,null,null,null,null,"Automatic Calculation",null,null,{"$f":"Data!D8","v":0},{"$f":"Data!F56","v":" "},"Statewide"]
["Address:","Line 1",null,null,null,null,null,null,null,null,null,null,null,null,null,null,null,null,{"$f":"Data!E9","v":0}," "]
[null,"Line 2",null,null,null,null,null,null,null,null,null,null,null,null,null,"Red Dot indicates comment.",null,null,{"$f":"Data!E10","v":" "},{"$f":"Data!F59","v":" "},{"$f":"Data!A58","v":" Not Applicable"}]
[null,"City, State  ZIP",null,null,null,null,null,null,null,null,null,null,null,null,null,null,null,null,{"$f":"Data!E11","v":" "},{"$f":"Data!F60","v":" "},{"$f":"Data!A59","v":" 1  Naamans Creek"}]
[null,null,null,null,null,null,null,"* Show any additional Lat/Longs on Aerial Map.",null,null,null,null,null,null,null,null,null,"Years in Plan",{"$f":"Data!E12","v":" "},{"$f":"Data!F61","v":" "},{"$f":"Data!A60","v":" 2  Shellpot Creek"}]
["Phone:",null,null,null,"Fax:",null,"E-mail:",null,null,null,null,null,null,null,null,null,null,null,{"$f":"Data!E13","v":" "},{"$f":"Data!F62","v":" "},{"$f":"Data!A61","v":" 3  Brandywine Creek"}]
[null,null,null,null,null,null,null,null,null,null,null,null,null,null,null,null,null,3,{"$f":"Data!E14","v":" "},{"$f":"Data!F63","v":" "},{"$f":"Data!A62","v":" 4  Red Clay Creek"}]
["Farm No:","Tracts:",null,null,null,null,"Production / LT Area:",null,"Watershed:",null,null,null,null,null,null,null,null,5,{"$f":"Data!E15","v":" "},{"$f":"Data!F64","v":" "},{"$f":"Data!A63","v":" 5  White Clay Creek"}]
[null,null,null,null,null,null,null,null,null,null,null,null,null,null,null,null,null,null,{"$f":"Data!E16","v":" "},{"$f":"Data!F65","v":" "},{"$f":"Data!A64","v":" 6  Christina River"}]
[null,null,null,null,null,null,null,null,null,null,null,null,null,null,null,null,null,null,{"$f":"Data!E17","v":" "},{"$f":"Data!F66","v":" "},{"$f":"Data!A65","v":" 7  Delaware River"}]
[null,null,null,null,null,null,null,null,null,null,null,null,null,null,null,null,null,"Prod/LT Area",{"$f":"Data!E18","v":" "},{"$f":"Data!F67","v":" "},{"$f":"Data!A66","v":" 8  Army Creek"}]
[null,null,null,null,null,null,null,null,null,null,null,null,null,null,null,null,null,null,{"$f":"Data!E19","v":" "},{"$f":"Data!F68","v":" "},{"$f":"Data!A67","v":" 9  Red Lion Creek"}]
[null,null,null,null,null,null,null,null,null,null,null,null,null,null,null,null,null,"Production",{"$f":"Data!E20","v":" "},{"$f":"Data!F69","v":" "},{"$f":"Data!A68","v":"10  Dragon Run Creek"}]
[null,null,null,null,null,null,null,null,null,null,null,null,null,null,null,null,null,"Land Treatment",null,{"$f":"Data!F70","v":" "},{"$f":"Data!A69","v":"11  C&D Canal East"}]
[null,null,null,null,null,null,null,null,null,null,null,null,null,null,null,null,null,"Prod / Land Treatment",null,{"$f":"Data!F71","v":" "},{"$f":"Data!A70","v":"12  Appoquinimink River"}]
["Type of Operation:",null,null,null,null,"Capacity:",null,null,"Date of Farm Visit",null,null,null,null,null,null,null,null,null,null,{"$f":"Data!F72","v":" "},{"$f":"Data!A71","v":"13  Blackbird Creek"}]
[null,null,null,null,null,null,null,null,null,null,null,null,null,null,null,null,null,"Field Office","Field Office to Contact:",{"$f":"Data!F73","v":" "},{"$f":"Data!A72","v":"14  Delaware Bay"}]
[null,null,"I certify that I have reviewed this CNMP for technical adequacy:",null,null,null,null,null,null,null,null,null,null,null,null,null,null,null,null,{"$f":"Data!F74","v":" "},{"$f":"Data!A73","v":"15  Smyrna River"}]
[null,null,null,null,null,null,null,null,null,null,null,null,null,null,null,null,null,null,null,{"$f":"Data!F75","v":" "},{"$f":"Data!A74","v":"16  Leipsic River"}]
["Signature",null,null,null,null,null,null,null,"Date",null,null,null,null,null,null,null,null,{"$f":"Data!D24","v":"Dover Field Office"},"the NRCS Dover Field Office.",{"$f":"Data!F76","v":" "},{"$f":"Data!A75","v":"17  Little Creek"}]
[null,null,"Certified Conservation Planner",null,null,null,null,null,null,null,null,null,null,null,null,null,null,{"$f":"Data!D25","v":"Newark Field Office"},"the NRCS Newark Field Office.",{"$f":"Data!F77","v":" "},{"$f":"Data!A76","v":"18  St. Jones River"}]
[null,null,null,null,null,null,null,null,null,null,null,null,null,null,null,null,null,{"$f":"Data!D26","v":"Georgetown Field Office"},"the NRCS Georgetown Field Office.",{"$f":"Data!F78","v":" "},{"$f":"Data!A77","v":"19  Murderkill River"}]
["Signature",null,null,null,null,null,null,null,"Date",null,null,null,null,null,null,null,null,null,null,{"$f":"Data!F79","v":" "},{"$f":"Data!A78","v":"20  Mispillion River"}]
[null,null,"Certified Nutrient Management Specialist",null,null,null,null,null,null,null,null,null,null,null,null,null,null,null,null,{"$f":"Data!F80","v":" "},{"$f":"Data!A79","v":"21  Cedar Creek"}]
[null,null,"or Delaware Certified Consultant Number",null,null,null,null,null,null,null,null,null,null,null,null,null,null,null,null,{"$f":"Data!F81","v":" "},{"$f":"Data!A80","v":"22  Broadkill River"}]
[null,null,null,null,null,null,null,null,null,null,null,null,null,null,null,null,null,null,null,{"$f":"Data!F82","v":" "},{"$f":"Data!A81","v":"23  Elk Creek"}]
["Signature",null,null,null,null,null,null,null,"Date",null,null,null,null,null,null,null,null,null,null,{"$f":"Data!F83","v":" "},{"$f":"Data!A82","v":"24  Perch Creek"}]
[null,null,"Certified Manure and Wastewater Handling and Storage Specialist",null,null,null,null,null,null,null,null,null,null,null,null,null,null,null,null,{"$f":"Data!F84","v":" "},{"$f":"Data!A83","v":"25  C&D Canal West"}]
[null,null,null,null,null,null,null,null,null,null,null,null,null,null,null,null,null,null,null,{"$f":"Data!F85","v":" "},{"$f":"Data!A84","v":"26  Bohemia Creek"}]
["Owner/Operator: As the owner/operator and decision maker of this CNMP, I certify that I have been involved in the development of this plan.  I agree that I fully understand the content and requirements of this plan.  It is my intention to implement this plan as required by Section 2220, Title 3 of the Delaware Code, Chapter 22.  I agree to notify the Delaware Nutrient Management Commission and NRCS of any changes in the plan or of any circumstances beyond my control that prevent me from implementation and fulfilling its intent.  I am aware that I am responsible for operation, maintenance, and recordkeeping, and submitting an annual report to the Delaware Nutrient Management Commission.",null,null,null,null,null,null,null,null,null,null,null,null,null,null,null,null,null,null,{"$f":"Data!F86","v":" "},{"$f":"Data!A85","v":"27  Sassafras River"}]
[null,null,null,null,null,null,null,null,null,null,null,null,null,null,null,null,null,null,null,{"$f":"Data!F87","v":" "},{"$f":"Data!A86","v":"28  Chester River"}]
["Nutrient Generator Number:",null,null,null,null,null,null,null,null,null,null,null,null,null,null,null,null,null,null,{"$f":"Data!F88","v":" "},{"$f":"Data!A87","v":"29  Choptank River"}]
[null,null,null,null,null,null,null,null,null,null,null,null,null,null,null,null,null,null,null,{"$f":"Data!F89","v":" "},{"$f":"Data!A88","v":"30  Marshyhope Creek"}]
["Unless the farming operation referenced in this plan increases animal units by 25%, this plan is valid until",null,null,null,null,null,null,null,null,null,null,null,null,null,null,null,null,null,null,{"$f":"Data!F90","v":" "},{"$f":"Data!A89","v":"31  Nanticoke River"}]
[null,null,null,null,null,null,null,null,null,null,null,null,null,null,null,null,null,null,null,{"$f":"Data!F91","v":" "},{"$f":"Data!A90","v":"32  Gum Branch"}]
["Signature",null,null,null,null,null,null,null,"Date",null,null,null,null,null,null,null,null,null,null,{"$f":"Data!F92","v":" "},{"$f":"Data!A91","v":"33  Gravelly Branch"}]
[null,null,null,null,null,null,null,null,null,null,null,null,null,null,null,null,null,null,null,{"$f":"Data!F93","v":" "},{"$f":"Data!A92","v":"34  Deep Creek"}]
["Table of Contents",null,null,null,null,null,null,null,null,null,null,null,null,null,null,null,null,null,null,{"$f":"Data!F94","v":" "},{"$f":"Data!A93","v":"35  Broad Creek"}]
[null,null,null,null,null,null,null,null,null,null,null,null,null,null,null,null,null,null,null,null,{"$f":"Data!A94","v":"36  Wicomico"}]
[null,null,null,null,null,null,null,null,null,null,null,null,null,null,null,null,null,{"$f":"Data!A22","v":"Description of Operation"},null,null,{"$f":"Data!A95","v":"37  Pocomoke River"}]
["Comprehensive Nutrient Management Plan ………………………...………………………………………..…...",null,null,null,null,null,null,null,null,1,null,null,null,null,null,null,null,{"$f":"Data!A23","v":"Poultry Type"},{"$f":"Data!B23","v":"Poultry Integrator"},"Composter Type",{"$f":"Data!A96","v":"38  Lewes-Rehoboth Canal"}]
[null,null,null,null,null,null,null,null,null,null,null,null,null,null,null,null,null,{"$f":"Data!A24","v":0},{"$f":"Data!B24","v":0},null,{"$f":"Data!A97","v":"39  Rehoboth Bay"}]
["Table of Contents…………………………………………..……………………...………………………...……..…..",null,null,null,null,null,null,null,null,2,null,null,null,null,null,null,null,{"$f":"Data!A25","v":"Broiler"},{"$f":"Data!B25","v":"Allen Family Foods, Inc."},"Bin",{"$f":"Data!A98","v":"40  Indian River"}]
[null,null,null,null,null,null,null,null,null,null,null,null,null,null,null,null,null,{"$f":"Data!A26","v":"Roaster"},{"$f":"Data!B26","v":"Amick Farms, LLC"},"Channel",{"$f":"Data!A99","v":"41  Iron Branch"}]
["SECTION 1: BACKGROUND AND SITE INFORMATION …………...……………………......…………..……....",null,null,null,null,null,null,null,null,3,null,null,null,null,null,null,null,{"$f":"Data!A27","v":"Cornish"},{"$f":"Data!B27","v":"Mountaire Farms, Inc."},null,{"$f":"Data!A100","v":"42  Indian River Bay"}]
["Introduction to the Comprehensive Nutrient Management Plan (CNMP)",null,null,null,null,null,null,null,null,null,null,null,null,null,null,null,null,{"$f":"Data!A28","v":"Pullet-6Wk"},{"$f":"Data!B28","v":"Perdue Farms, Inc."},null,{"$f":"Data!A101","v":"43  Buntings Branch"}]
["CNMP Purpose and Condition",null,null,null,null,null,null,null,null,null,null,null,null,null,null,null,null,{"$f":"Data!A29","v":"Pullet-6Wk"},{"$f":"Data!B29","v":"Tyson Foods, inc."},null,{"$f":"Data!A102","v":"44  Assawoman"}]
["Nitrogen and Phosphorus Movement and Water Quality",null,null,null,null,null,null,null,null,null,null,null,null,null,null,null,null,{"$f":"Data!A30","v":"Breeder"},{"$f":"Data!B30","v":0},null,{"$f":"Data!A103","v":"45  Little Assawoman"}]
["Regulatory Conditions",null,null,null,null,null,null,null,null,null,null,null,null,null,null,null,null,{"$f":"Data!A31","v":"Layer"},{"$f":"Data!B31","v":0},null,{"$f":"Data!A104","v":0}]
["Overview of Operating System",null,null,null,null,null,null,null,null,null,null,null,null,null,null,null,null,{"$f":"Data!A32","v":"Turkey"},{"$f":"Data!B32","v":0},null,{"$f":"Data!A105","v":0}]
["Natural Resource Concerns",null,null,null,null,null,null,null,null,null,null,null,null,null,null,null,null,{"$f":"Data!A33","v":0},{"$f":"Data!B33","v":0}]
[null,null,null,null,null,null,null,null,null,null,null,null,null,null,null,null,null,null,null,null,{"$f":"Data!A104","v":0}]
["SECTION 2: MANURE AND ANIMAL WASTE HANDLING AND STORAGE ………..………………..………....",null,null,null,null,null,null,null,null,5]
["Maps of Production Area"]
["Production Area Conservation Practices"]
["Additional Production Area Conservation Practices",null,null,null,null,null,null,null,null,null,null,null,null,null,null,null,null,{"$f":"Data!A35","v":"DNMC-authorized"},{"$f":"Data!B35","v":"Method of Routine On-farm"},{"$f":"Data!C35","v":"Method for Routine Animal"}]
["Manure Storage",null,null,null,null,null,null,null,null,null,null,null,null,null,null,null,null,{"$f":"Data!A36","v":"Alternative  Use"},{"$f":"Data!B36","v":"Manure Storage"},{"$f":"Data!C36","v":" Mortality Disposal"}]
["Method of Routine On-Farm Storage",null,null,null,null,null,null,null,null,null,null,null,null,null,null,null,null,{"$f":"Data!A35","v":"DNMC-authorized"}]
["Temporary Field Staging",null,null,null,null,null,null,null,null,null,null,null,null,null,null,null,null,{"$f":"Data!A36","v":"Alternative  Use"},{"$f":"Data!B38","v":"Not Applicable"},{"$f":"Data!C38","v":"Not Applicable"}]
["Animal Inventory and Confinement",null,null,null,null,null,null,null,null,null,null,null,null,null,null,null,null,{"$f":"Data!A37","v":0},{"$f":"Data!B39","v":"Roofed Manure Structure"},{"$f":"Data!C39","v":"Composting"}]
["Manure Generated",null,null,null,null,null,null,null,null,null,null,null,null,null,null,null,null,{"$f":"Data!A38","v":"Not Applicable"},{"$f":"Data!B40","v":"Bunker Structure"},{"$f":"Data!C40","v":"Incineration"}]
["Manure Utilization"]
["Method For Routine Animal Mortality Disposal",null,null,null,null,null,null,null,null,null,null,null,null,null,null,null,null,{"$f":"Data!A39","v":"Coastal Supply Company, Inc."},{"$f":"Data!B41","v":"Immediately Hauled Away"},{"$f":"Data!C41","v":"In-house Unit"}]
["Utilization of Excess Manure"]
[]
["SECTION 3: FARMSTEAD SAFETY AND SECURITY………..………………….....…..….........................……",null,null,null,null,null,null,null,null,10,null,null,null,null,null,null,null,{"$f":"Data!A40","v":"Eastern Shore Forest Products, Inc."},{"$f":"Data!B42","v":"In-Field (Covered)"},{"$f":"Data!C42","v":"Contract Hauler"}]
["CNMP Emergency Response",null,null,null,null,null,null,null,null,null,null,null,null,null,null,null,null,{"$f":"Data!A41","v":"Perdue AgriRecycle, LLC"},{"$f":"Data!B43","v":"In-Field (Uncovered)"},{"$f":"Data!C43","v":"Rendering"}]
["Fires in Manure Storage Structures",null,null,null,null,null,null,null,null,null,null,null,null,null,null,null,null,{"$f":"Data!A42","v":"Pennsylvania Mushroom Farms/Composters"},{"$f":"Data!B44","v":"In-field (On Pad)"},{"$f":"Data!C44","v":"Other"}]
["Spills and Discharges",null,null,null,null,null,null,null,null,null,null,null,null,null,null,null,null,{"$f":"Data!A43","v":"Quality Mulch Products, LLC"},{"$f":"Data!B45","v":"In-field (On Pad/Covered)"},{"$f":"Data!C45","v":"None"}]
["Safety",null,null,null,null,null,null,null,null,null,null,null,null,null,null,null,null,{"$f":"Data!A44","v":0},{"$f":"Data!B46","v":"In Poultry House"},{"$f":"Data!C46","v":0}]
["Safety",null,null,null,null,null,null,null,null,null,null,null,null,null,null,null,null,{"$f":"Data!A45","v":0},{"$f":"Data!B47","v":"Other"},{"$f":"Data!C47","v":0}]
["Chemical Handling",null,null,null,null,null,null,null,null,null,null,null,null,null,null,null,null,{"$f":"Data!A46","v":0},{"$f":"Data!B48","v":0},{"$f":"Data!C48","v":0}]
[null,null,null,null,null,null,null,null,null,null,null,null,null,null,null,null,null,{"$f":"Data!A47","v":0},{"$f":"Data!B49","v":0},{"$f":"Data!C49","v":0}]
["SECTION 4: LAND TREATMENT CONSERVATION PRACTICES………..………………..…………………...…",null,null,null,null,null,null,null,null,11,null,null,null,null,null,null,null,{"$f":"Data!A48","v":0},{"$f":"Data!B50","v":0},{"$f":"Data!C50","v":0}]
[null,null,null,null,null,null,null,null,null,null,null,null,null,null,null,null,null,{"$f":"Data!A49","v":0},{"$f":"Data!B51","v":0},{"$f":"Data!C51","v":0}]
["SECTION 5: SOIL AND RISK ASSESSMENT ANALYSIS……………….....……………………………………..…",null,null,null,null,null,null,null,null,12,null,null,null,null,null,null,null,{"$f":"Data!A50","v":0},{"$f":"Data!B52","v":0},{"$f":"Data!C52","v":0}]
["Soils and Soil Descriptions",null,null,null,null,null,null,null,null,null,null,null,null,null,null,null,null,{"$f":"Data!A51","v":0}]
["Phosphorus Site Index (PSI)",null,null,null,null,null,null,null,null,null,null,null,null,null,null,null,null,{"$f":"Data!A52","v":0}]
[null,null,null,null,null,null,null,null,null,null,null,null,null,null,null,null,null,{"$f":"Data!A53","v":0}]
["SECTION 6: NUTRIENT MANAGEMENT……………….....……………………………...………………………..…",null,null,null,null,null,null,null,null,13]
["Soil, Plant, and  Manure Analysis"]
["Setbacks"]
[]
["SECTION 7: FEED MANAGEMENT……………….....……………………..……………...………………...........…",null,null,null,null,null,null,null,null,14]
[]
[]
["SECTION 8: OTHER UTILIZATION OPTIONS……………….....…………………………………………..........…",null,null,null,null,null,null,null,null,14]
[]
[]
["SECTION 9: RECORDING KEEPING……………….....……………………………...………………………..…..…",null,null,null,null,null,null,null,null,15]
[]
[]
[]
[]
["SECTION 1: BACKGROUND AND SITE INFORMATION"]
[]
["Introduction to the Comprehensive Nutrient Management Plan (CNMP)"]
[]
["CNMP Purpose and Conditions"]
[]
["The Comprehensive Nutrient Management Plan (CNMP) is a conservation system for your Animal Feeding Operation (AFO).  It is designed to address, at a minimum, the soil erosion and water quality concerns on your operation."]
["Animal waste, routine mortality, and catastrophic mortality shall be stored and disposed of in a manner that prevents contamination of Waters of the State or creation of a public health hazard."]
["Nutrient management manages the source, rate, form, timing, placement, and utilization of manure, rather than disposing of it as a waste. The goal is to effectively and efficiently use nutrient resources derived from animal manure to adequately supply to soils and plants, to produce food, forage, fiber, and cover while minimizing environmental impacts."]
[]
["Nitrogen and Phosphorus Movement and Water Quality"]
[]
["The two major nutrients of concern are phosphorus and nitrogen because they can impact water quality, human health, and animal health.  Nitrogen as nitrate is water-soluble and has the potential to leach out of the root zone where it can contaminate ground water or enter subsurface drains and be transported directly to surface waters.  Nitrate-N above 10 parts per million (ppm) in water is a health risk.  Concentrations above this level can cause fatality in infants and older adults and also cause cattle abortion.  Surface applied nitrogen that isn’t incorporated can be lost to the atmosphere as gaseous ammonia nitrogen and nitrous oxide, which can lead to a loss of valuable crop nutrients and contribute to the greenhouse effect and to acid rain."]
[]
["The primary way phosphorus can get into water bodies is through runoff and erosion, because phosphorus is attached to eroded soil particles.  This is especially true if excess phosphorus is surface applied, as either manure or commercial fertilizer, or if heavy rains occur just after spreading.  Controlling erosion limits the amount of phosphorus lost to the environment, keeping it available for crop needs.  Phosphorus can also get into surface water by being carried in solution as soluble phosphorus.  This soluble form is highly bioavailable and can contribute significantly to eutrophication even at low levels.  Phosphorus also tends to accumulate in the soil.  This reserve increases every year that phosphorus is applied at rates in excess of the agronomic needs of the crops."]
[]
["Increased phosphorus content in surface waters leads to accelerated weed and algae growth, causing depressed oxygen levels that impair aquatic life, leads to eutrophication of water bodies, and can cause odors or bad taste. Excess algae growth has also been associated with toxic dynoflagellates, such as pfiesteria piscicida."]
[]
["This CNMP is designed to minimize the transport of nitrogen and phosphorus to surface waters, to maximize the efficient use of valuable nutrient resources, and to assure compliance with state and federal regulations."]
[]
["Regulatory Conditions"]
[]
["The following Delaware laws and regulations apply to this CNMP:"]
[]
["The Delaware Nutrient Management Program was established in June 1999 as a result of the Delaware Nutrient Management Law.  Refer to Section 2220, Title 3 of the Delaware Code, Chapter 22, Nutrient Management."]
[]
[]
[]
[]
[]
["Overview of Operating System"]
[]
[]
[]
[]
["Existing Pad/s:",null,null,null,"Yes",null,"No","Number:",null,null,null,false,false]
[]
["Existing Manure Storage:",null,null,null,"Yes",null,"No","Number:",null,null,null,false,false]
[]
["Is this adequate for the existing operation?",null,null,null,"Yes",null,"No",null,null,null,null,false,false]
[]
["If No, describe what additional structures are needed?"]
[]
[]
[]
["Do you plan to expand your operation?",null,null,null,"Yes",null,"No ","If Yes, explain future plans.",null,null,null,false,false]
[]
[]
[]
["Natural Resource Concerns"]
[]
[]
[]
["SECTION 2: MANURE AND ANIMAL WASTE HANDLING AND STORAGE"]
[]
["This section addresses the components and activities associated with the production facility, including manure storage, the handling of dead animals, and any areas used to facilitate the transfer of manure.  In most situations, this will require a combination of conservation practices and management activates to meet the production needs of the AFO operation and the environmental concerns associated with the production facility.  Approved methods will prevent runoff from coming into contact with manure and assure animals do not come into direct contact with Waters of the State."]
[]
["Maps of Production Area"]
[]
["Aerial photographs pertaining to the production area of this plan show property boundaries, and the location of sites subject to pollution, such as ditches, ponds, streams, and wetlands.   The plan map also indicates barns, and all conservation practices, such as manure storage, pads, and composting areas.  See attached map(s)."]
[]
["Production Area Conservation Practices"]
[]
["The table below is your Conservation Practice and Facility Implementation Schedule.  The practices listed in this schedule must be implemented according to the dates indicated.  If these practices are not implemented according to schedule, please contact the CNMP Planner responsible for developing this plan."]
[]
["Identified Resource Concerns",null,null,"Practice Code","Description of Practice",null,null,null,"Date to be\nImplemented"]
[null,null,null,309,{"$f":"IF(D170=\"\",\"\",(VLOOKUP(D170,Con_Prac!$A$3:$B$38,2,FALSE)))","v":"Agricultural Chemical Handling Facility"}]
[null,null,null," ",{"$f":"IF(D171=\"\",\"\",(VLOOKUP(D171,Con_Prac!$A$3:$B$38,2,FALSE)))","v":" "}]
[null,null,null," ",{"$f":"IF(D172=\"\",\"\",(VLOOKUP(D172,Con_Prac!$A$3:$B$38,2,FALSE)))","v":" "}]
[null,null,null," ",{"$f":"IF(D173=\"\",\"\",(VLOOKUP(D173,Con_Prac!$A$3:$B$38,2,FALSE)))","v":" "}]
[null,null,null," ",{"$f":"IF(D174=\"\",\"\",(VLOOKUP(D174,Con_Prac!$A$3:$B$38,2,FALSE)))","v":" "}]
[null,null,null," ",{"$f":"IF(D175=\"\",\"\",(VLOOKUP(D175,Con_Prac!$A$3:$B$38,2,FALSE)))","v":" "}]
[null,null,null," ",{"$f":"IF(D176=\"\",\"\",(VLOOKUP(D176,Con_Prac!$A$3:$B$38,2,FALSE)))","v":" "}]
[null,null,null," ",{"$f":"IF(D177=\"\",\"\",(VLOOKUP(D177,Con_Prac!$A$3:$B$38,2,FALSE)))","v":" "}]
[null,null,null," ",{"$f":"IF(D178=\"\",\"\",(VLOOKUP(D178,Con_Prac!$A$3:$B$38,2,FALSE)))","v":" "}]
[null,null,null," ",{"$f":"IF(D179=\"\",\"\",(VLOOKUP(D179,Con_Prac!$A$3:$B$38,2,FALSE)))","v":" "}]
["Identified Resource Concerns",null,null,"Practice Code","Description of Practice",null,null,null,"Reason for Not Scheduling"]
[null,null,null," ",{"$f":"IF(D181=\"\",\"\",(VLOOKUP(D181,Con_Prac!$A$3:$B$38,2,FALSE)))","v":" "}]
[null,null,null," ",{"$f":"IF(D182=\"\",\"\",(VLOOKUP(D182,Con_Prac!$A$3:$B$38,2,FALSE)))","v":" "}]
[null,null,null," ",{"$f":"IF(D183=\"\",\"\",(VLOOKUP(D183,Con_Prac!$A$3:$B$38,2,FALSE)))","v":" "}]
[null,null,null," ",{"$f":"IF(D184=\"\",\"\",(VLOOKUP(D184,Con_Prac!$A$3:$B$38,2,FALSE)))","v":" "}]
[null,null,null," ",{"$f":"IF(D185=\"\",\"\",(VLOOKUP(D185,Con_Prac!$A$3:$B$38,2,FALSE)))","v":" "}]
[null,null,null," ",{"$f":"IF(D186=\"\",\"\",(VLOOKUP(D186,Con_Prac!$A$3:$B$38,2,FALSE)))","v":" "}]
[null,null,null," "]
[null,null,null," ",{"$f":"IF(D188=\"\",\"\",(VLOOKUP(D188,Con_Prac!$A$3:$B$38,2,FALSE)))","v":" "}]
[null,null,null," ",{"$f":"IF(D189=\"\",\"\",(VLOOKUP(D189,Con_Prac!$A$3:$B$38,2,FALSE)))","v":" "}]
[null,null,null," ",{"$f":"IF(D190=\"\",\"\",(VLOOKUP(D190,Con_Prac!$A$3:$B$38,2,FALSE)))","v":" "}]
[]
[]
["Additional Production Area Conservation Practices"]
[]
["This section addresses additional practices not already addressed above, such as critical area planting, filter strips, and windbreaks. “Good Housekeeping” practices will be completed in the production area.  This includes such items as sweeping excess manure from pads following manure removal and maintaining a healthy, vigorous stand of grass for filtering storm water run-off. "]
[]
["Identified Resource Concerns/Recommended Practice(s); The Producer is not required to implement these practices to meet CNMP requirements."]
[]
["Identified Resource Concern",null,null,"Practice Code","Description of Practice",null,null,null,"Date to be Implemented"]
[null,null,null," ",{"$f":"IF(D200=\"\",\"\",(VLOOKUP(D200,Con_Prac!$A$3:$B$36,2,FALSE)))","v":" "}]
[null,null,null," ",{"$f":"IF(D201=\"\",\"\",(VLOOKUP(D201,Con_Prac!$A$3:$B$36,2,FALSE)))","v":" "}]
[null,null,null," ",{"$f":"IF(D202=\"\",\"\",(VLOOKUP(D202,Con_Prac!$A$3:$B$36,2,FALSE)))","v":" "}]
[null,null,null," ",{"$f":"IF(D203=\"\",\"\",(VLOOKUP(D203,Con_Prac!$A$3:$B$36,2,FALSE)))","v":" "}]
[null,null,null," ",{"$f":"IF(D204=\"\",\"\",(VLOOKUP(D204,Con_Prac!$A$3:$B$36,2,FALSE)))","v":" "}]
[null,null,null," ",{"$f":"IF(D205=\"\",\"\",(VLOOKUP(D205,Con_Prac!$A$3:$B$36,2,FALSE)))","v":" "}]
[null,null,null," ",{"$f":"IF(D206=\"\",\"\",(VLOOKUP(D206,Con_Prac!$A$3:$B$36,2,FALSE)))","v":" "}]
[null,null,null," ",{"$f":"IF(D207=\"\",\"\",(VLOOKUP(D207,Con_Prac!$A$3:$B$36,2,FALSE)))","v":" "}]
[null,null,null," ",{"$f":"IF(D208=\"\",\"\",(VLOOKUP(D208,Con_Prac!$A$3:$B$36,2,FALSE)))","v":" "}]
[null,null,null," ",{"$f":"IF(D209=\"\",\"\",(VLOOKUP(D209,Con_Prac!$A$3:$B$36,2,FALSE)))","v":" "}]
["Identified Resource Concern",null,null,"Practice Code","Description of Practice",null,null,null,"Reason for Not Scheduling"]
[null,null,null," ",{"$f":"IF(D211=\"\",\"\",(VLOOKUP(D211,Con_Prac!$A$3:$B$36,2,FALSE)))","v":" "}]
[null,null,null," ",{"$f":"IF(D212=\"\",\"\",(VLOOKUP(D212,Con_Prac!$A$3:$B$36,2,FALSE)))","v":" "}]
[null,null,null," ",{"$f":"IF(D213=\"\",\"\",(VLOOKUP(D213,Con_Prac!$A$3:$B$36,2,FALSE)))","v":" "}]
[null,null,null," ",{"$f":"IF(D214=\"\",\"\",(VLOOKUP(D214,Con_Prac!$A$3:$B$36,2,FALSE)))","v":" "}]
[null,null,null," ",{"$f":"IF(D215=\"\",\"\",(VLOOKUP(D215,Con_Prac!$A$3:$B$36,2,FALSE)))","v":" "}]
[null,null,null," ",{"$f":"IF(D216=\"\",\"\",(VLOOKUP(D216,Con_Prac!$A$3:$B$36,2,FALSE)))","v":" "}]
[null,null,null," ",{"$f":"IF(D217=\"\",\"\",(VLOOKUP(D217,Con_Prac!$A$3:$B$36,2,FALSE)))","v":" "}]
[null,null,null," ",{"$f":"IF(D218=\"\",\"\",(VLOOKUP(D218,Con_Prac!$A$3:$B$36,2,FALSE)))","v":" "}]
[null,null,null," ",{"$f":"IF(D219=\"\",\"\",(VLOOKUP(D219,Con_Prac!$A$3:$B$36,2,FALSE)))","v":" "}]
[null,null,null," ",{"$f":"IF(D220=\"\",\"\",(VLOOKUP(D220,Con_Prac!$A$3:$B$36,2,FALSE)))","v":" "}]
[]
["Manure Storage"]
[]
["The manure storage facilities shall provide adequate collection, storage, and/or treatment of manure and organic by-products that allows for the application of manure during favorable weather conditions and is compatible with crop management, including the application of nutrients at agronomic rates.  Practices planned for the collection, storage, treatment, and/or transfer of manure shall meet the minimum criteria and documentation as addressed in the NRCS conservation practice standards.  Storing manure in a permanent roofed storage structure is the recommended option."]
[]
["Method of Routine On-Farm Storage"]
[]
["Existing Manure Storage",null,null,"Length","Width","Wall Height","Storage Capacity"]
["Manure Storage Area 1",null,null,{"$f":"IF('Dry-Stack Calc WL'!M$30=\"\",\"\",'Dry-Stack Calc WL'!M$30)","v":""},{"$f":"IF('Dry-Stack Calc WL'!N$30=\"\",\"\",'Dry-Stack Calc WL'!N$30)","v":""},{"$f":"IF('Dry-Stack Calc WL'!O$30=\"\",\"\",'Dry-Stack Calc WL'!O$30)","v":""},{"$f":"IF('Dry-Stack Calc WL'!P$30=0,\"\",'Dry-Stack Calc WL'!P$30)","v":""}]
["Manure Storage Area 2",null,null,{"$f":"IF('Dry-Stack Calc WL'!M$31=\"\",\"\",'Dry-Stack Calc WL'!M$31)","v":""},{"$f":"IF('Dry-Stack Calc WL'!N$31=\"\",\"\",'Dry-Stack Calc WL'!N$31)","v":""},{"$f":"IF('Dry-Stack Calc WL'!O$31=\"\",\"\",'Dry-Stack Calc WL'!O$31)","v":""},{"$f":"IF('Dry-Stack Calc WL'!P$31=0,\"\",'Dry-Stack Calc WL'!P$31)","v":""}]
["Manure Storage Area 3",null,null,{"$f":"IF('Dry-Stack Calc WL'!M$32=\"\",\"\",'Dry-Stack Calc WL'!M$32)","v":""},{"$f":"IF('Dry-Stack Calc WL'!N$32=\"\",\"\",'Dry-Stack Calc WL'!N$32)","v":""},{"$f":"IF('Dry-Stack Calc WL'!O$32=\"\",\"\",'Dry-Stack Calc WL'!O$32)","v":""},{"$f":"IF('Dry-Stack Calc WL'!P$32=0,\"\",'Dry-Stack Calc WL'!P$32)","v":""}]
["Total Storage (Cu Ft)",null,null,null,null,null,{"$f":"IF('Dry-Stack Calc WL'!P$33=0,\"\",'Dry-Stack Calc WL'!P$33)","v":""}]
[]
["Is this adequate for the existing operation?                 Yes",null,null,null,null,"No ","If No then:",null,null,null,null,false,false]
["Describe the additional storage structure(s) needed including; animal waste type, dimensions, capacity (CF) and months of storage."]
[]
[]
[]
[]
[]
[]
["The manure will be scraped daily from the alleys, feed areas, and walkways in to the waste storage structure.  The solid manure also contains bedding material that is used in the stalls, if applicable."]
["The water that falls on to the roofs of the buildings will be collected with rain gutters and pipelines to prevent contact with manure."]
[]
["On farm stockpiling in the production area is limited to 14 days without being covered or being stored in an approved structure in accordance with the Delaware NRCS conservation practice standard for Waste Storage Structure, Code 313.  The stockpile must be separated from any channeled runoff, standing water, and other drainage systems such as roof runoff and down spouts.  If stored outside less than 14 days, the stockpile must be at least 6 feet high and stored on a pad constructed in accordance with NRCS conservation practice standard, Heavy Use Area Protection, Code 561."]
[]
["If you received financial assistance for construction of the manure shed, the following policies must be followed during the 15 year practice life span to avoid refunding funds."]
[]
["1.  No manure is to be stockpiled outside the manure shed unless the structure is filled to capacity."]
[]
["2.  No walls will be permitted inside the manure shed.  Exterior modifications require approval before work commences."]
[]
["3.  Manure must be stored in the manure shed at least one time during each 12 month period.  The amount of\n     manure must fill at least 50% of the structure."]
[]
["4.  No animals are to be confined in the manure shed. "]
[]
["5.  Dead animals can not be composted in the manure shed."]
[]
["6.  No doors are to be placed on the manure shed at any time for any reason."]
[]
["7.  This structure is designed and constructed for the storage of manure.  No other equipment or items are\n     permitted at any time."]
["      "]
["8.  Insurance will be required on manure structures in case of a catastrophic event where a shed is either\n     destroyed or impaired.  The owner will be required to replace or repair the manure structure to its original\n     condition or repay the financial assistance."]
["     "]
["9.  If any situation occurs which may prevent you from complying with these policies during the 15 year practice"]
["        life span and to avoid refunding the financial assistance, please contact:",null,null,null,null,null,{"$f":"IF(A1=\"\",\"\",VLOOKUP(A1,R28:S31,2,FALSE))","v":""}]
[]
[]
[]
[]
["Temporary Field Staging"]
[]
["Temporary staging of dry stack animal manure shall be included as part of the overall waste management system plan, and a CNMP component of the conservation plan.  Temporary staging of manure in the field shall be limited to 90 days or less.  Authorization for exceeding the 90 day time period may be granted on a case by case basis if approved by a nutrient consultant.  A request must be submitted to the DDA Nutrient Program Administrator in writing at least 5 business days prior to the end of the initial 90 day staging time period.   "]
[]
["Location"]
[]
["The selection of the staging site must consider the highest, most practical site possible and shall not use the same site more than once every two years.  Post manure removal treatment must include the removal of all manure and the top 1-2 inches of topsoil if the topsoil is co-mingled with the manure to prevent nutrient loads.  After the manure is removed, temporary field staging sites on cropland shall be planted to a cover crop or other agronomic crop to facilitate nutrient uptake.  "]
[]
["Field staging shall be located:"]
[]
["1.  At least 100 feet from wells, springs, and wetlands;"]
["2.  At least 300 feet from a public water supply or 200 feet from a domestic water well;"]
["3.  At least 100 feet from any body of water or drainage ditch;"]
["4.  At least 200 feet from any residence that is not located on the person’s property;"]
["5.  At least 100 feet from any public road;"]
["6.  Outside natural drainage ways;"]
["7.  Outside flood prone areas; and"]
["8.  Any additional items required by federal, state, and local laws and regulations."]
[]
["The following items should be considered when deciding a temporary field staging location:"]
["1.  Adequate access to the field staged manure during periods of inclement weather;"]
["2.  Above the floodplain of the 100-year, 24-hour storm;  "]
["3.  For slopes greater than 3%, the storage shall be no farther than 150 feet from the top of a slope, unless a \n     diversion is installed;"]
["4.  If the slope is greater than 3%, the storage should be parallel to the slope;"]
["5.  Where the seasonal high water table will be greater than 1.5 feet below the bottom of the stacked manure,\n     unless an impermeable pad or liner is used; "]
["6.  On soils were the permeability is less than 6 inches/hour in the upper 40 inches of the soil profile, unless an\n     impermeable pad or liner is used; and"]
["7.  Near natural windbreaks, where possible, to protect the manure pile from blowing winds."]
[]
["Covering and Shaping"]
[]
["All field-staged manure shall be shaped to minimize percolation of precipitation through the pile."]
[]
["When required, manure shall be shaped and covered with opaque plastic or polyethylene sheeting (minimum thickness of 6 mils) or other impermeable and equally strong material.  Sheeting shall have a minimum of 24 inches of overlap."]
["The cover for the manure shall be free of tears or punctures and shall be placed over the pile with care to prevent tearing.  Weights, such as used tires, shall be placed over the sheeting to anchor it and prevent tearing during high winds.  A trench 12 inches deep shall be constructed around the manure and the edges of the sheeting buried in and through the trench.  In lieu of a trench, Jersey barriers or similar materials may be used to secure the cover."]
[]
[]
["Animal Inventory and Confinement"]
[]
["Animal Type",null,null,"Number of Animals","Average\nWeight","Total Days","Unconfined\nDays","Confined Days","Confined\n(%)"]
[{"$f":"IF('Dry-Stack Calc WL'!$D$14=\"\",\"\",'Dry-Stack Calc WL'!$D$14)","v":""},null,null,{"$f":"IF('Dry-Stack Calc WL'!$D$16=\"\",\"\",'Dry-Stack Calc WL'!$D$16)","v":""},{"$f":"IF('Dry-Stack Calc WL'!$D$15=\"\",\"\",'Dry-Stack Calc WL'!$D$15)","v":""},{"$f":"IF(H310=\"\",\"\",G310+H310)","v":""},{"$f":"'Dry-Stack Calc WL'!$D$23","v":""},{"$f":"'Dry-Stack Calc WL'!$D$22","v":""},{"$f":"IF(H310=\"\",\"\",H310/F310)","v":""}]
[{"$f":"IF('Dry-Stack Calc WL'!$E$14=\"\",\"\",'Dry-Stack Calc WL'!$E$14)","v":""},null,null,{"$f":"IF('Dry-Stack Calc WL'!$E$16=\"\",\"\",'Dry-Stack Calc WL'!$E$16)","v":""},{"$f":"IF('Dry-Stack Calc WL'!$E$15=\"\",\"\",'Dry-Stack Calc WL'!$E$15)","v":""},{"$f":"IF(H311=\"\",\"\",G311+H311)","v":""},{"$f":"'Dry-Stack Calc WL'!$E$23","v":""},{"$f":"'Dry-Stack Calc WL'!$E$22","v":""},{"$f":"IF(H311=\"\",\"\",H311/F311)","v":""}]
[{"$f":"IF('Dry-Stack Calc WL'!$F$14=\"\",\"\",'Dry-Stack Calc WL'!$F$14)","v":""},null,null,{"$f":"IF('Dry-Stack Calc WL'!$F$16=\"\",\"\",'Dry-Stack Calc WL'!$F$16)","v":""},{"$f":"IF('Dry-Stack Calc WL'!$F$15=\"\",\"\",'Dry-Stack Calc WL'!$F$15)","v":""},"",{"$f":"'Dry-Stack Calc WL'!$F$23","v":""},{"$f":"'Dry-Stack Calc WL'!$F$22","v":""},""]
[{"$f":"IF('Dry-Stack Calc WL'!$G$14=\"\",\"\",'Dry-Stack Calc WL'!$G$14)","v":""},null,null,{"$f":"IF('Dry-Stack Calc WL'!$G$16=\"\",\"\",'Dry-Stack Calc WL'!$G$16)","v":""},{"$f":"IF('Dry-Stack Calc WL'!$G$15=\"\",\"\",'Dry-Stack Calc WL'!$G$15)","v":""},"",{"$f":"'Dry-Stack Calc WL'!$G$23","v":""},{"$f":"'Dry-Stack Calc WL'!$G$22","v":""},""]
[{"$f":"IF('Dry-Stack Calc WL'!$H$14=\"\",\"\",'Dry-Stack Calc WL'!$H$14)","v":""},null,null,{"$f":"IF('Dry-Stack Calc WL'!$H$16=\"\",\"\",'Dry-Stack Calc WL'!$H$16)","v":""},{"$f":"IF('Dry-Stack Calc WL'!$H$15=\"\",\"\",'Dry-Stack Calc WL'!$H$15)","v":""},"",{"$f":"'Dry-Stack Calc WL'!$H$23","v":""},{"$f":"'Dry-Stack Calc WL'!$H$22","v":""},""]
[{"$f":"IF('Dry-Stack Calc WL'!$I$14=\"\",\"\",'Dry-Stack Calc WL'!$I$14)","v":""},null,null,{"$f":"IF('Dry-Stack Calc WL'!$I$16=\"\",\"\",'Dry-Stack Calc WL'!$I$16)","v":""},{"$f":"IF('Dry-Stack Calc WL'!$I$15=\"\",\"\",'Dry-Stack Calc WL'!$I$15)","v":""},"",{"$f":"'Dry-Stack Calc WL'!$I$23","v":""},{"$f":"'Dry-Stack Calc WL'!$I$22","v":""},""]
[]
[]
[]
["Manure Generated*"]
[]
["Animal Type",null,null,"Lbs/D/AU\nof Manure","Manure\nUnconfined\n(Pasture)","Manure\nConfined","Bedding\nGenerated","Manure\nConfined\nTotal","Manure\nAll\nTotal"]
[null,null,null,"(lbs)","(Tons)","(Tons)","(Tons)","(Tons)","(Tons)"]
[{"$f":"A310","v":""},null,null,{"$f":"'Dry-Stack Calc WL'!$D$24","v":""},{"$f":"'Dry-Stack Calc WL'!$D$35","v":""},{"$f":"'Dry-Stack Calc WL'!$D$39","v":""},{"$f":"IF(F323=\"\",\"\",H323-F323)","v":""},{"$f":"'Dry-Stack Calc WL'!$D$40","v":""},{"$f":"IF(E323=\"\",\"\",E323+H323)","v":""}]
["",null,null,{"$f":"'Dry-Stack Calc WL'!$E$24","v":""},{"$f":"'Dry-Stack Calc WL'!$E$35","v":""},{"$f":"'Dry-Stack Calc WL'!$E$39","v":""},{"$f":"IF(F324=\"\",\"\",H324-F324)","v":""},{"$f":"'Dry-Stack Calc WL'!$E$40","v":""},{"$f":"IF(E324=\"\",\"\",E324+H324)","v":""}]
["",null,null,{"$f":"'Dry-Stack Calc WL'!$F$24","v":""},{"$f":"'Dry-Stack Calc WL'!$F$35","v":""},{"$f":"'Dry-Stack Calc WL'!$F$39","v":""},"",{"$f":"'Dry-Stack Calc WL'!$F$40","v":""},""]
["",null,null,{"$f":"'Dry-Stack Calc WL'!$G$24","v":""},{"$f":"'Dry-Stack Calc WL'!$G$35","v":""},{"$f":"'Dry-Stack Calc WL'!$G$39","v":""},"",{"$f":"'Dry-Stack Calc WL'!$G$40","v":""},""]
["",null,null,{"$f":"'Dry-Stack Calc WL'!$H$24","v":""},{"$f":"'Dry-Stack Calc WL'!$H$35","v":""},{"$f":"'Dry-Stack Calc WL'!$H$39","v":""},"",{"$f":"'Dry-Stack Calc WL'!$H$40","v":""},""]
["",null,null,{"$f":"'Dry-Stack Calc WL'!$I$24","v":""},{"$f":"'Dry-Stack Calc WL'!$I$35","v":""},{"$f":"'Dry-Stack Calc WL'!$I$39","v":""},"",{"$f":"'Dry-Stack Calc WL'!$I$40","v":""},""]
["Total Manure Generated",null,null,null,{"$f":"IF(SUM(E323:E328)=0,\"\",SUM(E323:E328))","v":""},{"$f":"IF(SUM(F323:F328)=0,\"\",SUM(F323:F328))","v":""},{"$f":"IF(SUM(G323:G328)=0,\"\",SUM(G323:G328))","v":""},{"$f":"IF(SUM(H323:H328)=0,\"\",SUM(H323:H328))","v":""},{"$f":"IF(SUM(I323:I328)=0,\"\",SUM(I323:I328))","v":""}]
["*See attached spreadsheet:  Manure Quantity Estimation for Solid Manure"]
[]
[]
["Manure Utilization",null,null,null,null,null,null,null,null,null,null,null,null,null,{"$f":"IF(AND($G$333=1,$G$335>13),\" Warning exceeds typical channel width.\",\"\")","v":""}]
[null,null,null,null,null,null,null,null,null,null,null,null,null,null,{"$f":"IF(AND($G$333>1,$G$335>9),\" Warning exceeds typical channel width.\",\"\")","v":""}]
["Manure Management",null,null,"Plan Year:",{"$f":"IF(E336=\"\",\"\",'Dry-Stack Calc WL'!$C$9)","v":"00:00:00"},{"$f":"IF(F336=\"\",\"\",$E$335+366)","v":"1900-12-31"},{"$f":"IF(G336=\"\",\"\",$E$335+732)","v":"1902-01-01"},{"$f":"IF(H336=\"\",\"\",$E$335+1098)","v":""},{"$f":"IF(I336=\"\",\"\",$E$335+1464)","v":""}]
[null,null,null,"Units",{"$f":"IF($D$5>0,\"Year 1\",\"\")","v":"Year 1"},{"$f":"IF($D$5>0,\"Year 2\",\"\")","v":"Year 2"},{"$f":"IF($D$5>0,\"Year 3\",\"\")","v":"Year 3"},{"$f":"IF($D$5>3,\"Year 4\",\"\")","v":""},{"$f":"IF($D$5>3,\"Year 5\",\"\")","v":""}]
["Manure Generated",null,null,"(Tons)",{"$f":"IF(E336=\"\",\"\",$I$329)","v":""},{"$f":"IF(F336=\"\",\"\",$I$329)","v":""},"","",""]
["Manure used in NMP",null,null,"(Tons)",300,300,300]
["Manure imported",null,null,"(Tons)",100,100,100]
["Excess manure",null,null,"(Tons)",{"$f":"IF(E337=\"\",\"\",E337+E339-E338)","v":""},{"$f":"IF(F337=\"\",\"\",F337+F339-F338)","v":""},{"$f":"IF(G337=\"\",\"\",G337+G339-G338)","v":""},"",""]
["Acres available",null,null,"(Acres)",100,100,100]
[]
[]
["Method For Routine Animal Mortality Disposal"]
[]
["Dead animals shall be disposed of in an environmentally safe manner, according to all federal, state, and local laws and regulations."]
[]
[]
[]
["Utilization of Excess Manure"]
[]
["If excess manure is generated by this farming operation, the excess manure will be properly stored until such time that it can be land applied according to the recommendations contained in this plan or until it can be sent to another farming operation or alternative use as recognized by the Delaware Nutrient Management Program."]
[]
["Nutrient values of manure and organic amendments shall be collected and analyzed at least once annually.  Samples should be taken in accordance with recommendations of the University of Delaware.  See Delaware Nutrient Management Notes, Vol. I, No. 9, September 2000 – Soil and Litter Sampling for Nutrient Analyses.  This procedure can also be utilized for dry stack manure."]
[]
[null,"Receiving Farmers/Landowners Address and Watershed"]
[null,"Receiver 1",null,null,"Receiver 2",null,null,"Receiver 3"]
["Name:"]
["Line 1:"]
["Line 2:"]
["Line 3:"]
["W/S:"]
[]
[]
[]
[" DNMC-authorized Alternative Use:*"]
[null,"* No Receiving Watershed (W/S) is required for Authorized Alternative Use."]
[]
["It is recommended that the receiving operation has:"]
[]
["1.  A current approved nutrient management plan."]
["2.  An approved method or structure to properly store the manure until land application can be completed."]
["3.  A soil test phosphorus level of less than 100 FIV based on a soil test taken within the past three years."]
[]
[]
["SECTION 3: FARMSTEAD SAFETY AND SECURITY"]
[]
["CNMP Emergency Response"]
[]
[]
["911 Address  (or closest road intersection to operation):"]
[]
[]
[]
["Emergency Contacts:"]
[]
["Fire, Police, Medical Emergency:",null,null,null,"Call: 911"]
[]
[]
["Fires in Manure Storage Structures"]
[]
["The number one safety concern with manure sheds is fire.  If you have a fire in your manure storage structure, call 911."]
[]
[]
["Spills and Discharges"]
[]
["If you have a spill during transportation on public roadways:"]
["1.  Coordinate efforts with local law enforcement and emergency personnel; and"]
["2.  Remove spill with appropriate equipment such as a front-end loader or other method as directed by local or state\n     authorities."]
[]
["If for any reason there is a discharge from an operation, the operator shall verbally notify the Department of Agriculture within 24 hours of becoming aware of the discharge and document the incident in writing within five (5) days.  In general, discharges occur when manure is conveyed by means of surface flow from a confinement facility, holding area, or manure storage structure.  The information to be provided shall include:"]
[]
["1.  A description of the discharge and cause, including a description of the flow path to the receiving waters and an\n     estimate of the flow and volume discharged;"]
["2.  The period of discharge, including exact dates and times, and if not corrected, the anticipated time the discharge is\n     expected to continue and the steps being taken to reduce, eliminate, and prevent recurrence of the discharge;"]
["3.  If the discharge was caused by a precipitation event(s), the amount of rainfall, as measured with a rain gauge at the\n     site; and"]
["4.  Results of any sampling and analysis of the discharge, if available."]
[]
["For further questions or assistance, call the Delaware Department of Agriculture, Nutrient Management Program, at:\n1-800-282-8685, or the Department of Natural Resources and Environmental Control Emergency at 1-800-662-8802."]
[]
[]
["Safety"]
[]
["Workers should be protected from and avoid unnecessary contact with chemical fertilizers and organic by-products. Protection should include the use of protective clothing and respirators when working with plant nutrients. Extra caution must be taken when handling ammonia sources of nutrients or when dealing with organic wastes stored in unventilated enclosures."]
[]
["The disposal of material generated by the cleaning of nutrient application equipment should be handled properly.  Excess material should be collected and stored or field applied in an appropriate manner.  Excess material should not be applied on areas of high potential risk for runoff and leaching. The disposal or recycling of nutrient containers should be done according to state and local guidelines or regulations."]
[]
[]
["Chemical Handling"]
[]
["Chemicals and other contaminants handled on-site are not to be disposed of in any manure."]
[]
[]
["SECTION 4: LAND TREATMENT CONSERVATION PRACTICES"]
[]
["This section addresses the need for and the implementation of appropriate conservation practices on fields where manure and organic by-products are applied.  It is essential that runoff and soil erosion be reduced to acceptable levels, and that plant uptake of applied nutrients be maximized to prevent nutrients from reaching surface and/or ground water.  Conservation practices to be applied need to meet the quality criteria for soil erosion and water quality.  These applied practices must be coupled with proper application techniques including minimum setback distances from ditches, streams, and other water bodies.  The conservation plan and/or implementation schedule for the production area and land treatment practices is attached.  "]
["Included is a conservation plan map, with farm and tract numbers, field boundaries, any required setbacks, sensitive areas, conservation practices, and any other important site features, such as property boundaries.  The location of all surface waters (e.g., drainage ditches, streams, ponds, etc.) and irrigation systems, where applicable, are to be shown. The engineering designs are part of the plan folder.  See attached maps. "]
[]
["SECTION 5: SOIL AND RISK ASSESSMENT ANALYSIS"]
[]
["Soils and Soil Descriptions"]
[]
["Copies of soil maps, soil map unit names, as well as, a brief soil map unit description is attached.  The soil descriptions provide information such as, texture, drainage class, and soil capability class that is necessary in making resource assessments and crop management decisions."]
[]
["Phosphorus Site Index (PSI)"]
[]
["The basic objective of sound P management is to maintain soil P fertility levels in a range that is optimum, but not excessive, for crop growth while reducing the loss of particulate and soluble P by processes such as erosion, runoff, and drainage."]
[]
["The Phosphorus Index is designed to assess the risk of offsite movement of Phosphorus and its adverse impact on nearby surface waters.  The PSI results are contained in the Phosphorus Site Index spreadsheet.  See attached.  If your nutrient management plan is based on phosphorus, these rates will be reflected in your nutrient management plan."]
[]
["Summary:"]
[]
["  1. Tracts and fields",null,null,null,null,"all have a PSI ranking of LOW."]
[]
["Nitrogen-based nutrient management may be implemented on these fields."]
[]
["  2. Tracts and fields",null,null,null,null,"all have a PSI ranking of MEDIUM."]
[]
["Nitrogen-based nutrient management may be implemented one year out of three.  Phosphorus-based nutrient management should be implemented two years out of three."]
[]
["  3. Tracts and fields",null,null,null,null,"all have a PSI ranking of HIGH."]
[]
["Phosphorus-based nutrient management should be implemented on these fields.  Based on the PSI, phosphorus applications should be limited to the amount expected to be removed from the field by crop harvest or soil test based P application recommendations.  According to state regulations, phosphorus shall be applied at no more than the “three year crop removal rate.”"]
[]
["  4. Tracts and fields",null,null,null,null,"all have a PSI ranking of VERY HIGH."]
[]
["Phosphorus-based nutrient management should be implemented on these fields.  Based on the PSI, no phosphorus applications should be applied to the site.  According to state regulations, phosphorus shall be applied at no more than the “three year crop removal rate.”"]
[]
["* Phosphorus Site Index (PSI) Ratings were provided by:"]
[]
[]
["SECTION 6: NUTRIENT MANAGEMENT"]
[]
["This element addresses the nutrient management component of the CNMP.  The nutrient management plan (NMP) is developed by a Delaware certified nutrient management consultant.  The NMP is a tool to increase the efficiency of all nutrients, while reducing environmental risk and ultimately increasing profit.  Nitrogen and phosphorus are most often associated with negative environmental impacts.  Potassium, which has no known environmental concerns, when present in excessive amounts can cause important imbalances in some crops and forages that can result in reduced forage quality."]
["A nutrient management plan describes a nutrient budget for nitrogen, phosphorus, and potassium that considers all potential sources of nutrients including but not limited to, manure, organic by-products, wastewater, commercial fertilizer, crop residues, legume and manure credits, and irrigation water.  A nutrient budget will be developed using current soil analysis; current manure analysis; the actual crops grown and their projected yields and nutrient requirements; and accounting for all nutrient sources.  Land application procedures must be planned and implemented in a manner that minimizes potential adverse impacts to the environment and public health."]
[]
["Nutrient management plans must be updated before they expire or at least once every 3 years.  The NMP should be updated each year to account for any factors such as, changes in crop rotation or changes in the amount of manure utilized."]
[]
["Soil, Plant, and Manure Analysis"]
[]
["Soil:  Nutrient management planning shall be based on current soil test results developed in accordance with University of Delaware guidance and recommendations.  Current soil tests are those that are no older than three years."]
[]
["Soil testing shall include, as a minimum, analysis for organic matter, pH, lime requirement, plant available phosphorus, and potassium.  Also, soil testing shall include analysis for any other nutrients for which specific information is needed to develop the nutrient management plan."]
[]
["Soil samples shall be collected and prepared according to the University of Delaware guidance and recommendations or standard industry practice and in units that are convertible to the University of Delaware’s Fertility Index Values (FIV).  See Delaware Nutrient Management Notes, Vol. I, No. 9, September 2000 – Soil and Litter Sampling for Nutrient Analyses.  Soil samples generally represent no greater than 20 acres and must be justified in the plan if greater than 20 acres."]
[]
["Nutrient values of manure and organic amendments shall be collected and analyzed at least once annually.  Samples should be taken in accordance with recommendations of the University of Delaware.  See Delaware Nutrient Management Notes, Vol. I, No. 9, September 2000 – Soil and Litter Sampling for Nutrient Analyses, for Poultry.  This procedure can also be utilized for dry stack manure."]
[]
["Setbacks"]
[]
["Manure Application Setbacks:  Setbacks are defined as a specified distance from surface waters or potential conduits to surface waters where manure may not be land applied.   These setbacks are required for Delaware permitted CAFOs and recommended for all other AFOs."]
[]
["Setbacks are measured from the top of the bank of the water body that is being buffered. The direct application of manure or processed wastewater to ditches or surface waters is prohibited.  These setback standards are provided below:"]
[]
["1) 100 - foot application setback, or"]
[]
["2) 35 - foot vegetated buffer setback, planted in accordance with the appropriate NRCS standard, 342, 393, or 327\n    where applications of manure are prohibited."]
[]
["3) Alternative compliance practices as follows:"]
[]
["a)  10 feet setback adjacent to a field with a winter cover crop planted on soils without high phosphorus soils; or"]
["b)  10 feet vegetated buffer setback adjacent to a field with a winter cover crop planted with high phosphorus soils;"]
["c)   Any additional alternative compliance practices must be approved by the Secretary of Agriculture and the\n      Delaware Nutrient Management Commission."]
[]
["See attached Nutrient Management Plan if completed by the Conservation District."]
[]
["Nutrient Management Plan completed by certified nutrient management consultant:"]
[]
[]
["SECTION 7: FEED MANAGEMENT"]
[]
["Animal diets and feed may be modified to reduce the amount of nutrients in the manure.  Reduced inputs and greater utilization of phosphorus by the animal reduces the amount of phosphorus excreted and produces a manure with a nitrogen:phosphorus ratio closer to that required by crops."]
[]
[]
["SECTION 8: OTHER UTILIZATION OPTIONS"]
[]
["Safe alternatives to land application of manure, including but not limited to:"]
["1. Composting to create a more valuable product."]
["2. Transporting to an alternative use approved by the Delaware Nutrient Management Program."]
[]
[]
["SECTION 9: RECORD KEEPING"]
[]
["Maintaining records to document plan implementation is the responsibility of the owner/client. Farms covered under a CAFO permit must maintain and provide all applicable records for a period of at least 6 years."]
[]
["The following records must be kept to document implementation of the plan requirements and permit conditions in the part of the farm where livestock are raised: "]
[]
["1. Records indicating mortality management to include number disposed and method of disposal."]
["2. Records documenting the design of any manure or storage structures, design storage, and approximate\n    number of days of storage. "]
[]
["In addition, records indicating the following routine visual inspections of the CAFO production area were conducted. At a minimum the following must be visually inspected:"]
[]
["1. Weekly inspections of all storm water diversion devices, runoff diversion structures, and devices channeling\n    contaminated storm water to the wastewater and manure storage containment structure. "]
["2. Daily inspection of water lines, including drinking water or cooling water lines."]
["3. Weekly inspections of the manure storage structure."]
[]
["Records of implementation in the Land Application Area shall include: "]
[]
["1. Manure, process wastewater and soil test results, methods for testing and analyzing, and recommended \n    nitrogen and phosphorus application rates with an explanation of the basis for determining manure application rates,\n    as provided in the protocols established in the State Technical Standards, the Nutrient Management Plan, or\n    Animal Waste Management Plan. "]
["2. Quantities, calculations, analyses, and sources of all nitrogen and phosphorus applied to fields. "]
["3. Dates, weather conditions at the time of manure land application and 24 hours before and after application, and\n    methods of application(s). "]
["4. Crops planted, yields, and plant matter (grain, silage, etc.) removed from the land. "]
["5. Records indicating periodic inspections and maintenance of land application equipment for leaks. "]
[]
["If manure, or process wastewater is sold or given to other persons for utilization, the following records shall be maintained at the CAFO generating the manure or process wastewater: "]
[]
["1. The date of manure or process wastewater removal. "]
["2. Name of receiver and contact information. "]
["3. Quantity of manure removed, in tons."]
["4. A copy of the most recent manure and process wastewater nutrient analysis shall be given to the receiver on\n    or before the date of transfer. "]
[]
["Report Requirements"]
[]
["The Nutrient Management Annual Report is required to be submitted to the Nutrient Management Commission by March 1 of each year.  Please contact the Delaware Department of Agriculture, Nutrient Management Program, for a copy of the report."]

{"sheet":"Soils Info","index":5,"n_rows":289,"n_cols":8,"rows_kept":289,"cut":false,"hidden":true,"merged":[[0,7,1,7],[288,5,288,6],[0,0,1,0],[0,1,1,1],[0,2,1,2],[0,3,1,3],[0,4,0,5],[0,6,1,6]]}
["Delaware: Soil Name and Slope","K","Permeability","Drainage","High Water Table",null,"NRCS\nLeaching\nIndex","Hydrologic Group"]
[null,null,null,null,"Range","Average"]
["AbC- Acquango Series (50% of map unit)",0.02,"Very rapid","Excessively drained","N/A",6,3,"A"]
["AbC- Beaches Series (45% of map unit)",0.02,"Very rapid","Very poorly drained","N/A",0.43,3,"D"]
["AsA- Askecksy Series drained (30% of map unit)",0.1,"Rapid","Poorly drained","N/A",1.18,1,"B"]
["AsA- Askecksy Series undrained (45% of map unit)",0.02,"Rapid","Poorly drained","N/A",0.43,1,"D"]
["AuB- Acquango Series (45% of map unit)",0.02,"Very rapid","Excessively drained","N/A",6,3,"A"]
["Ba- Appoquinimink Series (30% of map unit)",0.37,"Moderately slow","Very poorly drained","N/A",0,1,"D"]
["Ba- Broadkill Series (55% of map unit)",0.02,"Moderately slow","Very poorly drained","N/A",0,1,"D"]
["Ba- Broadkill Series (55% of map unit)",0.02,"Moderately slow","Very poorly drained","N/A",0,1,"D"]
["BbB- Baile Series (55% of map unit)",0.37,"Moderately slow","Poorly drained","N/A",0.43,1,"D"]
["BbB- Glenville Series (40% of map unit)",0.32,"Slow","Moderately well drained","N/A",2.4900000000000002,1,"C"]
["BhA- Berryland Series drained (50% of map unit)",0.1,"Rapid","Very poorly drained","N/A",0.43,2,"B"]
["BhA- Berryland Series undrained (30% of map unit)",0.02,"Rapid","Very poorly drained","N/A",0.16,2,"D"]
["BkD- Brinklow Series (70% of map unit)",0.32,"Moderately slow","Well drained","N/A",6,2,"B"]
["BnF- Blocktown Series (45% of map unit)",0.32,"Moderate","Well drained","N/A",6,2,"B"]
["BnF- Brinklow Series (55% of map unit)",0.32,"Moderately slow","Well drained","N/A",6,2,"B"]
["Br- Broadkill Series (70% of map unit)",0.02,"Moderately slow","Very poorly drained","N/A",0,1,"D"]
["Br- Broadkill Series (70% of map unit)",0.02,"Moderately slow","Very poorly drained","N/A",0,1,"D"]
["BrvF- Brinklow Series (70% of map unit)",0.32,"Moderately slow","Well drained","N/A",6,2,"B"]
["BuA- Brockatonorton Series (45% of map unit)",0.02,"Rapid","Moderately well drained","N/A",2.4900000000000002,1,"D"]
["CaA- Carmichael Series drained (40% of map unit)",0.37,"Moderately slow","Poorly drained","N/A",1.18,1,"C"]
["CaA- Carmichael Series undrained (40% of map unit)",0.02,"Moderately slow","Poorly drained","N/A",0.43,1,"D"]
["CdB- Cedartown Series (75% of map unit)",0.1,"Rapid","Somewhat excessively drained","N/A",3.74,3,"A"]
["Ch- Codorus Series (80% of map unit)",0.37,"Moderate","Moderately well drained","N/A",2.2599999999999998,1,"C"]
["CnB- Collington Series (85% of map unit)",0.32,"Moderate","Well drained","N/A",6,2,"B"]
["CnD- Collington Series (70% of map unit)",0.32,"Moderate","Well drained","N/A",6,2,"B"]
["CoA- Corsica Series drained (40% of map unit)",0.32,"Moderate","Very poorly drained","N/A",0.43,1,"C"]
["CoA- Corsica Series undrained (40% of map unit)",0.02,"Moderate","Very poorly drained","N/A",0.16,1,"D"]
["CoA- Corsica Series undrained (40% of map unit)",0.02,"Moderate","Very poorly drained","N/A",0.16,1,"D"]
["Cp- Comus Series (85% of map unit)",0.37,"Moderately rapid","Well drained","N/A",3.74,2,"B"]
["CsA- Crosiadore Series (75% of map unit)",0.49,"Moderately slow","Somewhat poorly drained","N/A",1.18,1,"C"]
["DaB- Delanco Series (90% of map unit)",0.37,"Moderately slow","Moderately well drained","N/A",2.4900000000000002,1,"C"]
["DcB- Codorus Series (35% of map unit)",0.37,"Moderate","Moderately well drained","N/A",2.2599999999999998,1,"C"]
["DcB- Delanco Series (40% of map unit)",0.37,"Moderately slow","Moderately well drained","N/A",2.4900000000000002,1,"C"]
["DcB- Hatboro Series (25% of map unit)",0.37,"Moderately rapid","Poorly drained","N/A",0.26,1,"D"]
["DnA- Downer Series (80% of map unit)",0.15,"Moderately rapid","Well drained","N/A",6,3,"B"]
["DnB- Downer Series (80% of map unit)",0.15,"Moderately rapid","Well drained","N/A",6,3,"B"]
["DnC- Downer Series (80% of map unit)",0.15,"Moderately rapid","Well drained","N/A",6,3,"B"]
["DoA- Downer Series (80% of map unit)",0.17,"Moderately rapid","Well drained","N/A",6,2,"B"]
["DoB- Downer Series (80% of map unit)",0.17,"Moderately rapid","Well drained","N/A",6,2,"B"]
["DoC- Downer Series (80% of map unit)",0.17,"Moderately rapid","Well drained","N/A",6,2,"B"]
["DuB- Downer Series (60% of map unit)",0.15,"Moderately rapid","Well drained","N/A",6,2,"B"]
["EmA- Elkton Series drained (35% of map unit)",0.43,"Slow","Poorly drained","N/A",1.18,1,"C"]
["EmA- Elkton Series undrained (40% of map unit)",0.02,"Slow","Poorly drained","N/A",0.43,1,"D"]
["EnB- Elsinboro Series (95% of map unit) ",0.37,"Moderate","Well drained","N/A",6,2,"B"]
["ErB- Delanco Series (30% of map unit)",0.37,"Moderately slow","Moderately well drained","N/A",2.4900000000000002,1,"C"]
["ErB- Elsinboro Series (45% of map unit)",0.37,"Moderate","Well drained","N/A",6,2,"B"]
["ESA- Endoaquepts Series drained (45% of map unit)",0.43,"Moderate","Poorly drained","N/A",1.18,1,"D"]
["ESA- Sulfaquepts Series drained (45% of map unit)",0.49,"Moderate","Poorly drained","N/A",1.18,1,"D"]
["EvB- Evesboro Series (75% of map unit)",0.1,"Rapid","Excessively drained","N/A",6,3,"A"]
["EvD- Evesboro Series (75% of map unit)",0.1,"Rapid","Excessively drained","N/A",6,3,"A"]
["FaA- Fallsington Series drained (40% of map unit)",0.2,"Moderate","Poorly drained","N/A",1.18,1,"C"]
["FaA- Fallsington Series undrained (40% of map unit)",0.02,"Moderate","Poorly drained","N/A",0.43,1,"D"]
["FaA- Fallsington Series undrained (40% of map unit)",0.02,"Moderate","Poorly drained","N/A",0.43,1,"D"]
["FgA- Fallsington Series drained (40% of map unit)",0.37,"Moderate","Poorly drained","N/A",1.18,1,"C"]
["FgA- Fallsington Series undrained (40% of map unit)",0.02,"Moderate","Poorly drained","N/A",0.43,1,"D"]
["FgA- Fallsington Series undrained (40% of map unit)",0.02,"Moderate","Poorly drained","N/A",0.43,1,"D"]
["FhA- Fort Mott Series (45% of map unit)",0.15,"Moderate","Well drained","N/A",6,3,"A"]
["FhA- Henlopen Series (35% of map unit)",0.15,"Rapid","Somewhat excessively drained","N/A",6,3,"A"]
["FhB- Fort Mott Series (45% of map unit)",0.15,"Moderate","Well drained","N/A",6,3,"A"]
["FhB- Henlopen Series (35% of map unit)",0.15,"Rapid","Somewhat excessively drained","N/A",6,3,"A"]
["FmA- Fort Mott Series (80% of map unit)",0.15,"Moderate","Well drained","N/A",6,3,"A"]
["FmB- Fort Mott Series (80% of map unit)",0.15,"Moderate","Well drained","N/A",6,3,"A"]
["FzB- Fallsington Series drained (40% of map unit)",0.24,"Moderate","Poorly drained","N/A",1.18,1,"B"]
["FzB- Fallsington Series drained (40% of map unit)",0.2,"Moderate","Poorly drained","N/A",1.18,1,"C"]
["FzB- Fallsington Series undrained (25% of map unit)",0.02,"Moderate","Poorly drained","N/A",0.43,1,"D"]
["FzB- Fallsington Series undrained (25% of map unit)",0.02,"Moderate","Poorly drained","N/A",0.43,1,"D"]
["GaB- Galestown Series (80% of map unit)",0.1,"Rapid","Somewhat excessively drained","N/A",6,3,"A"]
["GaC- Gaila Series (85% of map unit)",0.28000000000000003,"Moderate","Well drained","N/A",6,3,"B"]
["GaD- Gaila Series (90% of map unit)",0.28000000000000003,"Moderate","Well drained","N/A",6,3,"B"]
["GaD- Galestown Series (80% of map unit)",0.1,"Rapid","Somewhat excessively drained","N/A",6,3,"A"]
["GaD(NC)- Gaila Series (90% of map unit)",0.28000000000000003,"Moderate","Well drained","N/A",6,3,"B"]
["GaE- Gaila Series (80% of map unit)",0.28000000000000003,"Moderate","Well drained","N/A",6,3,"B"]
["GeA- Glenelg Series (85% of map unit)",0.28000000000000003,"Moderate","Well drained","N/A",6,2,"B"]
["GeB- Glenelg Series (85% of map unit)",0.28000000000000003,"Moderate","Well drained","N/A",6,2,"B"]
["GeC- Glenelg Series (85% of map unit)",0.28000000000000003,"Moderate","Well drained","N/A",6,2,"B"]
["GgA- Glenelg Series (85% of map unit)",0.37,"Moderate","Well drained","N/A",6,2,"B"]
["GgB- Glenelg Series (85% of map unit)",0.37,"Moderate","Well drained","N/A",6,2,"B"]
["GgC- Glenelg Series (85% of map unit)",0.37,"Moderate","Well drained","N/A",6,2,"B"]
["GgD- Glenelg Series (85% of map unit)",0.37,"Moderate","Well drained","N/A",6,2,"B"]
["GhB- Glenelg Series (45% of map unit)",0.28000000000000003,"Moderate","Well drained","N/A",6,2,"B"]
["GhB- Wheaton Series (30% of map unit)",0.49,"Moderate","Well drained","N/A",6,3,"B"]
["GhC- Glenelg Series (45% of map unit)",0.28000000000000003,"Moderate","Well drained","N/A",6,2,"B"]
["GhC- Wheaton Series (30% of map unit)",0.49,"Moderate","Well drained","N/A",6,3,"B"]
["GnA- Glenville Series (85% of map unit)",0.32,"Slow","Moderately well drained","N/A",2.4900000000000002,1,"C"]
["GnB- Glenville Series (85% of map unit)",0.32,"Slow","Moderately well drained","N/A",2.4900000000000002,1,"C"]
["GnC- Glenville Series (85% of map unit)",0.32,"Slow","Moderately well drained","N/A",2.4900000000000002,1,"C"]
["GoA- Glassboro Series (80% of map unit)",0.28000000000000003,"Moderately rapid","Somewhat poorly drained","N/A",1.25,1,"C"]
["GrA- Greenwich Series (85% of map unit)",0.37,"Moderate","Well drained","N/A",6,2,"B"]
["GrB- Greenwich Series (85% of map unit)",0.37,"Moderate","Well drained","N/A",6,2,"B"]
["GuB- Greenwich Series (60% of map unit)",0.37,"Moderate","Well drained","N/A",6,2,"B"]
["HbA- Hambrook Series (80% of map unit)",0.24,"Moderate","Well drained","N/A",3.74,3,"B"]
["HbB- Hambrook Series (80% of map unit)",0.24,"Moderate","Well drained","N/A",3.74,3,"B"]
["HkB- Hambrook Series (45% of map unit)",0.24,"Moderate","Well drained","N/A",3.74,3,"B"]
["HkB- Hambrook Series (55% of map unit)",0.24,"Moderate","Well drained","N/A",3.74,3,"B"]
["HmA- Hammonton Series (80% of map unit)",0.15,"Moderately rapid","Moderately well drained","N/A",2.4900000000000002,2,"B"]
["HnA- Hammonton Series (80% of map unit)",0.2,"Moderately rapid","Moderately well drained","N/A",2.4900000000000002,2,"B"]
["HnB- Hammonton Series (80% of map unit)",0.2,"Moderately rapid","Moderately well drained","N/A",2.4900000000000002,2,"B"]
["HoA- Fallsington Series drained (10% of map unit)",0.24,"Moderate","Poorly drained","N/A",1.18,1,"B"]
["HoA- Fallsington Series drained (10% of map unit)",0.2,"Moderate","Poorly drained","N/A",1.18,1,"C"]
["HoA- Fallsington Series undrained (25% of map unit)",0.02,"Moderate","Poorly drained","N/A",0.43,1,"D"]
["HoA- Fallsington Series undrained (25% of map unit)",0.02,"Moderate","Poorly drained","N/A",0.43,1,"D"]
["HoA- Hammonton Series (40% of map unit)",0.2,"Moderately rapid","Moderately well drained","N/A",2.4900000000000002,2,"B"]
["HoA- Mullica Series drained (5% of map unit)",0.15,"Moderately rapid","Very poorly drained","N/A",0.43,1,"B"]
["HoA- Mullica Series undrained (10% of map unit)",0.02,"Moderately rapid","Very poorly drained","N/A",0.16,1,"D"]
["HoA- Mullica Series undrained (10% of map unit)",0.02,"Moderately rapid","Very poorly drained","N/A",0.16,1,"D"]
["HpA- Henlopen Series (80% of map unit)",0.15,"Rapid","Somewhat excessively drained","N/A",6,3,"A"]
["HpB- Henlopen Series (80% of map unit)",0.15,"Rapid","Somewhat excessively drained","N/A",6,3,"A"]
["HrA- Henlopen Series (50% of map unit)",0.15,"Rapid","Somewhat excessively drained","N/A",6,3,"A"]
["HrA- Rosedale Series (40% of map unit)",0.1,"Moderately rapid","Well drained","N/A",3.74,3,"A"]
["HrB- Henlopen Series (45% of map unit)",0.15,"Rapid","Somewhat excessively drained","N/A",6,3,"A"]
["HrB- Rosedale Series (40% of map unit)",0.1,"Moderately rapid","Well drained","N/A",3.74,3,"A"]
["HsA- Henlopen Series (40% of map unit)",0.15,"Rapid","Somewhat excessively drained","N/A",6,3,"A"]
["HsA- Rosedale Series (30% of map unit)",0.1,"Moderately rapid","Well drained","N/A",3.74,3,"A"]
["Ht- Hatboro Series (90% of map unit)",0.37,"Moderately rapid","Poorly drained","N/A",0.26,1,"D"]
["HuA- Hurlock Series drained (40% of map unit)",0.15,"Moderately rapid","Poorly drained","N/A",1.18,1,"B"]
["HuA- Hurlock Series undrained (40% of map unit)",0.02,"Moderately rapid","Poorly drained","N/A",0.43,1,"D"]
["HvA- Hurlock Series drained (40% of map unit)",0.2,"Moderately rapid","Poorly drained","N/A",1.18,1,"B"]
["HvA- Hurlock Series undrained (40% of map unit)",0.02,"Moderately rapid","Poorly drained","N/A",0.43,1,"D"]
["Hw- Codorus Series (40% of map unit)",0.37,"Moderate","Moderately well drained","N/A",2.2599999999999998,1,"C"]
["Hw- Hatboro Series (50% of map unit)",0.37,"Moderately rapid","Poorly drained","N/A",0.26,1,"D"]
["IeA- Ingleside Series (75% of map unit)",0.15,"Moderately rapid","Well drained","N/A",3.74,3,"B"]
["IeB- Ingleside Series (75% of map unit)",0.15,"Moderately rapid","Well drained","N/A",3.74,3,"B"]
["IgA- Ingleside Series (75% of map unit)",0.2,"Moderately rapid","Well drained","N/A",3.74,3,"B"]
["IgB- Ingleside Series (75% of map unit)",0.2,"Moderately rapid","Well drained","N/A",3.74,3,"B"]
["IgC- Ingleside Series (75% of map unit)",0.2,"Moderately rapid","Well drained","N/A",3.74,3,"B"]
["ImB- Fallsington Series drained (15% of map unit)",0.24,"Moderate","Poorly drained","N/A",1.18,1,"B"]
["ImB- Fallsington Series drained (15% of map unit)",0.2,"Moderate","Poorly drained","N/A",1.18,1,"C"]
["ImB- Fallsington Series undrained (10% of map unit)",0.02,"Moderate","Poorly drained","N/A",0.43,1,"D"]
["ImB- Fallsington Series undrained (10% of map unit)",0.02,"Moderate","Poorly drained","N/A",0.43,1,"D"]
["ImB- Hammonton Series (30% of map unit)",0.2,"Moderately rapid","Moderately well drained","N/A",2.4900000000000002,2,"B"]
["ImB- Ingleside Series (35% of map unit)",0.2,"Moderately rapid","Well drained","N/A",3.74,3,"B"]
["IuB- Ingleside Series (50% of map unit)",0.2,"Moderately rapid","Well drained","N/A",3.74,3,"B"]
["KfA- Keyport Series (85% of map unit)",0.37,"Very slow","Moderately well drained","N/A",2.4900000000000002,1,"C"]
["KgB- Galloway Series (35% of map unit)",0.1,"Rapid","Moderately well drained","N/A",2.4900000000000002,2,"B"]
["KgB- Klej Series (45% of map unit)",0.1,"Rapid","Somewhat poorly drained","N/A",1.18,2,"C"]
["KhC- Keyport Series (80% of map unit)",0.24,"Very slow","Moderately well drained","N/A",2.4900000000000002,1,"C"]
["KmE- Keyport Series (80% of map unit)",0.37,"Very slow","Moderately well drained","N/A",2.4900000000000002,1,"C"]
["KnA- Kentuck Series drained (20% of map unit)",0.32,"Slow","Very poorly drained","N/A",0.43,1,"C"]
["KnA- Kentuck Series undrained (50% of map unit)",0.02,"Slow","Very poorly drained","N/A",0.16,1,"D"]
["KpA- Keyport Series (80% of map unit)",0.43,"Very slow","Moderately well drained","N/A",2.4900000000000002,1,"C"]
["KpA- Keyport Series (80% of map unit)",0.49,"Very slow","Moderately well drained","N/A",2.4900000000000002,1,"C"]
["KpB- Keyport Series (80% of map unit)",0.49,"Very slow","Moderately well drained","N/A",2.4900000000000002,1,"C"]
["KsA- Klej Series (70% of map unit)",0.1,"Rapid","Somewhat poorly drained","N/A",1.18,2,"C"]
["LeA- Leipsic Series (75% of map unit)",0.49,"Moderately slow","Moderately well drained","N/A",2.4900000000000002,1,"C"]
["LeB- Leipsic Series (75% of map unit)",0.49,"Moderately slow","Moderately well drained","N/A",2.4900000000000002,1,"C"]
["LfA- Leipsic Series (45% of map unit)",0.49,"Moderately slow","Moderately well drained","N/A",2.4900000000000002,1,"C"]
["LfA- Lenni Series drained (35% of map unit)",0.28000000000000003,"Slow","Poorly drained","N/A",1.18,1,"D"]
["LfA- Lenni Series undrained (50% of map unit)",0.02,"Slow","Poorly drained","N/A",0.43,1,"D"]
["LfA- Reybold Series (40% of map unit)",0.43,"Moderate","Well drained","N/A",6,2,"B"]
["LfB- Leipsic Series (45% of map unit)",0.49,"Moderately slow","Moderately well drained","N/A",2.4900000000000002,1,"C"]
["LfB- Reybold Series (40% of map unit)",0.43,"Moderate","Well drained","N/A",6,2,"B"]
["LhA- Lenni Series drained (50% of map unit)",0.43,"Slow","Poorly drained","N/A",1.18,1,"D"]
["LhA- Lenni Series undrained (30% of map unit)",0.02,"Slow","Poorly drained","N/A",0.43,1,"D"]
["LhA- Lenni Series undrained (30% of map unit)",0.02,"Slow","Poorly drained","N/A",0.43,1,"D"]
["Lk- Lenape Series (85% of map unit)",0.02,"Moderate","Very poorly drained","N/A",0.16,1,"D"]
["Lk- Lenape Series (85% of map unit)",0.02,"Moderate","Very poorly drained","N/A",0.16,1,"D"]
["Ln- Lenape Series (45% of map unit)",0.02,"Moderate","Very poorly drained","N/A",0.16,1,"D"]
["Ln- Lenape Series (45% of map unit)",0.02,"Moderate","Very poorly drained","N/A",0.16,1,"D"]
["Ln- Nanticoke Series (40% of map unit)",0.37,"Moderate","Very poorly drained","N/A",0.16,1,"D"]
["LO- Indiantown Series (40% of map unit)",0.37,"Moderate","Very poorly drained","N/A",0.43,1,"D"]
["LO- Indiantown Series (40% of map unit)",0.02,"Moderate","Very poorly drained","N/A",0.43,1,"D"]
["LO- Longmarsh Series (40% of map unit)",0.02,"Moderate","Very poorly drained","N/A",0.43,1,"D"]
["LO- Longmarsh Series (40% of map unit)",0.02,"Moderate","Very poorly drained","N/A",0.43,1,"D"]
["Ma- Manahawkin Series (85% of map unit)",0.02,"Moderate","Very poorly drained","N/A",0.16,1,"D"]
["MaC- Manor Series (85% of map unit)",0.28000000000000003,"Rapid","Well drained","N/A",6,3,"B"]
["MaD- Manor Series (90% of map unit)",0.28000000000000003,"Rapid","Well drained","N/A",6,3,"B"]
["MaE- Manor Series (90% of map unit)",0.28000000000000003,"Rapid","Well drained","N/A",6,3,"B"]
["McA- Marshyhope Series (85% of map unit)",0.37,"Moderate","Somewhat poorly drained","N/A",1.18,1,"C"]
["MdA- Marshyhope Series (85% of map unit)",0.17,"Moderate","Somewhat poorly drained","N/A",1.18,1,"C"]
["MkA- Matapeake Series (80% of map unit)",0.49,"Moderately slow","Well drained","N/A",6,2,"B"]
["MkB- Matapeake Series (80% of map unit)",0.49,"Moderately slow","Well drained","N/A",6,2,"B"]
["MmA- Mullica Series drained (50% of map unit)",0.15,"Moderately rapid","Very poorly drained","N/A",0.43,1,"B"]
["MmA- Mullica Series undrained (30% of map unit)",0.02,"Moderately rapid","Very poorly drained","N/A",0.16,1,"D"]
["MmA- Mullica Series undrained (30% of map unit)",0.02,"Moderately rapid","Very poorly drained","N/A",0.16,2,"D"]
["MtA- Mattapex Series (80% of map unit)",0.49,"Moderately slow","Moderately well drained","N/A",2.4900000000000002,1,"C"]
["MtA- Mattapex Series (80% of map unit)",0.43,"Moderately slow","Moderately well drained","N/A",2.4900000000000002,1,"C"]
["MtB- Mattapex Series (80% of map unit)",0.49,"Moderately slow","Moderately well drained","N/A",2.4900000000000002,1,"C"]
["MtB- Mattapex Series (80% of map unit)",0.43,"Moderately slow","Moderately well drained","N/A",2.4900000000000002,1,"C"]
["MtC- Mattapex Series (75% of map unit)",0.49,"Moderately slow","Moderately well drained","N/A",2.4900000000000002,1,"C"]
["MtC- Mattapex Series (75% of map unit)",0.43,"Moderately slow","Moderately well drained","N/A",2.4900000000000002,1,"C"]
["MuA- Berryland Series drained (25% of map unit)",0.1,"Rapid","Very poorly drained","N/A",0.43,2,"B"]
["MuA- Berryland Series undrained (15% of map unit)",0.02,"Rapid","Very poorly drained","N/A",0.16,2,"D"]
["MuA- Mullica Series drained (25% of map unit)",0.15,"Moderately rapid","Very poorly drained","N/A",0.43,1,"B"]
["MuA- Mullica Series undrained (15% of map unit)",0.02,"Moderately rapid","Very poorly drained","N/A",0.16,1,"D"]
["MuB- Mattapex Series (50% of map unit)",0.43,"Moderately slow","Moderately well drained","N/A",2.4900000000000002,1,"C"]
["MxB- Montalto Series (85% of map unit)",0.32,"Moderately slow","Well drained","N/A",6,1,"C"]
["MxC- Montalto Series (90% of map unit)",0.32,"Moderately slow","Well drained","N/A",6,1,"C"]
["MzA- Mount Lucas Series (90% of map unit)",0.37,"Slow","Moderately well drained","N/A",1.74,1,"C"]
["MzB- Mount Lucas Series (90% of map unit)",0.37,"Slow","Moderately well drained","N/A",1.74,1,"C"]
["MzuB- Mount Lucas Series (70% of map unit)",0.37,"Slow","Moderately well drained","N/A",1.74,1,"C"]
["NM- Mannington Series (45% of map unit)",0.37,"Moderate","Very poorly drained","N/A",0.16,1,"D"]
["NM- Nanticoke Series (45% of map unit)",0.37,"Moderate","Very poorly drained","N/A",0.16,1,"D"]
["NsA- Nassawango Series (80% of map unit)",0.49,"Moderately slow","Well drained","N/A",3.74,2,"B"]
["NsB- Nassawango Series (80% of map unit)",0.49,"Moderately slow","Well drained","N/A",3.74,2,"B"]
["NtB- Neshaminy Series very deep over gabbro (85% of map unit)",0.43,"Moderate","Well drained","N/A",6,2,"B"]
["NtC- Neshaminy Series very deep over gabbro (90% of map unit)",0.43,"Moderate","Well drained","N/A",6,2,"B"]
["NvC- Montalto Series (45% of map unit) ",0.32,"Moderately slow","Well drained","N/A",6,1,"C"]
["NvC- Neshaminy Series very deep over gabbro (50%of map unit)",0.43,"Moderate","Well drained","N/A",6,2,"B"]
["NvD- Montalto Series (45% of map unit) ",0.32,"Moderately slow","Well drained","N/A",6,1,"C"]
["NvD- Neshaminy Series very deep over gabbro (55% of map unit)",0.32,"Moderate","Well drained","N/A",6,2,"B"]
["NvE- Montalto Series (45% of map unit) ",0.32,"Moderately slow","Well drained","N/A",6,2,"C"]
["NvE- Neshaminy Series very deep over gabbro (55%of map unit)",0.43,"Moderate","Well drained","N/A",6,2,"B"]
["NxB- Neshaminy Series very deep over gabbro (55%of map unit)",0.43,"Moderate","Well drained","N/A",6,2,"B"]
["OtA- Othello Series drained (35% of map unit)",0.49,"Moderately slow","Poorly drained","N/A",1.18,1,"C"]
["OtA- Othello Series undrained (40% of map unit)",0.02,"Moderately slow","Poorly drained","N/A",0.43,1,"D"]
["Pa- Pawcatuck Series (80% of map unit)",0.02,"Moderate","Very poorly drained","N/A",0,1,"D"]
["Pk- Puckum Series (85% of map unit)",0.02,"Moderately rapid","Very poorly drained","N/A",0.16,1,"D"]
["PpA- Pepperbox Series (80% of map unit)",0.15,"Moderate","Moderately well drained","N/A",2.4900000000000002,1,"C"]
["PpB- Pepperbox Series (80% of map unit)",0.15,"Moderate","Moderately well drained","N/A",2.4900000000000002,1,"C"]
["PrA- Pepperbox Series (50% of map unit)",0.15,"Moderate","Moderately well drained","N/A",2.4900000000000002,1,"C"]
["PrA- Rockawalkin Series (30% of map unit)",0.15,"Moderately rapid","Moderately well drained","N/A",2.4900000000000002,3,"B"]
["PrB- Pepperbox Series (50% of map unit)",0.15,"Moderate","Moderately well drained","N/A",2.4900000000000002,1,"C"]
["PrB- Rockawalkin Series (30% of map unit)",0.15,"Moderately rapid","Moderately well drained","N/A",2.4900000000000002,3,"B"]
["PsA- Pepperbox Series (45% of map unit)",0.15,"Moderate","Moderately well drained","N/A",2.4900000000000002,1,"C"]
["PsA- Rosedale Series (45% of map unit)",0.1,"Moderately rapid","Well drained","N/A",3.74,3,"A"]
["PsB- Pepperbox Series (45% of map unit)",0.1,"Moderate","Moderately well drained","N/A",2.4900000000000002,1,"C"]
["PsB- Rosedale Series (45% of map unit)",0.1,"Moderately rapid","Well drained","N/A",3.74,3,"A"]
["Pu- Purnell Series (85% of map unit)",0.02,"Rapid","Very poorly drained","N/A",0,1,"D"]
["PyA- Pineyneck Series (80% of map unit)",0.37,"Moderate","Moderately well drained","N/A",2.4900000000000002,2,"B"]
["PyB- Pineyneck Series (80% of map unit)",0.37,"Moderate","Moderately well drained","N/A",2.4900000000000002,2,"B"]
["RdA- Queponco Series (40% of map unit)",0.43,"Moderate","Well drained","N/A",3.74,2,"B"]
["RdA- Queponco Series (40% of map unit)",0.37,"Moderate","Well drained","N/A",3.74,2,"B"]
["RdA- Reybold Series (45% of map unit)",0.43,"Moderate","Well drained","N/A",6,2,"B"]
["ReA- Reybold Series (75% of map unit)",0.43,"Moderate","Well drained","N/A",6,2,"B"]
["ReB- Reybold Series (75% of map unit)",0.43,"Moderate","Well drained","N/A",6,2,"B"]
["ReC- Reybold Series (75% of map unit)",0.43,"Moderate","Well drained","N/A",6,2,"B"]
["RkA- Rockawalkin Series (75% of map unit)",0.15,"Moderately rapid","Moderately well drained","N/A",2.4900000000000002,3,"B"]
["RkB- Rockawalkin Series (75% of map unit)",0.15,"Moderately rapid","Moderately well drained","N/A",2.4900000000000002,3,"B"]
["RoA- Rosedale Series (75% of map unit)",0.1,"Moderately rapid","Well drained","N/A",3.74,3,"A"]
["RoB- Rosedale Series (75% of map unit)",0.1,"Moderately rapid","Well drained","N/A",3.74,3,"A"]
["RsA- Runclint Series (75% of map unit)",0.1,"Rapid","Excessively drained","N/A",3.74,3,"A"]
["RsB- Runclint Series (75% of map unit)",0.1,"Rapid","Excessively drained","N/A",3.74,3,"A"]
["RuA- Runclint Series (75% of map unit)",0.1,"Rapid","Excessively drained","N/A",3.74,3,"A"]
["RuB- Runclint Series (75% of map unit)",0.1,"Rapid","Excessively drained","N/A",3.74,3,"A"]
["RwA- Cedartown Series (40% of map unit)",0.1,"Rapid","Somewhat excessively drained","N/A",3.74,3,"A"]
["RwA- Runclint Series (45% of map unit)",0.1,"Rapid","Excessively drained","N/A",3.74,3,"A"]
["RwB- Cedartown Series (40% of map unit)",0.1,"Rapid","Somewhat excessively drained","N/A",3.74,3,"A"]
["RwB- Runclint Series (45% of map unit)",0.1,"Rapid","Excessively drained","N/A",3.74,3,"A"]
["SaA- Sassafras Series (80% of map unit)",0.24,"Moderate","Well drained","N/A",6,3,"B"]
["SaB- Sassafras Series (80% of map unit)",0.24,"Moderate","Well drained","N/A",6,3,"B"]
["SaC- Sassafras Series (75% of map unit)",0.24,"Moderate","Well drained","N/A",6,3,"B"]
["SaD- Sassafras Series (75% of map unit)",0.24,"Moderate","Well drained","N/A",6,3,"B"]
["SaE- Sassafras Series (75% of map unit)",0.24,"Moderate","Well drained","N/A",6,3,"B"]
["SlA- Sassafras Series (80% of map unit)",0.37,"Moderate","Well drained","N/A",6,2,"B"]
["SlB- Sassafras Series (80% of map unit)",0.37,"Moderate","Well drained","N/A",6,2,"B"]
["Sp- Saltpond Series (85% of map unit)",0.02,"Very rapid","Poorly drained","N/A",0.43,1,"D"]
["SSD- Sassafras Series (75% of map unit)",0.24,"Moderate","Well drained","N/A",6,3,"B"]
["SuA- Sunken Series (80% of map unit)",0.02,"Slow","Very poorly drained","N/A",0.43,1,"D"]
["SuA- Sunken Series (80% of map unit)",0.02,"Slow","Very poorly drained","N/A",0.43,1,"D"]
["TaB- Talleyville Series (80% of map unit)",0.49,"Moderately slow","Well drained","N/A",6,2,"B"]
["TdB- Montalto Series (30% of map unit)",0.32,"Moderately slow","Well drained","N/A",6,1,"C"]
["TdB- Talleyville Series (45% of map unit)",0.49,"Moderately slow","Well drained","N/A",6,2,"B"]
["TeA- Tent Series drained (50% of map unit)",0.49,"Moderately slow","Poorly drained","N/A",1.18,1,"C"]
["TeA- Tent Series drained (50% of map unit)",0.02,"Moderately slow","Poorly drained","N/A",1.18,1,"C"]
["TeA- Tent Series undrained (35% of map unit)",0.02,"Moderately slow","Poorly drained","N/A",0.43,1,"D"]
["TeA- Tent Series undrained (35% of map unit)",0.49,"Moderately slow","Poorly drained","N/A",0.43,1,"D"]
["TP- Mispillion Series (40% of map unit)",0.02,"Moderately rapid","Very poorly drained","N/A",0.16,1,"D"]
["TP- Mispillion Series (40% of map unit)",0.02,"Moderately rapid","Very poorly drained","N/A",0.16,1,"D"]
["TP- Transquaking Series (40% of map unit)",0.02,"Rapid","Very poorly drained","N/A",0.16,1,"D"]
["TP- Transquaking Series (40% of map unit)",0.02,"Rapid","Very poorly drained","N/A",0.16,1,"D"]
["UaB- Udorthents Series schist and gneiss (95% of map unit)",0.43,"Slow","Well drained","N/A",4.99,3,"B"]
["UbB- Udorthents Series (75% of map unit)",0.28000000000000003,"Moderately slow","Moderately well drained","N/A",2.4900000000000002,3,"B"]
["UbB- Udorthents Series (75% of map unit)",0.37,"Moderately slow","Moderately well drained","N/A",2.4900000000000002,3,"B"]
["UdrB- Udorthents Series (90% of map unit)",0.43,"Slow","Well drained","N/A",6,1,"D"]
["UfB- Udorthents Series (85% of map unit)",0.2,"Moderately rapid","Well drained","N/A",3.74,3,"C"]
["UlA- Unicorn Series (85% of map unit)",0.37,"Moderate","Well drained","N/A",3.74,2,"B"]
["UlB- Unicorn Series (85% of map unit)",0.37,"Moderate","Well drained","N/A",3.74,2,"B"]
["UsB- Udorthents Series (85% of map unit)",0.2,"Moderately slow","Well drained","N/A",3.74,2,"C"]
["UwA- Udorthents Series (85% of map unit)",0.37,"Moderately slow","Moderately well drained","N/A",2.4900000000000002,3,"B"]
["UzC- Udorthents Series loamy (90% of map unit)",0.2,"Moderately rapid","Well drained","N/A",3.74,3,"B"]
["UzD- Udorthents Series loamy (90% of map unit)",0.2,"Moderately rapid","Well drained","N/A",3.74,3,"B"]
["UzF- Udorthents Series loamy (85% of map unit)",0.2,"Moderately rapid","Well drained","N/A",3.74,3,"B"]
["VoB- Othello Series drained (30% of map unit)",0.49,"Moderately slow","Poorly drained","N/A",1.18,1,"C"]
["VwB- Wheaton Series (40% of map unit)",0.49,"Moderate","Well drained","N/A",6,3,"B"]
["WaA- Watchung Series (90% of map unit)",0.32,"Slow","Poorly drained","N/A",0.43,1,"D"]
["WaB- Watchung Series (90% of map unit)",0.32,"Slow","Poorly drained","N/A",0.43,1,"D"]
["WcB- Watchung Series (85% of map unit)",0.32,"Slow","Poorly drained","N/A",0.43,1,"D"]
["WdA- Woodstown Series (80% of map unit)",0.24,"Moderate","Moderately well drained","N/A",2.4900000000000002,1,"C"]
["WdB- Woodstown Series (85% of map unit)",0.17,"Moderate","Moderately well drained","N/A",2.4900000000000002,1,"C"]
["WdB- Woodstown Series (85% of map unit)",0.24,"Moderate","Moderately well drained","N/A",2.4900000000000002,1,"C"]
["WhA- Whitemarsh Series drained (35% of map unit)",0.49,"Slow","Poorly drained","N/A",1.18,1,"C"]
["WhA- Whitemarsh Series undrained (40% of map unit)",0.02,"Slow","Poorly drained","N/A",0.43,1,"D"]
["WoA- Woodstown Series (80% of map unit)",0.37,"Moderate","Moderately well drained","N/A",2.4900000000000002,1,"C"]
["WoB- Woodstown Series (80% of map unit)",0.37,"Moderate","Moderately well drained","N/A",2.4900000000000002,1,"C"]
["Za- Zekiah Series (75% of map unit)",0.37,"Moderate","Poorly drained","N/A",0.43,1,"D"]
[]
[null,null,null,"Kent/Sussex Soils",null,"New Castle Soils"]

{"sheet":"Part A Tables","index":6,"n_rows":40,"n_cols":9,"rows_kept":40,"cut":false,"hidden":true,"merged":[[34,1,34,2],[43,2,46,2],[47,2,49,2],[50,2,52,2],[52,9,53,9],[28,2,28,5],[0,1,0,8],[1,1,2,1],[1,2,1,8],[20,1,21,1],[20,2,20,8]]}
[null,"Part A Tables"]
[null,"Slope","Soil Permeability Class"]
[null,null,"Very Rapid","Moderately Rapid","Rapid","Moderate","Moderately Slow","Slow","Very Slow"]
[null,"Concave",0,0,0,0,0,0,0]
[null,0.2,0,0,0,0,0,2,4]
[null,0.5,0,0,0,0,0,2,4]
[null,1,0,0,0,2,2,4,6]
[null,2,0,0,0,2,2,4,6]
[null,3,0,0,0,2,2,4,6]
[null,4,0,0,0,2,2,4,6]
[null,5,0,0,0,2,2,4,6]
[null,6,0,2,2,4,4,6,8]
[null,8,0,2,2,4,4,6,8]
[null,10,0,2,2,4,4,6,8]
[null,12,0,2,2,4,4,6,8]
[null,14,0,2,2,4,4,6,8]
[null,16,0,2,2,4,4,6,8]
[null,20,0,2,2,4,4,6,8]
[null,25,2,4,4,6,6,8,8]
[]
[null,"Depth to Seasonal High Water Table (feet)","Soil Drainage Class"]
[null,null,"Very Poorly Drained","Poorly Drained","Somewhat poorly drained","Moderately well drained","Well Drained","Somewhat excessively drained","Excessively drained"]
[null,0,8,8,8,8,8]
[null,1.01,4,4,4,4,6,6]
[null,4.01,null,2,2,2,4,4,4]
[null,6,null,null,0,2,2,2,2]
[null,"Artificial drainage (any depth)",6,6,6,6,6,6,6]
[]
[null,"Depth to seasonal high water table (feet)","Delaware NRCS Leaching Value"]
[null,null,0,1,2,3]
[null,0,0,2,4,4]
[null,1.01,0,0,2,4]
[null,6,0,0,0,2]
[]
[null,"Information on distance from edge of field to water, buffer width, and width of a 'No P application zone'"]
[null,"Greater than 100 feet to surface water OR",0]
[null,"Less than 100 feet to surface water AND greater than 50 feet permanent vegetative buffer Less than 100 feet to surface water AND greater than 25 feet permanent vegetative buffer AND greater than 25 feet additional 'No P application zone' beyond permanent vegetative buffer",2]
[null,"Less than 100 feet to surface water AND greater than 25 feet permanent vegetative buffer AND less than 25 feet additional 'No P application zone' beyond permanent vegetative buffer",4]
[null,"Less than 100 feet to suface water AND less than 25 feet permanent vegetative buffer AND greater than 25 feet 'No P application zone'",6]
[null,"Less than 100 feet to suface water AND less than 25 feet permanent vegetative buffer AND less than 25 feet 'No P application zone'",8]

{"sheet":"Part B Tables","index":7,"n_rows":21,"n_cols":7,"rows_kept":21,"cut":false,"hidden":true,"merged":[[0,1,0,4]]}
[null,"Part B Tables"]
[null,"Organic P Source ","Typical P2O5 Content","Units","Typical Dry Matter (%)"]
[null,"None",0,"None",0]
[null,"Broiler litter",44,"lb/ton",75,null,"tons/acre"]
[null,"Layer litter",55,"lb/ton",40,null,"1000 gal/acre"]
[null,"Beef manure",7,"lb/ton",12]
[null,"Dairy manure-solid",4,"lb/ton",13]
[null,"Dairy manure-liquid",13,"lbs/1000 gal","<5"]
[null,"Swine manure-liquid storage (sows)",10,"lbs/1000 gal",9]
[null,"Swine manure-liquid storage (grower pigs)",23,"lbs/1000 gal",10]
[null,"Swine manure-lagoon liquid",0.6,"lbs/1000 gal",0.25]
[null,"Biosolids (sewage sludge)",18,"lb/ton",20]
[]
[]
[null,"P Application Method and Timing","Value"]
[1,"None applied",0]
[2,"Injected/banded below surface at least 2\"",15]
[3,"Incorporated within 5 days of application",30]
[4,"Incorporated more than 5 days after application",45]
[null,"Surface applied March through November",45]
[5,"Surface applied December through February",60]

{"sheet":"R","index":8,"n_rows":5,"n_cols":2,"rows_kept":5,"cut":false,"hidden":true,"merged":[[0,0,0,1]]}
["R Factors"]
["County","R"]
["Kent",185]
["New Castle",180]
["Sussex",190]

{"sheet":"LS","index":9,"n_rows":20,"n_cols":14,"rows_kept":20,"cut":false,"hidden":true,"merged":[[0,0,0,11],[2,0,2,1],[3,2,3,11]]}
["Length and Slope (LS) factors for use in RUSLE calculations for Delaware."]
[]
["Horizontal Slope Length (ft)",null,25,50,75,100,150,200,250,300,400,600,null,25]
["Slope %",null,"----------------------------------------------------------- LS Factor for RUSLE -----------------------------------------------------------",null,null,null,null,null,null,null,null,null,null,50]
[null,null,null,null,null,null,null,null,null,null,null,null,null,75]
[0.2,null,0.05,0.05,0.05,0.05,0.05,0.05,0.05,0.05,0.05,0.06,null,100]
[0.5,null,0.08,0.08,0.08,0.09,0.09,0.09,0.09,0.09,0.1,0.1,null,150]
[1,null,0.12,0.13,0.14000000000000001,0.14000000000000001,0.15,0.16,0.17,0.17,0.18,0.19,null,200]
[2,null,0.19,0.22,0.25,0.27,0.28999999999999998,0.31,0.33,0.35,0.37,0.41,null,250]
[3,null,0.25,0.32,0.36,0.39,0.44,0.48,0.52,0.55000000000000004,0.6,0.68,null,300]
[4,null,0.31,0.4,0.47,0.52,0.6,0.67,0.72,0.77,0.86,0.99,null,400]
[5,null,0.37,0.49,0.57999999999999996,0.65,0.76,0.85,0.93,1.01,1.1299999999999999,1.33,null,600]
[6,null,0.43,0.57999999999999996,0.69,0.78,0.93,1.05,1.1599999999999999,1.2,1.42,1.69]
[8,null,0.53,0.74,0.91,1.04,1.26,1.45,1.62,1.77,2.0299999999999998,2.4700000000000002]
[10,null,0.67,0.97,1.19,1.38,1.71,1.98,2.2200000000000002,2.44,2.84,3.5]
[12,null,0.84,1.23,1.53,1.79,2.23,2.61,2.95,3.26,3.81,4.75]
[14,null,1,1.48,1.86,2.19,2.76,3.25,3.69,4.09,4.82,6.07]
[16,null,1.1499999999999999,1.73,2.2000000000000002,2.6,3.3,3.9,4.45,4.95,5.86,7.43]
[20,null,1.45,2.2200000000000002,2.85,3.4,4.3600000000000003,5.21,5.97,6.68,7.97,10.23]
[25,null,1.81,2.82,3.65,4.3899999999999997,5.69,6.83,7.88,8.86,10.65,13.8]

{"sheet":"C","index":10,"n_rows":46,"n_cols":2,"rows_kept":46,"cut":false,"hidden":true,"merged":[[0,0,0,1]]}
["C Factors:  Please select the cropping system for your field from the table below."]
["Cropping System","C "]
["Continuous Corn    no-till",0.01]
["Continuous Corn   cons. tillage",0.08]
["Continuous Corn   clean tillage",0.18]
["Continuous Soybeans   no-till - narrow row",0.14000000000000001]
["Continuous Soybeans   no-till - wide row",0.11]
["Continuous Soybeans   cons. tillage - narrow row",0.24]
["Continuous Soybeans   cons. tillage - wide row",0.26]
["Continuous Soybeans   clean tillage - narrow row",0.27]
["Continuous Soybeans   clean tillage - wide row",0.28000000000000003]
["Corn, Full Season Soybeans    no-till corn, no-till soybeans",0.04]
["Corn, Full Season Soybeans    no-till corn, cons. tillage soybeans",0.13]
["Corn, Full Season Soybeans    no-till corn, clean tillage soybeans",0.18]
["Corn, Full Season Soybeans    cons. tillage corn, no-till soybeans",0.1]
["Corn, Full Season Soybeans    cons. tillage corn, cons. tillage soybeans",0.14000000000000001]
["Corn, Full Season Soybeans    cons. tillage corn, clean tillage soybeans",0.2]
["Corn, Full Season Soybeans    clean tillage corn, no-till soybeans",0.14000000000000001]
["Corn, Full Season Soybeans    clean tillage corn, cons. tillage soybeans",0.17]
["Corn, Full Season Soybeans    clean tillage corn, conventional soybeans",0.22]
["Corn, Wheat, Double Cropped Soybeans     no-till corn, clean tillage wheat, no-till soybeans",0.06]
["Corn, Wheat, Double Cropped Soybeans     no-till corn, cons. tillage wheat, no-till soybeans",0.03]
["Corn, Wheat, Double Cropped Soybeans    cons. till. corn, clean till. wheat, no-till soybeans",0.11]
["Corn, Wheat, Double Cropped Soybeans    cons. till. corn, cons. till. wheat, no-till soybeans",0.08]
["Corn, Wheat, Double Cropped Soybeans    clean till. corn, clean till. wheat, no-till soybeans",0.12]
["Corn, Wheat, Double Cropped Soybeans    clean till. corn, cons. till. wheat, no-till soybeans",0.1]
["Corn, Corn, Wheat, Soybeans     2 years no-till corn, clean tillage wheat, no-till soybeans",0.04]
["Corn, Corn, Wheat, Soybeans     2 years no-till corn, cons. tillage wheat, no-till soybeans",0.03]
["Corn, Corn, Wheat, Soybeans     2 years cons. till. corn, clean till. wheat, no-till soybeans",0.08]
["Corn, Corn, Wheat, Soybeans     2 years cons. till. corn, cons. till. wheat, no-till soybeans",0.06]
["Corn, Corn, Wheat, Soybeans     2 years clean till. corn, clean till. wheat, no-till soybeans",0.14000000000000001]
["Corn, Corn, Wheat, Soybeans     2 years clean till. corn, cons. till. wheat, no-till soybeans",0.13]
["Cabbage   clean tillage",0.33]
["Hay",0.01]
["Alfalfa",0.01]
["Pasture",0.01]
["Sweet corn   clean tillage",0.22]
["Sweet corn, winter small grain cover   clean tillage",0.19]
["Tomatoes   clean tillage",0.45]
["Tomatoes, winter small grain cover   clean tillage",0.34]
["Cucumbers   clean tillage",0.55000000000000004]
["Cucumbers, winter small grain cover   clean tillage",0.38]
["Peppers   clean tillage",0.52]
["Peppers, winter small grain cover   clean tillage",0.36]
["Snap beans   clean tillage",0.43]
["Snap beans, winter small grain cover   clean tillage",0.3]

{"sheet":"P","index":11,"n_rows":55,"n_cols":7,"rows_kept":55,"cut":false,"hidden":true,"merged":[[44,1,44,6],[45,1,46,1],[45,2,46,2],[45,3,45,6],[54,1,55,6],[31,1,32,1],[31,2,32,2],[31,3,31,6],[0,1,0,6],[2,1,2,6],[3,1,4,1],[3,2,4,2],[3,3,3,6],[16,1,16,6],[17,1,18,1],[17,2,18,2],[17,3,17,6],[27,1,27,6],[30,1,30,6]]}
[null,"Support Practice (P) factors for use in RUSLE calculations for Delaware."]
[]
[null,"Support Practice: Contour Farming with Very Low Ridge Height"]
[null,"Furrow\nGradient (%)","Hydrologic Soil Group","Field Slope"]
[null,null,null,0.03,0.05,7.0000000000000007E-2,0.1]
[null,0.5,"A",0.6,0.53,0.51,0.53]
[null,1,"A",0.72,0.67,0.59,0.59]
[null,2,"A",0.88,0.75,0.69,0.67]
[null,0.5,"B",0.79,0.75,0.46,0.83]
[null,1,"B",0.85,0.8,0.8,0.85]
[null,2,"B",0.94,0.97,0.85,0.88]
[null,0.5,"C",0.9,0.89,0.9,0.96]
[null,1,"C",0.93,0.91,0.91,0.97]
[null,2,"C",0.97,0.94,0.94,0.97]
[]
[]
[null,"Support Practice: Contour Farming with Low Ridge Height"]
[null,"Furrow\nGradient (%)","Hydrologic Soil Group","Field Slope"]
[null,null,null,0.03,0.05,7.0000000000000007E-2,0.1]
[null,1,"A",0.72,0.67,0.59,0.51]
[null,2,"A",0.88,0.75,0.69,0.6]
[null,0.5,"B",0.79,0.75,0.63,0.67]
[null,1,"B",0.85,0.8,0.8,0.71]
[null,2,"B",0.94,0.97,0.85,0.76]
[null,0.5,"C",0.9,0.89,0.74,0.8]
[null,1,"C",0.93,0.91,0.78,0.82]
[null,2,"C",0.97,0.94,0.84,0.87]
[null,"Figures based on moderate ground cover, 100 foot slope length."]
[]
[]
[null,"Support Practice: Contour Stripcropping with Very Low Ridge Height"]
[null,"Furrow\nGradient (%)","Hydrologic Soil Group","Field Slope"]
[null,null,null,0.03,0.05,7.0000000000000007E-2,0.1]
[null,1,"A",0.68,0.64,0.56000000000000005,0.56000000000000005]
[null,2,"A",0.83,0.71,0.66,0.63]
[null,0.5,"B",0.75,0.71,0.44,0.79]
[null,1,"B",0.81,0.76,0.76,0.81]
[null,2,"B",0.89,0.92,0.8,0.84]
[null,0.5,"C",0.86,0.84,0.85,0.92]
[null,1,"C",0.88,0.86,0.87,0.92]
[null,2,"C",0.92,0.89,0.89,0.93]
[]
[]
[]
[null,"Support Practice: Contour Stripcropping with Low Ridge Height"]
[null,"Furrow\nGradient (%)","Hydrologic Soil Group","Field Slope"]
[null,null,null,0.03,0.05,7.0000000000000007E-2,0.1]
[null,1,"A",0.68100000000000005,0.58899999999999997,0.56000000000000005,0.48]
[null,2,"A",0.83299999999999996,0.70899999999999996,0.66,0.56999999999999995]
[null,0.5,"B",0.749,0.71299999999999997,0.6,0.63]
[null,2,"B",0.874,0.82199999999999995,0.8,0.72]
[null,0.5,"C",0.85699999999999998,0.84099999999999997,0.71,0.76]
[null,1,"C",0.88400000000000001,0.86199999999999999,0.74,0.78]
[null,2,"C",0.92200000000000004,0.89100000000000001,0.8,0.82]
[null,"Figures based on moderate ground cover, 300 foot slope length, and 100 food wide strips. Factor for strips is 0.95 of that for contours."]

{"sheet":"Distance","index":12,"n_rows":7,"n_cols":3,"rows_kept":7,"cut":false,"hidden":true,"merged":[[0,1,0,2]]}
[null,"Distance"]
[null,"Information on distance from edge of field to water, buffer width, and width of a 'No P application zone'","Value"]
[null,"Greater than 100 feet to surface water",0]
[null,"Less than 100 feet to surface water AND greater than 50 feet permanent vegetative buffer OR Less than 100 feet to surface water AND greater than 25 feet permanent vegetative buffer AND greater than 25 feet additional 'No P application zone' beyond permanent vegetative buffer",2]
[null,"Less than 100 feet to surface water AND greater than 25 feet permanent vegetative buffer AND less than 25 feet additional 'No P application zone' beyond permanent vegetative buffer",4]
[null,"Less than 100 feet to suface water AND less than 25 feet permanent vegetative buffer AND greater than\n25 feet 'No P application zone'",6]
[null,"Less than 100 feet to suface water AND less than 25 feet permanent vegetative buffer AND less than\n25 feet 'No P application zone'",8]

{"sheet":"Lab","index":13,"n_rows":20,"n_cols":4,"rows_kept":20,"cut":false,"hidden":true,"merged":[[0,0,0,3]]}
["Soil Lab Information"]
["Lab","Units","Conversion Factor","Contact Information"]
["A&L","ppm",1,"Contact Paul Chu ((804) 743-9401, paulchu2@al-labs-eastern.com"]
["Agri-Analysis","ppm",1,"Contact Tim Hoerner: (717) 656-9326; timhoerner@comcast.net"]
["AgroLab, Inc.","ppm",1,"Contact Bill Rohrer: (302) 535-6591"]
["Brookside (lb P2O5/a)","lb P2O5/acre",{"$f":"0.5*0.43","v":0.215}]
["Brookside (ppm)","ppm",1,"Contact Mark Flock: (419) 753-2448; mflock@blinc.com"]
["Penn State","ppm",1]
["Rutgers","lb P/acre",0.5,"Contact Stephanie Murphy: (732) 932-9295, smurphy@aesop.rutgers.edu"]
["Spectrum (lb P/acre)","lb P/acre",0.5]
["Spectrum (ppm)","ppm",1,"Contact Scott Anderson ((740) 335-1562, scott@spectrumanalytic.com)"]
["University of Delaware","FIV",1]
["Virginia Tech","lb P/acre",1,"Contact Steve Heckendorn ((540) 231-9807; shckndrn@vt.edu)"]
["Waters Agricultural Lab","ppm",1]
[]
[]
[]
["FIV"]
["lb/a"]
["ppm"]

{"sheet":"Index","index":14,"n_rows":25,"n_cols":3,"rows_kept":25,"cut":false,"hidden":true,"merged":[[0,0,0,2]]}
["Index Information"]
["Soil Permeability","Soil Drainage"]
["Very Rapid","Very Poorly Drained",1]
["Moderately Rapid","Poorly Drained",2]
["Rapid","Somewhat poorly drained",3]
["Moderate","Moderately well drained",4]
["Moderately Slow","Well drained",5]
["Slow","Somewhat excessively drained",6]
["Very Slow","Excessively drained",7]
[]
[]
["Depth to Seasonally High Water Table"]
[0,1]
[0.25,2]
[0.5,3]
[0.75,4]
[1.5,5]
[1.75,6]
[2,7]
[2.25,8]
[2.5,9]
[2.75,10]
[3,11]
[5,12]
[6,13]

{"sheet":"Dry-Stack Calc WL","index":15,"n_rows":45,"n_cols":19,"rows_kept":45,"cut":false,"hidden":false,"merged":[[3,0,3,8],[3,11,3,18],[0,0,0,8],[1,0,1,8],[1,11,1,18],[2,0,2,8],[2,11,2,18],[4,2,4,3],[4,11,4,18],[8,0,8,1],[8,11,9,11],[8,12,9,12],[8,13,9,13],[8,14,9,14],[8,15,9,15],[8,16,9,17],[8,18,9,18],[17,1,17,2],[17,16,17,17],[10,16,10,17],[11,0,11,8],[11,16,11,17],[12,16,12,17],[13,1,13,2],[13,16,13,17],[14,1,14,2],[14,16,14,17],[15,16,15,17],[16,1,16,2],[16,16,16,17],[18,1,18,2],[18,16,18,17],[19,1,19,2],[19,16,19,17],[20,1,20,2],[20,16,20,17],[21,1,21,2],[21,16,21,17],[22,1,22,2],[22,16,22,17],[23,1,23,2],[23,16,23,17],[39,1,39,2],[24,16,24,17],[25,0,25,8],[25,16,25,17],[27,1,27,2],[28,1,28,2],[29,1,29,2],[30,1,30,2],[32,0,32,8],[34,1,34,2],[36,0,36,8],[38,1,38,2],[40,0,40,2],[41,0,41,8],[42,0,42,8],[43,0,43,8],[44,0,44,8]]}
["Delaware NRCS Modified Manure Estimation Tool"]
["MANURE QUANTITY ESTIMATION",null,null,null,null,null,null,null,null,null,null,"Manure Quantity and Bedding Material Density Estimation Variables"]
["(For Solid Manure)",null,null,null,null,null,null,null,null,null,null,"(For Solid Dry Stack Manure)"]
["You can only edit Values highlighted in yellow, Dropdowns are in green Formula's are in blue",null,null,null,null,null,null,null,null,null,null,"Storage Estimates in Pounds and Cu Ft of Manure and Bedding Material "]
["Farm name:",null,{"$f":"'CNMP-With Land'!$D$7","v":0},null,null,null,null,null,null,null,null,"for Production Period "]
[]
["Manure Production period:"]
[]
["Starting date:",null,null,null,"Ending date:",{"$f":"IF(C9=\"\",\"\",C9+F11-1)","v":""},null,null,null,null,null,"Livestock Group","lbs Manure\n/AU/day","Cu Ft Manure\n/AU/day","Lbs Manure/\nCu Ft",null,"Bedding Material",null,"Density\n(lbs/Cu ft)"]
[]
["A.","Total days in manure production period:",null,null,null,{"$f":"IF(ISBLANK(C9),\"\",365)","v":""}]
["Livestock Information",null,null,null,null,null,null,null,null,null,null,"Alpaca",40,0.64,{"$f":"M12/N12","v":62.5},null,"Baled-Hay",null,7]
[null,null,null,1,2,3,4,5,6,null,null,"Buffalo",60,0.95,63.15789473684211,null,"Baled-Straw",null,5]
["B.","Livestock group",null,null,null,null,null,null,null,null,null,"Calf (450-750 lbs)",58,0.93,62.365591397849457,null,"Baled-Wood Shavings",null,20]
["C.","Average weight (lbs.)",null,null,null,null,null,null,null,null,null,"Dairy: Dry Cow",82,1.3,63.076923076923073,null,"Chopped-Hay",null,6]
["D.","# of animals",null,null,null,null,null,null,null,null,null,"Dairy: Heifer",85,1.3,65.384615384615387,null,"Chopped-Straw",null,7]
["E.","Animal units (AU)                                                    [(C x D)/1000]",null,{"$f":"IF(D14=\"\",\"\",(D15*D16)/1000)","v":""},"","",{"$f":"IF(G14=\"\",\"\",(G15*G16)/1000)","v":""},{"$f":"IF(H14=\"\",\"\",(H15*H16)/1000)","v":""},"",null,null,"Emu",45,0.72,62.5,null,"Loose-Sawdust",null,12]
["F.","Full days confined during manure production period",null,null,null,null,null,null,null,null,null,"Feeder Yearling\n High Energy Diet",51,0.82,62.195121951219512,null,"Loose-Straw",null,2.5]
["G.","Days partially confined during manure production period",null,{"$f":"IF(D14=\"\",\"\",$F$11-D18)","v":""},"","",{"$f":"IF(G14=\"\",\"\",$F$11-G18)","v":""},{"$f":"IF(H14=\"\",\"\",$F$11-H18)","v":""},"",null,null,"Feeder Yearling\n High Forage Diet",59,0.95,62.10526315789474,null,"Loose-Wood Shavings",null,9]
["H.","Hours per day confined",null,null,null,null,null,null,null,null,null,"Goat",40,0.64,62.5]
["I.","Day equivalents partially confined (G * H)/24",null,{"$f":"IF(D14=\"\",\"\",ROUNDDOWN(D19*D20/24,0))","v":""},{"$f":"IF(E14=\"\",\"\",ROUNDDOWN(E19*E20/24,0))","v":""},"","","","",null,null,"Horse",50,0.8,62.5]
["J.","Total day equivalents confined                                                (F + I)",null,{"$f":"IF(D14=\"\",\"\",(D18+D21))","v":""},"","",{"$f":"IF(G14=\"\",\"\",(G18+G21))","v":""},{"$f":"IF(H14=\"\",\"\",(H18+H21))","v":""},"",null,null,"Llama",40,0.64,62.5]
["K.","Total day equivalents unconfined on pasture                                            (A - J)",null,{"$f":"IF(D14=\"\",\"\",$F$11-D22)","v":""},"","",{"$f":"IF(G14=\"\",\"\",$F$11-G22)","v":""},{"$f":"IF(H14=\"\",\"\",$F$11-H22)","v":""},"",null,null,"Rabbit",150,2.39,62.761506276150627]
["L.","Weight of manure/AU/day (lbs.)                                      (see Table 1.)",null,{"$f":"IF(D14=\"\",\"\",VLOOKUP(D$14,$L$11:$N$26,2,FALSE))","v":""},"","",{"$f":"IF(G14=\"\",\"\",VLOOKUP(G$14,$L$11:$N$26,2,FALSE))","v":""},{"$f":"IF(H14=\"\",\"\",VLOOKUP(H$14,$L$11:$N$26,2,FALSE))","v":""},"",null,null,"Sheep",40,0.63,63.492063492063494]
[null,null,null,null,null,null,null,null,null,null,null,"Beef Cow",82,1.3,63.076923076923073]
["Bedding Estimation"]
[null,null,null,1,2,3,4,5,6,null,null,"Estimate based on Regression."]
["M.","Bedding type (straw, sawdust, etc.)"]
["N.","Volume of bedding this production period (cu.ft.).",null,null,null,null,null,null,null,null,null,"Existing Manure\nStorage","Length\n(Ft)","Width\n(Ft)","Wall Height\n(Ft)","Total Existing\nStorage (Cu Ft)",null,"Total Storage\nNeeded (Cu Ft)","Unmet Storage\nNeeds (Cu Ft)"]
["O.","Density of bedding (lbs. per cu.ft.)                       (see Table 2.)",null,{"$f":"IF(D28=\"\",\"\",VLOOKUP(D$28,$Q$11:$S$26,3,FALSE))","v":""},"","",{"$f":"IF(G28=\"\",\"\",VLOOKUP(G$28,$Q$11:$S$26,3,FALSE))","v":""},{"$f":"IF(H28=\"\",\"\",VLOOKUP(H$28,$Q$11:$S$26,3,FALSE))","v":""},"",null,null,"Storage Area 1",null,null,null,{"$f":"IF(M30=\"\",\"\",M30*N30*O30)","v":""}]
["P.","Weight of bedding (tons)                                       [(N x O)/2000]",null,{"$f":"IF(D28=\"\",\"\",(D29*D30)/2000)","v":""},"","",{"$f":"IF(G28=\"\",\"\",(G29*G30)/2000)","v":""},{"$f":"IF(H28=\"\",\"\",(H29*H30)/2000)","v":""},"",null,null,"Storage Area 2",null,null,null,{"$f":"IF(M31=\"\",\"\",M31*N31*O31)","v":""}]
[null,null,null,null,null,null,null,null,null,null,null,"Storage Area 3",null,null,null,""]
["Uncollected  Manure (Deposited on Pasture)",null,null,null,null,null,null,null,null,null,null,"All Existing\nStorage Areas",null,null,null,{"$f":"SUM(P30:P32)","v":0},null,{"$f":"S41","v":0},{"$f":"R33-P33","v":0}]
[null,null,null,1,2,3,4,5,6]
["Q.","Weight of manure on pasture (tons)                                               [(E x L x K)/2000]",null,{"$f":"IF(D14=\"\",\"\",(D17*D23*D24)/2000)","v":""},"","",{"$f":"IF(G14=\"\",\"\",(G17*G23*G24)/2000)","v":""},{"$f":"IF(H14=\"\",\"\",(H17*H23*H24)/2000)","v":""},"",null,null,"Collected Material",{"$f":"IF(D14=\"\",\"\",D14)","v":""},{"$f":"IF(E14=\"\",\"\",E14)","v":""},{"$f":"IF(F14=\"\",\"\",F14)","v":""},"","","","All Storage\nNeeded"]
[null,null,null,null,null,null,null,null,null,null,null,"Manure (Tons)",{"$f":"D39","v":""},"","","","","",{"$f":"SUM(M36:R36)","v":0}]
["Collected Solid Waste (Manure And Bedding)",null,null,null,null,null,null,null,null,null,null,"Bedding (Tons)",{"$f":"D31","v":""},"","","","","",0]
[null,null,null,1,2,3,4,5,6,null,null,"Total (Tons)",{"$f":"IF(M35=\"\",\"\",SUM(M36:M37))","v":""},{"$f":"IF(N35=\"\",\"\",SUM(N36:N37))","v":""},{"$f":"IF(O35=\"\",\"\",SUM(O36:O37))","v":""},"","","",0]
["R.","Weight of collected manure (tons)                                             [(E x L x J)/2000]",null,{"$f":"IF(D14=\"\",\"\",(D17*D22*D24)/2000)","v":""},"","",{"$f":"IF(G14=\"\",\"\",(G17*G22*G24)/2000)","v":""},{"$f":"IF(H14=\"\",\"\",(H17*H22*H24)/2000)","v":""},"",null,null,"Manure (Cu Ft)",{"$f":"IF(D14=\"\",\"\",(D39*2000)/(VLOOKUP(D14,$L$11:$O$26,4,FALSE)))","v":""},"","",{"$f":"IF(G14=\"\",\"\",(G39*2000)/(VLOOKUP(G14,$L$11:$O$26,4,FALSE)))","v":""},{"$f":"IF(H14=\"\",\"\",(H39*2000)/(VLOOKUP(H14,$L$11:$O$26,4,FALSE)))","v":""},"",{"$f":"SUM(M39:R39)","v":0}]
["S.","Weight  of collected manure & bedding (tons)                                       (P + R)",null,{"$f":"IF(D14=\"\",\"\",(D31+D39))","v":""},"","",{"$f":"IF(G14=\"\",\"\",(G31+G39))","v":""},{"$f":"IF(H14=\"\",\"\",(H31+H39))","v":""},"",null,null,"Bedding (Cu Ft)*",{"$f":"IF(D28=\"\",\"\",0.5*(M37*2000)/D30)","v":""},"","","","","",{"$f":"SUM(M40:R40)","v":0}]
["DE Updated: 5-07-15",null,null,null,null,null,null,null,"MD Updated: 3-12-10",null,null,"Total (Cu Ft)",{"$f":"IF(M35=\"\",\"\",SUM(M39:M40))","v":""},{"$f":"IF(N35=\"\",\"\",SUM(N39:N40))","v":""},"","","","",0]
["AGRICULTURAL NUTRIENT MANAGEMENT PROGRAM",null,null,null,null,null,null,null,null,null,null,"*Bedding volume has been reduced by 50% to compensate for the void space in bedding materials."]
["(301) 405-1319 ¡ FAX (301) 314-7375",null,null,null,null,null,null,null,null,null,null,"Unconfined Manure",{"$f":"D14","v":0},{"$f":"E14","v":0},0,0,0,0,"Total (Pasture)"]
["0116 SYMONS HALL ¡ ENVIRONMENTAL SCIENCE AND TECHNOLOGY ¡ COLLEGE PARK, MARYLAND 20742",null,null,null,null,null,null,null,null,null,null,"on Pasture (Tons)",{"$f":"D35","v":""},{"$f":"E35","v":""},"","","","",{"$f":"SUM(M44:R44)","v":0}]
["LOCAL GOVERNMENTS ¡ U.S. DEPARTMENT OF AGRICULTURE COOPERATING EQUAL OPPORTUNITY PROGRAMS"]

{"sheet":"Dry-Stack CF","index":16,"n_rows":45,"n_cols":19,"rows_kept":45,"cut":false,"hidden":false,"merged":[[3,0,3,8],[3,11,3,18],[0,0,0,8],[1,0,1,8],[1,11,1,18],[2,0,2,8],[2,11,2,18],[4,2,4,3],[4,11,4,18],[8,0,8,1],[8,11,9,11],[8,12,9,12],[8,13,9,13],[8,14,9,14],[8,15,9,15],[8,16,9,17],[8,18,9,18],[17,1,17,2],[17,16,17,17],[10,16,10,17],[11,0,11,8],[11,16,11,17],[12,16,12,17],[13,1,13,2],[13,16,13,17],[14,1,14,2],[14,16,14,17],[15,16,15,17],[16,1,16,2],[16,16,16,17],[18,1,18,2],[18,16,18,17],[19,1,19,2],[19,16,19,17],[20,1,20,2],[20,16,20,17],[21,1,21,2],[21,16,21,17],[22,1,22,2],[22,16,22,17],[23,1,23,2],[23,16,23,17],[39,1,39,2],[24,16,24,17],[25,0,25,8],[25,16,25,17],[27,1,27,2],[28,1,28,2],[29,1,29,2],[30,1,30,2],[32,0,32,8],[34,1,34,2],[36,0,36,8],[38,1,38,2],[40,0,40,2],[41,0,41,8],[42,0,42,8],[43,0,43,8],[44,0,44,8]]}
["Delaware NRCS Modified Manure Estimation Tool"]
["MANURE QUANTITY ESTIMATION",null,null,null,null,null,null,null,null,null,null,"Manure Quantity and Bedding Material Density Estimation Variables"]
["(For Solid Manure)",null,null,null,null,null,null,null,null,null,null,"(For Solid Dry Stack Manure)"]
["You can only edit Values highlighted in yellow, Dropdowns are in green Formula's are in blue",null,null,null,null,null,null,null,null,null,null,"Storage Estimates in Pounds and Cu Ft of Manure and Bedding Material "]
["Farm name:",null,null,null,null,null,null,null,null,null,null,"for Production Period "]
[]
["Manure Production period:"]
[]
["Starting date:",null,null,null,"Ending date:",null,null,null,null,null,null,"Livestock Group","lbs Manure\n/AU/day","Cu Ft Manure\n/AU/day","Lbs Manure/\nCu Ft",null,"Bedding Material",null,"Density\n(lbs/Cu ft)"]
[]
["A.","Total days in manure production period:",null,null,null,{"$f":"IF(OR(ISBLANK(F9),ISBLANK(C9)),0,IF(C9>F9,\"ERROR\",F9-C9+1))","v":0}]
["Livestock Information",null,null,null,null,null,null,null,null,null,null,"Alpaca",40,0.64,{"$f":"M12/N12","v":62.5},null,"Baled-Hay",null,7]
[null,null,null,1,2,3,4,5,6,null,null,"Buffalo",60,0.95,63.15789473684211,null,"Baled-Straw",null,5]
["B.","Livestock group",null,null,null,null,null,null,null,null,null,"Calf (450-750 lbs)",58,0.93,62.365591397849457,null,"Baled-Wood Shavings",null,20]
["C.","Average weight (lbs.)",null,null,null,null,null,null,null,null,null,"Dairy: Dry Cow",82,1.3,63.076923076923073,null,"Chopped-Hay",null,6]
["D.","# of animals",null,null,null,null,null,null,null,null,null,"Dairy: Heifer",85,1.3,65.384615384615387,null,"Chopped-Straw",null,7]
["E.","Animal units (AU)                                                    [(C x D)/1000]",null,{"$f":"IF(D14=\"\",\"\",(D15*D16)/1000)","v":""},"","",{"$f":"IF(G14=\"\",\"\",(G15*G16)/1000)","v":""},{"$f":"IF(H14=\"\",\"\",(H15*H16)/1000)","v":""},"",null,null,"Emu",45,0.72,62.5,null,"Loose-Sawdust",null,12]
["F.","Full days confined during manure production period",null,null,null,null,null,null,null,null,null,"Feeder Yearling\n High Energy Diet",51,0.82,62.195121951219512,null,"Loose-Straw",null,2.5]
["G.","Days partially confined during manure production period",null,{"$f":"IF(D14=\"\",\"\",$F$11-D18)","v":""},"","",{"$f":"IF(G14=\"\",\"\",$F$11-G18)","v":""},{"$f":"IF(H14=\"\",\"\",$F$11-H18)","v":""},"",null,null,"Feeder Yearling\n High Forage Diet",59,0.95,62.10526315789474,null,"Loose-Wood Shavings",null,9]
["H.","Hours per day confined",null,null,null,null,null,null,null,null,null,"Goat",40,0.64,62.5]
["I.","Day equivalents partially confined (G * H)/24",null,{"$f":"IF(D14=\"\",\"\",(D19*D20)/24)","v":""},"","",{"$f":"IF(G14=\"\",\"\",(G19*G20)/24)","v":""},{"$f":"IF(H14=\"\",\"\",(H19*H20)/24)","v":""},"",null,null,"Horse",50,0.8,62.5]
["J.","Total day equivalents confined                                                (F + I)",null,{"$f":"IF(D14=\"\",\"\",(D18+D21))","v":""},"","",{"$f":"IF(G14=\"\",\"\",(G18+G21))","v":""},{"$f":"IF(H14=\"\",\"\",(H18+H21))","v":""},"",null,null,"Llama",40,0.64,62.5]
["K.","Total day equivalents unconfined on pasture                                            (A - J)",null,{"$f":"IF(D14=\"\",\"\",$F$11-D22)","v":""},"","",{"$f":"IF(G14=\"\",\"\",$F$11-G22)","v":""},{"$f":"IF(H14=\"\",\"\",$F$11-H22)","v":""},"",null,null,"Rabbit",150,2.39,62.761506276150627]
["L.","Weight of manure/AU/day (lbs.)                                      (see Table 1.)",null,{"$f":"IF(D14=\"\",\"\",VLOOKUP(D$14,$L$11:$N$26,2,FALSE))","v":""},"","",{"$f":"IF(G14=\"\",\"\",VLOOKUP(G$14,$L$11:$N$26,2,FALSE))","v":""},{"$f":"IF(H14=\"\",\"\",VLOOKUP(H$14,$L$11:$N$26,2,FALSE))","v":""},"",null,null,"Sheep",40,0.63,63.492063492063494]
[null,null,null,null,null,null,null,null,null,null,null,"Beef Cow",82,1.3,{"$f":"M25/N25","v":63.076923076923073}]
["Bedding Estimation"]
[null,null,null,1,2,3,4,5,6,null,null,"Estimate based on Regression."]
["M.","Bedding type (straw, sawdust, etc.)"]
["N.","Volume of bedding this production period (cu.ft.).",null,null,null,null,null,null,null,null,null,"Existing Manure\nStorage","Length\n(Ft)","Width\n(Ft)","Wall Height\n(Ft)","Total Existing\nStorage (Cu Ft)",null,"Total Storage\nNeeded (Cu Ft)","Unmet Storage\nNeeds (Cu Ft)"]
["O.","Density of bedding (lbs. per cu.ft.)                       (see Table 2.)",null,{"$f":"IF(D28=\"\",\"\",VLOOKUP(D$28,$Q$11:$S$26,3,FALSE))","v":""},{"$f":"IF(E28=\"\",\"\",VLOOKUP(E$28,$Q$11:$S$26,3,FALSE))","v":""},{"$f":"IF(F28=\"\",\"\",VLOOKUP(F$28,$Q$11:$S$26,3,FALSE))","v":""},{"$f":"IF(G28=\"\",\"\",VLOOKUP(G$28,$Q$11:$S$26,3,FALSE))","v":""},{"$f":"IF(H28=\"\",\"\",VLOOKUP(H$28,$Q$11:$S$26,3,FALSE))","v":""},"",null,null,"Storage Area 1",null,null,null,{"$f":"IF(M30=\"\",\"\",M30*N30*O30)","v":""}]
["P.","Weight of bedding (tons)                                       [(N x O)/2000]",null,{"$f":"IF(D28=\"\",\"\",(D29*D30)/2000)","v":""},{"$f":"IF(E28=\"\",\"\",(E29*E30)/2000)","v":""},{"$f":"IF(F28=\"\",\"\",(F29*F30)/2000)","v":""},{"$f":"IF(G28=\"\",\"\",(G29*G30)/2000)","v":""},{"$f":"IF(H28=\"\",\"\",(H29*H30)/2000)","v":""},"",null,null,"Storage Area 2",null,null,null,{"$f":"IF(M31=\"\",\"\",M31*N31*O31)","v":""}]
[null,null,null,null,null,null,null,null,null,null,null,"Storage Area 3",null,null,null,""]
["Uncollected  Manure (Deposited on Pasture)",null,null,null,null,null,null,null,null,null,null,"All Existing\nStorage Areas",null,null,null,{"$f":"SUM(P30:P32)","v":0},null,{"$f":"S41","v":0},{"$f":"R33-P33","v":0}]
[null,null,null,1,2,3,4,5,6]
["Q.","Weight of manure on pasture (tons)                                               [(E x L x K)/2000]",null,{"$f":"IF(D14=\"\",\"\",(D17*D23*D24)/2000)","v":""},"","",{"$f":"IF(G14=\"\",\"\",(G17*G23*G24)/2000)","v":""},{"$f":"IF(H14=\"\",\"\",(H17*H23*H24)/2000)","v":""},"",null,null,"Collected Material",{"$f":"IF(D14=\"\",\"\",D14)","v":""},{"$f":"IF(E14=\"\",\"\",E14)","v":""},{"$f":"IF(F14=\"\",\"\",F14)","v":""},"","","","All Storage\nNeeded"]
[null,null,null,null,null,null,null,null,null,null,null,"Manure (Tons)",{"$f":"D39","v":""},"","","","","",{"$f":"SUM(M36:R36)","v":0}]
["Collected Solid Waste (Manure And Bedding)",null,null,null,null,null,null,null,null,null,null,"Bedding (Tons)",{"$f":"D31","v":""},"","","","","",0]
[null,null,null,1,2,3,4,5,6,null,null,"Total (Tons)",{"$f":"IF(M35=\"\",\"\",SUM(M36:M37))","v":""},{"$f":"IF(N35=\"\",\"\",SUM(N36:N37))","v":""},{"$f":"IF(O35=\"\",\"\",SUM(O36:O37))","v":""},"","","",0]
["R.","Weight of collected manure (tons)                                             [(E x L x J)/2000]",null,{"$f":"IF(D14=\"\",\"\",(D17*D22*D24)/2000)","v":""},"","",{"$f":"IF(G14=\"\",\"\",(G17*G22*G24)/2000)","v":""},{"$f":"IF(H14=\"\",\"\",(H17*H22*H24)/2000)","v":""},"",null,null,"Manure (Cu Ft)",{"$f":"IF(D14=\"\",\"\",(D39*2000)/(VLOOKUP(D14,$L$11:$O$26,4,FALSE)))","v":""},"","",{"$f":"IF(G14=\"\",\"\",(G39*2000)/(VLOOKUP(G14,$L$11:$O$26,4,FALSE)))","v":""},{"$f":"IF(H14=\"\",\"\",(H39*2000)/(VLOOKUP(H14,$L$11:$O$26,4,FALSE)))","v":""},"",{"$f":"SUM(M39:R39)","v":0}]
["S.","Weight  of collected manure & bedding (tons)                                       (P + R)",null,{"$f":"IF(D14=\"\",\"\",(D31+D39))","v":""},"","",{"$f":"IF(G14=\"\",\"\",(G31+G39))","v":""},{"$f":"IF(H14=\"\",\"\",(H31+H39))","v":""},"",null,null,"Bedding (Cu Ft)*",{"$f":"IF(D28=\"\",\"\",0.5*(M37*2000)/D30)","v":""},"","","","","",{"$f":"SUM(M40:R40)","v":0}]
["DE Updated: 5-07-15",null,null,null,null,null,null,null,"MD Updated: 3-12-10",null,null,"Total (Cu Ft)",{"$f":"IF(M35=\"\",\"\",SUM(M39:M40))","v":""},{"$f":"IF(N35=\"\",\"\",SUM(N39:N40))","v":""},"","","","",0]
["AGRICULTURAL NUTRIENT MANAGEMENT PROGRAM",null,null,null,null,null,null,null,null,null,null,"*Bedding volume has been reduced by 50% to compensate for the void space in bedding materials."]
["(301) 405-1319 ¡ FAX (301) 314-7375",null,null,null,null,null,null,null,null,null,null,"Unconfined Manure",{"$f":"IF(D14=\"\",\"\",D14)","v":""},{"$f":"IF(E14=\"\",\"\",E14)","v":""},"","","","","Total (Pasture)"]
["0116 SYMONS HALL ¡ ENVIRONMENTAL SCIENCE AND TECHNOLOGY ¡ COLLEGE PARK, MARYLAND 20742",null,null,null,null,null,null,null,null,null,null,"on Pasture (Tons)",{"$f":"D35","v":""},{"$f":"E35","v":""},"","","","",{"$f":"SUM(M44:R44)","v":0}]
["LOCAL GOVERNMENTS ¡ U.S. DEPARTMENT OF AGRICULTURE COOPERATING EQUAL OPPORTUNITY PROGRAMS"]

{"sheet":"PSI-DE","index":17,"n_rows":342,"n_cols":27,"rows_kept":342,"cut":false,"hidden":false,"merged":[[98,1,100,1],[98,2,100,10],[101,1,103,1],[101,2,103,10],[104,1,106,1],[104,2,106,10],[95,1,97,1],[95,2,97,10],[63,6,63,7],[63,8,63,10],[66,6,66,7],[66,8,66,10],[69,3,69,5],[71,1,71,3],[75,2,75,10],[81,2,81,10],[87,2,90,10],[92,7,92,8],[94,2,94,10],[60,6,60,7],[60,8,60,10],[33,2,33,8],[34,2,34,8],[35,2,35,8],[36,2,36,8],[39,3,39,5],[44,6,44,7],[44,8,44,10],[47,6,47,7],[47,8,47,10],[50,6,50,7],[50,8,50,10],[53,4,53,6],[32,2,32,8],[11,4,11,6],[12,4,12,6],[12,25,19,26],[19,1,19,4],[19,6,20,9],[21,25,23,26],[23,1,23,3],[25,1,25,3],[27,1,27,3],[27,4,27,10],[29,1,29,3],[31,1,31,6],[4,25,4,26],[7,1,7,2],[7,3,7,4],[9,1,9,3],[9,4,9,10],[9,26,10,26],[0,1,0,10],[1,1,1,3],[1,4,1,10],[3,1,3,2],[3,4,3,5],[3,7,3,8],[3,9,3,10]]}
[null,"Delaware Phosphorus Site Index",null,null,null,null,null,null,null,null,null,null,"County","Kent / Sussex Soils","Slope\n(%)","Slope\nLength","Cropping System",null,null,"Soil Labs","Organic P Source","Method and Timing","Organic P\nUnits","Soil Test\nUnits"]
[null,"Producer's Name:",null,null,null,null,null,null,null,null,null,null,null,null,null,null,null,null,null,null,"None"]
[null,null,null,null,null,null,null,null,null,null,null,null,"Kent","AbC- Acquango Series (50% of map unit)",0.2,25,"Continuous Corn    no-till",null,null,{"$f":"Lab!A3","v":"A&L"},"Broiler litter","None applied","tons/acre","FIV"]
[null,"Farm Number:",null,null,"Tract Number:",null,null,"Field Number(s):",null,null,null,null,"Sussex","AbC- Beaches Series (45% of map unit)",0.5,50,"Continuous Corn   cons. tillage",null,null,{"$f":"Lab!A4","v":"Agri-Analysis"},"Layer litter","Injected/banded below surface at least 2\"","1000 gals/acre","lb/acre"]
[null,null,null,null,null,null,null,null,null,null,null,null,"New Castle","AsA- Askecksy Series drained (30% of map unit)",1,75,"Continuous Corn   clean tillage",null,null,{"$f":"Lab!A5","v":"AgroLab, Inc."},"Beef manure","Incorporated within 5 days of application",null,"ppm",null,"Instructions"]
[null,"Site Characteristics",null,null,null,null,null,null,null,null,null,null,null,"AsA- Askecksy Series undrained (45% of map unit)",2,100,"Continuous Soybeans   no-till - narrow row",null,null,{"$f":"Lab!A6","v":"Brookside (lb P2O5/a)"},"Dairy manure-solid","Incorporated more than 5 days after application",null,null,null,null,"Manual Fill in Box"]
[null,null,null,null,null,null,null,null,"                 ",null,null,null,null,"AuB- Acquango Series (45% of map unit)",3,150,"Continuous Soybeans   no-till - wide row",null,null,{"$f":"Lab!A7","v":"Brookside (ppm)"},"Dairy manure-liquid","Surface applied March through November",null,null,null,null,"Drop Down Box"]
[null,"Enter County:",null,null,null,null,null,null,null,null,null,null,null,"Ba- Appoquinimink Series (30% of map unit)",4,200,"Continuous Soybeans   cons. tillage - narrow row",null,null,{"$f":"Lab!A8","v":"Penn State"},"Swine manure-liquid storage (sows)","Surface applied December through February",null,null,null,null,"Auto Fill/Calc Box"]
[null,null,null,null,null,null,null,null,null,null,null,null,null,"Ba- Broadkill Series (55% of map unit)",5,250,"Continuous Soybeans   cons. tillage - wide row",null,null,{"$f":"Lab!A9","v":"Rutgers"},"Swine manure-liquid storage (grower pigs)"]
[null,"Enter Dominant Soil Type:",null,null,null,null,null,null,null,null,null,{"$f":"IF(ISERROR(FIND(\" drained\",$E$10)),FALSE,TRUE)","v":false},null,"BhA- Berryland Series drained (50% of map unit)",6,300,"Continuous Soybeans   clean tillage - narrow row",null,null,{"$f":"Lab!A10","v":"Spectrum (lb P/acre)"},"Swine manure-lagoon liquid",null,null,null,null,null,"Red Dot indicates comment."]
[null,null,null,null,null,null,null,null,null,null,null,null,null,"BhA- Berryland Series undrained (30% of map unit)",8,400,"Continuous Soybeans   clean tillage - wide row",null,null,{"$f":"Lab!A11","v":"Spectrum (ppm)"},"Biosolids (sewage sludge)"]
[null,null,"Permeability:",null,{"$f":"VLOOKUP($E$10,'[2]Soils Info'!$A$3:$H$287,3,FALSE)","v":{"$error":"#N/A"}},null,null,null,null,null,null,null,null,"Br- Broadkill Series (70% of map unit)",10,600,"Corn, Full Season Soybeans    no-till corn, no-till soybeans",null,null,{"$f":"Lab!A12","v":"University of Delaware"}]
[null,null,"Drainage:",null,{"$f":"VLOOKUP($E$10,'[2]Soils Info'!$A$3:$H$287,4,FALSE)","v":{"$error":"#N/A"}},null,null,null,null,null,null,null,null,"BuA- Brockatonorton Series (45% of map unit)",12,null,"Corn, Full Season Soybeans    no-till corn, cons. tillage soybeans",null,null,{"$f":"Lab!A13","v":"Virginia Tech"},null,null,null,null,null,"If there are any red warning comments showing they must be addressed before the PSI will calculate. "]
[null,null,"Water Table Depth:",null,{"$f":"VLOOKUP($E$10,'[2]Soils Info'!$A$3:$H$287,6,FALSE)","v":{"$error":"#N/A"}},"ft. (Average high depth)",null,null,null,null,null,null,null,"CaA- Carmichael Series drained (40% of map unit)",14,null,"Corn, Full Season Soybeans    no-till corn, clean tillage soybeans",null,null,{"$f":"Lab!A14","v":"Waters Agricultural Lab"}]
[null,null,null,null,null,null,null,null,null,null,null,null,null,"CaA- Carmichael Series undrained (40% of map unit)",16,null,"Corn, Full Season Soybeans    cons. tillage corn, no-till soybeans"]
[null,"Artificial Subsurface Drainage:",null,null,null,null,null,null,null,null,null,null,null,"CdB- Cedartown Series (75% of map unit)",20,null,"Corn, Full Season Soybeans    cons. tillage corn, cons. tillage soybeans"]
[null,null,null,null,null,null,null,null,null,null,null,null,null,"CoA- Corsica Series undrained (40% of map unit)",null,null,"Corn, Full Season Soybeans    cons. tillage corn, clean tillage soybeans"]
[null,null,null,null,null,null,null,null,null,null,null,null,null,"CoA- Corsica Series drained (40% of map unit)",null,null,"Corn, Full Season Soybeans    clean tillage corn, no-till soybeans"]
[null,null,null,null,null,null,null,null,null,null,null,true,null,"CsA- Crosiadore Series (75% of map unit)",null,null,"Corn, Full Season Soybeans    clean tillage corn, cons. tillage soybeans"]
[null,"Artificial Drainage:",null,null,null,null,{"$f":"IF(L21=TRUE,\"If field has artificial drainage, check the box and make sure you have choosen a soil series that is drained.\",\" \")","v":" "},null,null,null,null,false,null,"DnA- Downer Series (80% of map unit)",null,null,"Corn, Full Season Soybeans    clean tillage corn, conventional soybeans"]
[null,null,null,null,null,null,null,null,null,null,null,{"$f":"OR(L10<>L20,L10=\" \",L20=\" \")","v":false},null,"DnB- Downer Series (80% of map unit)",null,null,"Corn, Wheat, Double Cropped Soybeans     no-till corn, clean tillage wheat, no-till soybeans"]
[null,null,null,null,null,null,null,null,null,null,null,null,null,"DnC- Downer Series (80% of map unit)",null,null,"Corn, Wheat, Double Cropped Soybeans     no-till corn, cons. tillage wheat, no-till soybeans",null,null,null,null,null,null,null,null,"To calculate the PSI for a farm where no manure is to be applied do the following:"]
[null,null,null,null,null,null,null,null,null,null,null,null,null,"DoA- Downer Series (80% of map unit)",null,null,"Corn, Wheat, Double Cropped Soybeans    cons. till. corn, clean till. wheat, no-till soybeans"]
[null,"Enter % Slope:",null,null,null,null,null,null,null,null,null,null,null,"DoB- Downer Series (80% of map unit)",null,null,"Corn, Wheat, Double Cropped Soybeans    cons. till. corn, cons. till. wheat, no-till soybeans"]
[null,null,null,null,null,null,null,null,null,null,null,null,null,"DoC- Downer Series (80% of map unit)",null,null,"Corn, Wheat, Double Cropped Soybeans    clean till. corn, clean till. wheat, no-till soybeans",null,null,null,null,null,null,null,null,"1 -","Enter County"]
[null,"Enter Slope Length:",null,null,null,null,null,null,null,null,null,null,null,"DuB- Downer Series (60% of map unit)",null,null,"Corn, Wheat, Double Cropped Soybeans    clean till. corn, cons. till. wheat, no-till soybeans",null,null,null,null,null,null,null,null,"2 -","Enter Predominate Soil"]
[null,null,null,null,null,null,null,null,null,null,null,null,null,"EmA- Elkton Series drained (35% of map unit)",null,null,"Corn, Corn, Wheat, Soybeans     2 years no-till corn, clean tillage wheat, no-till soybeans",null,null,null,null,null,null,null,null,"3 -","Enter % Slope"]
[null,"Enter Cropping System:",null,null,null,null,null,null,null,null,null,null,null,"EmA- Elkton Series undrained (40% of map unit)",null,null,"Corn, Corn, Wheat, Soybeans     2 years no-till corn, cons. tillage wheat, no-till soybeans",null,null,null,null,null,null,null,null,"4 -","Enter Slope Length"]
[null,null,null,null,null,null,null,null,null,null,null,null,null,"EvB- Evesboro Series (75% of map unit)",null,null,"Corn, Corn, Wheat, Soybeans     2 years cons. till. corn, clean till. wheat, no-till soybeans",null,null,null,null,null,null,null,null,"5 -","Enter Cropping System"]
[null,"Enter P Factor: ",null,null,null,"(default = 1; see Tab \"P\" for Contour Farming or Stripcropping)",null,null,null,null,null,null,null,"EvD- Evesboro Series (75% of map unit)",null,null,"Corn, Corn, Wheat, Soybeans     2 years cons. till. corn, cons. till. wheat, no-till soybeans",null,null,null,null,null,null,null,null,"6 -","Enter Soil Test Lab"]
[null,null,null,null,null,null,null,null,null,null,null,null,null,"FaA- Fallsington Series drained (40% of map unit)",null,null,"Corn, Corn, Wheat, Soybeans     2 years clean till. corn, clean till. wheat, no-till soybeans",null,null,null,null,null,null,null,null,"7 -","Enter Soil Test (FIV)"]
[null,"Distance from Edge of Field to Surface Water: ",null,null,null,null,null,null,null,null,null,null,null,"FaA- Fallsington Series undrained (40% of map unit)",null,null,"Corn, Corn, Wheat, Soybeans     2 years clean till. corn, cons. till. wheat, no-till soybeans",null,null,null,null,null,null,null,null,"8 -","Organic P Source - None"]
[null,null,"Greater than 100 feet to surface water",null,null,null,null,null,null,null,null,null,null,"FgA- Fallsington Series drained (40% of map unit)",null,null,"Cabbage   clean tillage"]
[null,null,"Less than 100 feet to surface water AND greater than 50 feet permanent vegetative buffer OR Less than 100 feet to surface water AND greater than 25 feet permanent vegetative buffer AND greater than 25 feet additional 'No P application zone' beyond permanent vegetative buffer",null,null,null,null,null,null,null,null,null,null,"FgA- Fallsington Series undrained (40% of map unit)",null,null,"Hay"]
[null,null,"Less than 100 feet to surface water AND greater than 25 feet permanent vegetative buffer AND less than 25 feet additional 'No P application zone' beyond permanent vegetative buffer",null,null,null,null,null,null,null,null,null,null,"FhA- Fort Mott Series (45% of map unit)",null,null,"Alfalfa"]
[null,null,"Less than 100 feet to suface water AND less than 25 feet permanent vegetative buffer AND greater than 25 feet 'No P application zone'",null,null,null,null,null,null,null,null,5,null,"FhA- Henlopen Series (35% of map unit)",null,null,"Pasture"]
[null,null,"Less than 100 feet to suface water AND less than 25 feet permanent vegetative buffer AND less than 25 feet 'No P application zone'",null,null,null,null,null,null,null,null,null,null,"FhB- Fort Mott Series (45% of map unit)",null,null,"Sweet corn   clean tillage"]
[null,"Fertilizer and Organic P Applications",null,null,null,null,null,null,null,null,null,null,null,"FhB- Henlopen Series (35% of map unit)",null,null,"Sweet corn, winter small grain cover   clean tillage"]
[null,null,null,null,null,null,null,null,null,null,null,null,null,"FmA- Fort Mott Series (80% of map unit)",null,null,"Tomatoes   clean tillage"]
[null,"Soil Test Lab:",null,null,null,null,"Enter Soil Test P Value :",null,null,null,{"$f":"VLOOKUP(D40,Lab!A3:B14,2,FALSE)","v":{"$error":"#N/A"}},null,null,"FmB- Fort Mott Series (80% of map unit)",null,null,"Tomatoes, winter small grain cover   clean tillage"]
[null,null,null,null,null,null,null,null,null,null,null,null,null,"FzB- Fallsington Series drained (40% of map unit)",null,null,"Cucumbers   clean tillage"]
[null,"Enter the Planned Fertilizer P Application Rate, in lbs P2O5/acre, here:",null,null,null,null,null,null,null,null,null,null,null,"FzB- Fallsington Series undrained (25% of map unit)",null,null,"Cucumbers, winter small grain cover   clean tillage"]
[null,null,null,null,null,null,null,null,null,null,null,null,null,"GaB- Galestown Series (80% of map unit)",null,null,"Peppers   clean tillage"]
[null,null,"1st P Fertilizer Application:",null,null,null,null,null,null,null,null,null,null,"GaD- Galestown Series (80% of map unit)",null,null,"Peppers, winter small grain cover   clean tillage"]
[null,null,"Rate: ",null,"lb/acre",null,"Method and Timing:",null,"None applied",null,null,{"$f":"($D45/($D$45+$D$48+$D$51))*VLOOKUP($I45,'[2]Part B Tables'!$B$16:$C$21,2,FALSE)","v":{"$error":"#DIV/0!"}},null,"GoA- Glassboro Series (80% of map unit)",null,null,"Snap beans   clean tillage"]
[null,null,null,null,null,null,null,null,null,null,null,null,null,"GrA- Greenwich Series (85% of map unit)",null,null,"Snap beans, winter small grain cover   clean tillage"]
[null,null,"2nd P Fertilizer Application:",null,null,null,null,null,null,null,null,null,null,"GrB- Greenwich Series (85% of map unit)"]
[null,null,"Rate: ",null,"lb/acre",null,"Method and Timing:",null,"None applied",null,null,{"$f":"($D48/($D$45+$D$48+$D$51))*VLOOKUP($I48,'[2]Part B Tables'!$B$16:$C$21,2,FALSE)","v":{"$error":"#DIV/0!"}},null,"GuB- Greenwich Series (60% of map unit)"]
[null,null,null,null,null,null,null,null,null,null,null,null,null,"HbA- Hambrook Series (80% of map unit)"]
[null,null,"3rd P Fertilizer Application:",null,null,null,null,null,null,null,null,null,null,"HbB- Hambrook Series (80% of map unit)"]
[null,null,"Rate: ",null,null,null,"Method and Timing:",null,"None applied",null,null,{"$f":"($D51/($D$45+$D$48+$D$51))*VLOOKUP($I51,'[2]Part B Tables'!$B$16:$C$21,2,FALSE)","v":{"$error":"#DIV/0!"}},null,"HkB- Hambrook Series (55% of map unit)"]
[null,null,{"$f":"IF(SUM(D51,D48,D45)=J42,\"\",\"STOP!! Individual applications MUST add up to Total Application Rate!!\")","v":""},null,null,null,null,null,null,null,null,null,null,"HmA- Hammonton Series (80% of map unit)"]
[null,null,{"$f":"IF(OR((AND(D45>0,I45=\"None Applied\")),(AND(D48>0,I48=\"None Applied\")),(AND(D51>0,I51=\"None Applied\"))),\"STOP!! Don't forget to enter Method and Timing for your applications!\",\"\")","v":""},null,null,null,null,null,null,null,null,null,null,"HnA- Hammonton Series (80% of map unit)"]
[null,"Organic P Source: ",null,null,"None",null,null,"Application Rate:",null,null,"tons/acre",null,null,"HnB- Hammonton Series (80% of map unit)"]
[null,null,null,null,null,null,null,null,null,null,null,null,null,"HoA- Fallsington Series drained (10% of map unit)"]
[null,null,"If a manure test was done, enter manure P here:",null,null,null,null,null,null,null,null,null,null,"HoA- Fallsington Series undrained (25% of map unit)"]
[null,null,null,null,null,null,null,null,null,null,null,null,null,"HoA- Hammonton Series (40% of map unit)"]
[null,"Total Planned Organic P Application Rate, in lbs P2O5/acre:",null,null,null,null,null,null,{"$f":"IF(I56>0,(I56*J54),(VLOOKUP($E$54,'[2]Part B Tables'!$B$3:$C$12,2,FALSE)*J54))","v":0},null,null,null,null,"HoA- Mullica Series drained (5% of map unit)"]
[null,null,null,null,null,null,null,null,null,null,null,null,null,"HoA- Mullica Series undrained (10% of map unit)"]
[null,null,"1st Organic P Application:",null,null,null,null,null,null,null,null,null,null,"HpA- Henlopen Series (80% of map unit)"]
[null,null,"Rate: ",null,"lb/acre",null,"Method and Timing:",null,"None applied",null,null,{"$f":"($D61/($D$61+$D$64+$D$67))*VLOOKUP($I61,'[2]Part B Tables'!$B$16:$C$21,2,FALSE)","v":{"$error":"#DIV/0!"}},null,"HpB- Henlopen Series (80% of map unit)"]
[null,null,null,null,null,null,null,null,null,null,null,null,null,"HrA- Henlopen Series (50% of map unit)"]
[null,null,"2nd Organic P Application:",null,null,null,null,null,null,null,null,null,null,"HrA- Rosedale Series (40% of map unit)"]
[null,null,"Rate: ",null,"lb/acre",null,"Method and Timing:",null,"None applied",null,null,{"$f":"($D64/($D$61+$D$64+$D$67))*VLOOKUP($I64,'[2]Part B Tables'!$B$16:$C$21,2,FALSE)","v":{"$error":"#DIV/0!"}},null,"HrB- Henlopen Series (45% of map unit)"]
[null,null,null,null,null,null,null,null,null,null,null,null,null,"HrB- Rosedale Series (40% of map unit)"]
[null,null,"3rd Organic P Application:",null,null,null,null,null,null,null,null,null,null,"HsA- Henlopen Series (40% of map unit)"]
[null,null,"Rate: ",null,"lb/acre",null,"Method and Timing:",null,"None applied",null,null,{"$f":"($D67/($D$61+$D$64+$D$67))*VLOOKUP($I67,'[2]Part B Tables'!$B$16:$C$21,2,FALSE)","v":{"$error":"#DIV/0!"}},null,"HsA- Rosedale Series (30% of map unit)"]
[null,null,{"$f":"IF(SUM(D67,D64,D61)=I58,\"\",\"STOP!! Individual applications MUST add up to Total Application Rate!!\")","v":""},null,null,null,null,null,null,null,null,null,null,"HuA- Hurlock Series drained (40% of map unit)"]
[null,null,{"$f":"IF(OR((AND(D61>0,I61=\"None Applied\")),(AND(D64>0,I64=\"None Applied\")),(AND(D67>0,I67=\"None Applied\"))),\"STOP!! Don't forget to enter Method and Timing for your applications!\",\"\")","v":""},null,null,null,null,null,null,null,null,null,null,"HuA- Hurlock Series undrained (40% of map unit)"]
[null,"Calculations",null,null,null,null,null,null,null,null,null,null,null,"HvA- Hurlock Series drained (40% of map unit)"]
[null,null,null,null,null,null,null,null,null,null,null,null,null,"HvA- Hurlock Series undrained (40% of map unit)"]
[null,"  RUSLE Calculation:",null,null,"A = R x K x LS x C x P",null,null,null,null,null,null,null,null,"IeA- Ingleside Series (75% of map unit)"]
[null,null,"R","K","LS","C","P",null,null,null,null,null,null,"IeB- Ingleside Series (75% of map unit)"]
[null,null,{"$f":"VLOOKUP($D$8,[2]R!$A$3:$B$5,2,FALSE)","v":{"$error":"#N/A"}},{"$f":"VLOOKUP($E$10,'[2]Soils Info'!$A$3:$H$287,2,FALSE)","v":{"$error":"#N/A"}},{"$f":"VLOOKUP($E$24,[2]LS!$A$3:$L$20,MATCH('PSI-DE'!$E$26,[2]LS!$A$3:$L$3,0),FALSE)","v":{"$error":"#N/A"}},{"$f":"VLOOKUP($E$28,[2]C!$A$1:$B$47,2,FALSE)","v":{"$error":"#N/A"}},{"$f":"IF(E30=\"\",1,E30)","v":1},null,null,null,null,null,null,"IgA- Ingleside Series (75% of map unit)"]
[null,null,"A = ",{"$f":"C74*D74*E74*F74*G74","v":{"$error":"#N/A"}},"tons of soil loss per acre",null,null,null,null,null,null,null,null,"IgB- Ingleside Series (75% of map unit)"]
[null,null,"R= the rainfall-runoff erosivity factor, K= the soil erodibility factor, LS= the slope length/steepness factor,\nC= the cropping system factor and P= the support practice factor",null,null,null,null,null,null,null,null,null,null,"IgC- Ingleside Series (75% of map unit)"]
[null,null,null,null,null,null,null,null,null,null,null,null,null,"ImB- Fallsington Series drained (15% of map unit)"]
[null,"  Part A: Loss Potential due to Site and Transport Characteristics: ",null,null,null,null,null,null,null,{"$f":"$I$81*0.02","v":{"$error":"#N/A"}},null,null,null,"ImB- Hammonton Series (30% of map unit)"]
[null,null,null,null,null,null,null,null,null,null,null,null,null,"ImB- Ingleside Series (35% of map unit)"]
[null,null,1,2,3,4,5,6,7,null,null,null,null,"ImB- Fallsington Series undrained (10% of map unit)"]
[null,null,{"$f":"$D$75*2","v":{"$error":"#N/A"}},{"$f":"VLOOKUP(E24,'[2]Part A Tables'!B3:I19,MATCH('PSI-DE'!E12,'[2]Part A Tables'!B3:I3,0),FALSE)","v":{"$error":"#N/A"}},{"$f":"IF($L$20=TRUE,6,VLOOKUP('PSI-DE'!E14,'[2]Part A Tables'!B21:I27,MATCH('PSI-DE'!E13,'[2]Part A Tables'!B22:I22,0),TRUE))","v":{"$error":"#N/A"}},{"$f":"VLOOKUP(E14,'[2]Part A Tables'!B30:F33,(VLOOKUP($E$10,'[2]Soils Info'!$A$3:$H$287,7,FALSE)+2),TRUE)","v":{"$error":"#N/A"}},{"$f":"INDEX('[2]Part A Tables'!B36:C40,'PSI-DE'!L36,2)","v":8},4,{"$f":"SUM(C81:H81)","v":{"$error":"#N/A"}},null,null,null,null,"IuB- Ingleside Series (50% of map unit)"]
[null,null,"This portion of the Phosphorus Site Index takes into account soil erosion (calculated using the RUSLE formula above), soil surface runoff class, subsurface drainage class and leaching potential, distance from edge of field to surface water, and the priority of receiving water for the site.",null,null,null,null,null,null,null,null,null,null,"KfA- Keyport Series (85% of map unit)"]
[null,null,null,null,null,null,null,null,null,null,null,null,null,"KgB- Galloway Series (35% of map unit)"]
[null,"  Part B: Loss Potential Due to Management Practices and P Source Characteristics: ",null,null,null,null,null,null,null,{"$f":"($C$86*0.2)+($D$86*0.6)+$E$86+($F$86*0.6)+$G$86","v":0},null,null,null,"KgB- Klej Series (45% of map unit)"]
[null,null,1,2,3,4,5,null,null,null,null,null,null,"KnA- Kentuck Series undrained (50% of map unit)"]
[null,null,{"$f":"IF($D$40=\"University of Delaware\",$J$40,($J$40*VLOOKUP($D$40,[2]Lab!$A$3:$C$15,3,FALSE)))","v":0},{"$f":"J42*0.6","v":0},{"$f":"IF(J42=0,0,E87)","v":0},{"$f":"I58*0.6","v":0},{"$f":"IF($J$54=0,0,$G$87)","v":0},null,null,null,null,null,null,"KnA- Kentuck Series drained (20% of map unit)"]
[null,null,null,null,{"$f":"L45+L48+L51","v":{"$error":"#DIV/0!"}},null,{"$f":"L61+L64+L67","v":{"$error":"#DIV/0!"}},null,null,null,null,null,null,"KpA- Keyport Series (80% of map unit)"]
[null,null,"This portion of the Phosphorus Site Index takes into account the soil test phosphorus, as well as fertilizer and\norganic P source application rates and methods.",null,null,null,null,null,null,null,null,null,null,"KpB- Keyport Series (80% of map unit)"]
[null,null,null,null,null,null,null,null,null,null,null,null,null,"KsA- Klej Series (70% of map unit)"]
[null,null,null,null,null,null,null,null,null,null,null,null,null,"LeA- Leipsic Series (75% of map unit)"]
[null,null,null,null,null,null,null,null,null,null,null,null,null,"LeB- Leipsic Series (75% of map unit)"]
[null,null,null,null,null,null,null,null,null,null,null,null,null,"LfA- Lenni Series drained (35% of map unit)"]
[null,"  P Site Index = Part A x Part B: ",null,null,null,{"$f":"ROUND(($J$78*$J$84),0)","v":{"$error":"#N/A"}},"or",{"$f":"IF($F$93<51,\"LOW\",IF($F$93<76,\"MEDIUM\",IF($F$93<101,\"HIGH\",\"VERY HIGH\")))","v":{"$error":"#N/A"}},null,null,null,null,null,"LfA- Lenni Series undrained (50% of map unit)"]
[null,null,null,null,null,null,null,null,null,null,null,null,null,"LhA- Lenni Series drained (50% of map unit)"]
[null,null,"Interpretation of the Delaware P Site Index",null,null,null,null,null,null,null,null,null,null,"LhA- Lenni Series undrained (30% of map unit)"]
[null,"< 50","LOW potential for P movement from this site given current management practices and site characteristics.  There is a low probability of an adverse impact to surface waters from P losses from this site. Nitrogen-based nutrient management planning is satisfactory for this site. Soil P levels and P loss potential may increase in the future due to the use of N-based nutrient management practices.",null,null,null,null,null,null,null,null,null,null,"Lk- Lenape Series (85% of map unit)"]
[null,null,null,null,null,null,null,null,null,null,null,null,null,"Ln- Lenape Series (45% of map unit)"]
[null,null,null,null,null,null,null,null,null,null,null,null,null,"Ln- Nanticoke Series (40% of map unit)"]
[null,"51-75","MEDIUM potential for P movement from this site given current management practices and site characteristics.  Practices should be implemented to reduce P losses by surface runoff, subsurface flow, and erosion.  Nitrogen-based nutrient management should be implemented no more than one year out of three. Phosphorus-based nutrient management should be implemented two years out of three during which time P applications should be limited to the amount expected to be removed from the field by crop harvest or soil test  based P application recommendations, whichever is greater.",null,null,null,null,null,null,null,null,null,null,"LO- Indiantown Series (40% of map unit)"]
[null,null,null,null,null,null,null,null,null,null,null,null,null,"LO- Longmarsh Series (40% of map unit)"]
[null,null,null,null,null,null,null,null,null,null,null,null,null,"Ma- Manahawkin Series (85% of map unit)"]
[null,"76-100","HIGH potential for P movement from this site given current management practices and site characteristics.   Phosphorus-based nutrient management should be used for this site.  Phosphorus applications should be limited to the amount expected to be removed from the field by crop harvest or soil test based P application recommendations.  All practical management practices for reducing P losses by surface runoff, subsurface flow, or erosion should be implemented.",null,null,null,null,null,null,null,null,null,null,"McA- Marshyhope Series (85% of map unit)"]
[null,null,null,null,null,null,null,null,null,null,null,null,null,"MdA- Marshyhope Series (85% of map unit)"]
[null,null,null,null,null,null,null,null,null,null,null,null,null,"MkA- Matapeake Series (80% of map unit)"]
[null,"> 100","VERY HIGH potential for P movement from this site given current management practices and site characteristics.  No phosphorus should be applied to this site.  Active remediation techniques should be implemented in an effort to reduce the P loss potential from this site.",null,null,null,null,null,null,null,null,null,null,"MkB- Matapeake Series (80% of map unit)"]
[null,null,null,null,null,null,null,null,null,null,null,null,null,"MmA- Mullica Series drained (50% of map unit)"]
[null,null,null,null,null,null,null,null,null,null,null,null,null,"MmA- Mullica Series undrained (30% of map unit)"]
[null,null,null,null,null,null,null,null,null,null,null,null,null,"MtA- Mattapex Series (80% of map unit)"]
[null,null,null,null,null,null,null,null,null,null,null,null,null,"MtB- Mattapex Series (80% of map unit)"]
[null,null,null,null,null,null,null,null,null,null,null,null,null,"MtC- Mattapex Series (75% of map unit)"]
[null,null,null,null,null,null,null,null,null,null,null,null,null,"MuA- Berryland Series drained (25% of map unit)"]
[null,null,null,null,null,null,null,null,null,null,null,null,null,"MuA- Berryland Series undrained (15% of map unit)"]
[null,null,null,null,null,null,null,null,null,null,null,null,null,"MuA- Mullica Series drained (25% of map unit)"]
[null,null,null,null,null,null,null,null,null,null,null,null,null,"MuA- Mullica Series undrained (15% of map unit)"]
[null,null,null,null,null,null,null,null,null,null,null,null,null,"NM- Mannington Series (45% of map unit)"]
[null,null,null,null,null,null,null,null,null,null,null,null,null,"NM- Nanticoke Series (45% of map unit)"]
[null,null,null,null,null,null,null,null,null,null,null,null,null,"NsA- Nassawango Series (80% of map unit)"]
[null,null,null,null,null,null,null,null,null,null,null,null,null,"NsB- Nassawango Series (80% of map unit)"]
[null,null,null,null,null,null,null,null,null,null,null,null,null,"OtA- Othello Series drained (35% of map unit)"]
[null,null,null,null,null,null,null,null,null,null,null,null,null,"OtA- Othello Series undrained (40% of map unit)"]
[null,null,null,null,null,null,null,null,null,null,null,null,null,"Pa- Pawcatuck Series (80% of map unit)"]
[null,null,null,null,null,null,null,null,null,null,null,null,null,"Pk- Puckum Series (85% of map unit)"]
[null,null,null,null,null,null,null,null,null,null,null,null,null,"PpA- Pepperbox Series (80% of map unit)"]
[null,null,null,null,null,null,null,null,null,null,null,null,null,"PpB- Pepperbox Series (80% of map unit)"]
[null,null,null,null,null,null,null,null,null,null,null,null,null,"PrA- Pepperbox Series (50% of map unit)"]
[null,null,null,null,null,null,null,null,null,null,null,null,null,"PrA- Rockawalkin Series (30% of map unit)"]
[null,null,null,null,null,null,null,null,null,null,null,null,null,"PrB- Pepperbox Series (50% of map unit)"]
[null,null,null,null,null,null,null,null,null,null,null,null,null,"PrB- Rockawalkin Series (30% of map unit)"]
[null,null,null,null,null,null,null,null,null,null,null,null,null,"PsA- Pepperbox Series (45% of map unit)"]
[null,null,null,null,null,null,null,null,null,null,null,null,null,"PsA- Rosedale Series (45% of map unit)"]
[null,null,null,null,null,null,null,null,null,null,null,null,null,"PsB- Pepperbox Series (45% of map unit)"]
[null,null,null,null,null,null,null,null,null,null,null,null,null,"PsB- Rosedale Series (45% of map unit)"]
[null,null,null,null,null,null,null,null,null,null,null,null,null,"Pu- Purnell Series (85% of map unit)"]
[null,null,null,null,null,null,null,null,null,null,null,null,null,"PyA- Pineyneck Series (80% of map unit)"]
[null,null,null,null,null,null,null,null,null,null,null,null,null,"PyB- Pineyneck Series (80% of map unit)"]
[null,null,null,null,null,null,null,null,null,null,null,null,null,"RdA- Queponco Series (40% of map unit)"]
[null,null,null,null,null,null,null,null,null,null,null,null,null,"RdA- Reybold Series (45% of map unit)"]
[null,null,null,null,null,null,null,null,null,null,null,null,null,"ReA- Reybold Series (75% of map unit)"]
[null,null,null,null,null,null,null,null,null,null,null,null,null,"ReB- Reybold Series (75% of map unit)"]
[null,null,null,null,null,null,null,null,null,null,null,null,null,"RkA- Rockawalkin Series (75% of map unit)"]
[null,null,null,null,null,null,null,null,null,null,null,null,null,"RkB- Rockawalkin Series (75% of map unit)"]
[null,null,null,null,null,null,null,null,null,null,null,null,null,"RoA- Rosedale Series (75% of map unit)"]
[null,null,null,null,null,null,null,null,null,null,null,null,null,"RoB- Rosedale Series (75% of map unit)"]
[null,null,null,null,null,null,null,null,null,null,null,null,null,"RsA- Runclint Series (75% of map unit)"]
[null,null,null,null,null,null,null,null,null,null,null,null,null,"RsB- Runclint Series (75% of map unit)"]
[null,null,null,null,null,null,null,null,null,null,null,null,null,"RuA- Runclint Series (75% of map unit)"]
[null,null,null,null,null,null,null,null,null,null,null,null,null,"RuB- Runclint Series (75% of map unit)"]
[null,null,null,null,null,null,null,null,null,null,null,null,null,"RwA- Cedartown Series (40% of map unit)"]
[null,null,null,null,null,null,null,null,null,null,null,null,null,"RwA- Runclint Series (45% of map unit)"]
[null,null,null,null,null,null,null,null,null,null,null,null,null,"RwB- Cedartown Series (40% of map unit)"]
[null,null,null,null,null,null,null,null,null,null,null,null,null,"RwB- Runclint Series (45% of map unit)"]
[null,null,null,null,null,null,null,null,null,null,null,null,null,"SaA- Sassafras Series (80% of map unit)"]
[null,null,null,null,null,null,null,null,null,null,null,null,null,"SaB- Sassafras Series (80% of map unit)"]
[null,null,null,null,null,null,null,null,null,null,null,null,null,"SaC- Sassafras Series (75% of map unit)"]
[null,null,null,null,null,null,null,null,null,null,null,null,null,"SlA- Sassafras Series (80% of map unit)"]
[null,null,null,null,null,null,null,null,null,null,null,null,null,"SlB- Sassafras Series (80% of map unit)"]
[null,null,null,null,null,null,null,null,null,null,null,null,null,"Sp- Saltpond Series (85% of map unit)"]
[null,null,null,null,null,null,null,null,null,null,null,null,null,"SSD- Sassafras Series (75% of map unit)"]
[null,null,null,null,null,null,null,null,null,null,null,null,null,"SuA- Sunken Series (80% of map unit)"]
[null,null,null,null,null,null,null,null,null,null,null,null,null,"TeA- Tent Series drained (50% of map unit)"]
[null,null,null,null,null,null,null,null,null,null,null,null,null,"TeA- Tent Series undrained (35% of map unit)"]
[null,null,null,null,null,null,null,null,null,null,null,null,null,"TP- Mispillion Series (40% of map unit)"]
[null,null,null,null,null,null,null,null,null,null,null,null,null,"TP- Transquaking Series (40% of map unit)"]
[null,null,null,null,null,null,null,null,null,null,null,null,null,"UbB- Udorthents Series (75% of map unit)"]
[null,null,null,null,null,null,null,null,null,null,null,null,null,"UfB- Udorthents Series (85% of map unit)"]
[null,null,null,null,null,null,null,null,null,null,null,null,null,"UlA- Unicorn Series (85% of map unit)"]
[null,null,null,null,null,null,null,null,null,null,null,null,null,"UlB- Unicorn Series (85% of map unit)"]
[null,null,null,null,null,null,null,null,null,null,null,null,null,"UzC- Udorthents Series loamy (90% of map unit)"]
[null,null,null,null,null,null,null,null,null,null,null,null,null,"UzD- Udorthents Series loamy (90% of map unit)"]
[null,null,null,null,null,null,null,null,null,null,null,null,null,"WdA- Woodstown Series (80% of map unit)"]
[null,null,null,null,null,null,null,null,null,null,null,null,null,"WdB- Woodstown Series (85% of map unit)"]
[null,null,null,null,null,null,null,null,null,null,null,null,null,"WhA- Whitemarsh Series drained (35% of map unit)"]
[null,null,null,null,null,null,null,null,null,null,null,null,null,"WhA- Whitemarsh Series undrained (40% of map unit)"]
[null,null,null,null,null,null,null,null,null,null,null,null,null,"WoA- Woodstown Series (80% of map unit)"]
[null,null,null,null,null,null,null,null,null,null,null,null,null,"WoB- Woodstown Series (80% of map unit)"]
[null,null,null,null,null,null,null,null,null,null,null,null,null,"Za- Zekiah Series (75% of map unit)"]
[]
[]
[null,null,null,null,null,null,null,null,null,null,null,null,null,"New Castle Soils"]
[]
[null,null,null,null,null,null,null,null,null,null,null,null,null,"Ba- Appoquinimink Series (30% of map unit)"]
[null,null,null,null,null,null,null,null,null,null,null,null,null,"Ba- Broadkill Series (55% of map unit)"]
[null,null,null,null,null,null,null,null,null,null,null,null,null,"BbB- Baile Series (55% of map unit)"]
[null,null,null,null,null,null,null,null,null,null,null,null,null,"BbB- Glenville Series (40% of map unit)"]
[null,null,null,null,null,null,null,null,null,null,null,null,null,"BkD- Brinklow Series (70% of map unit)"]
[null,null,null,null,null,null,null,null,null,null,null,null,null,"BnF- Blocktown Series (45% of map unit)"]
[null,null,null,null,null,null,null,null,null,null,null,null,null,"BnF- Brinklow Series (55% of map unit)"]
[null,null,null,null,null,null,null,null,null,null,null,null,null,"Br- Broadkill Series (70% of map unit)"]
[null,null,null,null,null,null,null,null,null,null,null,null,null,"BrvF- Brinklow Series (70% of map unit)"]
[null,null,null,null,null,null,null,null,null,null,null,null,null,"Ch- Codorus Series (80% of map unit)"]
[null,null,null,null,null,null,null,null,null,null,null,null,null,"CnB- Collington Series (85% of map unit)"]
[null,null,null,null,null,null,null,null,null,null,null,null,null,"CnD- Collington Series (70% of map unit)"]
[null,null,null,null,null,null,null,null,null,null,null,null,null,"CoA- Corsica Series drained (40% of map unit)"]
[null,null,null,null,null,null,null,null,null,null,null,null,null,"CoA- Corsica Series undrained (40% of map unit)"]
[null,null,null,null,null,null,null,null,null,null,null,null,null,"Cp- Comus Series (85% of map unit)"]
[null,null,null,null,null,null,null,null,null,null,null,null,null,"CsA- Crosiadore Series (75% of map unit)"]
[null,null,null,null,null,null,null,null,null,null,null,null,null,"DaB- Delanco Series (90% of map unit)"]
[null,null,null,null,null,null,null,null,null,null,null,null,null,"DcB- Codorus Series (35% of map unit)"]
[null,null,null,null,null,null,null,null,null,null,null,null,null,"DcB- Delanco Series (40% of map unit)"]
[null,null,null,null,null,null,null,null,null,null,null,null,null,"DcB- Hatboro Series (25% of map unit)"]
[null,null,null,null,null,null,null,null,null,null,null,null,null,"DoA- Downer Series (80% of map unit)"]
[null,null,null,null,null,null,null,null,null,null,null,null,null,"DoB- Downer Series (80% of map unit)"]
[null,null,null,null,null,null,null,null,null,null,null,null,null,"DoC- Downer Series (80% of map unit)"]
[null,null,null,null,null,null,null,null,null,null,null,null,null,"EmA- Elkton Series drained (35% of map unit)"]
[null,null,null,null,null,null,null,null,null,null,null,null,null,"EmA- Elkton Series undrained (40% of map unit)"]
[null,null,null,null,null,null,null,null,null,null,null,null,null,"EnB- Elsinboro Series (95% of map unit)"]
[null,null,null,null,null,null,null,null,null,null,null,null,null,"ErB- Delanco Series (30% of map unit)"]
[null,null,null,null,null,null,null,null,null,null,null,null,null,"ErB- Elsinboro Series (45% of map unit)"]
[null,null,null,null,null,null,null,null,null,null,null,null,null,"ESA- Endoaquepts Series drained (45% of map unit)"]
[null,null,null,null,null,null,null,null,null,null,null,null,null,"ESA- Sulfaquepts Series drained (45% of map unit)"]
[null,null,null,null,null,null,null,null,null,null,null,null,null,"FaA- Fallsington Series drained (40% of map unit)"]
[null,null,null,null,null,null,null,null,null,null,null,null,null,"FaA- Fallsington Series undrained (40% of map unit)"]
[null,null,null,null,null,null,null,null,null,null,null,null,null,"FgA- Fallsington Series drained (40% of map unit)"]
[null,null,null,null,null,null,null,null,null,null,null,null,null,"FgA- Fallsington Series undrained (40% of map unit)"]
[null,null,null,null,null,null,null,null,null,null,null,null,null,"FzB- Fallsington Series drained (40% of map unit)"]
[null,null,null,null,null,null,null,null,null,null,null,null,null,"FzB- Fallsington Series undrained (25% of map unit)"]
[null,null,null,null,null,null,null,null,null,null,null,null,null,"GaC- Gaila Series (85% of map unit)"]
[null,null,null,null,null,null,null,null,null,null,null,null,null,"GaD- Gaila Series (90% of map unit)"]
[null,null,null,null,null,null,null,null,null,null,null,null,null,"GaE- Gaila Series (80% of map unit)"]
[null,null,null,null,null,null,null,null,null,null,null,null,null,"GeA- Glenelg Series (85% of map unit)"]
[null,null,null,null,null,null,null,null,null,null,null,null,null,"GeB- Glenelg Series (85% of map unit)"]
[null,null,null,null,null,null,null,null,null,null,null,null,null,"GeC- Glenelg Series (85% of map unit)"]
[null,null,null,null,null,null,null,null,null,null,null,null,null,"GgA- Glenelg Series (85% of map unit)"]
[null,null,null,null,null,null,null,null,null,null,null,null,null,"GgB- Glenelg Series (85% of map unit)"]
[null,null,null,null,null,null,null,null,null,null,null,null,null,"GgC- Glenelg Series (85% of map unit)"]
[null,null,null,null,null,null,null,null,null,null,null,null,null,"GgD- Glenelg Series (85% of map unit)"]
[null,null,null,null,null,null,null,null,null,null,null,null,null,"GhB- Glenelg Series (45% of map unit)"]
[null,null,null,null,null,null,null,null,null,null,null,null,null,"GhB- Wheaton Series (30% of map unit)"]
[null,null,null,null,null,null,null,null,null,null,null,null,null,"GhC- Glenelg Series (45% of map unit)"]
[null,null,null,null,null,null,null,null,null,null,null,null,null,"GhC- Wheaton Series (30% of map unit)"]
[null,null,null,null,null,null,null,null,null,null,null,null,null,"GnA- Glenville Series (85% of map unit)"]
[null,null,null,null,null,null,null,null,null,null,null,null,null,"GnB- Glenville Series (85% of map unit)"]
[null,null,null,null,null,null,null,null,null,null,null,null,null,"GnC- Glenville Series (85% of map unit)"]
[null,null,null,null,null,null,null,null,null,null,null,null,null,"GrA- Greenwich Series (85% of map unit)"]
[null,null,null,null,null,null,null,null,null,null,null,null,null,"GrB- Greenwich Series (85% of map unit)"]
[null,null,null,null,null,null,null,null,null,null,null,null,null,"GuB- Greenwich Series (60% of map unit)"]
[null,null,null,null,null,null,null,null,null,null,null,null,null,"HbA- Hambrook Series (80% of map unit)"]
[null,null,null,null,null,null,null,null,null,null,null,null,null,"HbB- Hambrook Series (80% of map unit)"]
[null,null,null,null,null,null,null,null,null,null,null,null,null,"HkB- Hambrook Series (45% of map unit)"]
[null,null,null,null,null,null,null,null,null,null,null,null,null,"HnA- Hammonton Series (80% of map unit)"]
[null,null,null,null,null,null,null,null,null,null,null,null,null,"HoA- Fallsington Series drained (10% of map unit)"]
[null,null,null,null,null,null,null,null,null,null,null,null,null,"HoA- Fallsington Series undrained (25% of map unit)"]
[null,null,null,null,null,null,null,null,null,null,null,null,null,"HoA- Hammonton Series (40% of map unit)"]
[null,null,null,null,null,null,null,null,null,null,null,null,null,"HoA- Mullica Series drained (5% of map unit)"]
[null,null,null,null,null,null,null,null,null,null,null,null,null,"HoA- Mullica Series undrained (10% of map unit)"]
[null,null,null,null,null,null,null,null,null,null,null,null,null,"Ht- Hatboro Series (90% of map unit)"]
[null,null,null,null,null,null,null,null,null,null,null,null,null,"Hw- Codorus Series (40% of map unit)"]
[null,null,null,null,null,null,null,null,null,null,null,null,null,"Hw- Hatboro Series (50% of map unit)"]
[null,null,null,null,null,null,null,null,null,null,null,null,null,"IeA- Ingleside Series (75% of map unit)"]
[null,null,null,null,null,null,null,null,null,null,null,null,null,"IeB- Ingleside Series (75% of map unit)"]
[null,null,null,null,null,null,null,null,null,null,null,null,null,"IgB- Ingleside Series (75% of map unit)"]
[null,null,null,null,null,null,null,null,null,null,null,null,null,"ImB- Fallsington Series drained (15% of map unit)"]
[null,null,null,null,null,null,null,null,null,null,null,null,null,"ImB- Fallsington Series undrained (10% of map unit)"]
[null,null,null,null,null,null,null,null,null,null,null,null,null,"ImB- Hammonton Series (30% of map unit)"]
[null,null,null,null,null,null,null,null,null,null,null,null,null,"ImB- Ingleside Series (35% of map unit)"]
[null,null,null,null,null,null,null,null,null,null,null,null,null,"KhC- Keyport Series (80% of map unit)"]
[null,null,null,null,null,null,null,null,null,null,null,null,null,"KmE- Keyport Series (80% of map unit)"]
[null,null,null,null,null,null,null,null,null,null,null,null,null,"KpA- Keyport Series (80% of map unit)"]
[null,null,null,null,null,null,null,null,null,null,null,null,null,"KpB- Keyport Series (80% of map unit)"]
[null,null,null,null,null,null,null,null,null,null,null,null,null,"LeA- Leipsic Series (75% of map unit)"]
[null,null,null,null,null,null,null,null,null,null,null,null,null,"LeB- Leipsic Series (75% of map unit)"]
[null,null,null,null,null,null,null,null,null,null,null,null,null,"LfA- Leipsic Series (45% of map unit)"]
[null,null,null,null,null,null,null,null,null,null,null,null,null,"LfA- Reybold Series (40% of map unit)"]
[null,null,null,null,null,null,null,null,null,null,null,null,null,"LfB- Leipsic Series (45% of map unit)"]
[null,null,null,null,null,null,null,null,null,null,null,null,null,"LfB- Reybold Series (40% of map unit)"]
[null,null,null,null,null,null,null,null,null,null,null,null,null,"LhA- Lenni Series drained (50% of map unit)"]
[null,null,null,null,null,null,null,null,null,null,null,null,null,"LhA- Lenni Series undrained (30% of map unit)"]
[null,null,null,null,null,null,null,null,null,null,null,null,null,"Lk- Lenape Series (85% of map unit)"]
[null,null,null,null,null,null,null,null,null,null,null,null,null,"Ln- Lenape Series (45% of map unit)"]
[null,null,null,null,null,null,null,null,null,null,null,null,null,"Ln- Nanticoke Series (40% of map unit)"]
[null,null,null,null,null,null,null,null,null,null,null,null,null,"LO- Indiantown Series (40% of map unit)"]
[null,null,null,null,null,null,null,null,null,null,null,null,null,"LO- Longmarsh Series (40% of map unit)"]
[null,null,null,null,null,null,null,null,null,null,null,null,null,"MaC- Manor Series (85% of map unit)"]
[null,null,null,null,null,null,null,null,null,null,null,null,null,"MaD- Manor Series (90% of map unit)"]
[null,null,null,null,null,null,null,null,null,null,null,null,null,"MaE- Manor Series (90% of map unit)"]
[null,null,null,null,null,null,null,null,null,null,null,null,null,"MkA- Matapeake Series (80% of map unit)"]
[null,null,null,null,null,null,null,null,null,null,null,null,null,"MkB- Matapeake Series (80% of map unit)"]
[null,null,null,null,null,null,null,null,null,null,null,null,null,"MmA- Mullica Series drained (50% of map unit)"]
[null,null,null,null,null,null,null,null,null,null,null,null,null,"MmA- Mullica Series undrained (30% of map unit)"]
[null,null,null,null,null,null,null,null,null,null,null,null,null,"MtA- Mattapex Series (80% of map unit)"]
[null,null,null,null,null,null,null,null,null,null,null,null,null,"MtB- Mattapex Series (80% of map unit)"]
[null,null,null,null,null,null,null,null,null,null,null,null,null,"MtC- Mattapex Series (75% of map unit)"]
[null,null,null,null,null,null,null,null,null,null,null,null,null,"MuB- Mattapex Series (50% of map unit)"]
[null,null,null,null,null,null,null,null,null,null,null,null,null,"MxB- Montalto Series (85% of map unit)"]
[null,null,null,null,null,null,null,null,null,null,null,null,null,"MxC- Montalto Series (90% of map unit)"]
[null,null,null,null,null,null,null,null,null,null,null,null,null,"MzA- Mount Lucas Series (90% of map unit)"]
[null,null,null,null,null,null,null,null,null,null,null,null,null,"MzB- Mount Lucas Series (90% of map unit)"]
[null,null,null,null,null,null,null,null,null,null,null,null,null,"MzuB- Mount Lucas Series (70% of map unit)"]
[null,null,null,null,null,null,null,null,null,null,null,null,null,"NM- Mannington Series (45% of map unit)"]
[null,null,null,null,null,null,null,null,null,null,null,null,null,"NM- Nanticoke Series (45% of map unit)"]
[null,null,null,null,null,null,null,null,null,null,null,null,null,"NsA- Nassawango Series (80% of map unit)"]
[null,null,null,null,null,null,null,null,null,null,null,null,null,"NsB- Nassawango Series (80% of map unit)"]
[null,null,null,null,null,null,null,null,null,null,null,null,null,"NtB- Neshaminy Series very deep over gabbro (85% of map unit)"]
[null,null,null,null,null,null,null,null,null,null,null,null,null,"NtC- Neshaminy Series very deep over gabbro (90% of map unit)"]
[null,null,null,null,null,null,null,null,null,null,null,null,null,"NvC- Montalto Series (45% of map unit)"]
[null,null,null,null,null,null,null,null,null,null,null,null,null,"NvC- Neshaminy Series very deep over gabbro (50%of map unit)"]
[null,null,null,null,null,null,null,null,null,null,null,null,null,"NvD- Montalto Series (45% of map unit)"]
[null,null,null,null,null,null,null,null,null,null,null,null,null,"NvD- Neshaminy Series very deep over gabbro (55% of map unit)"]
[null,null,null,null,null,null,null,null,null,null,null,null,null,"NvE- Montalto Series (45% of map unit)"]
[null,null,null,null,null,null,null,null,null,null,null,null,null,"NvE- Neshaminy Series very deep over gabbro (55%of map unit)"]
[null,null,null,null,null,null,null,null,null,null,null,null,null,"NxB- Neshaminy Series very deep over gabbro (55%of map unit)"]
[null,null,null,null,null,null,null,null,null,null,null,null,null,"OtA- Othello Series drained (35% of map unit)"]
[null,null,null,null,null,null,null,null,null,null,null,null,null,"OtA- Othello Series undrained (40% of map unit)"]
[null,null,null,null,null,null,null,null,null,null,null,null,null,"PyA- Pineyneck Series (80% of map unit)"]
[null,null,null,null,null,null,null,null,null,null,null,null,null,"PyB- Pineyneck Series (80% of map unit)"]
[null,null,null,null,null,null,null,null,null,null,null,null,null,"RdA- Queponco Series (40% of map unit)"]
[null,null,null,null,null,null,null,null,null,null,null,null,null,"RdA- Reybold Series (45% of map unit)"]
[null,null,null,null,null,null,null,null,null,null,null,null,null,"ReA- Reybold Series (75% of map unit)"]
[null,null,null,null,null,null,null,null,null,null,null,null,null,"ReB- Reybold Series (75% of map unit)"]
[null,null,null,null,null,null,null,null,null,null,null,null,null,"ReC- Reybold Series (75% of map unit)"]
[null,null,null,null,null,null,null,null,null,null,null,null,null,"SaA- Sassafras Series (80% of map unit)"]
[null,null,null,null,null,null,null,null,null,null,null,null,null,"SaB- Sassafras Series (80% of map unit)"]
[null,null,null,null,null,null,null,null,null,null,null,null,null,"SaC- Sassafras Series (75% of map unit)"]
[null,null,null,null,null,null,null,null,null,null,null,null,null,"SaD- Sassafras Series (75% of map unit)"]
[null,null,null,null,null,null,null,null,null,null,null,null,null,"SaE- Sassafras Series (75% of map unit)"]
[null,null,null,null,null,null,null,null,null,null,null,null,null,"SuA- Sunken Series (80% of map unit)"]
[null,null,null,null,null,null,null,null,null,null,null,null,null,"TaB- Talleyville Series (80% of map unit)"]
[null,null,null,null,null,null,null,null,null,null,null,null,null,"TdB- Montalto Series (30% of map unit)"]
[null,null,null,null,null,null,null,null,null,null,null,null,null,"TdB- Talleyville Series (45% of map unit)"]
[null,null,null,null,null,null,null,null,null,null,null,null,null,"TeA- Tent Series drained (50% of map unit)"]
[null,null,null,null,null,null,null,null,null,null,null,null,null,"TeA- Tent Series undrained (35% of map unit)"]
[null,null,null,null,null,null,null,null,null,null,null,null,null,"TP- Mispillion Series (40% of map unit)"]
[null,null,null,null,null,null,null,null,null,null,null,null,null,"TP- Transquaking Series (40% of map unit)"]
[null,null,null,null,null,null,null,null,null,null,null,null,null,"UaB- Udorthents Series schist and gneiss (95% of map unit)"]
[null,null,null,null,null,null,null,null,null,null,null,null,null,"UbB- Udorthents Series (75% of map unit)"]
[null,null,null,null,null,null,null,null,null,null,null,null,null,"UdrB- Udorthents Series (90% of map unit)"]
[null,null,null,null,null,null,null,null,null,null,null,null,null,"UlA- Unicorn Series (85% of map unit)"]
[null,null,null,null,null,null,null,null,null,null,null,null,null,"UlB- Unicorn Series (85% of map unit)"]
[null,null,null,null,null,null,null,null,null,null,null,null,null,"UsB- Udorthents Series (85% of map unit)"]
[null,null,null,null,null,null,null,null,null,null,null,null,null,"UwA- Udorthents Series (85% of map unit)"]
[null,null,null,null,null,null,null,null,null,null,null,null,null,"UzC- Udorthents Series loamy (90% of map unit)"]
[null,null,null,null,null,null,null,null,null,null,null,null,null,"UzF- Udorthents Series loamy (85% of map unit)"]
[null,null,null,null,null,null,null,null,null,null,null,null,null,"VoB- Othello Series drained (30% of map unit)"]
[null,null,null,null,null,null,null,null,null,null,null,null,null,"VwB- Wheaton Series (40% of map unit)"]
[null,null,null,null,null,null,null,null,null,null,null,null,null,"WaA- Watchung Series (90% of map unit)"]
[null,null,null,null,null,null,null,null,null,null,null,null,null,"WaB- Watchung Series (90% of map unit)"]
[null,null,null,null,null,null,null,null,null,null,null,null,null,"WcB- Watchung Series (85% of map unit)"]
[null,null,null,null,null,null,null,null,null,null,null,null,null,"WdA- Woodstown Series (80% of map unit)"]
[null,null,null,null,null,null,null,null,null,null,null,null,null,"WdB- Woodstown Series (85% of map unit)"]
[null,null,null,null,null,null,null,null,null,null,null,null,null,"WoA- Woodstown Series (80% of map unit)"]
[null,null,null,null,null,null,null,null,null,null,null,null,null,"WoB- Woodstown Series (80% of map unit)"]
[null,null,null,null,null,null,null,null,null,null,null,null,null,"Za- Zekiah Series (75% of map unit)"]

{"sheet":"Nt Mgt Plan","index":18,"n_rows":272,"n_cols":24,"rows_kept":272,"cut":false,"hidden":false,"merged":[[8,13,9,14],[0,1,0,3],[50,1,50,3],[7,13,7,14],[50,6,50,7],[0,6,0,7],[47,0,47,11],[49,0,49,11],[16,3,16,5],[22,0,22,2],[24,4,25,4],[24,3,25,3],[24,11,25,11],[24,10,25,10],[24,9,25,9],[24,8,25,8],[24,7,25,7],[31,11,32,11],[31,10,32,10],[31,9,32,9],[31,8,32,8],[31,7,32,7],[23,0,23,1],[20,9,20,11],[66,0,66,2],[66,3,66,5],[77,1,77,2],[76,0,76,1],[82,1,82,2],[72,0,72,2],[74,4,75,4],[74,5,75,5],[69,0,69,2],[70,0,70,2],[68,0,68,2],[67,0,67,2],[66,6,66,8],[66,9,66,11],[81,5,82,5],[81,6,82,6],[74,11,75,11],[81,11,82,11],[81,9,82,9],[74,8,75,8],[74,9,75,9],[74,10,75,10],[70,9,70,11],[69,3,69,5],[69,6,69,8],[69,9,69,11],[70,3,70,5],[70,6,70,8],[68,3,68,5],[68,6,68,8],[68,9,68,11],[67,3,67,5],[67,6,67,8],[67,9,67,11],[97,0,97,11],[99,0,99,11],[73,0,73,1],[74,1,74,2],[74,3,75,3],[75,0,75,1],[96,0,96,11],[98,0,98,11],[81,3,82,3],[81,4,82,4],[95,0,95,11],[88,1,88,2],[90,0,90,2],[78,0,78,1],[79,1,79,2],[80,0,80,1],[81,10,82,10],[81,7,82,7],[81,8,82,8],[81,0,81,1],[74,6,75,6],[74,7,75,7],[91,1,91,2],[93,1,93,2],[19,9,19,11],[18,9,18,11],[17,9,17,11],[63,7,63,8],[63,9,63,10],[56,0,56,2],[56,6,56,10],[57,2,57,4],[57,8,57,10],[54,0,54,2],[53,0,53,2],[53,3,53,4],[53,8,53,9],[54,3,54,6],[31,6,32,6],[31,5,32,5],[31,4,32,4],[31,3,32,3],[26,0,26,1],[28,0,28,1],[30,0,30,1],[31,0,31,1],[32,1,32,2],[3,0,3,2],[4,0,4,2],[3,3,3,4],[3,8,3,9],[11,16,11,17],[52,0,52,1],[51,0,51,1],[52,5,52,6],[52,7,52,11],[16,0,16,2],[20,3,20,5],[19,3,19,5],[18,3,18,5],[17,3,17,5],[20,0,20,2],[19,0,19,2],[18,0,18,2],[17,0,17,2],[16,9,16,11],[20,6,20,8],[19,6,19,8],[18,6,18,8],[17,6,17,8],[16,6,16,8],[1,0,1,1],[2,0,2,1],[2,5,2,6],[6,0,6,2],[7,2,7,4],[7,8,7,10],[46,0,46,11],[48,0,48,11],[45,0,45,11],[40,0,40,2],[43,1,43,2],[41,1,41,2],[4,3,4,6],[13,7,13,8],[6,6,6,10],[13,9,13,10],[25,0,25,1],[38,1,38,2],[24,6,25,6],[24,5,25,5],[24,1,24,2],[27,1,27,2],[29,1,29,2],[2,7,2,11]]}
["Name:",null,null,null,null,"Field Name:"]
["FSA Farm #:",null,null,null,null,"Acres:",null,null,null,null,"County:"]
["FSA TRACT #:",null,null,null,null,"Predominant Soil Type:"]
["Phosphorus Site Index (PSI):",null,null,"This field has a ",null,null,"PSI , therefore this is a "]
["Nutrient Management Plan for ",null,null,null,null,null,null,null,null,null,null,null,null,null,null,null,"PSI","Nutrient -Base","County"]
[]
["Soil Test Results",null,null,null,null,null,"MANURE ANALYSIS RESULTS",null,null,null,null,null,null,null,null,null,"Low","Nitrogen-based","New Castle"]
[null,"Testing lab",null,null,null,null,null,"Testing lab",null,null,null,null,null,"Instructions",null,null,"Medium","Phosphorus-based","Kent"]
[null,"Test Date",null,null,null,null,null,"Test Date",null,null,null,null,null,"You must choose a County to set soils.\nFill in all yellow highlighted boxes.",null,null,"High",null,"Sussex"]
[null,"pH",null,"FIV",null,null,null,"Total N",null,null,null,null,null,null,null,null,"Very High"]
[null,"pH",null,"FIV",null,null,null,"Ammonia N",null,null,null,null,null,{"$f":"D17","v":2015},"Enter First Year of Plan"]
[null,"K",null,"FIV",null,null,null,"P2O5",null,null,null,null,null,null,"Drop Down Boxes",null,"Years Covered by Plan"]
[null,"Mg",null,"FIV",null,null,null,"K2O",null,null,null,null,null,null,"Fill in information"]
[null,"Ca",null,"FIV",null,null,null,"Storage Method",null,null,null,null,null,null,"Automatic Calculation",null,"one out of three years detailed in this plan."]
[null,null,null,null,null,null,null,null,null,null,null,null,null,null,null,null,"all three years detailed in this plan."]
[]
["Year of Plan",null,null,2015,null,null,{"$f":"IF($D$17>0,$D$17+1,\"\")","v":2016},null,null,{"$f":"IF($D$17>0,$D$17+2,\"\")","v":2017}]
["Crop Name",null,null,null,null,null,null,null,null,null,null,null,null,null,null,null,"Testing Lab","Storage method"]
["Crop Yield Goal"]
["2nd Crop name",null,null,null,null,null,null,null,null,null,null,null,null,null,null,null,"Not Applicable","Manure Structure"]
["2nd Crop yield Goal",null,null,null,null,null,null,null,null,null,null,null,null,null,null,null,"University of Delaware","Bunker"]
[null,null,null,null,null,null,null,null,null,null,null,null,null,null,null,null,"State of Delaware","Field-covered"]
["INPUTS:",null,null,"N","P","K","N","P","K","N","P","K",null,null,null,null,"Agri-Analysis","Field-uncovered"]
["Manure Applied",null,null,"Rate:",null,"ton/acre","Rate:",null,"ton/acre","Rate:",null,"ton/acre",null,null,null,null,"A&L Labs","In-house"]
["Method:",null,null,null,null,null,null,null,null,null,null,null,null,null,null,null,"Agro Lab, Inc.","Lagoon"]
["Day Incorporated:",null,null,null,null,null,null,null,null,null,null,null,null,null,null,null,"Brookside","Pit"]
["Preplant Fertilizer",null,"(lb/Acre)",null,null,null,null,null,null,null,null,null,null,null,null,null,null,"Stockpiled"]
["Method:",null,null,null,null,null,null,null,null,null,null,null,null,null,null,null,null,"Unsure"]
["Starter Fertilizer",null,"(lb/acre)",null,null,null,null,null,null,null,null,null,null,null,null,null,null,"Other"]
["Method:"]
["Sidedress Fetilizer",null,"(lb/acre)"]
["Fertilizer - 2nd Crop"]
["Timing:",null,null,null,null,null,null,null,null,null,null,null,null,null,null,null,"Application Method","Day Incorporated","Timing"]
["Credits","(previous Legume)"]
["Credits","(2nd Year manure)",null,null,null,null,null,null,null,null,null,null,null,null,null,null,"Broadcast","N/A","Spring"]
["Credits","(Other)",null,null,null,null,null,null,null,null,null,null,null,null,null,null,"Injected",1,"Fall"]
["Totals",null,null,{"$f":"SUM(D25:D36)","v":0},{"$f":"SUM(E25:E36)","v":0},0,0,0,0,0,0,0,null,null,null,null,"Broadcast and Disk In",2,"Split into 2 applications"]
[null,null,null,null,null,null,null,null,null,null,null,null,null,null,null,null,"Banded",3]
["Lime","(ton/acre)",null,null,null,null,null,null,null,null,null,null,null,null,null,null,null,4]
[null,null,null,null,null,null,null,null,null,null,null,null,null,null,null,null,null,5]
["NUTRIENT BALANCE",null,null,"N","P","K","N","P","K","N","P","K",null,null,null,null,null,6]
["Removal","(lb/acre)"]
[]
["Balance","(Total Inputs - Removal)",null,{"$f":"D37-D42","v":0},{"$f":"E37-E42","v":0},0,0,0,0,0,0,0]
[]
["ADDITIONAL RECOMMENDATIONS"]
["All nutrients should be applied at a time that will allow them to be available as plant food for the crop, according to University of Delaware and Delaware Nutrient Management Commission guidelines."]
[]
["Justification is needed if soil samples represent more than 20 acres.  "]
[]
["Name:",null,null,null,null,"Field Name:",null,null,null,null,null,null,null,null,null,null,null,null,null,"Active County","Kent","New Castle-FY11","Sussex","Delaware"]
["FSA Farm #:",null,null,null,null,"Acres:",null,null,null,null,"County:",{"$f":"$L$2","v":0}]
["FSA TRACT #:",null,null,null,null,"Predominant Soil Type:",null,null,null,null,null,null,null,null,null,null,null,null,null,{"$f":"IF($L$2=\"Kent\",U53,IF($L$2=\"New Castle\",V53,IF($L$2=\"Sussex\",W53,X53)))","v":"Acquango-Beaches complex   (AbC)   A   7s"},"Acquango-Beaches complex   (AbC)   A   7s","Appoquinimink   (Ba)   MK-SIL  D   2w","Askecksy loamy sand   (AsA)   D   4w","Acquango-Beaches complex   (AbC)   A   7s"]
["Phosphorus Site Index (PSI):",null,null,"This field has a ",null,null,"PSI , therefore this is a ",null,null,null,null,null,null,null,null,null,null,null,null,"Acquango-Urban land complex   (AuB)   A   7s","Acquango-Urban land complex   (AuB)   A   7s","Broadkill   (Ba)   MK-PEAT  D   2w","Berryland mucky loamy sand   (BhA)   B   2w","Acquango-Urban land complex   (AuB)   A   7s"]
["Nutrient Management Plan for ",null,null,null,null,null,null,null,null,null,null,null,null,null,null,null,null,null,null,"Aldino   (AdA)   SIL   C   2w","Askecksy loamy sand   (AsA)   D   4w","Baile   (BbB)   SIL  D   2w","Carmichael loam   (CaA)   C   4w","Aldino   (AdA)   SIL   C   2w"]
[null,null,null,null,null,null,null,null,null,null,null,null,null,null,null,null,null,null,null,"Aldino   (AdB2)   SIL   C   2e","Berryland mucky loamy sand   (BhA)   B   2w","Glenville   (BbB)   SIL  C   2w","Cedartown loamy sand   (CdB)   A   3s","Aldino   (AdB2)   SIL   C   2e"]
["Soil Test Results",null,null,null,null,null,"MANURE ANALYSIS RESULTS",null,null,null,null,null,null,null,null,null,null,null,null,"Aldino   (Am)   SIL   C   2e","Brockatonorton-Urban land complex   (BuA)   D   6s","Brinklow   (BkD)   CN-L  B   2w","Corsica mucky loam   (CoA)   C   4w","Aldino   (Am)   SIL   C   2e"]
[null,"Testing lab",null,null,null,null,null,"Testing lab",null,null,null,null,null,null,null,null,null,null,null,"Askecksy loamy sand   (AsA)   D   4w","Carmichael loam   (CaA)   C   4w","Blocktown   (BnF)   CN-L  B   2w","Downer loamy sand   (DnA)   B   1","Askecksy loamy sand   (AsA)   D   4w"]
[null,"Test Date",null,null,null,null,null,"Test Date",null,null,null,null,null,null,null,null,null,null,null,"Bayboro   (Ba)   L   D   3w","Cedartown loamy sand   (CdB)   A   3s","Brinklow   (BnF)   CN-L  B   2w","Downer loamy sand   (DnB)   B   2e","Bayboro   (Ba)   L   D   3w"]
[null,"pH",null,"FIV",null,null,null,"Total N",null,null,null,null,null,null,null,null,null,null,null,"Berryland mucky loamy sand   (BhA)   B   2w","Corsica mucky loam   (CoA)   C   4w","Broadkill   (Br)   MK-PEAT  D   2w","Downer loamy sand   (DnC)   B   3e","Berryland mucky loamy sand   (BhA)   B   2w"]
[null,"pH",null,"FIV",null,null,null,"Ammonia N",null,null,null,null,null,null,null,null,null,null,null,"Brockatonorton-Urban land complex   (BuA)   D   6s","Downer loamy sand   (DnA)   B   1","Brinklow   (BrvF)   CN-L  B   2w","Downer sandy loam   (DoA)   B   1","Brockatonorton-Urban land complex   (BuA)   D   6s"]
[null,"K",null,"FIV",null,null,null,"P2O5",null,null,null,null,null,null,null,null,null,null,null,"Butlertown   (BuA)   SIL   C   1","Downer loamy sand   (DnB)   B   2e","Codorus   (Ch)   SIL  C   2w","Downer sandy loam   (DoB)   B   2e","Butlertown   (BuA)   SIL   C   1"]
[null,"Mg",null,"FIV",null,null,null,"K2O",null,null,null,null,null,null,null,null,null,null,null,"Butlertown   (BuB2)   SIL   C   2e","Downer loamy sand   (DnC)   B   3e","Collington   (CnB)   FSL  B   2w","Downer sandy loam   (DoC)   B   3e","Butlertown   (BuB2)   SIL   C   2e"]
[null,"Ca",null,"FIV",null,null,null,"Storage Method",null,null,null,null,null,null,null,null,null,null,null,"Butlertown   (BuC2)   SIL   C   3e","Downer sandy loam   (DoA)   B   1","Collington   (CnD)   FSL  B   2w","Downer-Urban land complex   (DuB)   B   2e","Butlertown   (BuC2)   SIL   C   3e"]
[null,null,null,null,null,null,null,null,null,null,null,null,null,null,null,null,null,null,null,"Calvert   (WcA)   SIL   D   4w","Downer sandy loam   (DoB)   B   2e","Corsica   (CoA)   SPM  D   2w","Evesboro loamy sand   (EvB)   A   4s","Calvert   (WcA)   SIL   D   4w"]
[null,null,null,null,null,null,null,null,null,null,null,null,null,null,null,null,null,null,null,"Calvert   (WcB)   SIL   D   6w","Downer sandy loam   (DoC)   B   3e","Corsica   (CoA)   MK-L  C   2w","Evesboro loamy sand   (EvD)   A   6e","Calvert   (WcB)   SIL   D   6w"]
["Year of Plan",null,null,{"$f":"IF($D$17>0,$D$17,\"\")","v":2015},null,null,{"$f":"IF($D$17>0,$D$17+1,\"\")","v":2016},null,null,{"$f":"IF($D$17>0,$D$17+2,\"\")","v":2017},null,null,null,null,null,null,null,null,null,"Carmichael loam   (CaA)   C   4w","Downer-Urban land complex   (DuB)   B   2e","Comus   (Cp)   SIL  B   2w","Fallsington loam   (FgA)   C   4w","Carmichael loam   (CaA)   C   4w"]
["Crop Name",null,null,null,null,null,null,null,null,null,null,null,null,null,null,null,null,null,null,"Cedartown loamy sand   (CdB)   A   3s","Evesboro loamy sand   (EvB)   A   4s","Crosiadore   (CsA)   SIL  C   2w","Fallsington sandy loam   (FaA)   C   4w","Cedartown loamy sand   (CdB)   A   3s"]
["Crop Yield Goal",null,null,null,null,null,null,null,null,null,null,null,null,null,null,null,null,null,null,"Chester   (ChA)   L   B   1","Evesboro loamy sand   (EvD)   A   6e","Delanco   (DaB)   SIL  C   2w","Fallsington-Urban land complex   (FzB)   B   3w","Chester   (ChA)   L   B   1"]
["2nd Crop name",null,null,null,null,null,null,null,null,null,null,null,null,null,null,null,null,null,null,"Chester   (ChB2)   L   B   2e","Fallsington loam   (FgA)   C   4w","Codorus   (DcB)   SIL  C   2w","Fort Mott loamy sand   (FmA)   A   2s","Chester   (ChB2)   L   B   2e"]
["2nd Crop yield Goal",null,null,null,null,null,null,null,null,null,null,null,null,null,null,null,null,null,null,"Chester   (ChC2)   L   B   3e","Fallsington sandy loam   (FaA)   C   4w","Delanco   (DcB)   SIL  C   2w","Fort Mott loamy sand   (FmB)   A   2s","Chester   (ChC2)   L   B   3e"]
[null,null,null,null,null,null,null,null,null,null,null,null,null,null,null,null,null,null,null,"Chester   (ChC3)   L   B   3e","Fallsington-Urban land complex   (FzB)   B   3w","Downer   (DoA)   SL  B   2w","Fort Mott-Henlopen complex   (FhA)   A   2s","Chester   (ChC3)   L   B   3e"]
["INPUTS:",null,null,"N","P","K","N","P","K","N","P","K",null,null,null,null,null,null,null,"Chester   (ChD2)   L   B   4e","Fort Mott loamy sand   (FmA)   A   2s","Downer   (DoB)   SL  B   2w","Fort Mott-Henlopen complex   (FhB)   A   2s","Chester   (ChD2)   L   B   4e"]
["Manure Applied",null,null,"Rate:",null,"ton/acre","Rate:",null,"ton/acre","Rate:",null,"ton/acre",null,null,null,null,null,null,null,"Chester   (ChD3)   L   B   4e","Fort Mott loamy sand   (FmB)   A   2s","Downer   (DoC)   SL  B   2w","Galestown loamy sand   (GaB)   A   3s","Chester   (ChD3)   L   B   4e"]
["Method:",null,null,null,null,null,null,null,null,null,null,null,null,null,null,null,null,null,null,"Chester   (McB)   L   B   2e","Fort Mott-Henlopen complex   (FhA)   A   2s","Elkton   (EmA)   MPM  D   2w","Glassboro sandy loam   (GoA)   C   3w","Chester   (McB)   L   B   2e"]
["Day Incorporated:",null,null,null,null,null,null,null,null,null,null,null,null,null,null,null,null,null,null,"Codorus   (Co)   SIL   C   2w","Fort Mott-Henlopen complex   (FhB)   A   2s","Elkton   (EmA)   SIL  C   2w","Greenwich loam   (GrA)   B   1","Codorus   (Co)   SIL   C   2w"]
["Preplant Fertilizer",null,"(lb/Acre)",null,null,null,null,null,null,null,null,null,null,null,null,null,null,null,null,"Collington   (CsB2)   FSL   B   2e","Galestown loamy sand   (GaB)   A   3s","Elsinboro   (EnB)   SIL  B   2w","Greenwich loam   (GrB)   B   2e","Collington   (CsB2)   FSL   B   2e"]
["Method:",null,null,null,null,null,null,null,null,null,null,null,null,null,null,null,null,null,null,"Collington   (CsC3)   FSL   B   3e","Glassboro sandy loam   (GoA)   C   3w","Delanco   (ErB)   SIL  C   2w","Greenwich-Urban land complex   (GuB)   B   2e","Collington   (CsC3)   FSL   B   3e"]
["Starter Fertilizer",null,"(lb/acre)",null,null,null,null,null,null,null,null,null,null,null,null,null,null,null,null,"Collington   (CsD3)   FSL   B   4e","Greenwich loam   (GrA)   B   1","Elsinboro   (ErB)   SIL  B   2w","Hambrook sandy loam   (HbA)   B   1","Collington   (CsD3)   FSL   B   4e"]
["Method:",null,null,null,null,null,null,null,null,null,null,null,null,null,null,null,null,null,null,"Comus   (Cu)   SIL   B   1","Greenwich loam   (GrB)   B   2e","Endoaquepts, drained   (ESA)   SICL  C   5s","Hambrook sandy loam   (HbB)   B   2e","Comus   (Cu)   SIL   B   1"]
["Sidedress Fetilizer",null,"(lb/acre)",null,null,null,null,null,null,null,null,null,null,null,null,null,null,null,null,"Corsica mucky loam   (CoA)   C   4w","Greenwich-Urban land complex   (GuB)   B   2e","Sulfaquepts, drained   (ESA)   SIL  C   5s","Hambrook-Urban land complex   (HkB)   B   2e","Corsica mucky loam   (CoA)   C   4w"]
["Fertilizer - 2nd Crop",null,null,null,null,null,null,null,null,null,null,null,null,null,null,null,null,null,null,"Delanco   (DeA)   SIL   C   2w","Hambrook sandy loam   (HbA)   B   1","Fallsington, undrained   (FaA)   MPM  D   2w","Hammonton loamy sand   (HmA)   B   2w","Delanco   (DeA)   SIL   C   2w"]
["Timing:",null,null,null,null,null,null,null,null,null,null,null,null,null,null,null,null,null,null,"Delanco   (DeB2)   SIL   C   2e","Hambrook sandy loam   (HbB)   B   2e","Fallsington, drained   (FaA)   SL  C   2w","Hammonton sandy loam   (HnA)   B   2w","Delanco   (DeB2)   SIL   C   2e"]
["Credits","(previous Legume)",null,null,null,null,null,null,null,null,null,null,null,null,null,null,null,null,null,"Delanco   (EuB)   SIL   C   2e","Hambrook-Urban land complex   (HkB)   B   2e","Fallsington, undrained   (FgA)   MPM  D   2w","Hammonton-Fallsington-Mullica complex   (HoA)   B   2w","Delanco   (EuB)   SIL   C   2e"]
["Credits","(2nd Year manure)",null,null,null,null,null,null,null,null,null,null,null,null,null,null,null,null,null,"Downer loamy sand   (DnA)   B   1","Hammonton loamy sand   (HmA)   B   2w","Fallsington, drained   (FgA)   L  C   2w","Henlopen loamy sand   (HpA)   A   3s","Downer loamy sand   (DnA)   B   1"]
["Credits","(Other)",null,null,null,null,null,null,null,null,null,null,null,null,null,null,null,null,null,"Downer loamy sand   (DnB)   B   2e","Hammonton sandy loam   (HnA)   B   2w","Fallsington, undrained   (FzB)   MPMD   4w","Henlopen loamy sand   (HpB)   A   3s","Downer loamy sand   (DnB)   B   2e"]
["Totals",null,null,{"$f":"SUM(D75:D86)","v":0},0,0,0,0,0,0,0,0,null,null,null,null,null,null,null,"Downer loamy sand   (DnC)   B   3e","Hammonton-Fallsington-Mullica complex   (HoA)   B   2w","Fallsington, drained   (FzB)   SLC   3w","Henlopen-Rosedale complex   (HrA)   A   3s","Downer loamy sand   (DnC)   B   3e"]
[null,null,null,null,null,null,null,null,null,null,null,null,null,null,null,null,null,null,null,"Downer sandy loam   (DoA)   B   1","Henlopen loamy sand   (HpA)   A   3s","Gaila   (GaC)   L  B   2w","Henlopen-Rosedale complex   (HrB)   A   3s","Downer sandy loam   (DoA)   B   1"]
["Lime","(ton/acre)",null,null,null,null,null,null,null,null,null,null,null,null,null,null,null,null,null,"Downer sandy loam   (DoB)   B   2e","Henlopen loamy sand   (HpB)   A   3s","Gaila   (GaD)   L  B   2w","Henlopen-Rosedale-Urban land complex   (HsA)   A   3s","Downer sandy loam   (DoB)   B   2e"]
[null,null,null,null,null,null,null,null,null,null,null,null,null,null,null,null,null,null,null,"Downer sandy loam   (DoC)   B   3e","Henlopen-Rosedale complex   (HrA)   A   3s","Gaila   (GaE)   L  B   2w","Hurlock loamy sand   (HuA)   B   4w","Downer sandy loam   (DoC)   B   3e"]
["NUTRIENT BALANCE",null,null,"N","P","K","N","P","K","N","P","K",null,null,null,null,null,null,null,"Downer-Urban land complex   (DuB)   B   2e","Henlopen-Rosedale complex   (HrB)   A   3s","Glenelg   (GeA)   L  B   2w","Hurlock sandy loam   (HvA)   B   4w","Downer-Urban land complex   (DuB)   B   2e"]
["Removal","(lb/acre)",null,null,null,null,null,null,null,null,null,null,null,null,null,null,null,null,null,"Elioak   (EaB2)   SIL   C   2e","Henlopen-Rosedale-Urban land complex   (HsA)   A   3s","Glenelg   (GeB)   L  B   2w","Ingleside loamy sand   (IeA)   B   1","Elioak   (EaB2)   SIL   C   2e"]
[null,null,null,null,null,null,null,null,null,null,null,null,null,null,null,null,null,null,null,"Elioak   (EkC3)   SICL   C   3e","Hurlock loamy sand   (HuA)   B   4w","Glenelg   (GeC)   L  B   2w","Ingleside loamy sand   (IeB)   B   2e","Elioak   (EkC3)   SICL   C   3e"]
["Balance","(Total Inputs - Removal)",null,{"$f":"D87-D92","v":0},{"$f":"E87-E92","v":0},0,0,0,0,0,0,0,null,null,null,null,null,null,null,"Elioak   (EkD3)   SICL   C   4e","Hurlock sandy loam   (HvA)   B   4w","Glenelg   (GgA)   SIL  B   2w","Ingleside sandy loam   (IgA)   B   1","Elioak   (EkD3)   SICL   C   4e"]
[null,null,null,null,null,null,null,null,null,null,null,null,null,null,null,null,null,null,null,"Elkton (drained)   (ElA)   SL   C   3w","Ingleside loamy sand   (IeA)   B   1","Glenelg   (GgB)   SIL  B   2w","Ingleside sandy loam   (IgB)   B   2e","Elkton (drained)   (ElA)   SL   C   3w"]
["ADDITIONAL RECOMMENDATIONS",null,null,null,null,null,null,null,null,null,null,null,null,null,null,null,null,null,null,"Elkton (drained)   (EmA)   SIL   C   3w","Ingleside loamy sand   (IeB)   B   2e","Glenelg   (GgC)   SIL  B   2w","Ingleside-Hammonton-Fallsington complex   (ImB)   B   2e","Elkton (drained)   (EmA)   SIL   C   3w"]
["All nutrients should be applied at a time that will allow them to be available as plant food for the crop, according to University of Delaware and Delaware Nutrient Management Commission guidelines.",null,null,null,null,null,null,null,null,null,null,null,null,null,null,null,null,null,null,"Elkton (drained)   (EmB)   SIL   C   3w","Ingleside sandy loam   (IgA)   B   1","Glenelg   (GgD)   SIL  B   2w","Ingleside-Urban land complex   (IuB)   B   2e","Elkton (drained)   (EmB)   SIL   C   3w"]
[null,null,null,null,null,null,null,null,null,null,null,null,null,null,null,null,null,null,null,"Elkton (undrained)   (ElA)   SL   D   4w","Ingleside sandy loam   (IgB)   B   2e","Glenelg   (GhB)   L  B   2w","Keyport fine sandy loam   (KfA)   C   2w","Elkton (undrained)   (ElA)   SL   D   4w"]
["Justification is needed if soil samples represent more than 20 acres.  ",null,null,null,null,null,null,null,null,null,null,null,null,null,null,null,null,null,null,"Elkton (undrained)   (EmA)   SIL   D   4w","Ingleside-Hammonton-Fallsington complex   (ImB)   B   2e","Wheaton   (GhB)   CN-SIL  B   2w","Keyport silt loam   (KpA)   C   2w","Elkton (undrained)   (EmA)   SIL   D   4w"]
[null,null,null,null,null,null,null,null,null,null,null,null,null,null,null,null,null,null,null,"Elkton (undrained)   (EmB)   SIL   D   4w","Ingleside-Urban land complex   (IuB)   B   2e","Glenelg   (GhC)   L  B   2w","Keyport silt loam   (KpB)   C   2e","Elkton (undrained)   (EmB)   SIL   D   4w"]
[null,null,null,null,null,null,null,null,null,null,null,null,null,null,null,null,null,null,null,"Elsinboro   (EnB2)   SIL   B   2e","Keyport fine sandy loam   (KfA)   C   2w","Wheaton   (GhC)   CN-SIL  B   2w","Klej loamy sand   (KsA)   C   3w","Elsinboro   (EnB2)   SIL   B   2e"]
[null,null,null,null,null,null,null,null,null,null,null,null,null,null,null,null,null,null,null,"Elsinboro   (EnC2)   SIL   B   3e","Keyport silt loam   (KpA)   C   2w","Glenville   (GnA)   SIL  C   2w","Klej-Galloway complex   (KgB)   C   3w","Elsinboro   (EnC2)   SIL   B   3e"]
[null,null,null,null,null,null,null,null,null,null,null,null,null,null,null,null,null,null,null,"Elsinboro   (EuB)   SIL   B   2e","Keyport silt loam   (KpB)   C   2e","Glenville   (GnB)   SIL  C   2w","Lenni sandy loam   (LfA)   D   4w","Elsinboro   (EuB)   SIL   B   2e"]
[null,null,null,null,null,null,null,null,null,null,null,null,null,null,null,null,null,null,null,"Evesboro loamy sand   (EvB)   A   4s","Klej loamy sand   (KsA)   C   3w","Glenville   (GnC)   SIL  C   2w","Lenni silt loam   (LhA)   D   3w","Evesboro loamy sand   (EvB)   A   4s"]
[null,null,null,null,null,null,null,null,null,null,null,null,null,null,null,null,null,null,null,"Evesboro loamy sand   (EvD)   A   6e","Klej-Galloway complex   (KgB)   C   3w","Greenwich   (GrA)   L  B   2w","Longmarsh and Indiantown soils   (LO)   D   5w","Evesboro loamy sand   (EvD)   A   6e"]
[null,null,null,null,null,null,null,null,null,null,null,null,null,null,null,null,null,null,null,"Fallsington (drained)   (Fa)   SL   B   3w","Lenni sandy loam   (LfA)   D   4w","Greenwich   (GrB)   L  B   2w","Marshyhope loam   (McA)   C   3w","Fallsington (drained)   (Fa)   SL   B   3w"]
[null,null,null,null,null,null,null,null,null,null,null,null,null,null,null,null,null,null,null,"Fallsington (drained)   (Fs)   L   B   3w","Lenni silt loam   (LhA)   D   3w","Greenwich   (GuB)   L  B   2w","Marshyhope sandy loam   (MdA)   C   3w","Fallsington (drained)   (Fs)   L   B   3w"]
[null,null,null,null,null,null,null,null,null,null,null,null,null,null,null,null,null,null,null,"Fallsington (drained)   (Ou)   L   B   3w","Longmarsh and Indiantown soils   (LO)   D   5w","Hambrook   (HbA)   SL  B   2w","Mullica mucky sandy loam   (MmA)   B   2w","Fallsington (drained)   (Ou)   L   B   3w"]
[null,null,null,null,null,null,null,null,null,null,null,null,null,null,null,null,null,null,null,"Fallsington (undrained)   (Fa)   SL   D   4w","Marshyhope loam   (McA)   C   3w","Hambrook   (HbB)   SL  B   2w","Mullica-Berryland complex   (MuA)   B   2w","Fallsington (undrained)   (Fa)   SL   D   4w"]
[null,null,null,null,null,null,null,null,null,null,null,null,null,null,null,null,null,null,null,"Fallsington (undrained)   (Fs)   L   D   4w","Marshyhope sandy loam   (MdA)   C   3w","Hambrook   (HkB)   SL  B   2w","Pepperbox loamy sand   (PpA)   C   2w","Fallsington (undrained)   (Fs)   L   D   4w"]
[null,null,null,null,null,null,null,null,null,null,null,null,null,null,null,null,null,null,null,"Fallsington (undrained)   (Ou)   L   D   4w","Mullica mucky sandy loam   (MmA)   B   2w","Urban land   (HkB)     D   2w","Pepperbox loamy sand   (PpB)   C   2e","Fallsington (undrained)   (Ou)   L   D   4w"]
[null,null,null,null,null,null,null,null,null,null,null,null,null,null,null,null,null,null,null,"Fallsington loam   (FgA)   C   4w","Mullica-Berryland complex   (MuA)   B   2w","Hammonton   (HnA)   SL  B   2w","Pepperbox-Rockawalkin complex   (PrA)   C   2w","Fallsington loam   (FgA)   C   4w"]
[null,null,null,null,null,null,null,null,null,null,null,null,null,null,null,null,null,null,null,"Fallsington sandy loam   (FaA)   C   4w","Pepperbox loamy sand   (PpA)   C   2w","Hammonton   (HoA)   SL  B   2w","Pepperbox-Rockawalkin complex   (PrB)   C   2e","Fallsington sandy loam   (FaA)   C   4w"]
[null,null,null,null,null,null,null,null,null,null,null,null,null,null,null,null,null,null,null,"Fallsington-Urban land complex   (FzB)   B   3w","Pepperbox loamy sand   (PpB)   C   2e","Fallsington, drained   (HoA)   SLC   3w","Pepperbox-Rosedale complex   (PsA)   A   2s","Fallsington-Urban land complex   (FzB)   B   3w"]
[null,null,null,null,null,null,null,null,null,null,null,null,null,null,null,null,null,null,null,"Fort Mott loamy sand   (FmA)   A   2s","Pepperbox-Rockawalkin complex   (PrA)   C   2w","Fallsington, undrained   (HoA)   MPMD   4w","Pepperbox-Rosedale complex   (PsB)   A   2e","Fort Mott loamy sand   (FmA)   A   2s"]
[null,null,null,null,null,null,null,null,null,null,null,null,null,null,null,null,null,null,null,"Fort Mott loamy sand   (FmB)   A   2s","Pepperbox-Rockawalkin complex   (PrB)   C   2e","Mullica, drained   (HoA)   MPMB   2w","Pineyneck loam   (PyA)   B   2w","Fort Mott loamy sand   (FmB)   A   2s"]
[null,null,null,null,null,null,null,null,null,null,null,null,null,null,null,null,null,null,null,{"$f":"IF($L$2=\"Kent\",U117,IF($L$2=\"New Castle\",V117,IF($L$2=\"Sussex\",W117,X117)))","v":"Fort Mott-Henlopen complex   (FhA)   A   2s"},"Pepperbox-Rosedale complex   (PsA)   A   2s","Mullica, undrained   (HoA)   MK-SLD   4w","Rockawalkin loamy sand   (RkA)   B   2w","Fort Mott-Henlopen complex   (FhA)   A   2s"]
[null,null,null,null,null,null,null,null,null,null,null,null,null,null,null,null,null,null,null,"Fort Mott-Henlopen complex   (FhB)   A   2s","Pepperbox-Rosedale complex   (PsB)   A   2e","Hatboro   (Ht)   SIL  D   2w","Rockawalkin loamy sand   (RkB)   B   2e","Fort Mott-Henlopen complex   (FhB)   A   2s"]
[null,null,null,null,null,null,null,null,null,null,null,null,null,null,null,null,null,null,null,"Galestown loamy sand   (GaB)   A   3s","Pineyneck loam   (PyA)   B   2w","Codorus   (Hw)   SIL  C   2w","Rosedale loamy sand   (RoA)   A   2s","Galestown loamy sand   (GaB)   A   3s"]
[null,null,null,null,null,null,null,null,null,null,null,null,null,null,null,null,null,null,null,"Glassboro sandy loam   (GoA)   C   3w","Rockawalkin loamy sand   (RkA)   B   2w","Hatboro   (Hw)   SIL  D   2w","Rosedale loamy sand   (RoB)   A   2e","Glassboro sandy loam   (GoA)   C   3w"]
[null,null,null,null,null,null,null,null,null,null,null,null,null,null,null,null,null,null,null,"Glenelg   (GmB2)   L   B   2e","Rockawalkin loamy sand   (RkB)   B   2e","Ingleside   (IeA)   LS  B   2w","Runclint loamy sand   (RuA)   A   4s","Glenelg   (GmB2)   L   B   2e"]
[null,null,null,null,null,null,null,null,null,null,null,null,null,null,null,null,null,null,null,"Glenelg   (GmC2)   L   B   3e","Rosedale loamy sand   (RoA)   A   2s","Ingleside   (IeB)   LS  B   2w","Runclint loamy sand   (RuB)   A   4s","Glenelg   (GmC2)   L   B   3e"]
[null,null,null,null,null,null,null,null,null,null,null,null,null,null,null,null,null,null,null,"Glenelg   (GmC3)   L   B   3e","Rosedale loamy sand   (RoB)   A   2e","Ingleside   (IgB)   SL  B   2w","Runclint sand   (RsA)   A   4s","Glenelg   (GmC3)   L   B   3e"]
[null,null,null,null,null,null,null,null,null,null,null,null,null,null,null,null,null,null,null,"Glenelg   (GmD2)   L   B   4e","Runclint loamy sand   (RuA)   A   4s","Ingleside   (ImB)   SL  B   2w","Runclint sand   (RsB)   A   4s","Glenelg   (GmD2)   L   B   4e"]
[null,null,null,null,null,null,null,null,null,null,null,null,null,null,null,null,null,null,null,"Glenelg   (GmD3)   L   B   4e","Runclint loamy sand   (RuB)   A   4s","Hammonton   (ImB)   SL  B   2w","Runclint-Cedartown complex   (RwA)   A   4s","Glenelg   (GmD3)   L   B   4e"]
[null,null,null,null,null,null,null,null,null,null,null,null,null,null,null,null,null,null,null,"Glenelg   (GmE)   L   B   7e","Runclint sand   (RsA)   A   4s","Fallsington, undrained   (ImB)   MPM  D   4w","Runclint-Cedartown complex   (RwB)   A   4s","Glenelg   (GmE)   L   B   7e"]
[null,null,null,null,null,null,null,null,null,null,null,null,null,null,null,null,null,null,null,"Glenelg   (McB)   L   B   2e","Runclint sand   (RsB)   A   4s","Fallsington, drained   (ImB)   SL  C   3w","Saltpond mucky sand   (Sp)   D   4w","Glenelg   (McB)   L   B   2e"]
[null,null,null,null,null,null,null,null,null,null,null,null,null,null,null,null,null,null,null,"Glenville   (GnA)   SIL   C   2w","Runclint-Cedartown complex   (RwA)   A   4s","Keyport   (KhC)   SL  C   2w","Sassafras sandy loam   (SaA)   B   1","Glenville   (GnA)   SIL   C   2w"]
[null,null,null,null,null,null,null,null,null,null,null,null,null,null,null,null,null,null,null,"Glenville   (GnB2)   SIL   C   2e","Runclint-Cedartown complex   (RwB)   A   4s","Keyport   (KmE)   L  C   2w","Sassafras sandy loam   (SaB)   B   2e","Glenville   (GnB2)   SIL   C   2e"]
[null,null,null,null,null,null,null,null,null,null,null,null,null,null,null,null,null,null,null,"Greenwich loam   (GrA)   B   1","Saltpond mucky sand   (Sp)   D   4w","Keyport   (KpA)   SIL  C   2w","Sassafras sandy loam   (SaC)   B   3e","Greenwich loam   (GrA)   B   1"]
[null,null,null,null,null,null,null,null,null,null,null,null,null,null,null,null,null,null,null,"Greenwich loam   (GrB)   B   2e","Sassafras sandy loam   (SaA)   B   1","Keyport   (KpB)   SIL  C   2w","Sassafras soils   (SSD)   B   4e","Greenwich loam   (GrB)   B   2e"]
[null,null,null,null,null,null,null,null,null,null,null,null,null,null,null,null,null,null,null,"Greenwich-Urban land complex   (GuB)   B   2e","Sassafras sandy loam   (SaB)   B   2e","Leipsic   (LeA)   SIL  C   2w","Sunken mucky silt loam   (SuA)   D   5w","Greenwich-Urban land complex   (GuB)   B   2e"]
[null,null,null,null,null,null,null,null,null,null,null,null,null,null,null,null,null,null,null,"Hambrook sandy loam   (HbA)   B   1","Sassafras sandy loam   (SaC)   B   3e","Leipsic   (LeB)   SIL  C   2w","Udorthents, borrow area   (UbB)   B   2e","Hambrook sandy loam   (HbA)   B   1"]
[null,null,null,null,null,null,null,null,null,null,null,null,null,null,null,null,null,null,null,"Hambrook sandy loam   (HbB)   B   2e","Sassafras soils   (SSD)   B   4e","Leipsic   (LfA)   SIL  C   2w","Udorthents, refuse substatum   (UfB)   C   3s","Hambrook sandy loam   (HbB)   B   2e"]
[null,null,null,null,null,null,null,null,null,null,null,null,null,null,null,null,null,null,null,"Hambrook-Urban land complex   (HkB)   B   2e","Sunken mucky silt loam   (SuA)   D   5w","Reybold   (LfA)   SIL  B   2w","Udorthents   (UzC)   B   3e","Hambrook-Urban land complex   (HkB)   B   2e"]
[null,null,null,null,null,null,null,null,null,null,null,null,null,null,null,null,null,null,null,"Hammonton loamy sand   (HmA)   B   2w","Udorthents   (UzC)   B   3e","Leipsic   (LfB)   SIL  C   2w","Udorthents   (UzD)   B   4e","Hammonton loamy sand   (HmA)   B   2w"]
[null,null,null,null,null,null,null,null,null,null,null,null,null,null,null,null,null,null,null,"Hammonton sandy loam   (HnA)   B   2w","Udorthents   (UzD)   B   4e","Reybold   (LfB)   SIL  B   2w","Unicorn loam   (UlA)   B   1","Hammonton sandy loam   (HnA)   B   2w"]
[null,null,null,null,null,null,null,null,null,null,null,null,null,null,null,null,null,null,null,"Hammonton-Fallsington-Mullica complex   (HoA)   B   2w","Udorthents, borrow area   (UbB)   B   2e","Lenni   (LhA)   SIL  D   2w","Woodstown loam   (WoA)   C   2w","Hammonton-Fallsington-Mullica complex   (HoA)   B   2w"]
[null,null,null,null,null,null,null,null,null,null,null,null,null,null,null,null,null,null,null,"Hatboro   (Ha)   SIL   D   3w","Udorthents, refuse substratum   (UfB)   C   3s","Lenni   (LhA)   MPM  D   2w","Woodstown sandy loam   (WdA)   C   2w","Hatboro   (Ha)   SIL   D   3w"]
[null,null,null,null,null,null,null,null,null,null,null,null,null,null,null,null,null,null,null,"Hatboro   (HbA)   SIL   D   3w","Unicorn loam   (UlA)   B   1","Lenape   (Lk)   MPT  D   2w","Zekiah sandy loam   (Za)   D   5w","Hatboro   (HbA)   SIL   D   3w"]
[null,null,null,null,null,null,null,null,null,null,null,null,null,null,null,null,null,null,null,"Hatboro   (HbC)   SIL   D   3w","Woodstown loam   (WoA)   C   2w","Lenape   (Ln)   MPT  D   2w",0,"Hatboro   (HbC)   SIL   D   3w"]
[null,null,null,null,null,null,null,null,null,null,null,null,null,null,null,null,null,null,null,"Henlopen loamy sand   (HpA)   A   3s","Woodstown sandy loam   (WdA)   C   2w","Nanticoke   (Ln)   SIL  D   2w",0,"Henlopen loamy sand   (HpA)   A   3s"]
[null,null,null,null,null,null,null,null,null,null,null,null,null,null,null,null,null,null,null,"Henlopen loamy sand   (HpB)   A   3s","Zekiah sandy loam   (Za)   D   5w","Indiantown   (LO)   MPM  D   2w",0,"Henlopen loamy sand   (HpB)   A   3s"]
[null,null,null,null,null,null,null,null,null,null,null,null,null,null,null,null,null,null,null,"Henlopen-Rosedale complex   (HrA)   A   3s",0,"Longmarsh   (LO)   MPM  D   2w",0,"Henlopen-Rosedale complex   (HrA)   A   3s"]
[null,null,null,null,null,null,null,null,null,null,null,null,null,null,null,null,null,null,null,"Henlopen-Rosedale complex   (HrB)   A   3s",0,"Manor   (MaC)   L  B   2w",0,"Henlopen-Rosedale complex   (HrB)   A   3s"]
[null,null,null,null,null,null,null,null,null,null,null,null,null,null,null,null,null,null,null,"Henlopen-Rosedale-Urban land complex   (HsA)   A   3s",0,"Manor   (MaD)   L  B   2w",0,"Henlopen-Rosedale-Urban land complex   (HsA)   A   3s"]
[null,null,null,null,null,null,null,null,null,null,null,null,null,null,null,null,null,null,null,"Hurlock loamy sand   (HuA)   B   4w",0,"Manor   (MaE)   L  B   2w",0,"Hurlock loamy sand   (HuA)   B   4w"]
[null,null,null,null,null,null,null,null,null,null,null,null,null,null,null,null,null,null,null,"Hurlock sandy loam   (HvA)   B   4w",0,"Matapeake   (MkA)   SIL  B   2w",0,"Hurlock sandy loam   (HvA)   B   4w"]
[null,null,null,null,null,null,null,null,null,null,null,null,null,null,null,null,null,null,null,"Ingleside loamy sand   (IeA)   B   1",0,"Matapeake   (MkB)   SIL  B   2w",0,"Ingleside loamy sand   (IeA)   B   1"]
[null,null,null,null,null,null,null,null,null,null,null,null,null,null,null,null,null,null,null,"Ingleside loamy sand   (IeB)   B   2e",0,"Mullica   (MmA)   MK-SL  B   2w",0,"Ingleside loamy sand   (IeB)   B   2e"]
[null,null,null,null,null,null,null,null,null,null,null,null,null,null,null,null,null,null,null,"Ingleside sandy loam   (IgA)   B   1",0,"Mullica   (MmA)   MPM  D   2w",0,"Ingleside sandy loam   (IgA)   B   1"]
[null,null,null,null,null,null,null,null,null,null,null,null,null,null,null,null,null,null,null,"Ingleside sandy loam   (IgB)   B   2e",0,"Mattapex   (MtA)   SIL  C   2w",0,"Ingleside sandy loam   (IgB)   B   2e"]
[null,null,null,null,null,null,null,null,null,null,null,null,null,null,null,null,null,null,null,"Ingleside-Hammonton-Fallsington complex   (ImB)   B   2e",0,"Mattapex   (MtB)   SIL  C   2w",0,"Ingleside-Hammonton-Fallsington complex   (ImB)   B   2e"]
[null,null,null,null,null,null,null,null,null,null,null,null,null,null,null,null,null,null,null,"Ingleside-Urban land complex   (IuB)   B   2e",0,"Mattapex   (MtC)   SIL  C   2w",0,"Ingleside-Urban land complex   (IuB)   B   2e"]
[null,null,null,null,null,null,null,null,null,null,null,null,null,null,null,null,null,null,null,"Johnston   (Jo)   L   D   7w",0,"Mattapex   (MuB)   SIL  C   2w",0,"Johnston   (Jo)   L   D   7w"]
[null,null,null,null,null,null,null,null,null,null,null,null,null,null,null,null,null,null,null,"Keyport   (Am)   SIL   C   2e",0,"Montalto   (MxB)   SIL  C   2w",0,"Keyport   (Am)   SIL   C   2e"]
[null,null,null,null,null,null,null,null,null,null,null,null,null,null,null,null,null,null,null,"Keyport   (KeA)   SIL   C   2w",0,"Montalto   (MxC)   SIL  C   2w",0,"Keyport   (KeA)   SIL   C   2w"]
[null,null,null,null,null,null,null,null,null,null,null,null,null,null,null,null,null,null,null,"Keyport   (KeB2)   SIL   C   2e",0,"Mount Lucas   (MzA)   SIL  C   2w",0,"Keyport   (KeB2)   SIL   C   2e"]
[null,null,null,null,null,null,null,null,null,null,null,null,null,null,null,null,null,null,null,"Keyport   (KeC2)   SIL   C   3e",0,"Mount Lucas   (MzB)   SIL  C   2w",0,"Keyport   (KeC2)   SIL   C   3e"]
[null,null,null,null,null,null,null,null,null,null,null,null,null,null,null,null,null,null,null,"Keyport   (KpC3)   SIL   C   3e",0,"Mount Lucas   (MzuB)   SIL  C   2w",0,"Keyport   (KpC3)   SIL   C   3e"]
[null,null,null,null,null,null,null,null,null,null,null,null,null,null,null,null,null,null,null,"Keyport fine sandy loam   (KfA)   C   2w",0,"Mannington   (NM)   MK-SIL  D   2w",0,"Keyport fine sandy loam   (KfA)   C   2w"]
[null,null,null,null,null,null,null,null,null,null,null,null,null,null,null,null,null,null,null,"Keyport silt loam   (KpA)   C   2w",0,"Nanticoke   (NM)   SIL  D   2w",0,"Keyport silt loam   (KpA)   C   2w"]
[null,null,null,null,null,null,null,null,null,null,null,null,null,null,null,null,null,null,null,"Keyport silt loam   (KpB)   C   2e",0,"Nassawango   (NsA)   SIL  B   2w",0,"Keyport silt loam   (KpB)   C   2e"]
[null,null,null,null,null,null,null,null,null,null,null,null,null,null,null,null,null,null,null,"Kinkora   (KrA)   SIL   D   3w",0,"Nassawango   (NsB)   SIL  B   2w",0,"Kinkora   (KrA)   SIL   D   3w"]
[null,null,null,null,null,null,null,null,null,null,null,null,null,null,null,null,null,null,null,"Kinkora   (KrB)   SIL   D   3w",0,"Neshaminy   (NtB)   SIL  B   2w",0,"Kinkora   (KrB)   SIL   D   3w"]
[null,null,null,null,null,null,null,null,null,null,null,null,null,null,null,null,null,null,null,"Klej loamy sand   (KsA)   C   3w",0,"Neshaminy   (NtC)   SIL  B   2w",0,"Klej loamy sand   (KsA)   C   3w"]
[null,null,null,null,null,null,null,null,null,null,null,null,null,null,null,null,null,null,null,"Klej-Galloway complex   (KgB)   C   3w",0,"Montalto   (NvC)   SIL  C   2w",0,"Klej-Galloway complex   (KgB)   C   3w"]
[null,null,null,null,null,null,null,null,null,null,null,null,null,null,null,null,null,null,null,"Lenni sandy loam   (LfA)   D   4w",0,"Neshaminy   (NvC)   SIL  B   2w",0,"Lenni sandy loam   (LfA)   D   4w"]
[null,null,null,null,null,null,null,null,null,null,null,null,null,null,null,null,null,null,null,"Lenni silt loam   (LhA)   D   3w",0,"Montalto   (NvD)   SIL  C   2w",0,"Lenni silt loam   (LhA)   D   3w"]
[null,null,null,null,null,null,null,null,null,null,null,null,null,null,null,null,null,null,null,"Local Alluvium   (HbA)   SIL   C   3w",0,"Neshaminy   (NvD)   SIL  B   2w",0,"Local Alluvium   (HbA)   SIL   C   3w"]
[null,null,null,null,null,null,null,null,null,null,null,null,null,null,null,null,null,null,null,"Local Alluvium   (HbC)   SIL   C   3w",0,"Montalto   (NvE)   SIL  C   2w",0,"Local Alluvium   (HbC)   SIL   C   3w"]
[null,null,null,null,null,null,null,null,null,null,null,null,null,null,null,null,null,null,null,"Longmarsh and Indiantown soils   (LO)   D   5w",0,"Neshaminy   (NvE)   SIL  B   2w",0,"Longmarsh and Indiantown soils   (LO)   D   5w"]
[null,null,null,null,null,null,null,null,null,null,null,null,null,null,null,null,null,null,null,"Manor   (GmB2)   L   B   2e",0,"Neshaminy   (NxB)   SIL  B   2w",0,"Manor   (GmB2)   L   B   2e"]
[null,null,null,null,null,null,null,null,null,null,null,null,null,null,null,null,null,null,null,"Manor   (GmC2)   L   B   3e",0,"Othello   (OtA)   MPM  D   2w",0,"Manor   (GmC2)   L   B   3e"]
[null,null,null,null,null,null,null,null,null,null,null,null,null,null,null,null,null,null,null,"Manor   (GmC3)   L   B   3e",0,"Othello   (OtA)   SIL  C   2w",0,"Manor   (GmC3)   L   B   3e"]
[null,null,null,null,null,null,null,null,null,null,null,null,null,null,null,null,null,null,null,"Manor   (GmD2)   L   B   4e",0,"Pineyneck   (PyA)   L  B   2w",0,"Manor   (GmD2)   L   B   4e"]
[null,null,null,null,null,null,null,null,null,null,null,null,null,null,null,null,null,null,null,"Manor   (GmD3)   L   B   4e",0,"Pineyneck   (PyB)   L  B   2w",0,"Manor   (GmD3)   L   B   4e"]
[null,null,null,null,null,null,null,null,null,null,null,null,null,null,null,null,null,null,null,"Manor   (GmE)   L   B   7e",0,"Queponco   (RdA)   SIL  B   2w",0,"Manor   (GmE)   L   B   7e"]
[null,null,null,null,null,null,null,null,null,null,null,null,null,null,null,null,null,null,null,"Manor   (McB)   L   B   2e",0,"Reybold   (RdA)   SIL  B   2w",0,"Manor   (McB)   L   B   2e"]
[null,null,null,null,null,null,null,null,null,null,null,null,null,null,null,null,null,null,null,"Marshyhope loam   (McA)   C   3w",0,"Reybold   (ReA)   SIL  B   2w",0,"Marshyhope loam   (McA)   C   3w"]
[null,null,null,null,null,null,null,null,null,null,null,null,null,null,null,null,null,null,null,{"$f":"IF($L$2=\"Kent\",U181,IF($L$2=\"New Castle\",V181,IF($L$2=\"Sussex\",W181,X181)))","v":"Marshyhope sandy loam   (MdA)   C   3w"},0,"Reybold   (ReB)   SIL  B   2w",0,"Marshyhope sandy loam   (MdA)   C   3w"]
[null,null,null,null,null,null,null,null,null,null,null,null,null,null,null,null,null,null,null,"Matapeake   (MeA)   SIL   B   1",0,"Reybold   (ReC)   SIL  B   2w",0,"Matapeake   (MeA)   SIL   B   1"]
[null,null,null,null,null,null,null,null,null,null,null,null,null,null,null,null,null,null,null,"Matapeake   (MeB2)   SIL   B   2e",0,"Sassafras   (SaA)   SL  B   2w",0,"Matapeake   (MeB2)   SIL   B   2e"]
[null,null,null,null,null,null,null,null,null,null,null,null,null,null,null,null,null,null,null,"Matapeake   (MeC2)   SIL   B   3e",0,"Sassafras   (SaB)   SL  B   2w",0,"Matapeake   (MeC2)   SIL   B   3e"]
[null,null,null,null,null,null,null,null,null,null,null,null,null,null,null,null,null,null,null,"Matapeake   (MeC3)   SIL   B   3e",0,"Sassafras   (SaC)   SL  B   2w",0,"Matapeake   (MeC3)   SIL   B   3e"]
[null,null,null,null,null,null,null,null,null,null,null,null,null,null,null,null,null,null,null,"Matapeake   (MeD2)   SIL   B   4e",0,"Sassafras   (SaD)   SL  B   2w",0,"Matapeake   (MeD2)   SIL   B   4e"]
[null,null,null,null,null,null,null,null,null,null,null,null,null,null,null,null,null,null,null,"Matapeake   (MeD3)   SIL   B   4e",0,"Sassafras   (SaE)   SL  B   2w",0,"Matapeake   (MeD3)   SIL   B   4e"]
[null,null,null,null,null,null,null,null,null,null,null,null,null,null,null,null,null,null,null,"Matapeake   (MkA)   SIL   B   1",0,"Sunken   (SuA)   SPM  D   2w",0,"Matapeake   (MkA)   SIL   B   1"]
[null,null,null,null,null,null,null,null,null,null,null,null,null,null,null,null,null,null,null,"Matapeake   (MkB2)   SIL   B   2e",0,"Talleyville   (TaB)   SIL  B   2w",0,"Matapeake   (MkB2)   SIL   B   2e"]
[null,null,null,null,null,null,null,null,null,null,null,null,null,null,null,null,null,null,null,"Matapeake   (MkC2)   SIL   B   3e",0,"Montalto   (TdB)   SIL  C   2w",0,"Matapeake   (MkC2)   SIL   B   3e"]
[null,null,null,null,null,null,null,null,null,null,null,null,null,null,null,null,null,null,null,"Matapeake   (MsB)   SIL   B   2e",0,"Talleyville   (TdB)   SIL  B   2w",0,"Matapeake   (MsB)   SIL   B   2e"]
[null,null,null,null,null,null,null,null,null,null,null,null,null,null,null,null,null,null,null,"Mattapex   (Am)   SIL   C   2e",0,"Tent   (TeA)   SIL  C   2w",0,"Mattapex   (Am)   SIL   C   2e"]
[null,null,null,null,null,null,null,null,null,null,null,null,null,null,null,null,null,null,null,"Mattapex   (MtA)   SIL   C   2w",0,"Tent   (TeA)   MPM  D   2w",0,"Mattapex   (MtA)   SIL   C   2w"]
[null,null,null,null,null,null,null,null,null,null,null,null,null,null,null,null,null,null,null,"Mattapex   (MtB2)   SIL   C   2e",0,"Mispillion   (TP)   MPT  D   2w",0,"Mattapex   (MtB2)   SIL   C   2e"]
[null,null,null,null,null,null,null,null,null,null,null,null,null,null,null,null,null,null,null,"Mattapex   (MtC2)   SIL   C   3e",0,"Transquaking   (TP)   MPT  D   2w",0,"Mattapex   (MtC2)   SIL   C   3e"]
[null,null,null,null,null,null,null,null,null,null,null,null,null,null,null,null,null,null,null,"Mattapex   (MtC3)   SIL   C   3e",0,"Udorthents   (UaB)   SIL  B   2w",0,"Mattapex   (MtC3)   SIL   C   3e"]
[null,null,null,null,null,null,null,null,null,null,null,null,null,null,null,null,null,null,null,"Montalto   (NmA)   SIL   C   1",0,"Udorthents   (UbB)   L  B   2w",0,"Montalto   (NmA)   SIL   C   1"]
[null,null,null,null,null,null,null,null,null,null,null,null,null,null,null,null,null,null,null,"Montalto   (NmB2)   SIL   C   2e",0,"Udorthents   (UdrB)   L  D   2w",0,"Montalto   (NmB2)   SIL   C   2e"]
[null,null,null,null,null,null,null,null,null,null,null,null,null,null,null,null,null,null,null,"Montalto   (NmC2)   SIL   C   3e",0,"Unicorn   (UlA)   L  B   2w",0,"Montalto   (NmC2)   SIL   C   3e"]
[null,null,null,null,null,null,null,null,null,null,null,null,null,null,null,null,null,null,null,"Montalto   (NnC3)   SICL   C   3e",0,"Unicorn   (UlB)   L  B   2w",0,"Montalto   (NnC3)   SICL   C   3e"]
[null,null,null,null,null,null,null,null,null,null,null,null,null,null,null,null,null,null,null,"Montalto   (NnD3)   SICL   C   4e",0,"Udorthents   (UsB)   SL  C   2w",0,"Montalto   (NnD3)   SICL   C   4e"]
[null,null,null,null,null,null,null,null,null,null,null,null,null,null,null,null,null,null,null,"Mullica mucky sandy loam   (MmA)   B   2w",0,"Udorthents   (UwA)   L  B   2w",0,"Mullica mucky sandy loam   (MmA)   B   2w"]
[null,null,null,null,null,null,null,null,null,null,null,null,null,null,null,null,null,null,null,"Mullica-Berryland complex   (MuA)   B   2w",0,"Udorthents   (UzC)   SL  B   2w",0,"Mullica-Berryland complex   (MuA)   B   2w"]
[null,null,null,null,null,null,null,null,null,null,null,null,null,null,null,null,null,null,null,"Neshaminy   (NmA)   SIL   B   1",0,"Udorthents   (UzF)   SL  B   2w",0,"Neshaminy   (NmA)   SIL   B   1"]
[null,null,null,null,null,null,null,null,null,null,null,null,null,null,null,null,null,null,null,"Neshaminy   (NmB2)   SIL   B   2e",0,"Othello   (VoB)   SIL  C   2w",0,"Neshaminy   (NmB2)   SIL   B   2e"]
[null,null,null,null,null,null,null,null,null,null,null,null,null,null,null,null,null,null,null,"Neshaminy   (NmC2)   SIL   B   3e",0,"Wheaton   (VwB)   CN-SIL  B   2w",0,"Neshaminy   (NmC2)   SIL   B   3e"]
[null,null,null,null,null,null,null,null,null,null,null,null,null,null,null,null,null,null,null,"Neshaminy   (NnC3)   SICL   B   3e",0,"Watchung   (WaA)   SIL  D   2w",0,"Neshaminy   (NnC3)   SICL   B   3e"]
[null,null,null,null,null,null,null,null,null,null,null,null,null,null,null,null,null,null,null,"Neshaminy   (NnD3)   SICL   B   4e",0,"Watchung   (WaB)   SIL  D   2w",0,"Neshaminy   (NnD3)   SICL   B   4e"]
[null,null,null,null,null,null,null,null,null,null,null,null,null,null,null,null,null,null,null,"Neshaminy   (NsE)   GR-SIL   B   4e",null,"Watchung   (WcB)   SIL  D   2w",null,"Neshaminy   (NsE)   GR-SIL   B   4e"]
[null,null,null,null,null,null,null,null,null,null,null,null,null,null,null,null,null,null,null,"Neshaminy   (NtB)   SIL   B   2e",null,"Woodstown   (WdA)   SL  C   2w",null,"Neshaminy   (NtB)   SIL   B   2e"]
[null,null,null,null,null,null,null,null,null,null,null,null,null,null,null,null,null,null,null,"Neshaminy   (NtD)   SIL   B   4e",null,"Woodstown   (WdB)   SL  C   2w",null,"Neshaminy   (NtD)   SIL   B   4e"]
[null,null,null,null,null,null,null,null,null,null,null,null,null,null,null,null,null,null,null,"Othello (drained)   (Ot)   SIL   C   3w",null,"Woodstown   (WoA)   L  C   2w",null,"Othello (drained)   (Ot)   SIL   C   3w"]
[null,null,null,null,null,null,null,null,null,null,null,null,null,null,null,null,null,null,null,"Othello (drained)   (Ou)   SIL   C   3w",null,"Woodstown   (WoB)   L  C   2w",null,"Othello (drained)   (Ou)   SIL   C   3w"]
[null,null,null,null,null,null,null,null,null,null,null,null,null,null,null,null,null,null,null,"Othello (undrained)   (Ot)   SIL   D   4w",null,"Zekiah   (Za)   SL  D   2w",null,"Othello (undrained)   (Ot)   SIL   D   4w"]
[null,null,null,null,null,null,null,null,null,null,null,null,null,null,null,null,null,null,null,"Othello (undrained)   (Ou)   SIL   D   4w",null,null,null,"Othello (undrained)   (Ou)   SIL   D   4w"]
[null,null,null,null,null,null,null,null,null,null,null,null,null,null,null,null,null,null,null,"Pepperbox loamy sand   (PpA)   C   2w",null,null,null,"Pepperbox loamy sand   (PpA)   C   2w"]
[null,null,null,null,null,null,null,null,null,null,null,null,null,null,null,null,null,null,null,"Pepperbox loamy sand   (PpB)   C   2e",null,null,null,"Pepperbox loamy sand   (PpB)   C   2e"]
[null,null,null,null,null,null,null,null,null,null,null,null,null,null,null,null,null,null,null,"Pepperbox-Rockawalkin complex   (PrA)   C   2w",null,null,null,"Pepperbox-Rockawalkin complex   (PrA)   C   2w"]
[null,null,null,null,null,null,null,null,null,null,null,null,null,null,null,null,null,null,null,"Pepperbox-Rockawalkin complex   (PrB)   C   2e",null,null,null,"Pepperbox-Rockawalkin complex   (PrB)   C   2e"]
[null,null,null,null,null,null,null,null,null,null,null,null,null,null,null,null,null,null,null,"Pepperbox-Rosedale complex   (PsA)   A   2s",null,null,null,"Pepperbox-Rosedale complex   (PsA)   A   2s"]
[null,null,null,null,null,null,null,null,null,null,null,null,null,null,null,null,null,null,null,"Pepperbox-Rosedale complex   (PsB)   A   2e",null,null,null,"Pepperbox-Rosedale complex   (PsB)   A   2e"]
[null,null,null,null,null,null,null,null,null,null,null,null,null,null,null,null,null,null,null,"Pineyneck loam   (PyA)   B   2w",null,null,null,"Pineyneck loam   (PyA)   B   2w"]
[null,null,null,null,null,null,null,null,null,null,null,null,null,null,null,null,null,null,null,"Pocomoke (drained)   (Po)   L   B   3w",null,null,null,"Pocomoke (drained)   (Po)   L   B   3w"]
[null,null,null,null,null,null,null,null,null,null,null,null,null,null,null,null,null,null,null,"Pocomoke (undrained)   (Po)   L   D   4w",null,null,null,"Pocomoke (undrained)   (Po)   L   D   4w"]
[null,null,null,null,null,null,null,null,null,null,null,null,null,null,null,null,null,null,null,"Rockawalkin loamy sand   (RkA)   B   2w",null,null,null,"Rockawalkin loamy sand   (RkA)   B   2w"]
[null,null,null,null,null,null,null,null,null,null,null,null,null,null,null,null,null,null,null,"Rockawalkin loamy sand   (RkB)   B   2e",null,null,null,"Rockawalkin loamy sand   (RkB)   B   2e"]
[null,null,null,null,null,null,null,null,null,null,null,null,null,null,null,null,null,null,null,"Rosedale loamy sand   (RoA)   A   2s",null,null,null,"Rosedale loamy sand   (RoA)   A   2s"]
[null,null,null,null,null,null,null,null,null,null,null,null,null,null,null,null,null,null,null,"Rosedale loamy sand   (RoB)   A   2e",null,null,null,"Rosedale loamy sand   (RoB)   A   2e"]
[null,null,null,null,null,null,null,null,null,null,null,null,null,null,null,null,null,null,null,"Rumford   (RuB2)   LS   B   2s",null,null,null,"Rumford   (RuB2)   LS   B   2s"]
[null,null,null,null,null,null,null,null,null,null,null,null,null,null,null,null,null,null,null,"Rumford   (RuC2)   LS   B   3e",null,null,null,"Rumford   (RuC2)   LS   B   3e"]
[null,null,null,null,null,null,null,null,null,null,null,null,null,null,null,null,null,null,null,"Runclint loamy sand   (RuA)   A   4s",null,null,null,"Runclint loamy sand   (RuA)   A   4s"]
[null,null,null,null,null,null,null,null,null,null,null,null,null,null,null,null,null,null,null,"Runclint loamy sand   (RuB)   A   4s",null,null,null,"Runclint loamy sand   (RuB)   A   4s"]
[null,null,null,null,null,null,null,null,null,null,null,null,null,null,null,null,null,null,null,"Runclint sand   (RsA)   A   4s",null,null,null,"Runclint sand   (RsA)   A   4s"]
[null,null,null,null,null,null,null,null,null,null,null,null,null,null,null,null,null,null,null,"Runclint sand   (RsB)   A   4s",null,null,null,"Runclint sand   (RsB)   A   4s"]
[null,null,null,null,null,null,null,null,null,null,null,null,null,null,null,null,null,null,null,"Runclint-Cedartown complex   (RwA)   A   4s",null,null,null,"Runclint-Cedartown complex   (RwA)   A   4s"]
[null,null,null,null,null,null,null,null,null,null,null,null,null,null,null,null,null,null,null,"Runclint-Cedartown complex   (RwB)   A   4s",null,null,null,"Runclint-Cedartown complex   (RwB)   A   4s"]
[null,null,null,null,null,null,null,null,null,null,null,null,null,null,null,null,null,null,null,"Saltpond mucky sand   (Sp)   D   4w",null,null,null,"Saltpond mucky sand   (Sp)   D   4w"]
[null,null,null,null,null,null,null,null,null,null,null,null,null,null,null,null,null,null,null,"Sassafras   (MsB)   SL   B   2e",null,null,null,"Sassafras   (MsB)   SL   B   2e"]
[null,null,null,null,null,null,null,null,null,null,null,null,null,null,null,null,null,null,null,"Sassafras   (SaA)   SL   B   1",null,null,null,"Sassafras   (SaA)   SL   B   1"]
[null,null,null,null,null,null,null,null,null,null,null,null,null,null,null,null,null,null,null,"Sassafras   (SaB2)   SL   B   2e",null,null,null,"Sassafras   (SaB2)   SL   B   2e"]
[null,null,null,null,null,null,null,null,null,null,null,null,null,null,null,null,null,null,null,"Sassafras   (SaC2)   SL   B   3e",null,null,null,"Sassafras   (SaC2)   SL   B   3e"]
[null,null,null,null,null,null,null,null,null,null,null,null,null,null,null,null,null,null,null,"Sassafras   (SaC3)   SL   B   3e",null,null,null,"Sassafras   (SaC3)   SL   B   3e"]
[null,null,null,null,null,null,null,null,null,null,null,null,null,null,null,null,null,null,null,"Sassafras   (SaD2)   SL   B   4e",null,null,null,"Sassafras   (SaD2)   SL   B   4e"]
[null,null,null,null,null,null,null,null,null,null,null,null,null,null,null,null,null,null,null,"Sassafras / Matapeake   (SmE)   SIL   B   6e",null,null,null,"Sassafras / Matapeake   (SmE)   SIL   B   6e"]
[null,null,null,null,null,null,null,null,null,null,null,null,null,null,null,null,null,null,null,{"$f":"IF($L$2=\"Kent\",U245,IF($L$2=\"New Castle\",V245,IF($L$2=\"Sussex\",W245,X245)))","v":"Sassafras sandy loam   (SaA)   B   1"},null,null,null,"Sassafras sandy loam   (SaA)   B   1"]
[null,null,null,null,null,null,null,null,null,null,null,null,null,null,null,null,null,null,null,"Sassafras sandy loam   (SaB)   B   2e",null,null,null,"Sassafras sandy loam   (SaB)   B   2e"]
[null,null,null,null,null,null,null,null,null,null,null,null,null,null,null,null,null,null,null,"Sassafras sandy loam   (SaC)   B   3e",null,null,null,"Sassafras sandy loam   (SaC)   B   3e"]
[null,null,null,null,null,null,null,null,null,null,null,null,null,null,null,null,null,null,null,"Sassafras soils   (SSD)   B   4e",null,null,null,"Sassafras soils   (SSD)   B   4e"]
[null,null,null,null,null,null,null,null,null,null,null,null,null,null,null,null,null,null,null,"Silty And Clayey Land   (StB)   SICL   C   2e",null,null,null,"Silty And Clayey Land   (StB)   SICL   C   2e"]
[null,null,null,null,null,null,null,null,null,null,null,null,null,null,null,null,null,null,null,"Silty And Clayey Land   (StC)   SICL   C   3e",null,null,null,"Silty And Clayey Land   (StC)   SICL   C   3e"]
[null,null,null,null,null,null,null,null,null,null,null,null,null,null,null,null,null,null,null,"Sunken mucky silt loam   (SuA)   D   5w",null,null,null,"Sunken mucky silt loam   (SuA)   D   5w"]
[null,null,null,null,null,null,null,null,null,null,null,null,null,null,null,null,null,null,null,"Talleyville   (NsE)   SIL   B   3e",null,null,null,"Talleyville   (NsE)   SIL   B   3e"]
[null,null,null,null,null,null,null,null,null,null,null,null,null,null,null,null,null,null,null,"Talleyville   (NtB)   SIL   B   2e",null,null,null,"Talleyville   (NtB)   SIL   B   2e"]
[null,null,null,null,null,null,null,null,null,null,null,null,null,null,null,null,null,null,null,"Talleyville   (NtD)   SIL   B   3e",null,null,null,"Talleyville   (NtD)   SIL   B   3e"]
[null,null,null,null,null,null,null,null,null,null,null,null,null,null,null,null,null,null,null,"Talleyville   (TaB2)   SIL   B   2e",null,null,null,"Talleyville   (TaB2)   SIL   B   2e"]
[null,null,null,null,null,null,null,null,null,null,null,null,null,null,null,null,null,null,null,"Talleyville   (TaC2)   SIL   B   3e",null,null,null,"Talleyville   (TaC2)   SIL   B   3e"]
[null,null,null,null,null,null,null,null,null,null,null,null,null,null,null,null,null,null,null,"Udorthents   (UzC)   B   3e",null,null,null,"Udorthents   (UzC)   B   3e"]
[null,null,null,null,null,null,null,null,null,null,null,null,null,null,null,null,null,null,null,"Udorthents   (UzD)   B   4e",null,null,null,"Udorthents   (UzD)   B   4e"]
[null,null,null,null,null,null,null,null,null,null,null,null,null,null,null,null,null,null,null,"Udorthents, borrow area   (UbB)   B   2e",null,null,null,"Udorthents, borrow area   (UbB)   B   2e"]
[null,null,null,null,null,null,null,null,null,null,null,null,null,null,null,null,null,null,null,"Udorthents, refuse substatum   (UfB)   C   3s",null,null,null,"Udorthents, refuse substatum   (UfB)   C   3s"]
[null,null,null,null,null,null,null,null,null,null,null,null,null,null,null,null,null,null,null,"Udorthents, refuse substratum   (UfB)   C   3s",null,null,null,"Udorthents, refuse substratum   (UfB)   C   3s"]
[null,null,null,null,null,null,null,null,null,null,null,null,null,null,null,null,null,null,null,"Unicorn loam   (UlA)   B   1",null,null,null,"Unicorn loam   (UlA)   B   1"]
[null,null,null,null,null,null,null,null,null,null,null,null,null,null,null,null,null,null,null,"Watchung   (Wa)   SIL   D   6w",null,null,null,"Watchung   (Wa)   SIL   D   6w"]
[null,null,null,null,null,null,null,null,null,null,null,null,null,null,null,null,null,null,null,"Watchung   (WcA)   SIL   D   4w",null,null,null,"Watchung   (WcA)   SIL   D   4w"]
[null,null,null,null,null,null,null,null,null,null,null,null,null,null,null,null,null,null,null,"Watchung   (WcB)   SIL   D   6w",null,null,null,"Watchung   (WcB)   SIL   D   6w"]
[null,null,null,null,null,null,null,null,null,null,null,null,null,null,null,null,null,null,null,"Woodstown   (WoA)   SL   C   2w",null,null,null,"Woodstown   (WoA)   SL   C   2w"]
[null,null,null,null,null,null,null,null,null,null,null,null,null,null,null,null,null,null,null,"Woodstown   (WoB2)   SL   C   2w",null,null,null,"Woodstown   (WoB2)   SL   C   2w"]
[null,null,null,null,null,null,null,null,null,null,null,null,null,null,null,null,null,null,null,"Woodstown   (WsA)   L   C   2w",null,null,null,"Woodstown   (WsA)   L   C   2w"]
[null,null,null,null,null,null,null,null,null,null,null,null,null,null,null,null,null,null,null,"Woodstown   (WsB2)   L   C   2w",null,null,null,"Woodstown   (WsB2)   L   C   2w"]
[null,null,null,null,null,null,null,null,null,null,null,null,null,null,null,null,null,null,null,"Woodstown loam   (WoA)   C   2w",null,null,null,"Woodstown loam   (WoA)   C   2w"]
[null,null,null,null,null,null,null,null,null,null,null,null,null,null,null,null,null,null,null,"Woodstown sandy loam   (WdA)   C   2w",null,null,null,"Woodstown sandy loam   (WdA)   C   2w"]
[null,null,null,null,null,null,null,null,null,null,null,null,null,null,null,null,null,null,null,"Zekiah sandy loam   (Za)   D   5w",null,null,null,"Zekiah sandy loam   (Za)   D   5w"]

{"sheet":"Con_Prac","index":19,"n_rows":38,"n_cols":2,"rows_kept":38,"cut":false,"hidden":false,"merged":[[0,0,0,1]]}
["Production Area Conservation Practices - Delaware FY 2016"]
["Code","Practice"]
[" "," "]
["Other"," "]
[309,"Agricultural Chemical Handling Facility"]
[313,"Waste Storage Facility"]
[316,"Animal Mortality Facility"]
[317,"Composting Facility"]
[342,"Critical Area Planting"]
[350,"Sediment Basin"]
[360,"Closure of Waste Impoundment"]
[362,"Diversion"]
[367,"Roofs and Covers"]
[374,"Farmstead Energy Improvement"]
[380,"Windbreak/Shelterbelt Establishment"]
[382,"Fence"]
[393,"Filter Strip"]
[410,"Grade Stabilization Structure"]
[412,"Grassed Waterway"]
[422,"Hedgerow Planting"]
[472,"Use Exclusion"]
[516,"Pipeline"]
[558,"Roof Runoff Structure"]
[560,"Access Road"]
[561,"Heavy Use Area Protection"]
[575,"Trails and Walkways"]
[578,"Stream Crossing"]
[587,"Structure for Water Control"]
[606,"Subsurface Drain"]
[607,"Surface Drainage, Field Ditch"]
[608,"Surface Drainage, Main or Lateral"]
[612,"Tree/Shrub Establishment"]
[614,"Watering Facility"]
[620,"Underground Outlet"]
[632,"Waste Separation Facility"]
[642,"Water Well"]
[670,"Lighting System Improvement"]
[672,"Building Envelope Improvement"]

{"sheet":"Sheet1","index":20,"n_rows":0,"n_cols":0,"rows_kept":0,"cut":false,"hidden":false,"merged":[]}